Workbook

Sheet Лист2 (hidden)
B2: Вес | D2: =Ra!D2 -> 55 | E2: =Ra!E2 -> 60 | F2: =Ra!F2 -> 63 | G2: =Ra!G2 -> 67 | H2: =Ra!H2 -> 72 | I2: =Ra!I2 -> 77 | J2: =Ra!J2 -> 82 | K2: =Ra!K2 -> 87 | L2: =Ra!L2 -> 97 | M2: =Ra!M2 -> 130 | N2: =Ra!N2 -> 0 | O2: =Ra!O2 -> 0 | P2: =Ra!P2 -> 0 | Q2: =Ra!Q2 -> 0 | R2: =Ra!R2 -> 0 | S2: =Ra!S2 -> 0 | U2: Всего | W2: Время 1 пары (мин) | Y2: 2 ковра | AA2: 3 ковра
B4: Кол-во участн. | D4: =Ra!D4 -> 6 | E4: =Ra!E4 -> 7 | F4: =Ra!F4 -> 9 | G4: =Ra!G4 -> 9 | H4: =Ra!H4 -> 17 | I4: =Ra!I4 -> 11 | J4: =Ra!J4 -> 17 | K4: =Ra!K4 -> 11 | L4: =Ra!L4 -> 12 | M4: =Ra!M4 -> 10 | N4: =Ra!N4 -> 0 | O4: =Ra!O4 -> 0 | P4: =Ra!P4 -> 0 | Q4: =Ra!Q4 -> 0 | R4: =Ra!R4 -> 0 | S4: =Ra!S4 -> 0 | U4: =SUM(D4:T4) -> 109 | W4: 5
B6: Квал. | D6: =INDEX(Лист3!B3:P130,MATCH(Лист2!D4,Лист3!B3:B130,0),4) -> 0 | E6: =INDEX(Лист3!B3:P130,MATCH(Лист2!E4,Лист3!B3:B130,0),4) -> 0 | F6: =INDEX(Лист3!B3:P130,MATCH(Лист2!F4,Лист3!B3:B130,0),4) -> 0 | G6: =INDEX(Лист3!B3:P130,MATCH(Лист2!G4,Лист3!B3:B130,0),4) -> 0 | H6: =INDEX(Лист3!B3:P130,MATCH(Лист2!H4,Лист3!B3:B130,0),4) -> 0 | I6: =INDEX(Лист3!B3:P130,MATCH(Лист2!I4,Лист3!B3:B130,0),4) -> 0 | J6: =INDEX(Лист3!B3:P130,MATCH(Лист2!J4,Лист3!B3:B130,0),4) -> 0 | K6: =INDEX(Лист3!B3:P130,MATCH(Лист2!K4,Лист3!B3:B130,0),4) -> 0 | L6: =INDEX(Лист3!B3:P130,MATCH(Лист2!L4,Лист3!B3:B130,0),4) -> 0 | M6: =INDEX(Лист3!B3:P130,MATCH(Лист2!M4,Лист3!B3:B130,0),4) -> 0 | N6: =INDEX(Лист3!B3:P130,MATCH(Лист2!N4,Лист3!B3:B130,0),4) ->  | O6: =INDEX(Лист3!$B$3:$P$130,MATCH(Лист2!O4,Лист3!$B$3:$B$130,0),4) ->  | P6: =INDEX(Лист3!$B$3:$P$130,MATCH(Лист2!P4,Лист3!$B$3:$B$130,0),4) ->  | Q6: =INDEX(Лист3!$B$3:$P$130,MATCH(Лист2!Q4,Лист3!$B$3:$B$130,0),4) ->  | R6: =INDEX(Лист3!$B$3:$P$130,MATCH(Лист2!R4,Лист3!$B$3:$B$130,0),4) ->  | S6: =INDEX(Лист3!$B$3:$P$130,MATCH(Лист2!S4,Лист3!$B$3:$B$130,0),4) ->  | U6: =SUM(D6:S6) ->  | W6: =U6*W4/60 ->  | Y6: =W6/2 ->  | AA6: =W6/3 -> 
B7: 1\32 | D7: =INDEX(Лист3!B3:P130,MATCH(Лист2!D4,Лист3!B3:B130,0),5) -> 2 | E7: =INDEX(Лист3!B3:P130,MATCH(Лист2!E4,Лист3!B3:B130,0),5) -> 3 | F7: =INDEX(Лист3!B3:P130,MATCH(Лист2!F4,Лист3!B3:B130,0),5) -> 1 | G7: =INDEX(Лист3!B3:P130,MATCH(Лист2!G4,Лист3!B3:B130,0),5) -> 1 | H7: =INDEX(Лист3!B3:P130,MATCH(Лист2!H4,Лист3!B3:B130,0),5) -> 1 | I7: =INDEX(Лист3!B3:P130,MATCH(Лист2!I4,Лист3!B3:B130,0),5) -> 3 | J7: =INDEX(Лист3!B3:P130,MATCH(Лист2!J4,Лист3!B3:B130,0),5) -> 1 | K7: =INDEX(Лист3!B3:P130,MATCH(Лист2!K4,Лист3!B3:B130,0),5) -> 3 | L7: =INDEX(Лист3!B3:P130,MATCH(Лист2!L4,Лист3!B3:B130,0),5) -> 4 | M7: =INDEX(Лист3!B3:P130,MATCH(Лист2!M4,Лист3!B3:B130,0),5) -> 2 | N7: =INDEX(Лист3!B3:P130,MATCH(Лист2!N4,Лист3!B3:B130,0),5) ->  | O7: =INDEX(Лист3!$B$3:$P$130,MATCH(Лист2!O4,Лист3!$B$3:$B$130,0),5) ->  | P7: =INDEX(Лист3!$B$3:$P$130,MATCH(Лист2!P4,Лист3!$B$3:$B$130,0),5) ->  | Q7: =INDEX(Лист3!$B$3:$P$130,MATCH(Лист2!Q4,Лист3!$B$3:$B$130,0),5) ->  | R7: =INDEX(Лист3!$B$3:$P$130,MATCH(Лист2!R4,Лист3!$B$3:$B$130,0),5) ->  | S7: =INDEX(Лист3!$B$3:$P$130,MATCH(Лист2!S4,Лист3!$B$3:$B$130,0),5) ->  | U7: =SUM(D7:S7) -> 
B8: 1\16 | D8: =INDEX(Лист3!B3:P130,MATCH(Лист2!D4,Лист3!B3:B130,0),6) -> 2 | E8: =INDEX(Лист3!B3:P130,MATCH(Лист2!E4,Лист3!B3:B130,0),6) -> 3 | F8: =INDEX(Лист3!B3:P130,MATCH(Лист2!F4,Лист3!B3:B130,0),6) -> 0 | G8: =INDEX(Лист3!B3:P130,MATCH(Лист2!G4,Лист3!B3:B130,0),6) -> 0 | H8: =INDEX(Лист3!B3:P130,MATCH(Лист2!H4,Лист3!B3:B130,0),6) -> 0 | I8: =INDEX(Лист3!B3:P130,MATCH(Лист2!I4,Лист3!B3:B130,0),6) -> 0 | J8: =INDEX(Лист3!B3:P130,MATCH(Лист2!J4,Лист3!B3:B130,0),6) -> 0 | K8: =INDEX(Лист3!B3:P130,MATCH(Лист2!K4,Лист3!B3:B130,0),6) -> 0 | L8: =INDEX(Лист3!B3:P130,MATCH(Лист2!L4,Лист3!B3:B130,0),6) -> 0 | M8: =INDEX(Лист3!B3:P130,MATCH(Лист2!M4,Лист3!B3:B130,0),6) -> 0 | N8: =INDEX(Лист3!B3:P130,MATCH(Лист2!N4,Лист3!B3:B130,0),6) ->  | O8: =INDEX(Лист3!$B$3:$P$130,MATCH(Лист2!O4,Лист3!$B$3:$B$130,0),6) ->  | P8: =INDEX(Лист3!$B$3:$P$130,MATCH(Лист2!P4,Лист3!$B$3:$B$130,0),6) ->  | Q8: =INDEX(Лист3!$B$3:$P$130,MATCH(Лист2!Q4,Лист3!$B$3:$B$130,0),6) ->  | R8: =INDEX(Лист3!$B$3:$P$130,MATCH(Лист2!R4,Лист3!$B$3:$B$130,0),6) ->  | S8: =INDEX(Лист3!$B$3:$P$130,MATCH(Лист2!S4,Лист3!$B$3:$B$130,0),6) ->  | U8: =SUM(D8:S8) ->  | W8: =U8*W4/60 ->  | Y8: =W8/2 ->  | AA8: =W8/3 -> 
B9: 1\8 | D9: =INDEX(Лист3!B3:P130,MATCH(Лист2!D4,Лист3!B3:B130,0),7) -> 2 | E9: =INDEX(Лист3!B3:P130,MATCH(Лист2!E4,Лист3!B3:B130,0),7) -> 3 | F9: =INDEX(Лист3!B3:P130,MATCH(Лист2!F4,Лист3!B3:B130,0),7) -> 0 | G9: =INDEX(Лист3!B3:P130,MATCH(Лист2!G4,Лист3!B3:B130,0),7) -> 0 | H9: =INDEX(Лист3!B3:P130,MATCH(Лист2!H4,Лист3!B3:B130,0),7) -> 8 | I9: =INDEX(Лист3!B3:P130,MATCH(Лист2!I4,Лист3!B3:B130,0),7) -> 0 | J9: =INDEX(Лист3!B3:P130,MATCH(Лист2!J4,Лист3!B3:B130,0),7) -> 8 | K9: =INDEX(Лист3!B3:P130,MATCH(Лист2!K4,Лист3!B3:B130,0),7) -> 0 | L9: =INDEX(Лист3!B3:P130,MATCH(Лист2!L4,Лист3!B3:B130,0),7) -> 0 | M9: =INDEX(Лист3!B3:P130,MATCH(Лист2!M4,Лист3!B3:B130,0),7) -> 0 | N9: =INDEX(Лист3!B3:P130,MATCH(Лист2!N4,Лист3!B3:B130,0),7) ->  | O9: =INDEX(Лист3!$B$3:$P$130,MATCH(Лист2!O4,Лист3!$B$3:$B$130,0),7) ->  | P9: =INDEX(Лист3!$B$3:$P$130,MATCH(Лист2!P4,Лист3!$B$3:$B$130,0),7) ->  | Q9: =INDEX(Лист3!$B$3:$P$130,MATCH(Лист2!Q4,Лист3!$B$3:$B$130,0),7) ->  | R9: =INDEX(Лист3!$B$3:$P$130,MATCH(Лист2!R4,Лист3!$B$3:$B$130,0),7) ->  | S9: =INDEX(Лист3!$B$3:$P$130,MATCH(Лист2!S4,Лист3!$B$3:$B$130,0),7) ->  | W9: =U9*W4/60 -> 
B10: 1\4 | D10: =INDEX(Лист3!B3:P130,MATCH(Лист2!D4,Лист3!B3:B130,0),8) -> 0 | E10: =INDEX(Лист3!B3:P130,MATCH(Лист2!E4,Лист3!B3:B130,0),8) -> 0 | F10: =INDEX(Лист3!B3:P130,MATCH(Лист2!F4,Лист3!B3:B130,0),8) -> 4 | G10: =INDEX(Лист3!B3:P130,MATCH(Лист2!G4,Лист3!B3:B130,0),8) -> 4 | H10: =INDEX(Лист3!B3:P130,MATCH(Лист2!H4,Лист3!B3:B130,0),8) -> 4 | I10: =INDEX(Лист3!B3:P130,MATCH(Лист2!I4,Лист3!B3:B130,0),8) -> 4 | J10: =INDEX(Лист3!B3:P130,MATCH(Лист2!J4,Лист3!B3:B130,0),8) -> 4 | K10: =INDEX(Лист3!B3:P130,MATCH(Лист2!K4,Лист3!B3:B130,0),8) -> 4 | L10: =INDEX(Лист3!B3:P130,MATCH(Лист2!L4,Лист3!B3:B130,0),8) -> 4 | M10: =INDEX(Лист3!B3:P130,MATCH(Лист2!M4,Лист3!B3:B130,0),8) -> 4 | N10: =INDEX(Лист3!B3:P130,MATCH(Лист2!N4,Лист3!B3:B130,0),8) ->  | O10: =INDEX(Лист3!$B$3:$P$130,MATCH(Лист2!O4,Лист3!$B$3:$B$130,0),8) ->  | P10: =INDEX(Лист3!$B$3:$P$130,MATCH(Лист2!P4,Лист3!$B$3:$B$130,0),8) ->  | Q10: =INDEX(Лист3!$B$3:$P$130,MATCH(Лист2!Q4,Лист3!$B$3:$B$130,0),8) ->  | R10: =INDEX(Лист3!$B$3:$P$130,MATCH(Лист2!R4,Лист3!$B$3:$B$130,0),8) ->  | S10: =INDEX(Лист3!$B$3:$P$130,MATCH(Лист2!S4,Лист3!$B$3:$B$130,0),8) ->  | W10: =U10*W4/60 -> 
B11: 1\2 | D11: =INDEX(Лист3!B3:P130,MATCH(Лист2!D4,Лист3!B3:B130,0),9) -> 2 | E11: =INDEX(Лист3!B3:P130,MATCH(Лист2!E4,Лист3!B3:B130,0),9) -> 2 | F11: =INDEX(Лист3!B3:P130,MATCH(Лист2!F4,Лист3!B3:B130,0),9) -> 2 | G11: =INDEX(Лист3!B3:P130,MATCH(Лист2!G4,Лист3!B3:B130,0),9) -> 2 | H11: =INDEX(Лист3!B3:P130,MATCH(Лист2!H4,Лист3!B3:B130,0),9) -> 2 | I11: =INDEX(Лист3!B3:P130,MATCH(Лист2!I4,Лист3!B3:B130,0),9) -> 2 | J11: =INDEX(Лист3!B3:P130,MATCH(Лист2!J4,Лист3!B3:B130,0),9) -> 2 | K11: =INDEX(Лист3!B3:P130,MATCH(Лист2!K4,Лист3!B3:B130,0),9) -> 2 | L11: =INDEX(Лист3!B3:P130,MATCH(Лист2!L4,Лист3!B3:B130,0),9) -> 2 | M11: =INDEX(Лист3!B3:P130,MATCH(Лист2!M4,Лист3!B3:B130,0),9) -> 2 | N11: =INDEX(Лист3!B3:P130,MATCH(Лист2!N4,Лист3!B3:B130,0),9) ->  | O11: =INDEX(Лист3!$B$3:$P$130,MATCH(Лист2!O4,Лист3!$B$3:$B$130,0),9) ->  | P11: =INDEX(Лист3!$B$3:$P$130,MATCH(Лист2!P4,Лист3!$B$3:$B$130,0),9) ->  | Q11: =INDEX(Лист3!$B$3:$P$130,MATCH(Лист2!Q4,Лист3!$B$3:$B$130,0),9) ->  | R11: =INDEX(Лист3!$B$3:$P$130,MATCH(Лист2!R4,Лист3!$B$3:$B$130,0),9) ->  | S11: =INDEX(Лист3!$B$3:$P$130,MATCH(Лист2!S4,Лист3!$B$3:$B$130,0),9) ->  | W11: =U11*W4/60 -> 
B13: Ут-1 | D13: =INDEX(Лист3!B3:P130,MATCH(Лист2!D4,Лист3!B3:B130,0),10) -> 0 | E13: =INDEX(Лист3!B3:P130,MATCH(Лист2!E4,Лист3!B3:B130,0),10) ->  | F13: =INDEX(Лист3!B3:P130,MATCH(Лист2!F4,Лист3!B3:B130,0),10) -> 1 | G13: =INDEX(Лист3!B3:P130,MATCH(Лист2!G4,Лист3!B3:B130,0),10) -> 1 | H13: =INDEX(Лист3!B3:P130,MATCH(Лист2!H4,Лист3!B3:B130,0),10) -> 2 | I13: =INDEX(Лист3!B3:P130,MATCH(Лист2!I4,Лист3!B3:B130,0),10) -> 1 | J13: =INDEX(Лист3!B3:P130,MATCH(Лист2!J4,Лист3!B3:B130,0),10) -> 2 | K13: =INDEX(Лист3!B3:P130,MATCH(Лист2!K4,Лист3!B3:B130,0),10) -> 1 | L13: =INDEX(Лист3!B3:P130,MATCH(Лист2!L4,Лист3!B3:B130,0),10) -> 1 | M13: =INDEX(Лист3!B3:P130,MATCH(Лист2!M4,Лист3!B3:B130,0),10) -> 1 | N13: =INDEX(Лист3!B3:P130,MATCH(Лист2!N4,Лист3!B3:B130,0),10) ->  | O13: =INDEX(Лист3!$B$3:$P$130,MATCH(Лист2!O4,Лист3!$B$3:$B$130,0),10) ->  | P13: =INDEX(Лист3!$B$3:$P$130,MATCH(Лист2!P4,Лист3!$B$3:$B$130,0),10) ->  | Q13: =INDEX(Лист3!$B$3:$P$130,MATCH(Лист2!Q4,Лист3!$B$3:$B$130,0),10) ->  | R13: =INDEX(Лист3!$B$3:$P$130,MATCH(Лист2!R4,Лист3!$B$3:$B$130,0),10) ->  | S13: =INDEX(Лист3!$B$3:$P$130,MATCH(Лист2!S4,Лист3!$B$3:$B$130,0),10) ->  | W13: =U13*W4/60 -> 
B14: Ут-2 | D14: =INDEX(Лист3!B3:P130,MATCH(Лист2!D4,Лист3!B3:B130,0),11) -> 0 | E14: =INDEX(Лист3!B3:P130,MATCH(Лист2!E4,Лист3!B3:B130,0),11) -> 0 | F14: =INDEX(Лист3!B3:P130,MATCH(Лист2!F4,Лист3!B3:B130,0),11) -> 0 | G14: =INDEX(Лист3!B3:P130,MATCH(Лист2!G4,Лист3!B3:B130,0),11) -> 0 | H14: =INDEX(Лист3!B3:P130,MATCH(Лист2!H4,Лист3!B3:B130,0),11) -> 1 | I14: =INDEX(Лист3!B3:P130,MATCH(Лист2!I4,Лист3!B3:B130,0),11) -> 0 | J14: =INDEX(Лист3!B3:P130,MATCH(Лист2!J4,Лист3!B3:B130,0),11) -> 1 | K14: =INDEX(Лист3!B3:P130,MATCH(Лист2!K4,Лист3!B3:B130,0),11) -> 0 | L14: =INDEX(Лист3!B3:P130,MATCH(Лист2!L4,Лист3!B3:B130,0),11) -> 0 | M14: =INDEX(Лист3!B3:P130,MATCH(Лист2!M4,Лист3!B3:B130,0),11) -> 0 | N14: =INDEX(Лист3!B3:P130,MATCH(Лист2!N4,Лист3!B3:B130,0),11) ->  | O14: =INDEX(Лист3!$B$3:$P$130,MATCH(Лист2!O4,Лист3!$B$3:$B$130,0),11) ->  | P14: =INDEX(Лист3!$B$3:$P$130,MATCH(Лист2!P4,Лист3!$B$3:$B$130,0),11) ->  | Q14: =INDEX(Лист3!$B$3:$P$130,MATCH(Лист2!Q4,Лист3!$B$3:$B$130,0),11) ->  | R14: =INDEX(Лист3!$B$3:$P$130,MATCH(Лист2!R4,Лист3!$B$3:$B$130,0),11) ->  | S14: =INDEX(Лист3!$B$3:$P$130,MATCH(Лист2!S4,Лист3!$B$3:$B$130,0),11) ->  | U14: =SUM(D14:S14) ->  | W14: =U14*W4/60 -> 
B15: Ут-3 | D15: =INDEX(Лист3!B3:P130,MATCH(Лист2!D4,Лист3!B3:B130,0),12) -> 0 | E15: =INDEX(Лист3!B3:P130,MATCH(Лист2!E4,Лист3!B3:B130,0),12) -> 0 | F15: =INDEX(Лист3!B3:P130,MATCH(Лист2!F4,Лист3!B3:B130,0),12) -> 0 | G15: =INDEX(Лист3!B3:P130,MATCH(Лист2!G4,Лист3!B3:B130,0),12) -> 0 | H15: =INDEX(Лист3!B3:P130,MATCH(Лист2!H4,Лист3!B3:B130,0),12) -> 0 | I15: =INDEX(Лист3!B3:P130,MATCH(Лист2!I4,Лист3!B3:B130,0),12) -> 0 | J15: =INDEX(Лист3!B3:P130,MATCH(Лист2!J4,Лист3!B3:B130,0),12) -> 0 | K15: =INDEX(Лист3!B3:P130,MATCH(Лист2!K4,Лист3!B3:B130,0),12) -> 0 | L15: =INDEX(Лист3!B3:P130,MATCH(Лист2!L4,Лист3!B3:B130,0),12) -> 0 | M15: =INDEX(Лист3!B3:P130,MATCH(Лист2!M4,Лист3!B3:B130,0),12) -> 0 | N15: =INDEX(Лист3!B3:P130,MATCH(Лист2!N4,Лист3!B3:B130,0),12) ->  | O15: =INDEX(Лист3!$B$3:$P$130,MATCH(Лист2!O4,Лист3!$B$3:$B$130,0),12) ->  | P15: =INDEX(Лист3!$B$3:$P$130,MATCH(Лист2!P4,Лист3!$B$3:$B$130,0),12) ->  | Q15: =INDEX(Лист3!$B$3:$P$130,MATCH(Лист2!Q4,Лист3!$B$3:$B$130,0),12) ->  | R15: =INDEX(Лист3!$B$3:$P$130,MATCH(Лист2!R4,Лист3!$B$3:$B$130,0),12) ->  | S15: =INDEX(Лист3!$B$3:$P$130,MATCH(Лист2!S4,Лист3!$B$3:$B$130,0),12) ->  | W15: =U15*W4/60 -> 
B16: Ут-4 | D16: =INDEX(Лист3!B3:P130,MATCH(Лист2!D4,Лист3!B3:B130,0),13) -> 0 | E16: =INDEX(Лист3!B3:P130,MATCH(Лист2!E4,Лист3!B3:B130,0),13) -> 0 | F16: =INDEX(Лист3!B3:P130,MATCH(Лист2!F4,Лист3!B3:B130,0),13) -> 0 | G16: =INDEX(Лист3!B3:P130,MATCH(Лист2!G4,Лист3!B3:B130,0),13) -> 0 | H16: =INDEX(Лист3!B3:P130,MATCH(Лист2!H4,Лист3!B3:B130,0),13) -> 0 | I16: =INDEX(Лист3!B3:P130,MATCH(Лист2!I4,Лист3!B3:B130,0),13) -> 0 | J16: =INDEX(Лист3!B3:P130,MATCH(Лист2!J4,Лист3!B3:B130,0),13) -> 0 | K16: =INDEX(Лист3!B3:P130,MATCH(Лист2!K4,Лист3!B3:B130,0),13) -> 0 | L16: =INDEX(Лист3!B3:P130,MATCH(Лист2!L4,Лист3!B3:B130,0),13) -> 0 | M16: =INDEX(Лист3!B3:P130,MATCH(Лист2!M4,Лист3!B3:B130,0),13) -> 0 | N16: =INDEX(Лист3!B3:P130,MATCH(Лист2!N4,Лист3!B3:B130,0),13) ->  | O16: =INDEX(Лист3!$B$3:$P$130,MATCH(Лист2!O4,Лист3!$B$3:$B$130,0),13) ->  | P16: =INDEX(Лист3!$B$3:$P$130,MATCH(Лист2!P4,Лист3!$B$3:$B$130,0),13) ->  | Q16: =INDEX(Лист3!$B$3:$P$130,MATCH(Лист2!Q4,Лист3!$B$3:$B$130,0),13) ->  | R16: =INDEX(Лист3!$B$3:$P$130,MATCH(Лист2!R4,Лист3!$B$3:$B$130,0),13) ->  | S16: =INDEX(Лист3!$B$3:$P$130,MATCH(Лист2!S4,Лист3!$B$3:$B$130,0),13) ->  | U16: =SUM(D16:S16) -> 
B18: Ф-3 | D18: =INDEX(Лист3!B3:P130,MATCH(Лист2!D4,Лист3!B3:B130,0),14) -> 1 | E18: =INDEX(Лист3!B3:P130,MATCH(Лист2!E4,Лист3!B3:B130,0),14) -> 1 | F18: =INDEX(Лист3!B3:P130,MATCH(Лист2!F4,Лист3!B3:B130,0),14) -> 2 | G18: =INDEX(Лист3!B3:P130,MATCH(Лист2!G4,Лист3!B3:B130,0),14) -> 2 | H18: =INDEX(Лист3!B3:P130,MATCH(Лист2!H4,Лист3!B3:B130,0),14) -> 2 | I18: =INDEX(Лист3!B3:P130,MATCH(Лист2!I4,Лист3!B3:B130,0),14) -> 2 | J18: =INDEX(Лист3!B3:P130,MATCH(Лист2!J4,Лист3!B3:B130,0),14) -> 2 | K18: =INDEX(Лист3!B3:P130,MATCH(Лист2!K4,Лист3!B3:B130,0),14) -> 2 | L18: =INDEX(Лист3!B3:P130,MATCH(Лист2!L4,Лист3!B3:B130,0),14) -> 2 | M18: =INDEX(Лист3!B3:P130,MATCH(Лист2!M4,Лист3!B3:B130,0),14) -> 2 | N18: =INDEX(Лист3!B3:P130,MATCH(Лист2!N4,Лист3!B3:B130,0),14) ->  | O18: =INDEX(Лист3!$B$3:$P$130,MATCH(Лист2!O4,Лист3!$B$3:$B$130,0),14) ->  | P18: =INDEX(Лист3!$B$3:$P$130,MATCH(Лист2!P4,Лист3!$B$3:$B$130,0),14) ->  | Q18: =INDEX(Лист3!$B$3:$P$130,MATCH(Лист2!Q4,Лист3!$B$3:$B$130,0),14) ->  | R18: =INDEX(Лист3!$B$3:$P$130,MATCH(Лист2!R4,Лист3!$B$3:$B$130,0),14) ->  | S18: =INDEX(Лист3!$B$3:$P$130,MATCH(Лист2!S4,Лист3!$B$3:$B$130,0),14) ->  | W18: =U18*W4/60 -> 
B19: Ф-1 | D19: =INDEX(Лист3!B3:P130,MATCH(Лист2!D4,Лист3!B3:B130,0),15) -> 1 | E19: =INDEX(Лист3!B3:P130,MATCH(Лист2!E4,Лист3!B3:B130,0),15) -> 1 | F19: =INDEX(Лист3!B3:P130,MATCH(Лист2!F4,Лист3!B3:B130,0),15) -> 1 | G19: =INDEX(Лист3!B3:P130,MATCH(Лист2!G4,Лист3!B3:B130,0),15) -> 1 | H19: =INDEX(Лист3!B3:P130,MATCH(Лист2!H4,Лист3!B3:B130,0),15) -> 1 | I19: =INDEX(Лист3!B3:P130,MATCH(Лист2!I4,Лист3!B3:B130,0),15) -> 1 | J19: =INDEX(Лист3!B3:P130,MATCH(Лист2!J4,Лист3!B3:B130,0),15) -> 1 | K19: =INDEX(Лист3!B3:P130,MATCH(Лист2!K4,Лист3!B3:B130,0),15) -> 1 | L19: =INDEX(Лист3!B3:P130,MATCH(Лист2!L4,Лист3!B3:B130,0),15) -> 1 | M19: =INDEX(Лист3!B3:P130,MATCH(Лист2!M4,Лист3!B3:B130,0),15) -> 1 | N19: =INDEX(Лист3!B3:P130,MATCH(Лист2!N4,Лист3!B3:B130,0),15) ->  | O19: =INDEX(Лист3!$B$3:$P$130,MATCH(Лист2!O4,Лист3!$B$3:$B$130,0),15) ->  | P19: =INDEX(Лист3!$B$3:$P$130,MATCH(Лист2!P4,Лист3!$B$3:$B$130,0),15) ->  | Q19: =INDEX(Лист3!$B$3:$P$130,MATCH(Лист2!Q4,Лист3!$B$3:$B$130,0),15) ->  | R19: =INDEX(Лист3!$B$3:$P$130,MATCH(Лист2!R4,Лист3!$B$3:$B$130,0),15) ->  | S19: =INDEX(Лист3!$B$3:$P$130,MATCH(Лист2!S4,Лист3!$B$3:$B$130,0),15) ->  | W19: =U19*W4/60 -> 
B21: Без финалов | D21: =SUM(D6:D16) -> 8 | E21: =SUM(E6:E16) -> 11 | F21: =SUM(F6:F16) -> 8 | G21: =SUM(G6:G16) -> 8 | H21: 18 | I21: 10 | J21: 18 | K21: 10 | L21: 11 | M21: 9 | W21: =U21*W4/60 -> 
B23: Всего пар | D23: =D21+D18+D19 -> 10 | E23: =E21+E18+E19 -> 13 | F23: 11 | G23: 11 | H23: 21 | I23: 13 | J23: 21 | K23: 13 | L23: 14 | M23: 12 | W23: =U23*W4/60 -> 

Sheet Лист3 (hidden)
B2: Кол-во участн. | E2: Квал. | F2: 1\32 | G2: 1\16 | H2: 1\8 | I2: 1\4 | J2: 1\2 | K2: Ут-1 | L2: Ут-2 | M2: Ут-3 | N2: Ут-4 | O2: Ф-3 | P2: Ф-1
B3: 1 | F3: 0
B4: 2 | F4: 1
B5: 3 | H5: 1 | I5: 1 | J5: 1
B6: 4 | H6: 2 | I6: 2 | J6: 2
B7: 5 | F7: 2 | G7: 2 | H7: 2 | J7: 2 | P7: 2
B8: 6 | F8: 2 | G8: 2 | H8: 2 | J8: 2 | O8: 1 | P8: 1
B9: 7 | F9: 3 | G9: 3 | H9: 3 | J9: 2 | O9: 1 | P9: 1
B10: 8 | I10: 4 | J10: 2 | O10: 2 | P10: 1
B11: 9 | F11: 1 | I11: 4 | J11: 2 | K11: 1 | O11: 2 | P11: 1
B12: 10 | F12: 2 | I12: 4 | J12: 2 | K12: 1 | O12: 2 | P12: 1
B13: 11 | F13: 3 | I13: 4 | J13: 2 | K13: 1 | O13: 2 | P13: 1
B14: 12 | F14: 4 | I14: 4 | J14: 2 | K14: 1 | O14: 2 | P14: 1
B15: 13 | F15: 5 | I15: 4 | J15: 2 | K15: 2 | O15: 2 | P15: 1
B16: 14 | F16: 6 | I16: 4 | J16: 2 | K16: 2 | O16: 2 | P16: 1
B17: 15 | F17: 7 | I17: 4 | J17: 2 | K17: 2 | O17: 2 | P17: 1
B18: 16 | H18: 8 | I18: 4 | J18: 2 | K18: 2 | O18: 2 | P18: 1
B19: 17 | F19: 1 | H19: 8 | I19: 4 | J19: 2 | K19: 2 | L19: 1 | O19: 2 | P19: 1
B20: 18 | F20: 2 | H20: 8 | I20: 4 | J20: 2 | K20: 2 | L20: 1 | O20: 2 | P20: 1
B21: 19 | F21: 3 | H21: 8 | I21: 4 | J21: 2 | K21: 2 | L21: 1 | O21: 2 | P21: 1
B22: 20 | F22: 4 | H22: 8 | I22: 4 | J22: 2 | K22: 2 | L22: 1 | O22: 2 | P22: 1
B23: 21 | F23: 5 | H23: 8 | I23: 4 | J23: 2 | K23: 2 | L23: 1 | O23: 2 | P23: 1
B24: 22 | F24: 6 | H24: 8 | I24: 4 | J24: 2 | K24: 2 | L24: 1 | O24: 2 | P24: 1
B25: 23 | F25: 7 | H25: 8 | I25: 4 | J25: 2 | K25: 2 | L25: 1 | O25: 2 | P25: 1
B26: 24 | F26: 8 | H26: 8 | I26: 4 | J26: 2 | K26: 2 | L26: 1 | O26: 2 | P26: 1
B27: 25 | F27: 9 | H27: 8 | I27: 4 | J27: 2 | K27: 2 | L27: 2 | O27: 2 | P27: 1
B28: 26 | F28: 10 | H28: 8 | I28: 4 | J28: 2 | K28: 2 | L28: 2 | O28: 2 | P28: 1
B29: 27 | F29: 11 | H29: 8 | I29: 4 | J29: 2 | K29: 2 | L29: 2 | O29: 2 | P29: 1
B30: 28 | F30: 12 | H30: 8 | I30: 4 | J30: 2 | K30: 2 | L30: 2 | O30: 2 | P30: 1
B31: 29 | F31: 13 | H31: 8 | I31: 4 | J31: 2 | K31: 2 | L31: 2 | O31: 2 | P31: 1
B32: 30 | F32: 14 | H32: 8 | I32: 4 | J32: 2 | K32: 2 | L32: 2 | O32: 2 | P32: 1
B33: 31 | F33: 15 | H33: 8 | I33: 4 | J33: 2 | K33: 2 | L33: 2 | O33: 2 | P33: 1
B34: 32 | G34: 16 | H34: 8 | I34: 4 | J34: 2 | K34: 2 | L34: 2 | O34: 2 | P34: 1
B35: 33 | F35: 1 | G35: 16 | H35: 8 | I35: 4 | J35: 2 | K35: 2 | L35: 2 | M35: 1 | O35: 2 | P35: 1
B36: 34 | F36: 2 | G36: 16 | H36: 8 | I36: 4 | J36: 2 | K36: 2 | L36: 2 | M36: 1 | O36: 2 | P36: 1
B37: 35 | F37: 3 | G37: 16 | H37: 8 | I37: 4 | J37: 2 | K37: 2 | L37: 2 | M37: 1 | O37: 2 | P37: 1
B38: 36 | F38: 4 | G38: 16 | H38: 8 | I38: 4 | J38: 2 | K38: 2 | L38: 2 | M38: 1 | O38: 2 | P38: 1
B39: 37 | F39: 5 | G39: 16 | H39: 8 | I39: 4 | J39: 2 | K39: 2 | L39: 2 | M39: 1 | O39: 2 | P39: 1
B40: 38 | F40: 6 | G40: 16 | H40: 8 | I40: 4 | J40: 2 | K40: 2 | L40: 2 | M40: 1 | O40: 2 | P40: 1
B41: 39 | F41: 7 | G41: 16 | H41: 8 | I41: 4 | J41: 2 | K41: 2 | L41: 2 | M41: 1 | O41: 2 | P41: 1
B42: 40 | F42: 8 | G42: 16 | H42: 8 | I42: 4 | J42: 2 | K42: 2 | L42: 2 | M42: 1 | O42: 2 | P42: 1
B43: 41 | F43: 9 | G43: 16 | H43: 8 | I43: 4 | J43: 2 | K43: 2 | L43: 2 | M43: 1 | O43: 2 | P43: 1
B44: 42 | F44: 10 | G44: 16 | H44: 8 | I44: 4 | J44: 2 | K44: 2 | L44: 2 | M44: 1 | O44: 2 | P44: 1
B45: 43 | F45: 11 | G45: 16 | H45: 8 | I45: 4 | J45: 2 | K45: 2 | L45: 2 | M45: 1 | O45: 2 | P45: 1
B46: 44 | F46: 12 | G46: 16 | H46: 8 | I46: 4 | J46: 2 | K46: 2 | L46: 2 | M46: 1 | O46: 2 | P46: 1
B47: 45 | F47: 13 | G47: 16 | H47: 8 | I47: 4 | J47: 2 | K47: 2 | L47: 2 | M47: 1 | O47: 2 | P47: 1
B48: 46 | F48: 14 | G48: 16 | H48: 8 | I48: 4 | J48: 2 | K48: 2 | L48: 2 | M48: 1 | O48: 2 | P48: 1
B49: 47 | F49: 15 | G49: 16 | H49: 8 | I49: 4 | J49: 2 | K49: 2 | L49: 2 | M49: 1 | O49: 2 | P49: 1
B50: 48 | F50: 16 | G50: 16 | H50: 8 | I50: 4 | J50: 2 | K50: 2 | L50: 2 | M50: 1 | O50: 2 | P50: 1
B51: 49 | F51: 17 | G51: 16 | H51: 8 | I51: 4 | J51: 2 | K51: 2 | L51: 2 | M51: 2 | O51: 2 | P51: 1
B52: 50 | F52: 18 | G52: 16 | H52: 8 | I52: 4 | J52: 2 | K52: 2 | L52: 2 | M52: 2 | O52: 2 | P52: 1
B53: 51 | F53: 19 | G53: 16 | H53: 8 | I53: 4 | J53: 2 | K53: 2 | L53: 2 | M53: 2 | O53: 2 | P53: 1
B54: 52 | F54: 20 | G54: 16 | H54: 8 | I54: 4 | J54: 2 | K54: 2 | L54: 2 | M54: 2 | O54: 2 | P54: 1
B55: 53 | F55: 21 | G55: 16 | H55: 8 | I55: 4 | J55: 2 | K55: 2 | L55: 2 | M55: 2 | O55: 2 | P55: 1
B56: 54 | F56: 22 | G56: 16 | H56: 8 | I56: 4 | J56: 2 | K56: 2 | L56: 2 | M56: 2 | O56: 2 | P56: 1
B57: 55 | F57: 23 | G57: 16 | H57: 8 | I57: 4 | J57: 2 | K57: 2 | L57: 2 | M57: 2 | O57: 2 | P57: 1
B58: 56 | F58: 24 | G58: 16 | H58: 8 | I58: 4 | J58: 2 | K58: 2 | L58: 2 | M58: 2 | O58: 2 | P58: 1
B59: 57 | F59: 25 | G59: 16 | H59: 8 | I59: 4 | J59: 2 | K59: 2 | L59: 2 | M59: 2 | O59: 2 | P59: 1
B60: 58 | F60: 26 | G60: 16 | H60: 8 | I60: 4 | J60: 2 | K60: 2 | L60: 2 | M60: 2 | O60: 2 | P60: 1
B61: 59 | F61: 27 | G61: 16 | H61: 8 | I61: 4 | J61: 2 | K61: 2 | L61: 2 | M61: 2 | O61: 2 | P61: 1
B62: 60 | F62: 28 | G62: 16 | H62: 8 | I62: 4 | J62: 2 | K62: 2 | L62: 2 | M62: 2 | O62: 2 | P62: 1
B63: 61 | F63: 29 | G63: 16 | H63: 8 | I63: 4 | J63: 2 | K63: 2 | L63: 2 | M63: 2 | O63: 2 | P63: 1
B64: 62 | F64: 30 | G64: 16 | H64: 8 | I64: 4 | J64: 2 | K64: 2 | L64: 2 | M64: 2 | O64: 2 | P64: 1
B65: 63 | F65: 31 | G65: 16 | H65: 8 | I65: 4 | J65: 2 | K65: 2 | L65: 2 | M65: 2 | O65: 2 | P65: 1
B66: 64 | F66: 32 | G66: 16 | H66: 8 | I66: 4 | J66: 2 | K66: 2 | L66: 2 | M66: 2 | O66: 2 | P66: 1
B67: 65 | E67: 1 | F67: 32 | G67: 16 | H67: 8 | I67: 4 | J67: 2 | K67: 2 | L67: 2 | M67: 2 | N67: 1 | O67: 2 | P67: 1
B68: 66 | E68: 2 | F68: 32 | G68: 16 | H68: 8 | I68: 4 | J68: 2 | K68: 2 | L68: 2 | M68: 2 | N68: 1 | O68: 2 | P68: 1
B69: 67 | E69: 3 | F69: 32 | G69: 16 | H69: 8 | I69: 4 | J69: 2 | K69: 2 | L69: 2 | M69: 2 | N69: 1 | O69: 2 | P69: 1
B70: 68 | E70: 4 | F70: 32 | G70: 16 | H70: 8 | I70: 4 | J70: 2 | K70: 2 | L70: 2 | M70: 2 | N70: 1 | O70: 2 | P70: 1
B71: 69 | E71: 5 | F71: 32 | G71: 16 | H71: 8 | I71: 4 | J71: 2 | K71: 2 | L71: 2 | M71: 2 | N71: 1 | O71: 2 | P71: 1
B72: 70 | E72: 6 | F72: 32 | G72: 16 | H72: 8 | I72: 4 | J72: 2 | K72: 2 | L72: 2 | M72: 2 | N72: 1 | O72: 2 | P72: 1
B73: 71 | E73: 7 | F73: 32 | G73: 16 | H73: 8 | I73: 4 | J73: 2 | K73: 2 | L73: 2 | M73: 2 | N73: 1 | O73: 2 | P73: 1
B74: 72 | E74: 8 | F74: 32 | G74: 16 | H74: 8 | I74: 4 | J74: 2 | K74: 2 | L74: 2 | M74: 2 | N74: 1 | O74: 2 | P74: 1
B75: 73 | E75: 9 | F75: 32 | G75: 16 | H75: 8 | I75: 4 | J75: 2 | K75: 2 | L75: 2 | M75: 2 | N75: 1 | O75: 2 | P75: 1
B76: 74 | E76: 10 | F76: 32 | G76: 16 | H76: 8 | I76: 4 | J76: 2 | K76: 2 | L76: 2 | M76: 2 | N76: 1 | O76: 2 | P76: 1
B77: 75 | E77: 11 | F77: 32 | G77: 16 | H77: 8 | I77: 4 | J77: 2 | K77: 2 | L77: 2 | M77: 2 | N77: 1 | O77: 2 | P77: 1
B78: 76 | E78: 12 | F78: 32 | G78: 16 | H78: 8 | I78: 4 | J78: 2 | K78: 2 | L78: 2 | M78: 2 | N78: 1 | O78: 2 | P78: 1
B79: 77 | E79: 13 | F79: 32 | G79: 16 | H79: 8 | I79: 4 | J79: 2 | K79: 2 | L79: 2 | M79: 2 | N79: 1 | O79: 2 | P79: 1
B80: 78 | E80: 14 | F80: 32 | G80: 16 | H80: 8 | I80: 4 | J80: 2 | K80: 2 | L80: 2 | M80: 2 | N80: 1 | O80: 2 | P80: 1
B81: 79 | E81: 15 | F81: 32 | G81: 16 | H81: 8 | I81: 4 | J81: 2 | K81: 2 | L81: 2 | M81: 2 | N81: 1 | O81: 2 | P81: 1
B82: 80 | E82: 16 | F82: 32 | G82: 16 | H82: 8 | I82: 4 | J82: 2 | K82: 2 | L82: 2 | M82: 2 | N82: 1 | O82: 2 | P82: 1
B83: 81 | E83: 17 | F83: 32 | G83: 16 | H83: 8 | I83: 4 | J83: 2 | K83: 2 | L83: 2 | M83: 2 | N83: 1 | O83: 2 | P83: 1
B84: 82 | E84: 18 | F84: 32 | G84: 16 | H84: 8 | I84: 4 | J84: 2 | K84: 2 | L84: 2 | M84: 2 | N84: 1 | O84: 2 | P84: 1
B85: 83 | E85: 19 | F85: 32 | G85: 16 | H85: 8 | I85: 4 | J85: 2 | K85: 2 | L85: 2 | M85: 2 | N85: 1 | O85: 2 | P85: 1
B86: 84 | E86: 20 | F86: 32 | G86: 16 | H86: 8 | I86: 4 | J86: 2 | K86: 2 | L86: 2 | M86: 2 | N86: 1 | O86: 2 | P86: 1
B87: 85 | E87: 21 | F87: 32 | G87: 16 | H87: 8 | I87: 4 | J87: 2 | K87: 2 | L87: 2 | M87: 2 | N87: 1 | O87: 2 | P87: 1
B88: 86 | E88: 22 | F88: 32 | G88: 16 | H88: 8 | I88: 4 | J88: 2 | K88: 2 | L88: 2 | M88: 2 | N88: 1 | O88: 2 | P88: 1
B89: 87 | E89: 23 | F89: 32 | G89: 16 | H89: 8 | I89: 4 | J89: 2 | K89: 2 | L89: 2 | M89: 2 | N89: 1 | O89: 2 | P89: 1
B90: 88 | E90: 24 | F90: 32 | G90: 16 | H90: 8 | I90: 4 | J90: 2 | K90: 2 | L90: 2 | M90: 2 | N90: 1 | O90: 2 | P90: 1
B91: 89 | E91: 25 | F91: 32 | G91: 16 | H91: 8 | I91: 4 | J91: 2 | K91: 2 | L91: 2 | M91: 2 | N91: 1 | O91: 2 | P91: 1
B92: 90 | E92: 26 | F92: 32 | G92: 16 | H92: 8 | I92: 4 | J92: 2 | K92: 2 | L92: 2 | M92: 2 | N92: 1 | O92: 2 | P92: 1
B93: 91 | E93: 27 | F93: 32 | G93: 16 | H93: 8 | I93: 4 | J93: 2 | K93: 2 | L93: 2 | M93: 2 | N93: 1 | O93: 2 | P93: 1
B94: 92 | E94: 28 | F94: 32 | G94: 16 | H94: 8 | I94: 4 | J94: 2 | K94: 2 | L94: 2 | M94: 2 | N94: 1 | O94: 2 | P94: 1
B95: 93 | E95: 29 | F95: 32 | G95: 16 | H95: 8 | I95: 4 | J95: 2 | K95: 2 | L95: 2 | M95: 2 | N95: 1 | O95: 2 | P95: 1
B96: 94 | E96: 30 | F96: 32 | G96: 16 | H96: 8 | I96: 4 | J96: 2 | K96: 2 | L96: 2 | M96: 2 | N96: 1 | O96: 2 | P96: 1
B97: 95 | E97: 31 | F97: 32 | G97: 16 | H97: 8 | I97: 4 | J97: 2 | K97: 2 | L97: 2 | M97: 2 | N97: 1 | O97: 2 | P97: 1
B98: 96 | E98: 32 | F98: 32 | G98: 16 | H98: 8 | I98: 4 | J98: 2 | K98: 2 | L98: 2 | M98: 2 | N98: 1 | O98: 2 | P98: 1
B99: 97 | E99: 33 | F99: 32 | G99: 16 | H99: 8 | I99: 4 | J99: 2 | K99: 2 | L99: 2 | M99: 2 | N99: 2 | O99: 2 | P99: 1
B100: 98 | E100: 34 | F100: 32 | G100: 16 | H100: 8 | I100: 4 | J100: 2 | K100: 2 | L100: 2 | M100: 2 | N100: 2 | O100: 2 | P100: 1
B101: 99 | E101: 35 | F101: 32 | G101: 16 | H101: 8 | I101: 4 | J101: 2 | K101: 2 | L101: 2 | M101: 2 | N101: 2 | O101: 2 | P101: 1
B102: 100 | E102: 36 | F102: 32 | G102: 16 | H102: 8 | I102: 4 | J102: 2 | K102: 2 | L102: 2 | M102: 2 | N102: 2 | O102: 2 | P102: 1
B103: 101 | E103: 37 | F103: 32 | G103: 16 | H103: 8 | I103: 4 | J103: 2 | K103: 2 | L103: 2 | M103: 2 | N103: 2 | O103: 2 | P103: 1
B104: 102 | E104: 38 | F104: 32 | G104: 16 | H104: 8 | I104: 4 | J104: 2 | K104: 2 | L104: 2 | M104: 2 | N104: 2 | O104: 2 | P104: 1
B105: 103 | E105: 39 | F105: 32 | G105: 16 | H105: 8 | I105: 4 | J105: 2 | K105: 2 | L105: 2 | M105: 2 | N105: 2 | O105: 2 | P105: 1
B106: 104 | E106: 40 | F106: 32 | G106: 16 | H106: 8 | I106: 4 | J106: 2 | K106: 2 | L106: 2 | M106: 2 | N106: 2 | O106: 2 | P106: 1
B107: 105 | E107: 41 | F107: 32 | G107: 16 | H107: 8 | I107: 4 | J107: 2 | K107: 2 | L107: 2 | M107: 2 | N107: 2 | O107: 2 | P107: 1
B108: 106 | E108: 42 | F108: 32 | G108: 16 | H108: 8 | I108: 4 | J108: 2 | K108: 2 | L108: 2 | M108: 2 | N108: 2 | O108: 2 | P108: 1
B109: 107 | E109: 43 | F109: 32 | G109: 16 | H109: 8 | I109: 4 | J109: 2 | K109: 2 | L109: 2 | M109: 2 | N109: 2 | O109: 2 | P109: 1
B110: 108 | E110: 44 | F110: 32 | G110: 16 | H110: 8 | I110: 4 | J110: 2 | K110: 2 | L110: 2 | M110: 2 | N110: 2 | O110: 2 | P110: 1
B111: 109 | E111: 45 | F111: 32 | G111: 16 | H111: 8 | I111: 4 | J111: 2 | K111: 2 | L111: 2 | M111: 2 | N111: 2 | O111: 2 | P111: 1
B112: 110 | E112: 46 | F112: 32 | G112: 16 | H112: 8 | I112: 4 | J112: 2 | K112: 2 | L112: 2 | M112: 2 | N112: 2 | O112: 2 | P112: 1
B113: 111 | E113: 47 | F113: 32 | G113: 16 | H113: 8 | I113: 4 | J113: 2 | K113: 2 | L113: 2 | M113: 2 | N113: 2 | O113: 2 | P113: 1
B114: 112 | E114: 48 | F114: 32 | G114: 16 | H114: 8 | I114: 4 | J114: 2 | K114: 2 | L114: 2 | M114: 2 | N114: 2 | O114: 2 | P114: 1
B115: 113 | E115: 49 | F115: 32 | G115: 16 | H115: 8 | I115: 4 | J115: 2 | K115: 2 | L115: 2 | M115: 2 | N115: 2 | O115: 2 | P115: 1
B116: 114 | E116: 50 | F116: 32 | G116: 16 | H116: 8 | I116: 4 | J116: 2 | K116: 2 | L116: 2 | M116: 2 | N116: 2 | O116: 2 | P116: 1
B117: 115 | E117: 51 | F117: 32 | G117: 16 | H117: 8 | I117: 4 | J117: 2 | K117: 2 | L117: 2 | M117: 2 | N117: 2 | O117: 2 | P117: 1
B118: 116 | E118: 52 | F118: 32 | G118: 16 | H118: 8 | I118: 4 | J118: 2 | K118: 2 | L118: 2 | M118: 2 | N118: 2 | O118: 2 | P118: 1
B119: 117 | E119: 53 | F119: 32 | G119: 16 | H119: 8 | I119: 4 | J119: 2 | K119: 2 | L119: 2 | M119: 2 | N119: 2 | O119: 2 | P119: 1
B120: 118 | E120: 54 | F120: 32 | G120: 16 | H120: 8 | I120: 4 | J120: 2 | K120: 2 | L120: 2 | M120: 2 | N120: 2 | O120: 2 | P120: 1
B121: 119 | E121: 55 | F121: 32 | G121: 16 | H121: 8 | I121: 4 | J121: 2 | K121: 2 | L121: 2 | M121: 2 | N121: 2 | O121: 2 | P121: 1
B122: 120 | E122: 56 | F122: 32 | G122: 16 | H122: 8 | I122: 4 | J122: 2 | K122: 2 | L122: 2 | M122: 2 | N122: 2 | O122: 2 | P122: 1
B123: 121 | E123: 57 | F123: 32 | G123: 16 | H123: 8 | I123: 4 | J123: 2 | K123: 2 | L123: 2 | M123: 2 | N123: 2 | O123: 2 | P123: 1
B124: 122 | E124: 58 | F124: 32 | G124: 16 | H124: 8 | I124: 4 | J124: 2 | K124: 2 | L124: 2 | M124: 2 | N124: 2 | O124: 2 | P124: 1
B125: 123 | E125: 59 | F125: 32 | G125: 16 | H125: 8 | I125: 4 | J125: 2 | K125: 2 | L125: 2 | M125: 2 | N125: 2 | O125: 2 | P125: 1
B126: 124 | E126: 60 | F126: 32 | G126: 16 | H126: 8 | I126: 4 | J126: 2 | K126: 2 | L126: 2 | M126: 2 | N126: 2 | O126: 2 | P126: 1
B127: 125 | E127: 61 | F127: 32 | G127: 16 | H127: 8 | I127: 4 | J127: 2 | K127: 2 | L127: 2 | M127: 2 | N127: 2 | O127: 2 | P127: 1
B128: 126 | E128: 62 | F128: 32 | G128: 16 | H128: 8 | I128: 4 | J128: 2 | K128: 2 | L128: 2 | M128: 2 | N128: 2 | O128: 2 | P128: 1
B129: 127 | E129: 63 | F129: 32 | G129: 16 | H129: 8 | I129: 4 | J129: 2 | K129: 2 | L129: 2 | M129: 2 | N129: 2 | O129: 2 | P129: 1
B130: 128 | E130: 64 | F130: 32 | G130: 16 | H130: 8 | I130: 4 | J130: 2 | K130: 2 | L130: 2 | M130: 2 | N130: 2 | O130: 2 | P130: 1

Sheet Лист4 (hidden)
C1: А1 | D1: А2 | E1: А3 | F1: А4 | G1: В1 | H1: В2 | I1: В3 | J1: В4
B2: 8 | C2: 1 | D2: 2 | E2: 3 | F2: 4 | G2: 5 | H2: 6 | I2: 7 | J2: 8
B3: 9 | C3: 1 | D3: 2 | E3: 3 | F3: 4 | G3: 5 | H3: 6 | I3: 7 | J3: 8
B4: 10 | C4: 1 | D4: 2 | E4: 3 | F4: 4 | G4: 5 | H4: 6 | I4: 7 | J4: 9
B5: 11 | C5: 1 | D5: 2 | E5: 3 | F5: 4 | G5: 5 | H5: 6 | I5: 8 | J5: 10
B6: 12 | C6: 1 | D6: 2 | E6: 3 | F6: 4 | G6: 5 | H6: 7 | I6: 9 | J6: 11
B7: 13 | C7: 1 | D7: 2 | E7: 3 | F7: 4 | G7: 6 | H7: 8 | I7: 10 | J7: 12
B8: 14 | C8: 1 | D8: 2 | E8: 3 | F8: 5 | G8: 7 | H8: 9 | I8: 11 | J8: 13
B9: 15 | C9: 1 | D9: 2 | E9: 4 | F9: 6 | G9: 8 | H9: 10 | I9: 12 | J9: 14
B10: 16 | C10: 1 | D10: 3 | E10: 5 | F10: 7 | G10: 9 | H10: 11 | I10: 13 | J10: 15
B11: 17 | C11: 1 | D11: 3 | E11: 5 | F11: 7 | G11: 9 | H11: 11 | I11: 13 | J11: 15
B12: 18 | C12: 1 | D12: 3 | E12: 5 | F12: 7 | G12: 9 | H12: 11 | I12: 13 | J12: 15
B13: 19 | C13: 1 | D13: 3 | E13: 5 | F13: 7 | G13: 9 | H13: 11 | I13: 13 | J13: 16
B14: 20 | C14: 1 | D14: 3 | E14: 5 | F14: 7 | G14: 9 | H14: 11 | I14: 13 | J14: 17
B15: 21 | C15: 1 | D15: 3 | E15: 5 | F15: 7 | G15: 9 | H15: 11 | I15: 14 | J15: 18
B16: 22 | C16: 1 | D16: 3 | E16: 5 | F16: 7 | G16: 9 | H16: 11 | I16: 15 | J16: 19
B17: 23 | C17: 1 | D17: 3 | E17: 5 | F17: 7 | G17: 9 | H17: 12 | I17: 16 | J17: 20
B18: 24 | C18: 1 | D18: 3 | E18: 5 | F18: 7 | G18: 9 | H18: 13 | I18: 17 | J18: 21
B19: 25 | C19: 1 | D19: 3 | E19: 5 | F19: 7 | G19: 10 | H19: 14 | I19: 18 | J19: 22
B20: 26 | C20: 1 | D20: 3 | E20: 5 | F20: 7 | G20: 11 | H20: 15 | I20: 19 | J20: 23
B21: 27 | C21: 1 | D21: 3 | E21: 5 | F21: 8 | G21: 12 | H21: 16 | I21: 20 | J21: 24
B22: 28 | C22: 1 | D22: 3 | E22: 5 | F22: 9 | G22: 13 | H22: 17 | I22: 21 | J22: 25
B23: 29 | C23: 1 | D23: 3 | E23: 6 | F23: 10 | G23: 14 | H23: 18 | I23: 22 | J23: 26
B24: 30 | C24: 1 | D24: 3 | E24: 7 | F24: 11 | G24: 15 | H24: 19 | I24: 23 | J24: 27
B25: 31 | C25: 1 | D25: 4 | E25: 8 | F25: 12 | G25: 16 | H25: 20 | I25: 24 | J25: 28
B26: 32 | C26: 1 | D26: 5 | E26: 9 | F26: 13 | G26: 17 | H26: 21 | I26: 25 | J26: 29
B27: 33 | C27: 1 | D27: 5 | E27: 9 | F27: 13 | G27: 17 | H27: 21 | I27: 25 | J27: 29
B28: 34 | C28: 1 | D28: 5 | E28: 9 | F28: 13 | G28: 17 | H28: 21 | I28: 25 | J28: 29
B29: 35 | C29: 1 | D29: 5 | E29: 9 | F29: 13 | G29: 17 | H29: 21 | I29: 25 | J29: 29
B30: 36 | C30: 1 | D30: 5 | E30: 9 | F30: 13 | G30: 17 | H30: 21 | I30: 25 | J30: 29
B31: 37 | C31: 1 | D31: 5 | E31: 9 | F31: 13 | G31: 17 | H31: 21 | I31: 25 | J31: 30
B32: 38 | C32: 1 | D32: 5 | E32: 9 | F32: 13 | G32: 17 | H32: 21 | I32: 25 | J32: 31
B33: 39 | C33: 1 | D33: 5 | E33: 9 | F33: 13 | G33: 17 | H33: 21 | I33: 25 | J33: 32
B34: 40 | C34: 1 | D34: 5 | E34: 9 | F34: 13 | G34: 17 | H34: 21 | I34: 25 | J34: 33
B35: 41 | C35: 1 | D35: 5 | E35: 9 | F35: 13 | G35: 17 | H35: 21 | I35: 26 | J35: 34
B36: 42 | C36: 1 | D36: 5 | E36: 9 | F36: 13 | G36: 17 | H36: 21 | I36: 27 | J36: 35
B37: 43 | C37: 1 | D37: 5 | E37: 9 | F37: 13 | G37: 17 | H37: 21 | I37: 28 | J37: 36
B38: 44 | C38: 1 | D38: 5 | E38: 9 | F38: 13 | G38: 17 | H38: 21 | I38: 29 | J38: 37
B39: 45 | C39: 1 | D39: 5 | E39: 9 | F39: 13 | G39: 17 | H39: 22 | I39: 30 | J39: 38
B40: 46 | C40: 1 | D40: 5 | E40: 9 | F40: 13 | G40: 17 | H40: 23 | I40: 31 | J40: 39
B41: 47 | C41: 1 | D41: 5 | E41: 9 | F41: 13 | G41: 17 | H41: 24 | I41: 32 | J41: 40
B42: 48 | C42: 1 | D42: 5 | E42: 9 | F42: 13 | G42: 17 | H42: 25 | I42: 33 | J42: 41
B43: 49 | C43: 1 | D43: 5 | E43: 9 | F43: 13 | G43: 18 | H43: 26 | I43: 34 | J43: 42
B44: 50 | C44: 1 | D44: 5 | E44: 9 | F44: 13 | G44: 19 | H44: 27 | I44: 35 | J44: 43
B45: 51 | C45: 1 | D45: 5 | E45: 9 | F45: 13 | G45: 20 | H45: 28 | I45: 36 | J45: 44
B46: 52 | C46: 1 | D46: 5 | E46: 9 | F46: 13 | G46: 21 | H46: 29 | I46: 37 | J46: 45
B47: 53 | C47: 1 | D47: 5 | E47: 9 | F47: 14 | G47: 22 | H47: 30 | I47: 38 | J47: 46
B48: 54 | C48: 1 | D48: 5 | E48: 9 | F48: 15 | G48: 23 | H48: 31 | I48: 39 | J48: 47
B49: 55 | C49: 1 | D49: 5 | E49: 9 | F49: 16 | G49: 24 | H49: 32 | I49: 40 | J49: 48
B50: 56 | C50: 1 | D50: 5 | E50: 9 | F50: 17 | G50: 25 | H50: 33 | I50: 41 | J50: 49
B51: 57 | C51: 1 | D51: 5 | E51: 10 | F51: 18 | G51: 26 | H51: 34 | I51: 42 | J51: 50
B52: 58 | C52: 1 | D52: 5 | E52: 11 | F52: 19 | G52: 27 | H52: 35 | I52: 43 | J52: 51
B53: 59 | C53: 1 | D53: 5 | E53: 12 | F53: 20 | G53: 28 | H53: 36 | I53: 44 | J53: 52
B54: 60 | C54: 1 | D54: 5 | E54: 13 | F54: 21 | G54: 29 | H54: 37 | I54: 45 | J54: 53
B55: 61 | C55: 1 | D55: 6 | E55: 14 | F55: 22 | G55: 30 | H55: 38 | I55: 46 | J55: 54
B56: 62 | C56: 1 | D56: 7 | E56: 15 | F56: 23 | G56: 31 | H56: 39 | I56: 47 | J56: 55
B57: 63 | C57: 1 | D57: 8 | E57: 16 | F57: 24 | G57: 32 | H57: 40 | I57: 48 | J57: 56
B58: 64 | C58: 1 | D58: 9 | E58: 17 | F58: 25 | G58: 33 | H58: 41 | I58: 49 | J58: 57

Sheet Inf (hidden)
B2: Федерация спортивной борьбы России
B3: Федерация спортивной борьбы Санкт-Петербурга
B4: ХХХI-Всероссийский турнир по греко-римской борьбе,посвященный памяти ректора Ленинградского финансово-экономического института им.Н.А.Вознесенского /ныне Санкт-Петербургского государственного экономического университета,з.д.н.России Лаврикова Юрия Александровича. | H4: Весовые категории
B5: 20-22 ноября 2023г | C5: GR | F5: Санкт-Петербург | H5: 1 | I5: 55 | J5: 9 | K5: 97
H6: 2 | I6: 60 | J6: 10 | K6: 130
B7: Главный судья соревнований | F7: АПОЙКО Р.Н. | H7: 3 | I7: 63 | J7: 11 | K7: 0
B8: ССВК-МК | F8: Санкт-Петербург | H8: 4 | I8: 67 | J8: 12 | K8: 0
H9: 5 | I9: 72 | J9: 13 | K9: 0
B10: Главный секретарь соревнований | F10: СОКОЛОВ А.В. | H10: 6 | I10: 77 | J10: 14 | K10: 0
B11: ССВК-МК | F11: Санкт-Петербург | H11: 7 | I11: 82 | J11: 15 | K11: 0
H12: 8 | I12: 87 | J12: 16 | K12: 0

Sheet Titul
C7: =Inf!B4 -> ХХХI-Всероссийский турнир по греко-римской борьбе,посвященный памяти ректора Ленинградского финансово-экономического института им.Н.А.Вознесенского /ныне Санкт-Петербургского государственного экономического университета,з.д.н.России Лаврикова Юрия Александровича.
C26: Итоговые материалы
D28: =Inf!F5 -> Санкт-Петербург
D29: =Inf!B5 -> 20-22 ноября 2023г

Sheet GSK (hidden)
D2: ОТЧЕТ ГЛАВНОЙ СУДЕЙСКОЙ КОЛЛЕГИИ
B4: О проведении | D4: =Inf!B4 -> ХХХI-Всероссийский турнир по греко-римской борьбе,посвященный памяти ректора Ленинградского финансово-экономического института им.Н.А.Вознесенского /ныне Санкт-Петербургского государственного экономического университета,з.д.н.России Лаврикова Юрия Александровича.
D5: название соревнований
C6: № в ЕКП
B8: 1. | C8: Сроки проведения | E8: =Inf!B5 -> 20-22 ноября 2023г
B10: 2. | C10: Место проведения | E10: =Inf!F5 -> Санкт-Петербург
E11: (субъект РФ, город)
B12: 3. | C12: Наименование спортивного сооружения
E13: (в соответствии с приказом Минспорта России № 283 от 30.03.2015)
B14: 4. | C14: Всего участников участников соревнований | H14: =F17+F19 -> 70 | I14: чел
D15: из | F15: ='M-II'!F7 -> 70 | G15: субъектов Российской Федерации
C17: Спортсменов | F17: =Win!O10 -> 0 | G17: чел., в том числе: муж.
H18: жен.
E19: Представителей, тренеров | F19: =F15*1 -> 70 | G19: чел., в том числе: муж.
B21: 5. | C21: Количество судей (всего) | F21: =Re!$I$34 -> 20 | G21: чел., в том числе:
H22: иногородних | I22: 0
D23: Уровень подготовки судей по судейским категориям: | G23: 0 | H23: ВК
G24: 0 | H24: 1 К
G25: 0 | H25: 2 К
G26: 0 | H26: других категорий
B28: 6. | C28: Состав участвующих команд (регионов), в том числе количество спортсменов, тренеров и другого обслуживающего персонала представлен в приложении 1.
B31: 7. | C31: Уровень подготовки спортсменов
D33: Возрастные группы в соответствии с ЕВСК | J33: Всего
D34: Юниоры | E34: Юниорки | F34: Юноши | G34: Девушки | H34: Мальчики | I34: Девочки
C35: МСМК
C36: МС
C37: КМС
C38: 1 р.
C39: II р.
C40: III р.
C41: I юн.
C42: II юн.
B44: 8. | C44: Принадлежность к спортивной школе: | G44: ДЮСШ | H44: 0 | I44: СДЮШОР | J44: 0
E45: СДЮСШОР | F45: 0 | G45: СШ | H45: 0 | I45: СШОР | J45: 0
E46: ЦСП | F46: 0 | G46: УОР | H46: 0 | I46: др. организ. | J46: =F17 -> 0
B48: 9. | C48: Результаты соревнований (список победителей и призеров) представлены в приложении 2.
B50: 10. | C50: Выполненные разряды:
D52: Возрастные группы в соответствии с ЕВСК | J52: Всего
D53: Юниоры | E53: Юниорки | F53: Юноши | G53: Девушки | H53: Мальчики | I53: Девочки
C54: МСМК
C55: МС
C56: КМС
C57: 1 р.
C58: II р.
C59: III р.
C60: I юн.
C61: II юн.
B63: 11. | C63: Количество субъектов Российской Федерации команд (перечислить территории согласно занятым местам) представлено в приложении 3.
B66: 12. | C66: Общая оценка состояния спортивной базы, наличие и состояние спортивного оборудования и инвентаря, возможности для разминки и тренировок:
I68: отлично
B70: 13. | C70: Общая оценка состояния и оснащения служебных помещений - раздевалок для спортсменов, помещений для судей и других служб:
I71: отлично
B73: 14. | C73: Информационное обеспечение соревнований: | I73: отлично
C75: Å | D75: табло
C76: Å | D76: радиоинформация
C77: Å | D77: видеосъемка
C78: Å | D78: фотосъемка
C79: Å | D79: видеотрансляция
C80: Å | D80: своевременность и доступность стартовых протоколов
C81: Å | D81: своевременность и доступность результатов
C82: Å | D82: средства вычислительной техники
C83: Å | D83: оборудованное помещение для судейской бригады
C84: Å | D84: другое
B86: 15. | C86: Обеспечение работы средств массовой информации - места на трибунах, помещение для пресс-центра и т.д., в том числе освещение соревнования в местных СМИ (копии публикаций в СМИ прилагаются):
I88: отлично
B90: 16. | C90: Количество зрителей: | E90: 1500 | F90: чел.
B92: 17. | C92: Общая оценка качества проведения соревнований - точность соблюдения расписания, объективность судейства (с указанием нарушений правил соревнований и т.д.):
I94: отлично
C95: Мероприятие проведено в соответствии с правилами вида спорта спортивная борьба.
B98: 18. | C98: Общая оценка качества размещения, питания, транспортного обслуживания, организации встреч и проводов спортивных делегаций, шефская работа и т.п
I100: отлично
B102: 19. | C102: Общая оценка соблюдения мер по обеспечению безопасности (пожарной безопасности/санитарно-гигиенических норм/ медицинского обеспечения/ профилактики и предупреждения травматизма) при проведении соревнования:
I105: отлично
B107: 20. | C107: Выводы и предложения (замечания) по подготовке и проведению соревнования: замечаний по проведению соревнований
I108: не имеется
C111: Приложения
B112: 1 | C112: Состав участвующих команд (регионов), в том числе количество спортсменов, тренеров и другого обслуживающего персонала
B114: 2 | C114: Результаты соревнований (список победителей и призеров)
B115: 3 | C115: Количество субъектов Российской Федерации команд (перечислить территории согласно занятым местам)
B117: 4 | C117: Полный состав судейской коллегии с указанием выполняемых на соревновании функций (судейская категория, субъект РФ, город).
B119: 5 | C119: Программа мероприятий (по часам).
B120: 6 | C120: Протоколы (результаты) соревнований, подписанные главным судьей и главным секретарем.
B122: Примечание: данный отчет главной судейской коллегии представляется в ФГБУ ФЦПСР в двух экземплярах (приложение к отчету - в одном экземпляре) в течение двух недель по адресу: 105064, г. Москва, ул. Казакова, д. 18, стр. 8, каб. 32А (отдел развития видов спорта, тел.: 8(499)941-13-21) и каб. 39 (сметный отдел, тел.: 8(499)941-13-06).
C128: Представитель главной
C129: судейской коллегии | H129: =Inf!F7 -> АПОЙКО Р.Н.
F130: (подпись) (расшифровка подписи)
C132: «____» _____________ 2018 г.

Sheet Pril_1 (hidden)
B2: Состав участвующих команд (регионов), в том числе количество спортсменов, тренеров и другого обслуживающего персонала
B4: Субъекты РФ - | F4: ='M-II'!F7 -> 70 | G4: Базовый вид | H4: Спортсмены | K4: Тренеры и др. обслуживающий персонал | L4: Итого
H5: Мужчины | I5: Женщины | J5: Всего
B6: Северо-Западный ФО
C7: Архангельская обл. | H7: ='M-II'!V9 -> 0 | J7: =H7+I7 -> 0 | K7: 1 | L7: =J7+K7 -> 1
C8: Калининградская обл. | H8: ='M-II'!V10 -> 0 | J8: =H8+I8 -> 0 | K8: 1 | L8: =J8+K8 -> 1
C9: Мурманская обл. | H9: ='M-II'!V11 -> 0 | J9: 0 | K9: 1 | L9: 1
C10: Новгородская обл. | H10: ='M-II'!V12 -> 0 | J10: 0 | K10: 1 | L10: 1
C11: Псковская обл. | H11: ='M-II'!V13 -> 0 | J11: 0 | K11: 1 | L11: 1
C12: респ Коми | H12: ='M-II'!V14 -> 0 | J12: 0 | K12: 1 | L12: 1
B13: Центральный ФО
C14: Белгородская обл. | H14: ='M-II'!V16 -> 0 | J14: 0 | K14: 1 | L14: 1
C15: Владимирская обл. | H15: ='M-II'!V17 -> 0 | J15: 0 | K15: 1 | L15: 1
C16: Воронежская обл. | H16: ='M-II'!V18 -> 0 | J16: 0 | K16: 1 | L16: 1
C17: Ивановская обл. | H17: ='M-II'!V19 -> 0 | J17: 0 | K17: 1 | L17: 1
C18: Липецкая обл. | H18: ='M-II'!V20 -> 0 | J18: 0 | K18: 1 | L18: 1
C19: Московская обл. | H19: ='M-II'!V21 -> 0 | J19: 0 | K19: 1 | L19: 1
C20: Орловская обл. | H20: ='M-II'!V22 -> 0 | J20: 0 | K20: 1 | L20: 1
C21: Рязанская обл. | H21: ='M-II'!V23 -> 0 | J21: 0 | K21: 1 | L21: 1
C22: Смоленская обл. | H22: ='M-II'!V24 -> 0 | J22: 0 | K22: 1 | L22: 1
C23: Тамбовская обл. | H23: ='M-II'!V25 -> 0 | J23: 0 | K23: 1 | L23: 1
C24: Тверская обл. | H24: ='M-II'!V26 -> 0 | J24: 0 | K24: 1 | L24: 1
C25: Тульская обл. | H25: ='M-II'!V27 -> 0 | J25: 0 | K25: 1 | L25: 1
C26: Ярославская обл. | H26: ='M-II'!V28 -> 0 | J26: 0 | K26: 1 | L26: 1
B27: Приволжский ФО
C28: Кировская обл. | H28: ='M-II'!V30 -> 0 | J28: 0 | K28: 1 | L28: 1
C29: Нижегородская обл. | H29: ='M-II'!V31 -> 0 | J29: 0 | K29: 1 | L29: 1
C30: Оренбургская обл. | H30: ='M-II'!V32 -> 0 | J30: 0 | K30: 1 | L30: 1
C31: Пензенская обл. | H31: ='M-II'!V33 -> 0 | J31: 0 | K31: 1 | L31: 1
C32: Пермский край | H32: ='M-II'!V34 -> 0 | J32: 0 | K32: 1 | L32: 1
C33: респ Башкортостан | H33: ='M-II'!V35 -> 0 | J33: 0 | K33: 1 | L33: 1
C34: респ Мари-Эл | H34: ='M-II'!V36 -> 0 | J34: 0 | K34: 1 | L34: 1
C35: респ Мордовия | H35: ='M-II'!V37 -> 0 | J35: 0 | K35: 1 | L35: 1
C36: респ Татарстан | H36: ='M-II'!V38 -> 0 | J36: 0 | K36: 1 | L36: 1
C37: респ Удмуртия | H37: ='M-II'!V39 -> 0 | J37: 0 | K37: 1 | L37: 1
C38: Самарская обл. | H38: ='M-II'!V40 -> 0 | J38: 0 | K38: 1 | L38: 1
C39: Саратовская обл. | H39: ='M-II'!V41 -> 0 | J39: 0 | K39: 1 | L39: 1
C40: Ульяновская обл. | H40: ='M-II'!V42 -> 0 | J40: 0 | K40: 1 | L40: 1
B41: Северо-Кавказский ФО
C42: Кабардино-Балкарская респ | H42: ='M-II'!V44 -> 0 | J42: 0 | K42: 1 | L42: 1
C43: Карачаево-Черкесская респ | H43: ='M-II'!V45 -> 0 | J43: 0 | K43: 1 | L43: 1
C44: респ Дагестан | H44: ='M-II'!V46 -> 0 | J44: 0 | K44: 1 | L44: 1
C45: респ Ингушетия | H45: ='M-II'!V47 -> 0 | J45: 0 | K45: 1 | L45: 1
C46: РСО-Алания | H46: ='M-II'!V48 -> 0 | J46: 0 | K46: 1 | L46: 1
C47: Ставропольский край | H47: ='M-II'!V49 -> 0 | J47: 0 | K47: 1 | L47: 1
C48: Чеченская респ | H48: ='M-II'!V50 -> 0 | J48: 0 | K48: 1 | L48: 1
B49: Южный ФО
C50: Астраханская обл. | H50: ='M-II'!V54 -> 0 | J50: 0 | K50: 1 | L50: 1
C51: Волгоградская обл. | H51: ='M-II'!V55 -> 0 | J51: 0 | K51: 1 | L51: 1
C52: Краснодарский край | H52: ='M-II'!V56 -> 0 | J52: 0 | K52: 1 | L52: 1
C53: респ Адыгея | H53: ='M-II'!V57 -> 0 | J53: 0 | K53: 1 | L53: 1
C54: респ Калмыкия | H54: ='M-II'!V58 -> 0 | J54: 0 | K54: 1 | L54: 1
C55: респ Крым | H55: ='M-II'!V59 -> 0 | J55: 0 | K55: 1 | L55: 1
C56: Ростовская обл. | H56: ='M-II'!V60 -> 0 | J56: 0 | K56: 1 | L56: 1
C57: Севастополь | H57: ='M-II'!V61 -> 0 | J57: 0 | K57: 1 | L57: 1
B58: Уральский ФО
C59: Курганская обл. | H59: ='M-II'!V63 -> 0 | J59: 0 | K59: 1 | L59: 1
C60: Свердловская обл. | H60: ='M-II'!V64 -> 0 | J60: 0 | K60: 1 | L60: 1
C61: Тюменская обл. | H61: ='M-II'!V65 -> 0 | J61: 0 | K61: 1 | L61: 1
C62: Челябинская обл. | H62: ='M-II'!V66 -> 0 | J62: 0 | K62: 1 | L62: 1
C63: ХМАО-Югра | H63: ='M-II'!V67 -> 0 | J63: 0 | K63: 1 | L63: 1
C64: ЯНАО | H64: ='M-II'!V68 -> 0 | J64: 0 | K64: 1 | L64: 1
B65: Сибирский ФО
C66: Алтайский край | H66: ='M-II'!V70 -> 0 | J66: 0 | K66: 1 | L66: 1
C67: Забайкальский край | H67: ='M-II'!V71 -> 0 | J67: 0 | K67: 1 | L67: 1
C68: Иркутская обл. | H68: ='M-II'!V72 -> 0 | J68: 0 | K68: 1 | L68: 1
C69: Кемеровская обл. | H69: ='M-II'!V73 -> 0 | J69: 0 | K69: 1 | L69: 1
C70: Красноярский край | H70: ='M-II'!V74 -> 0 | J70: 0 | K70: 1 | L70: 1
C71: Новосибирская обл. | H71: ='M-II'!V75 -> 0 | J71: 0 | K71: 1 | L71: 1
C72: Омская обл. | H72: ='M-II'!V76 -> 0 | J72: =H72+I72 -> 0 | K72: 1 | L72: =J72+K72 -> 1
C73: респ Алтай | H73: ='M-II'!V77 -> 0 | J73: 0 | K73: 1 | L73: 1
C74: респ Хакасия | H74: ='M-II'!V78 -> 0 | J74: 0 | K74: 1 | L74: 1
C75: Томская обл. | H75: ='M-II'!V79 -> 0 | J75: 0 | K75: 1 | L75: 1
B76: Дальневосточный ФО
C77: Магаданская обл. | H77: ='M-II'!V81 -> 0 | J77: 0 | K77: 1 | L77: 1
C78: Приморский край | H78: ='M-II'!V82 -> 0 | J78: 0 | K78: 1 | L78: 1
C79: респ Саха (Якутия) | H79: ='M-II'!V83 -> 0 | J79: 0 | K79: 1 | L79: 1
C80: Сахалинская обл. | H80: ='M-II'!V84 -> 0 | J80: 0 | K80: 1 | L80: 1
C81: Хабаровский край | H81: ='M-II'!V85 -> 0 | J81: 0 | K81: 1 | L81: 1
B82: Москва | H82: ='M-II'!V86 -> 0 | J82: 0 | K82: 1 | L82: 1
B83: Санкт-Петербург | H83: ='M-II'!V87 -> 0 | J83: 0 | K83: 1 | L83: 1
B84: TOTAL | H84: =SUM(H6:H83) -> 0 | I84: =SUM(I6:I83) -> 0 | J84: =SUM(J6:J83) -> 0 | K84: =SUM(K6:K83) -> 70 | L84: =SUM(L6:L83) -> 70

Sheet Pril_3 (hidden)
B2: Количество субъектов Российской Федерации (команд)
B4: Место | C4: Команда (субъект РФ ) | D4: Количество медалей
D5: Золото | E5: Серебро | F5: Бронза
B6: =_xlfn.RANK.EQ(K6,$K$6:$K$75,0) -> 1 | C6: Архангельская область | K6: =D6*7+E6*5+F6*3.5 -> 0
B7: 1 | C7: Калининградская область | K7: =D7*7+E7*5+F7*3.5 -> 0
B8: 1 | C8: Мурманская область | K8: 0
B9: 1 | C9: Новгородская область | K9: 0
B10: 1 | C10: Псковская область | K10: 0
B11: 1 | C11: республика Коми | K11: 0
B12: 1 | C12: Белгородская область | K12: 0
B13: 1 | C13: Владимирская область | K13: 0
B14: 1 | C14: Воронежская область | K14: 0
B15: 1 | C15: Ивановская область | K15: 0
B16: 1 | C16: Липецкая область | K16: 0
B17: 1 | C17: Московская область | K17: 0
B18: 1 | C18: Орловская область | K18: 0
B19: 1 | C19: Рязанская область | K19: 0
B20: 1 | C20: Смоленская область | K20: 0
B21: 1 | C21: Тамбовская область | K21: 0
B22: 1 | C22: Тверская область | K22: 0
B23: 1 | C23: Тульская область | K23: 0
B24: 1 | C24: Ярославская область | K24: 0
B25: 1 | C25: Кировская область | K25: 0
B26: 1 | C26: Нижегородская область | K26: 0
B27: 1 | C27: Оренбургская область | K27: 0
B28: 1 | C28: Пензенская область | K28: 0
B29: 1 | C29: Пермский край | K29: 0
B30: 1 | C30: республика Башкортостан | K30: 0
B31: 1 | C31: республика Мари-Эл | K31: 0
B32: 1 | C32: республика Мордовия | K32: 0
B33: 1 | C33: республика Татарстан | K33: 0
B34: 1 | C34: республика Удмуртия | K34: 0
B35: 1 | C35: Самарская область | K35: 0
B36: 1 | C36: Саратовская область | K36: 0
B37: 1 | C37: Ульяновская область | K37: 0
B38: =_xlfn.RANK.EQ(K38,$K$6:$K$75,0) -> 1 | C38: Кабардино-Балкарская респ | K38: 0
B39: 1 | C39: Карачаево-Черкесская респ | K39: 0
B40: 1 | C40: республика Дагестан | K40: 0
B41: 1 | C41: республика Ингушетия | K41: 0
B42: 1 | C42: республика Северная Осетия-Алания | K42: 0
B43: 1 | C43: Ставропольский край | K43: 0
B44: 1 | C44: Чеченская республика | K44: 0
B45: 1 | C45: Астраханская область | K45: 0
B46: 1 | C46: Волгоградская область | K46: 0
B47: 1 | C47: Краснодарский край | K47: 0
B48: 1 | C48: республика Адыгея | K48: 0
B49: 1 | C49: республика Калмыкия | K49: 0
B50: 1 | C50: республика Крым | K50: 0
B51: 1 | C51: Ростовская область | K51: 0
B52: 1 | C52: город Севастополь | K52: 0
B53: 1 | C53: Курганская область | K53: 0
B54: 1 | C54: Свердловская область | K54: 0
B55: 1 | C55: Тюменская область | K55: 0
B56: 1 | C56: Челябинская область | K56: 0
B57: 1 | C57: Ханты-Мансийский автономный округ-Югра | K57: 0
B58: 1 | C58: Ямало-Ненецкий автономный округ | K58: 0
B59: 1 | C59: Алтайский край | K59: 0
B60: 1 | C60: Забайкальский край | K60: 0
B61: 1 | C61: Иркутская область | K61: 0
B62: 1 | C62: Кемеровская область | K62: 0
B63: 1 | C63: Красноярский край | K63: 0
B64: 1 | C64: Новосибирская область | K64: 0
B65: 1 | C65: Омская область | K65: 0
B66: 1 | C66: республика Алтай | K66: 0
B67: 1 | C67: республика Хакасия | K67: 0
B68: 1 | C68: Томская область | K68: 0
B69: 1 | C69: Магаданская область | K69: 0
B70: =_xlfn.RANK.EQ(K70,$K$6:$K$75,0) -> 1 | C70: Приморский край | K70: 0
B71: 1 | C71: республика Саха (Якутия) | K71: =D71*7+E71*5+F71*3.5 -> 0
B72: 1 | C72: Сахалинская область | K72: 0
B73: 1 | C73: Хабаровский край | K73: 0
B74: 1 | C74: город Москва | K74: 0
B75: 1 | C75: город Санкт-Петербург | K75: 0
D76: =SUM(D6:D75) -> 0 | E76: =SUM(E6:E75) -> 0 | F76: =SUM(F6:F75) -> 0

Sheet Re (hidden)
D2: СОСТАВ СУДЕЙСКОЙ КОЛЛЕГИИ
D4: =Inf!B4 -> ХХХI-Всероссийский турнир по греко-римской борьбе,посвященный памяти ректора Ленинградского финансово-экономического института им.Н.А.Вознесенского /ныне Санкт-Петербургского государственного экономического университета,з.д.н.России Лаврикова Юрия Александровича.
H6: =Inf!B5 -> 20-22 ноября 2023г
H7: =Inf!F5 -> Санкт-Петербург
B8: № | C8: Licence | D8: Субъект РФ | E8: Город | F8: Noname - First name | G8: Responsibility - Должность | K8: СУММА | L8: РОСПИСЬ
B9: 1 | C9: ССВК-МК | D9: СПб | E9: Санкт-Петербург | F9: АПОЙКО Р.Н. | G9: chief justice - гл. судья
B10: 2 | C10: ССВК-МК | D10: СПб | E10: Санкт-Петербург | F10: СОКОЛОВ А,В, | G10: chief secretary - гл.секретарь
B11: 3 | C11: ССВК-МК | D11: СПб | E11: Санкт-Петербург | F11: КОВАЛЕНКО С.В. | G11: зам. главного судьи
B12: 4 | C12: ССВК | D12: СПб | E12: Санкт-Петербург | F12: СКАРГИН М.Н. | G12: зам. главного секретаря
B13: 5 | C13: ССВК-МК | D13: СПб | E13: Санкт-Петербург | F13: ДАВИДЯН Г.А. | G13: руководитель ковра
B14: 6 | C14: ССВК-МК | D14: СПб | E14: Санкт-Петербург | F14: НЕРОБЕЕВ Н.Ю. | G14: руководитель ковра
B15: 7 | C15: 1 | D15: СПб | E15: Санкт-Петербург | F15: ПИВОВАРОВ О.П. | G15: руководитель ковра
B16: 8 | C16: 1 | D16: СПб | E16: Санкт-Петербург | F16: ПЕРЕВАЛОВ С.П. | G16: руководитель ковра
B17: 9 | C17: 1 | D17: СПб | E17: Санкт-Петербург | F17: КАЗАВАТОВ С.Р. | G17: судья
B18: 10 | C18: 1 | D18: СПб | E18: Санкт-Петербург | F18: АРЗУМАНОВ З.А. | G18: судья
B19: 11 | C19: 1 | D19: СПб | E19: Санкт-Петербург | F19: ПЕРЕВАЛОВ И.С. | G19: судья
B20: 12 | C20: 1 | D20: СПб | E20: Санкт-Петербург | F20: СИДОРОВ Д.М. | G20: судья
B21: 13 | C21: 2 | D21: СПб | E21: Санкт-Петербург | G21: судья
B22: 14 | C22: 1 | D22: СПб | E22: Санкт-Петербург | F22: МИХАЙЛОВ Г.Ю. | G22: судья
B23: 15 | C23: 2 | D23: СПб | E23: Санкт-Петербург | F23: МИРОНЕНКО С.Н. | G23: судья
B24: 16 | C24: 1 | D24: СПб | E24: Санкт-Петербург | F24: БАТАЛОВ А.Д. | G24: судья
B25: 17 | C25: 1 | D25: СПб | E25: Санкт-Петербург | F25: ШАГИН А.Б. | G25: судья
B26: 18 | C26: 1 | D26: СПб | E26: Санкт-Петербург | F26: КАШТАН М.В. | G26: судья
B27: 19 | G27: судья
B28: 20 | G28: судья
B29: 21 | G29: судья
B30: 22 | G30: судья
B31: 23 | G31: судья
B32: 24 | G32: судья
C34: Nombre d'arbitres - Number of referee | I34: =ROWS(C9:C28) -> 20
D37: Главный судья соревнований | H37: =Inf!F7 -> АПОЙКО Р.Н.
E38: =Inf!B8 -> ССВК-МК | H38: =Inf!F8 -> Санкт-Петербург
D40: Главный секретарь соревнований | H40: =Inf!F10 -> СОКОЛОВ А.В.
E41: =Inf!B11 -> ССВК-МК | H41: =Inf!F11 -> Санкт-Петербург

Sheet M-II (hidden)
E2: ПРОТОКОЛ МАНДАТНОЙ КОМИССИИ
E4: =Inf!B4 -> ХХХI-Всероссийский турнир по греко-римской борьбе,посвященный памяти ректора Ленинградского финансово-экономического института им.Н.А.Вознесенского /ныне Санкт-Петербургского государственного экономического университета,з.д.н.России Лаврикова Юрия Александровича.
B6: =Inf!B5 -> 20-22 ноября 2023г | R6: =Inf!F5 -> Санкт-Петербург
B7: Субъекты РФ - | F7: =ROWS(B8:B87)-10 -> 70 | G7: 1 | H7: 2 | I7: 3 | J7: 4 | K7: 5 | L7: 6 | M7: 7 | N7: 8 | O7: 9 | P7: 10 | Q7: 11 | R7: 12 | S7: 13 | T7: 14 | U7: 15 | V7: TOTAL
C8: Северо-Западный ФО | V8: =SUM(V9:W14) -> 0
C9: Архангельская обл. | V9: =SUM(G9:U9) -> 0
C10: Калининградская обл. | V10: 0
C11: Мурманская обл. | V11: 0
C12: Новгородская обл. | V12: 0
C13: Псковская обл. | V13: 0
C14: респ Коми | V14: 0
C15: Центральный ФО | V15: =SUM(V16:W28) -> 0
C16: Белгородская обл. | V16: =SUM(G16:U16) -> 0
C17: Владимирская обл. | V17: =SUM(G17:U17) -> 0
C18: Воронежская обл. | V18: =SUM(G18:U18) -> 0
C19: Ивановская обл. | V19: 0
C20: Липецкая обл. | V20: =SUM(G20:U20) -> 0
C21: Московская обл. | V21: 0
C22: Орловская обл. | V22: 0
C23: Рязанская обл. | V23: =SUM(G23:U23) -> 0
C24: Смоленская обл. | V24: 0
C25: Тамбовская обл. | V25: =SUM(G25:U25) -> 0
C26: Тверская обл. | V26: 0
C27: Тульская обл. | V27: 0
C28: Ярославская обл. | V28: 0
C29: Приволжский ФО | V29: =SUM(V30:W42) -> 0
C30: Кировская обл. | V30: =SUM(G30:U30) -> 0
C31: Нижегородская обл. | V31: 0
C32: Оренбургская обл. | V32: 0
C33: Пензенская обл. | V33: =SUM(G33:U33) -> 0
C34: Пермский край | V34: =SUM(G34:U34) -> 0
C35: респ Башкортостан | V35: 0
C36: респ Мари-Эл | V36: 0
C37: респ Мордовия | V37: 0
C38: респ Татарстан | V38: 0
C39: респ Удмуртия | V39: =SUM(G39:U39) -> 0
C40: Самарская обл. | V40: 0
C41: Саратовская обл. | V41: 0
C42: Ульяновская обл. | V42: 0
C43: Северо-Кавказский ФО | V43: =SUM(V44:W50) -> 0
C44: Кабардино-Балкарская респ | V44: =SUM(G44:U44) -> 0
C45: Карачаево-Черкесская респ | V45: 0
C46: респ Дагестан | V46: 0
C47: респ Ингушетия | V47: 0
C48: РСО-Алания | V48: 0
C49: Ставропольский край | V49: 0
C50: Чеченская респ | V50: 0
C53: Южный ФО | V53: =SUM(V54:W61) -> 0
C54: Астраханская обл. | V54: =SUM(G54:U54) -> 0
C55: Волгоградская обл. | V55: 0
C56: Краснодарский край | V56: 0
C57: респ Адыгея | V57: 0
C58: респ Калмыкия | V58: 0
C59: респ Крым | V59: =SUM(G59:U59) -> 0
C60: Ростовская обл. | V60: =SUM(G60:U60) -> 0
C61: Севастополь | V61: 0
C62: Уральский ФО | V62: =SUM(V63:W68) -> 0
C63: Курганская обл. | V63: =SUM(G63:U63) -> 0
C64: Свердловская обл. | V64: 0
C65: Тюменская обл. | V65: 0
C66: Челябинская обл. | V66: 0
C67: ХМАО-Югра | V67: 0
C68: ЯНАО | V68: 0
C69: Сибирский ФО | V69: =SUM(V70:W79) -> 0
C70: Алтайский край | V70: =SUM(G70:U70) -> 0
C71: Забайкальский край | V71: 0
C72: Иркутская обл. | V72: =SUM(G72:U72) -> 0
C73: Кемеровская обл. | V73: 0
C74: Красноярский край | V74: 0
C75: Новосибирская обл. | V75: 0
C76: Омская обл. | V76: 0
C77: респ Алтай | V77: =SUM(G77:U77) -> 0
C78: респ Хакасия | V78: 0
C79: Томская обл. | V79: 0
C80: Дальневосточный ФО | V80: =SUM(V81:W85) -> 0
C81: Магаданская обл. | V81: =SUM(G81:U81) -> 0
C82: Приморский край | V82: =SUM(G82:U82) -> 0
C83: респ Саха (Якутия) | V83: 0
C84: Сахалинская обл. | V84: 0
C85: Хабаровский край | V85: =SUM(G85:U85) -> 0
C86: Москва | V86: 0
C87: Санкт-Петербург | V87: 0
B88: TOTAL | G88: =SUM(G8:G87) -> 0 | H88: 0 | I88: 0 | J88: 0 | K88: 0 | L88: 0 | M88: 0 | N88: 0 | O88: 0 | P88: 0 | Q88: 0 | R88: 0 | S88: 0 | T88: 0 | U88: 0 | V88: 0
B90: змс | V90: =SUM(G90:U90) -> 0
B91: мсмк | V91: 0
B92: мс | V92: 0
B93: кмс | V93: 0
B94: 1 | V94: =SUM(G94:U94) -> 0
B96: Главный судья | G96: =Inf!B8 -> ССВК-МК | Q96: =Inf!F7 -> АПОЙКО Р.Н. | V96: =Inf!F8 -> Санкт-Петербург
B98: Главный секретарь | G98: =Inf!B11 -> ССВК-МК | Q98: =Inf!F10 -> СОКОЛОВ А.В. | V98: =Inf!F11 -> Санкт-Петербург

Sheet M-I
E2: ПРОТОКОЛ МАНДАТНОЙ КОМИССИИ
E4: =Inf!B4 -> ХХХI-Всероссийский турнир по греко-римской борьбе,посвященный памяти ректора Ленинградского финансово-экономического института им.Н.А.Вознесенского /ныне Санкт-Петербургского государственного экономического университета,з.д.н.России Лаврикова Юрия Александровича.
N5: =Inf!B5 -> 20-22 ноября 2023г
N6: =Inf!F5 -> Санкт-Петербург
B7: Субъект РФ | F7: =Inf!I5 -> 55 | G7: =Inf!I6 -> 60 | H7: =Inf!I7 -> 63 | I7: =Inf!I8 -> 67 | J7: =Inf!I9 -> 72 | K7: =Inf!I10 -> 77 | L7: =Inf!I11 -> 82 | M7: =Inf!I12 -> 87 | N7: =Inf!K5 -> 97 | O7: =Inf!K6 -> 130 | P7: =Inf!K7 -> 0 | Q7: =Inf!K8 -> 0 | R7: =Inf!K9 -> 0 | S7: =Inf!K10 -> 0 | T7: =Inf!K11 -> 0 | U7: =Inf!K12 -> 0 | V7: TOTAL
B8: 1 | C8: СПб ВИФК | G8: 1 | H8: 1 | I8: 1 | J8: 1 | K8: 1 | L8: 1 | M8: 1 | N8: 1 | V8: =SUM(F8:U8) -> 8
B9: 2 | C9: МОСКВА | G9: 1 | H9: 2 | I9: 1 | K9: 1 | N9: 2 | O9: 1 | V9: 8
B10: 3 | C10: ВОРОНЕЖСКАЯ ОБЛ. | J10: 1 | K10: 1 | V10: 2
B11: 4 | C11: ТВЕРСКАЯ ОБЛ. | J11: 1 | V11: 1
B12: 5 | C12: СЕВАСТОПОЛЬ | N12: 1 | O12: 1 | V12: 2
B13: 6 | C13: СПб КШВСМ | F13: 2 | G13: 2 | I13: 5 | J13: 8 | K13: 6 | L13: 13 | M13: 5 | N13: 7 | O13: 2 | V13: 50
B14: 7 | C14: ВЕЛИКИЙ НОВГОРОД | F14: 1 | G14: 1 | H14: 1 | O14: 2 | V14: 5
B15: 8 | C15: ПСКОВ | F15: 2 | M15: 2 | O15: 1 | V15: 5
B16: 9 | C16: МУРМАНСК | G16: 2 | H16: 1 | I16: 1 | M16: 1 | V16: 5
B17: 10 | C17: СК"ИЖОРЕЦ" | H17: 1 | J17: 1 | V17: 2
B18: 11 | C18: СПб "ГРИФОН"-ГЭУ | J18: 3 | K18: 1 | M18: 1 | N18: 1 | O18: 1 | V18: 7
B19: 12 | C19: УОР-2 | F19: 1 | I19: 1 | J19: 1 | M19: 1 | O19: 1 | V19: =SUM(F19:U19) -> 5
B20: 13 | C20: СПб "ЛОКОМОТИВ" | H20: 3 | J20: 1 | K20: 1 | L20: 3 | O20: 1 | V20: 9
B21: 14 | V21: 0
B22: 15 | V22: 0
B23: 16 | V23: 0
B24: 17 | V24: 0
B25: 18 | V25: =SUM(F25:U25) -> 0
B26: 19 | V26: 0
B27: 20 | V27: 0
B28: 21 | V28: =SUM(F28:U28) -> 0
B29: TOTAL | F29: =SUM(F8:F28) -> 6 | G29: =SUM(G8:G28) -> 7 | H29: 9 | I29: 9 | J29: 17 | K29: 11 | L29: 17 | M29: 11 | N29: 12 | O29: 10 | P29: 0 | Q29: 0 | R29: 0 | S29: 0 | T29: 0 | U29: 0 | V29: 109
V36: =ROWS(C8:D14) -> 7
C37: Nombre de nations (domaines) / Number of countries (regions)
E40: Главный судья | M40: =Inf!F7 -> АПОЙКО Р.Н. | U40: =Inf!F7 -> АПОЙКО Р.Н.
G41: =Inf!B8 -> ССВК-МК | M41: =Inf!F8 -> Санкт-Петербург | U41: =Inf!F8 -> Санкт-Петербург
E43: Главный секретарь | G43: =Inf!B11 -> ССВК-МК | M43: =Inf!F10 -> СОКОЛОВ А.В. | U43: =Inf!F10 -> СОКОЛОВ А.В.
M44: =Inf!F11 -> Санкт-Петербург | U44: =Inf!F11 -> Санкт-Петербург

Sheet A (hidden)
D1: =Inf!B2 -> Федерация спортивной борьбы России
D2: =Inf!B3 -> Федерация спортивной борьбы Санкт-Петербурга
D3: =Inf!B4 -> ХХХI-Всероссийский турнир по греко-римской борьбе,посвященный памяти ректора Ленинградского финансово-экономического института им.Н.А.Вознесенского /ныне Санкт-Петербургского государственного экономического университета,з.д.н.России Лаврикова Юрия Александровича.
D4: График работы судей - The schedule of judges work | AA4: Ковер - Mat | AF4: A
E5: конкретный день соревнований | G5: =Inf!F5 -> Санкт-Петербург
D6: № | E6: Фамилии судей | F6: Судейская категория | G6: Город | H6: Номера пар
D8: 1 | E8: =IF(B8 > 0,INDEX(Re!F9:F32,B8,1)," ") ->  | F8: =IF(B8 > 0,INDEX(Re!C9:C32,B8,1)," ") ->  | G8: =IF(B8 > 0,INDEX(Re!D9:D32,B8,1)," ") ->  | H8: руководитель ковра
D9: 2 | E9: =IF(B9 > 0,INDEX(Re!F9:F32,B9,1)," ") ->  | F9: =IF(B9 > 0,INDEX(Re!C9:C32,B9,1)," ") ->  | G9: =IF(B9 > 0,INDEX(Re!D9:D32,B9,1)," ") ->  | H9: руководитель ковра
D10: 3 | E10: =IF(B10 > 0,INDEX(Re!F9:F32,B10,1)," ") ->  | F10: =IF(B10 > 0,INDEX(Re!C9:C32,B10,1)," ") ->  | G10: =IF(B10 > 0,INDEX(Re!D9:D32,B10,1)," ") -> 
D11: 4 | E11: =IF(B11 > 0,INDEX(Re!F9:F32,B11,1)," ") ->  | F11: =IF(B11 > 0,INDEX(Re!C9:C32,B11,1)," ") ->  | G11: =IF(B11 > 0,INDEX(Re!D9:D32,B11,1)," ") -> 
D12: 5 | E12: =IF(B12 > 0,INDEX(Re!F9:F32,B12,1)," ") ->  | F12: =IF(B12 > 0,INDEX(Re!C9:C32,B12,1)," ") ->  | G12: =IF(B12 > 0,INDEX(Re!D9:D32,B12,1)," ") -> 
D13: 6 | E13: =IF(B13 > 0,INDEX(Re!F9:F32,B13,1)," ") ->  | F13: =IF(B13 > 0,INDEX(Re!C9:C32,B13,1)," ") ->  | G13: =IF(B13 > 0,INDEX(Re!D9:D32,B13,1)," ") -> 
D14: 7 | E14: =IF(B14 > 0,INDEX(Re!F9:F32,B14,1)," ") ->  | F14: =IF(B14 > 0,INDEX(Re!C9:C32,B14,1)," ") ->  | G14: =IF(B14 > 0,INDEX(Re!D9:D32,B14,1)," ") -> 
D15: 8 | E15: =IF(B15 > 0,INDEX(Re!F9:F32,B15,1)," ") ->  | F15: =IF(B15 > 0,INDEX(Re!C9:C32,B15,1)," ") ->  | G15: =IF(B15 > 0,INDEX(Re!D9:D32,B15,1)," ") -> 
D16: 9 | E16: =IF(B16 > 0,INDEX(Re!F9:F32,B16,1)," ") ->  | F16: =IF(B16 > 0,INDEX(Re!C9:C32,B16,1)," ") ->  | G16: =IF(B16 > 0,INDEX(Re!D9:D32,B16,1)," ") -> 
D17: 10 | E17: =IF(B17 > 0,INDEX(Re!F9:F32,B17,1)," ") ->  | F17: =IF(B17 > 0,INDEX(Re!C9:C32,B17,1)," ") ->  | G17: =IF(B17 > 0,INDEX(Re!D9:D32,B17,1)," ") -> 
D18: 11 | E18: =IF(B18 > 0,INDEX(Re!F9:F32,B18,1)," ") ->  | F18: =IF(B18 > 0,INDEX(Re!C9:C32,B18,1)," ") ->  | G18: =IF(B18 > 0,INDEX(Re!D9:D32,B18,1)," ") -> 
D19: 12 | E19: =IF(B19 > 0,INDEX(Re!F9:F32,B19,1)," ") ->  | F19: =IF(B19 > 0,INDEX(Re!C9:C32,B19,1)," ") ->  | G19: =IF(B19 > 0,INDEX(Re!D9:D32,B19,1)," ") -> 
D20: 13 | E20: =IF(B20 > 0,INDEX(Re!F9:F32,B20,1)," ") ->  | F20: =IF(B20 > 0,INDEX(Re!C9:C32,B20,1)," ") ->  | G20: =IF(B20 > 0,INDEX(Re!D9:D32,B20,1)," ") -> 
D21: 14 | E21: =IF(B21 > 0,INDEX(Re!F9:F32,B21,1)," ") ->  | F21: =IF(B21 > 0,INDEX(Re!C9:C32,B21,1)," ") ->  | G21: =IF(B21 > 0,INDEX(Re!D9:D32,B21,1)," ") -> 
D22: 15 | E22: =IF(B22 > 0,INDEX(Re!F9:F32,B22,1)," ") ->  | F22: =IF(B22 > 0,INDEX(Re!C9:C32,B22,1)," ") ->  | G22: =IF(B22 > 0,INDEX(Re!D9:D32,B22,1)," ") -> 
D23: 16 | E23: =IF(B23 > 0,INDEX(Re!F9:F32,B23,1)," ") ->  | F23: =IF(B23 > 0,INDEX(Re!C9:C32,B23,1)," ") ->  | G23: =IF(B23 > 0,INDEX(Re!D9:D32,B23,1)," ") -> 
D24: 17 | E24: =IF(B24 > 0,INDEX(Re!F9:F32,B24,1)," ") ->  | F24: =IF(B24 > 0,INDEX(Re!C9:C32,B24,1)," ") ->  | G24: =IF(B24 > 0,INDEX(Re!D9:D32,B24,1)," ") -> 
D25: 18 | E25: =IF(B25 > 0,INDEX(Re!F9:F32,B25,1)," ") ->  | F25: =IF(B25 > 0,INDEX(Re!C9:C32,B25,1)," ") ->  | G25: =IF(B25 > 0,INDEX(Re!D9:D32,B25,1)," ") -> 
D26: 19 | E26: =IF(B26 > 0,INDEX(Re!F9:F32,B26,1)," ") ->  | F26: =IF(B26 > 0,INDEX(Re!C9:C32,B26,1)," ") ->  | G26: =IF(B26 > 0,INDEX(Re!D9:D32,B26,1)," ") -> 
D27: 20 | E27: =IF(B27 > 0,INDEX(Re!F9:F32,B27,1)," ") ->  | F27: =IF(B27 > 0,INDEX(Re!C9:C32,B27,1)," ") ->  | G27: =IF(B27 > 0,INDEX(Re!D9:D32,B27,1)," ") -> 
E29: Условные обозначения: Р - руководитель ковра; А - арбитр ; Б - боковой судья ; С – секундометрист.

Sheet B (hidden)
D1: =Inf!B2 -> Федерация спортивной борьбы России
D2: =Inf!B3 -> Федерация спортивной борьбы Санкт-Петербурга
D3: =Inf!B4 -> ХХХI-Всероссийский турнир по греко-римской борьбе,посвященный памяти ректора Ленинградского финансово-экономического института им.Н.А.Вознесенского /ныне Санкт-Петербургского государственного экономического университета,з.д.н.России Лаврикова Юрия Александровича.
D4: График работы судей - The schedule of judges work | AA4: Ковер - Mat | AF4: B
E5: конкретный день соревнований | G5: =Inf!F5 -> Санкт-Петербург
D6: № | E6: Фамилии судей | F6: Судейская категория | G6: Город | H6: Номера пар
D8: 1 | E8: =IF(B8 > 0,INDEX(Re!F9:F32,B8,1)," ") ->  | F8: =IF(B8 > 0,INDEX(Re!C9:C32,B8,1)," ") ->  | G8: =IF(B8 > 0,INDEX(Re!D9:D32,B8,1)," ") ->  | H8: руководитель ковра
D9: 2 | E9: =IF(B9 > 0,INDEX(Re!F9:F32,B9,1)," ") ->  | F9: =IF(B9 > 0,INDEX(Re!C9:C32,B9,1)," ") ->  | G9: =IF(B9 > 0,INDEX(Re!D9:D32,B9,1)," ") ->  | H9: руководитель ковра
D10: 3 | E10: =IF(B10 > 0,INDEX(Re!F9:F32,B10,1)," ") ->  | F10: =IF(B10 > 0,INDEX(Re!C9:C32,B10,1)," ") ->  | G10: =IF(B10 > 0,INDEX(Re!D9:D32,B10,1)," ") -> 
D11: 4 | E11: =IF(B11 > 0,INDEX(Re!F9:F32,B11,1)," ") ->  | F11: =IF(B11 > 0,INDEX(Re!C9:C32,B11,1)," ") ->  | G11: =IF(B11 > 0,INDEX(Re!D9:D32,B11,1)," ") -> 
D12: 5 | E12: =IF(B12 > 0,INDEX(Re!F9:F32,B12,1)," ") ->  | F12: =IF(B12 > 0,INDEX(Re!C9:C32,B12,1)," ") ->  | G12: =IF(B12 > 0,INDEX(Re!D9:D32,B12,1)," ") -> 
D13: 6 | E13: =IF(B13 > 0,INDEX(Re!F9:F32,B13,1)," ") ->  | F13: =IF(B13 > 0,INDEX(Re!C9:C32,B13,1)," ") ->  | G13: =IF(B13 > 0,INDEX(Re!D9:D32,B13,1)," ") -> 
D14: 7 | E14: =IF(B14 > 0,INDEX(Re!F9:F32,B14,1)," ") ->  | F14: =IF(B14 > 0,INDEX(Re!C9:C32,B14,1)," ") ->  | G14: =IF(B14 > 0,INDEX(Re!D9:D32,B14,1)," ") -> 
D15: 8 | E15: =IF(B15 > 0,INDEX(Re!F9:F32,B15,1)," ") ->  | F15: =IF(B15 > 0,INDEX(Re!C9:C32,B15,1)," ") ->  | G15: =IF(B15 > 0,INDEX(Re!D9:D32,B15,1)," ") -> 
D16: 9 | E16: =IF(B16 > 0,INDEX(Re!F9:F32,B16,1)," ") ->  | F16: =IF(B16 > 0,INDEX(Re!C9:C32,B16,1)," ") ->  | G16: =IF(B16 > 0,INDEX(Re!D9:D32,B16,1)," ") -> 
D17: 10 | E17: =IF(B17 > 0,INDEX(Re!F9:F32,B17,1)," ") ->  | F17: =IF(B17 > 0,INDEX(Re!C9:C32,B17,1)," ") ->  | G17: =IF(B17 > 0,INDEX(Re!D9:D32,B17,1)," ") -> 
D18: 11 | E18: =IF(B18 > 0,INDEX(Re!F9:F32,B18,1)," ") ->  | F18: =IF(B18 > 0,INDEX(Re!C9:C32,B18,1)," ") ->  | G18: =IF(B18 > 0,INDEX(Re!D9:D32,B18,1)," ") -> 
D19: 12 | E19: =IF(B19 > 0,INDEX(Re!F9:F32,B19,1)," ") ->  | F19: =IF(B19 > 0,INDEX(Re!C9:C32,B19,1)," ") ->  | G19: =IF(B19 > 0,INDEX(Re!D9:D32,B19,1)," ") -> 
D20: 13 | E20: =IF(B20 > 0,INDEX(Re!F9:F32,B20,1)," ") ->  | F20: =IF(B20 > 0,INDEX(Re!C9:C32,B20,1)," ") ->  | G20: =IF(B20 > 0,INDEX(Re!D9:D32,B20,1)," ") -> 
D21: 14 | E21: =IF(B21 > 0,INDEX(Re!F9:F32,B21,1)," ") ->  | F21: =IF(B21 > 0,INDEX(Re!C9:C32,B21,1)," ") ->  | G21: =IF(B21 > 0,INDEX(Re!D9:D32,B21,1)," ") -> 
D22: 15 | E22: =IF(B22 > 0,INDEX(Re!F9:F32,B22,1)," ") ->  | F22: =IF(B22 > 0,INDEX(Re!C9:C32,B22,1)," ") ->  | G22: =IF(B22 > 0,INDEX(Re!D9:D32,B22,1)," ") -> 
D23: 16 | E23: =IF(B23 > 0,INDEX(Re!F9:F32,B23,1)," ") ->  | F23: =IF(B23 > 0,INDEX(Re!C9:C32,B23,1)," ") ->  | G23: =IF(B23 > 0,INDEX(Re!D9:D32,B23,1)," ") -> 
D24: 17 | E24: =IF(B24 > 0,INDEX(Re!F9:F32,B24,1)," ") ->  | F24: =IF(B24 > 0,INDEX(Re!C9:C32,B24,1)," ") ->  | G24: =IF(B24 > 0,INDEX(Re!D9:D32,B24,1)," ") -> 
D25: 18 | E25: =IF(B25 > 0,INDEX(Re!F9:F32,B25,1)," ") ->  | F25: =IF(B25 > 0,INDEX(Re!C9:C32,B25,1)," ") ->  | G25: =IF(B25 > 0,INDEX(Re!D9:D32,B25,1)," ") -> 
D26: 19 | E26: =IF(B26 > 0,INDEX(Re!F9:F32,B26,1)," ") ->  | F26: =IF(B26 > 0,INDEX(Re!C9:C32,B26,1)," ") ->  | G26: =IF(B26 > 0,INDEX(Re!D9:D32,B26,1)," ") -> 
D27: 20 | E27: =IF(B27 > 0,INDEX(Re!F9:F32,B27,1)," ") ->  | F27: =IF(B27 > 0,INDEX(Re!C9:C32,B27,1)," ") ->  | G27: =IF(B27 > 0,INDEX(Re!D9:D32,B27,1)," ") -> 
E29: Условные обозначения: Р - руководитель ковра; А - арбитр ; Б - боковой судья ; С – секундометрист.

Sheet C (hidden)
D1: =Inf!B2 -> Федерация спортивной борьбы России
D2: =Inf!B3 -> Федерация спортивной борьбы Санкт-Петербурга
D3: =Inf!B4 -> ХХХI-Всероссийский турнир по греко-римской борьбе,посвященный памяти ректора Ленинградского финансово-экономического института им.Н.А.Вознесенского /ныне Санкт-Петербургского государственного экономического университета,з.д.н.России Лаврикова Юрия Александровича.
D4: График работы судей - The schedule of judges work | AA4: Ковер - Mat | AF4: C
E5: конкретный день соревнований | G5: =Inf!F5 -> Санкт-Петербург
D6: № | E6: Фамилии судей | F6: Судейская категория | G6: Город | H6: Номера пар
D8: 1 | E8: =IF(B8 > 0,INDEX(Re!F9:F32,B8,1)," ") ->  | F8: =IF(B8 > 0,INDEX(Re!C9:C32,B8,1)," ") ->  | G8: =IF(B8 > 0,INDEX(Re!D9:D32,B8,1)," ") ->  | H8: руководитель ковра
D9: 2 | E9: =IF(B9 > 0,INDEX(Re!F9:F32,B9,1)," ") ->  | F9: =IF(B9 > 0,INDEX(Re!C9:C32,B9,1)," ") ->  | G9: =IF(B9 > 0,INDEX(Re!D9:D32,B9,1)," ") ->  | H9: руководитель ковра
D10: 3 | E10: =IF(B10 > 0,INDEX(Re!F9:F32,B10,1)," ") ->  | F10: =IF(B10 > 0,INDEX(Re!C9:C32,B10,1)," ") ->  | G10: =IF(B10 > 0,INDEX(Re!D9:D32,B10,1)," ") -> 
D11: 4 | E11: =IF(B11 > 0,INDEX(Re!F9:F32,B11,1)," ") ->  | F11: =IF(B11 > 0,INDEX(Re!C9:C32,B11,1)," ") ->  | G11: =IF(B11 > 0,INDEX(Re!D9:D32,B11,1)," ") -> 
D12: 5 | E12: =IF(B12 > 0,INDEX(Re!F9:F32,B12,1)," ") ->  | F12: =IF(B12 > 0,INDEX(Re!C9:C32,B12,1)," ") ->  | G12: =IF(B12 > 0,INDEX(Re!D9:D32,B12,1)," ") -> 
D13: 6 | E13: =IF(B13 > 0,INDEX(Re!F9:F32,B13,1)," ") ->  | F13: =IF(B13 > 0,INDEX(Re!C9:C32,B13,1)," ") ->  | G13: =IF(B13 > 0,INDEX(Re!D9:D32,B13,1)," ") -> 
D14: 7 | E14: =IF(B14 > 0,INDEX(Re!F9:F32,B14,1)," ") ->  | F14: =IF(B14 > 0,INDEX(Re!C9:C32,B14,1)," ") ->  | G14: =IF(B14 > 0,INDEX(Re!D9:D32,B14,1)," ") -> 
D15: 8 | E15: =IF(B15 > 0,INDEX(Re!F9:F32,B15,1)," ") ->  | F15: =IF(B15 > 0,INDEX(Re!C9:C32,B15,1)," ") ->  | G15: =IF(B15 > 0,INDEX(Re!D9:D32,B15,1)," ") -> 
D16: 9 | E16: =IF(B16 > 0,INDEX(Re!F9:F32,B16,1)," ") ->  | F16: =IF(B16 > 0,INDEX(Re!C9:C32,B16,1)," ") ->  | G16: =IF(B16 > 0,INDEX(Re!D9:D32,B16,1)," ") -> 
D17: 10 | E17: =IF(B17 > 0,INDEX(Re!F9:F32,B17,1)," ") ->  | F17: =IF(B17 > 0,INDEX(Re!C9:C32,B17,1)," ") ->  | G17: =IF(B17 > 0,INDEX(Re!D9:D32,B17,1)," ") -> 
D18: 11 | E18: =IF(B18 > 0,INDEX(Re!F9:F32,B18,1)," ") ->  | F18: =IF(B18 > 0,INDEX(Re!C9:C32,B18,1)," ") ->  | G18: =IF(B18 > 0,INDEX(Re!D9:D32,B18,1)," ") -> 
D19: 12 | E19: =IF(B19 > 0,INDEX(Re!F9:F32,B19,1)," ") ->  | F19: =IF(B19 > 0,INDEX(Re!C9:C32,B19,1)," ") ->  | G19: =IF(B19 > 0,INDEX(Re!D9:D32,B19,1)," ") -> 
D20: 13 | E20: =IF(B20 > 0,INDEX(Re!F9:F32,B20,1)," ") ->  | F20: =IF(B20 > 0,INDEX(Re!C9:C32,B20,1)," ") ->  | G20: =IF(B20 > 0,INDEX(Re!D9:D32,B20,1)," ") -> 
D21: 14 | E21: =IF(B21 > 0,INDEX(Re!F9:F32,B21,1)," ") ->  | F21: =IF(B21 > 0,INDEX(Re!C9:C32,B21,1)," ") ->  | G21: =IF(B21 > 0,INDEX(Re!D9:D32,B21,1)," ") -> 
D22: 15 | E22: =IF(B22 > 0,INDEX(Re!F9:F32,B22,1)," ") ->  | F22: =IF(B22 > 0,INDEX(Re!C9:C32,B22,1)," ") ->  | G22: =IF(B22 > 0,INDEX(Re!D9:D32,B22,1)," ") -> 
D23: 16 | E23: =IF(B23 > 0,INDEX(Re!F9:F32,B23,1)," ") ->  | F23: =IF(B23 > 0,INDEX(Re!C9:C32,B23,1)," ") ->  | G23: =IF(B23 > 0,INDEX(Re!D9:D32,B23,1)," ") -> 
D24: 17 | E24: =IF(B24 > 0,INDEX(Re!F9:F32,B24,1)," ") ->  | F24: =IF(B24 > 0,INDEX(Re!C9:C32,B24,1)," ") ->  | G24: =IF(B24 > 0,INDEX(Re!D9:D32,B24,1)," ") -> 
D25: 18 | E25: =IF(B25 > 0,INDEX(Re!F9:F32,B25,1)," ") ->  | F25: =IF(B25 > 0,INDEX(Re!C9:C32,B25,1)," ") ->  | G25: =IF(B25 > 0,INDEX(Re!D9:D32,B25,1)," ") -> 
D26: 19 | E26: =IF(B26 > 0,INDEX(Re!F9:F32,B26,1)," ") ->  | F26: =IF(B26 > 0,INDEX(Re!C9:C32,B26,1)," ") ->  | G26: =IF(B26 > 0,INDEX(Re!D9:D32,B26,1)," ") -> 
D27: 20 | E27: =IF(B27 > 0,INDEX(Re!F9:F32,B27,1)," ") ->  | F27: =IF(B27 > 0,INDEX(Re!C9:C32,B27,1)," ") ->  | G27: =IF(B27 > 0,INDEX(Re!D9:D32,B27,1)," ") -> 
E29: Условные обозначения: Р - руководитель ковра; А - арбитр ; Б - боковой судья ; С – секундометрист.

Sheet D (hidden)
D1: =Inf!B2 -> Федерация спортивной борьбы России
D2: =Inf!B3 -> Федерация спортивной борьбы Санкт-Петербурга
D3: =Inf!B4 -> ХХХI-Всероссийский турнир по греко-римской борьбе,посвященный памяти ректора Ленинградского финансово-экономического института им.Н.А.Вознесенского /ныне Санкт-Петербургского государственного экономического университета,з.д.н.России Лаврикова Юрия Александровича.
D4: График работы судей - The schedule of judges work | AA4: Ковер - Mat | AF4: D
E5: конкретный день соревнований | G5: =Inf!F5 -> Санкт-Петербург
D6: № | E6: Фамилии судей | F6: Судейская категория | G6: Город | H6: Номера пар
D8: 1 | E8: =IF(B8 > 0,INDEX(Re!F9:F32,B8,1)," ") ->  | F8: =IF(B8 > 0,INDEX(Re!C9:C32,B8,1)," ") ->  | G8: =IF(B8 > 0,INDEX(Re!D9:D32,B8,1)," ") ->  | H8: руководитель ковра
D9: 2 | E9: =IF(B9 > 0,INDEX(Re!F9:F32,B9,1)," ") ->  | F9: =IF(B9 > 0,INDEX(Re!C9:C32,B9,1)," ") ->  | G9: =IF(B9 > 0,INDEX(Re!D9:D32,B9,1)," ") ->  | H9: руководитель ковра
D10: 3 | E10: =IF(B10 > 0,INDEX(Re!F9:F32,B10,1)," ") ->  | F10: =IF(B10 > 0,INDEX(Re!C9:C32,B10,1)," ") ->  | G10: =IF(B10 > 0,INDEX(Re!D9:D32,B10,1)," ") -> 
D11: 4 | E11: =IF(B11 > 0,INDEX(Re!F9:F32,B11,1)," ") ->  | F11: =IF(B11 > 0,INDEX(Re!C9:C32,B11,1)," ") ->  | G11: =IF(B11 > 0,INDEX(Re!D9:D32,B11,1)," ") -> 
D12: 5 | E12: =IF(B12 > 0,INDEX(Re!F9:F32,B12,1)," ") ->  | F12: =IF(B12 > 0,INDEX(Re!C9:C32,B12,1)," ") ->  | G12: =IF(B12 > 0,INDEX(Re!D9:D32,B12,1)," ") -> 
D13: 6 | E13: =IF(B13 > 0,INDEX(Re!F9:F32,B13,1)," ") ->  | F13: =IF(B13 > 0,INDEX(Re!C9:C32,B13,1)," ") ->  | G13: =IF(B13 > 0,INDEX(Re!D9:D32,B13,1)," ") -> 
D14: 7 | E14: =IF(B14 > 0,INDEX(Re!F9:F32,B14,1)," ") ->  | F14: =IF(B14 > 0,INDEX(Re!C9:C32,B14,1)," ") ->  | G14: =IF(B14 > 0,INDEX(Re!D9:D32,B14,1)," ") -> 
D15: 8 | E15: =IF(B15 > 0,INDEX(Re!F9:F32,B15,1)," ") ->  | F15: =IF(B15 > 0,INDEX(Re!C9:C32,B15,1)," ") ->  | G15: =IF(B15 > 0,INDEX(Re!D9:D32,B15,1)," ") -> 
D16: 9 | E16: =IF(B16 > 0,INDEX(Re!F9:F32,B16,1)," ") ->  | F16: =IF(B16 > 0,INDEX(Re!C9:C32,B16,1)," ") ->  | G16: =IF(B16 > 0,INDEX(Re!D9:D32,B16,1)," ") -> 
D17: 10 | E17: =IF(B17 > 0,INDEX(Re!F9:F32,B17,1)," ") ->  | F17: =IF(B17 > 0,INDEX(Re!C9:C32,B17,1)," ") ->  | G17: =IF(B17 > 0,INDEX(Re!D9:D32,B17,1)," ") -> 
D18: 11 | E18: =IF(B18 > 0,INDEX(Re!F9:F32,B18,1)," ") ->  | F18: =IF(B18 > 0,INDEX(Re!C9:C32,B18,1)," ") ->  | G18: =IF(B18 > 0,INDEX(Re!D9:D32,B18,1)," ") -> 
D19: 12 | E19: =IF(B19 > 0,INDEX(Re!F9:F32,B19,1)," ") ->  | F19: =IF(B19 > 0,INDEX(Re!C9:C32,B19,1)," ") ->  | G19: =IF(B19 > 0,INDEX(Re!D9:D32,B19,1)," ") -> 
D20: 13 | E20: =IF(B20 > 0,INDEX(Re!F9:F32,B20,1)," ") ->  | F20: =IF(B20 > 0,INDEX(Re!C9:C32,B20,1)," ") ->  | G20: =IF(B20 > 0,INDEX(Re!D9:D32,B20,1)," ") -> 
D21: 14 | E21: =IF(B21 > 0,INDEX(Re!F9:F32,B21,1)," ") ->  | F21: =IF(B21 > 0,INDEX(Re!C9:C32,B21,1)," ") ->  | G21: =IF(B21 > 0,INDEX(Re!D9:D32,B21,1)," ") -> 
D22: 15 | E22: =IF(B22 > 0,INDEX(Re!F9:F32,B22,1)," ") ->  | F22: =IF(B22 > 0,INDEX(Re!C9:C32,B22,1)," ") ->  | G22: =IF(B22 > 0,INDEX(Re!D9:D32,B22,1)," ") -> 
D23: 16 | E23: =IF(B23 > 0,INDEX(Re!F9:F32,B23,1)," ") ->  | F23: =IF(B23 > 0,INDEX(Re!C9:C32,B23,1)," ") ->  | G23: =IF(B23 > 0,INDEX(Re!D9:D32,B23,1)," ") -> 
D24: 17 | E24: =IF(B24 > 0,INDEX(Re!F9:F32,B24,1)," ") ->  | F24: =IF(B24 > 0,INDEX(Re!C9:C32,B24,1)," ") ->  | G24: =IF(B24 > 0,INDEX(Re!D9:D32,B24,1)," ") -> 
D25: 18 | E25: =IF(B25 > 0,INDEX(Re!F9:F32,B25,1)," ") ->  | F25: =IF(B25 > 0,INDEX(Re!C9:C32,B25,1)," ") ->  | G25: =IF(B25 > 0,INDEX(Re!D9:D32,B25,1)," ") -> 
D26: 19 | E26: =IF(B26 > 0,INDEX(Re!F9:F32,B26,1)," ") ->  | F26: =IF(B26 > 0,INDEX(Re!C9:C32,B26,1)," ") ->  | G26: =IF(B26 > 0,INDEX(Re!D9:D32,B26,1)," ") -> 
D27: 20 | E27: =IF(B27 > 0,INDEX(Re!F9:F32,B27,1)," ") ->  | F27: =IF(B27 > 0,INDEX(Re!C9:C32,B27,1)," ") ->  | G27: =IF(B27 > 0,INDEX(Re!D9:D32,B27,1)," ") -> 
E29: Условные обозначения: Р - руководитель ковра; А - арбитр ; Б - боковой судья ; С – секундометрист.

Sheet E (hidden)
D1: =Inf!B2 -> Федерация спортивной борьбы России
D2: =Inf!B3 -> Федерация спортивной борьбы Санкт-Петербурга
D3: =Inf!B4 -> ХХХI-Всероссийский турнир по греко-римской борьбе,посвященный памяти ректора Ленинградского финансово-экономического института им.Н.А.Вознесенского /ныне Санкт-Петербургского государственного экономического университета,з.д.н.России Лаврикова Юрия Александровича.
D4: График работы судей - The schedule of judges work | AA4: Ковер - Mat | AF4: E
E5: конкретный день соревнований | G5: =Inf!F5 -> Санкт-Петербург
D6: № | E6: Фамилии судей | F6: Судейская категория | G6: Город | H6: Номера пар
D8: 1 | E8: =IF(B8 > 0,INDEX(Re!F9:F32,B8,1)," ") ->  | F8: =IF(B8 > 0,INDEX(Re!C9:C32,B8,1)," ") ->  | G8: =IF(B8 > 0,INDEX(Re!D9:D32,B8,1)," ") ->  | H8: руководитель ковра
D9: 2 | E9: =IF(B9 > 0,INDEX(Re!F9:F32,B9,1)," ") ->  | F9: =IF(B9 > 0,INDEX(Re!C9:C32,B9,1)," ") ->  | G9: =IF(B9 > 0,INDEX(Re!D9:D32,B9,1)," ") ->  | H9: руководитель ковра
D10: 3 | E10: =IF(B10 > 0,INDEX(Re!F9:F32,B10,1)," ") ->  | F10: =IF(B10 > 0,INDEX(Re!C9:C32,B10,1)," ") ->  | G10: =IF(B10 > 0,INDEX(Re!D9:D32,B10,1)," ") -> 
D11: 4 | E11: =IF(B11 > 0,INDEX(Re!F9:F32,B11,1)," ") ->  | F11: =IF(B11 > 0,INDEX(Re!C9:C32,B11,1)," ") ->  | G11: =IF(B11 > 0,INDEX(Re!D9:D32,B11,1)," ") -> 
D12: 5 | E12: =IF(B12 > 0,INDEX(Re!F9:F32,B12,1)," ") ->  | F12: =IF(B12 > 0,INDEX(Re!C9:C32,B12,1)," ") ->  | G12: =IF(B12 > 0,INDEX(Re!D9:D32,B12,1)," ") -> 
D13: 6 | E13: =IF(B13 > 0,INDEX(Re!F9:F32,B13,1)," ") ->  | F13: =IF(B13 > 0,INDEX(Re!C9:C32,B13,1)," ") ->  | G13: =IF(B13 > 0,INDEX(Re!D9:D32,B13,1)," ") -> 
D14: 7 | E14: =IF(B14 > 0,INDEX(Re!F9:F32,B14,1)," ") ->  | F14: =IF(B14 > 0,INDEX(Re!C9:C32,B14,1)," ") ->  | G14: =IF(B14 > 0,INDEX(Re!D9:D32,B14,1)," ") -> 
D15: 8 | E15: =IF(B15 > 0,INDEX(Re!F9:F32,B15,1)," ") ->  | F15: =IF(B15 > 0,INDEX(Re!C9:C32,B15,1)," ") ->  | G15: =IF(B15 > 0,INDEX(Re!D9:D32,B15,1)," ") -> 
D16: 9 | E16: =IF(B16 > 0,INDEX(Re!F9:F32,B16,1)," ") ->  | F16: =IF(B16 > 0,INDEX(Re!C9:C32,B16,1)," ") ->  | G16: =IF(B16 > 0,INDEX(Re!D9:D32,B16,1)," ") -> 
D17: 10 | E17: =IF(B17 > 0,INDEX(Re!F9:F32,B17,1)," ") ->  | F17: =IF(B17 > 0,INDEX(Re!C9:C32,B17,1)," ") ->  | G17: =IF(B17 > 0,INDEX(Re!D9:D32,B17,1)," ") -> 
D18: 11 | E18: =IF(B18 > 0,INDEX(Re!F9:F32,B18,1)," ") ->  | F18: =IF(B18 > 0,INDEX(Re!C9:C32,B18,1)," ") ->  | G18: =IF(B18 > 0,INDEX(Re!D9:D32,B18,1)," ") -> 
D19: 12 | E19: =IF(B19 > 0,INDEX(Re!F9:F32,B19,1)," ") ->  | F19: =IF(B19 > 0,INDEX(Re!C9:C32,B19,1)," ") ->  | G19: =IF(B19 > 0,INDEX(Re!D9:D32,B19,1)," ") -> 
D20: 13 | E20: =IF(B20 > 0,INDEX(Re!F9:F32,B20,1)," ") ->  | F20: =IF(B20 > 0,INDEX(Re!C9:C32,B20,1)," ") ->  | G20: =IF(B20 > 0,INDEX(Re!D9:D32,B20,1)," ") -> 
D21: 14 | E21: =IF(B21 > 0,INDEX(Re!F9:F32,B21,1)," ") ->  | F21: =IF(B21 > 0,INDEX(Re!C9:C32,B21,1)," ") ->  | G21: =IF(B21 > 0,INDEX(Re!D9:D32,B21,1)," ") -> 
D22: 15 | E22: =IF(B22 > 0,INDEX(Re!F9:F32,B22,1)," ") ->  | F22: =IF(B22 > 0,INDEX(Re!C9:C32,B22,1)," ") ->  | G22: =IF(B22 > 0,INDEX(Re!D9:D32,B22,1)," ") -> 
D23: 16 | E23: =IF(B23 > 0,INDEX(Re!F9:F32,B23,1)," ") ->  | F23: =IF(B23 > 0,INDEX(Re!C9:C32,B23,1)," ") ->  | G23: =IF(B23 > 0,INDEX(Re!D9:D32,B23,1)," ") -> 
D24: 17 | E24: =IF(B24 > 0,INDEX(Re!F9:F32,B24,1)," ") ->  | F24: =IF(B24 > 0,INDEX(Re!C9:C32,B24,1)," ") ->  | G24: =IF(B24 > 0,INDEX(Re!D9:D32,B24,1)," ") -> 
D25: 18 | E25: =IF(B25 > 0,INDEX(Re!F9:F32,B25,1)," ") ->  | F25: =IF(B25 > 0,INDEX(Re!C9:C32,B25,1)," ") ->  | G25: =IF(B25 > 0,INDEX(Re!D9:D32,B25,1)," ") -> 
D26: 19 | E26: =IF(B26 > 0,INDEX(Re!F9:F32,B26,1)," ") ->  | F26: =IF(B26 > 0,INDEX(Re!C9:C32,B26,1)," ") ->  | G26: =IF(B26 > 0,INDEX(Re!D9:D32,B26,1)," ") -> 
D27: 20 | E27: =IF(B27 > 0,INDEX(Re!F9:F32,B27,1)," ") ->  | F27: =IF(B27 > 0,INDEX(Re!C9:C32,B27,1)," ") ->  | G27: =IF(B27 > 0,INDEX(Re!D9:D32,B27,1)," ") -> 
E29: Условные обозначения: Р - руководитель ковра; А - арбитр ; Б - боковой судья ; С – секундометрист.

Sheet V (hidden)
C1: =Inf!B2 -> Федерация спортивной борьбы России
C2: =Inf!B3 -> Федерация спортивной борьбы Санкт-Петербурга
C3: =Inf!B4 -> ХХХI-Всероссийский турнир по греко-римской борьбе,посвященный памяти ректора Ленинградского финансово-экономического института им.Н.А.Вознесенского /ныне Санкт-Петербургского государственного экономического университета,з.д.н.России Лаврикова Юрия Александровича.
C4: ВЫПИСКА
C5: из протокола хода соревнований
D6: =Inf!B5 -> 20-22 ноября 2023г | G6: =Inf!F5 -> Санкт-Петербург
C8: Выписка дана представителю команды (города) ______________________________________
C10: № п/п | D10: Фамилия Имя | E10: Год рождения | F10: Вес. категория | G10: Колич. участн. | H10: Колич. побед | I10: Место
C12: 1
C13: 2
C14: 3
C15: 4
C16: 5
C17: 6
C18: 7
C19: 8
C20: 9
C21: 10
C22: 11
C23: 12
C24: 10
C25: 11
C26: 12
C27: 13
C28: 14
C29: 15
C30: 16
C31: 17
C32: 18
C33: 19
C34: 20
D38: =Inf!B7 -> Главный судья соревнований | G38: =Inf!F7 -> АПОЙКО Р.Н.
D39: =Inf!B8 -> ССВК-МК | G39: =Inf!F8 -> Санкт-Петербург
D41: =Inf!B10 -> Главный секретарь соревнований | G41: =Inf!F10 -> СОКОЛОВ А.В.
D42: =Inf!B11 -> ССВК-МК | G42: =Inf!F11 -> Санкт-Петербург

Sheet Mat_A (hidden)
B2: Распорядок дня - The work schedule
B4: =Inf!B4 -> ХХХI-Всероссийский турнир по греко-римской борьбе,посвященный памяти ректора Ленинградского финансово-экономического института им.Н.А.Вознесенского /ныне Санкт-Петербургского государственного экономического университета,з.д.н.России Лаврикова Юрия Александровича.
B6: дата проведения | U6: =Inf!F5 -> Санкт-Петербург
B8: 08.00-08.30 | D8: Медицинский контроль и 2 взвешивание борцов - Medical control and II weighing of wrestlers | T8: 44, 55, 66, 77, 88, 99 кг
B9: 08.00-08.30 | D9: Медицинский контроль и 1 взвешивание борцов - Medical control and I weighing of wrestlers | T9: 22, 33, 44, 55, 66, 77 кг
B10: 10.00-10.30 | D10: Торжественное открытие соревнований - Opening ceremony
B11: 10.00-16.45 | D11: Утешительные поединки - Repechage rounds | T11: =T8 -> 44, 55, 66, 77, 88, 99 кг
B12: 10.00-16.45 | D12: Предварительные поединки - Preliminary rounds | T12: =T9 -> 22, 33, 44, 55, 66, 77 кг
B14: Mat А | E14: 59, 71, 80, 98, 130 | K14: Mat В | N14: 59, 71, 80, 98, 130 | T14: Mat A | W14: 59, 71, 80, 98, 130
B15: 0 | C15: квалиф | E15: ( | F15: 1 | G15: - | H15: =F15+D15-1 -> 0 | I15: ) | K15: 0 | L15: квалиф | N15: ( | O15: =H54+1 -> 1 | P15: - | Q15: =O15+M15-1 -> 0 | R15: ) | T15: 0 | U15: 1/4 ф | W15: ( | X15: =Q54+1 -> 1 | Y15: - | Z15: =X15+V15-1 -> 0 | AA15: )
B16: 0 | C16: квалиф | E16: ( | F16: =H15+1 -> 1 | G16: - | H16: =F16+D16-1 -> 0 | I16: ) | K16: 0 | L16: квалиф | N16: ( | O16: =Q15+1 -> 1 | P16: - | Q16: =O16+M16-1 -> 0 | R16: ) | T16: =X14 -> 0 | U16: 1/4 ф | W16: ( | X16: =Z15+1 -> 1 | Y16: - | Z16: =X16+V16-1 -> 0 | AA16: )
B17: 0 | C17: квалиф | E17: ( | F17: =H16+1 -> 1 | G17: - | H17: =F17+D17-1 -> 0 | I17: ) | K17: 0 | L17: квалиф | N17: ( | O17: =Q16+1 -> 1 | P17: - | Q17: =O17+M17-1 -> 0 | R17: ) | T17: =Y14 -> 0 | U17: 1/4 ф | W17: ( | X17: =Z16+1 -> 1 | Y17: - | Z17: =X17+V17-1 -> 0 | AA17: )
B18: 0 | C18: квалиф | E18: ( | F18: 1 | G18: - | H18: =F18+D18-1 -> 0 | I18: ) | K18: 0 | L18: квалиф | N18: ( | O18: 1 | P18: - | Q18: =O18+M18-1 -> 0 | R18: ) | T18: 0 | U18: 1/4 ф | W18: ( | X18: 1 | Y18: - | Z18: =X18+V18-1 -> 0 | AA18: )
B19: 0 | C19: квалиф | E19: ( | F19: 1 | G19: - | H19: =F19+D19-1 -> 0 | I19: ) | K19: 0 | L19: квалиф | N19: ( | O19: 1 | P19: - | Q19: =O19+M19-1 -> 0 | R19: ) | T19: =AA14 -> 0 | U19: 1/4 ф | W19: ( | X19: 1 | Y19: - | Z19: =X19+V19-1 -> 0 | AA19: )
B20: 0 | C20: квалиф | E20: ( | F20: 1 | G20: - | H20: 0 | I20: ) | K20: 0 | L20: 1/16 ф | N20: ( | O20: 1 | P20: - | Q20: 0 | R20: ) | T20: =T15 -> 0 | U20: 1/4 ф | W20: ( | X20: 1 | Y20: - | Z20: 0 | AA20: )
B21: 0 | C21: квалиф | E21: ( | F21: 1 | G21: - | H21: 0 | I21: ) | K21: 0 | L21: 1/16 ф | N21: ( | O21: 1 | P21: - | Q21: 0 | R21: ) | T21: =T16 -> 0 | U21: 1/4 ф | W21: ( | X21: 1 | Y21: - | Z21: 0 | AA21: )
B22: 0 | C22: квалиф | E22: ( | F22: 1 | G22: - | H22: 0 | I22: ) | K22: 0 | L22: 1/16 ф | N22: ( | O22: 1 | P22: - | Q22: 0 | R22: ) | T22: 0 | U22: 1/4 ф | W22: ( | X22: 1 | Y22: - | Z22: 0 | AA22: )
B23: 0 | C23: 1/16 ф | E23: ( | F23: 1 | G23: - | H23: 0 | I23: ) | K23: 0 | L23: 1/16 ф | N23: ( | O23: 1 | P23: - | Q23: 0 | R23: ) | T23: 0 | U23: 1/2 ф | W23: ( | X23: 1 | Y23: - | Z23: 0 | AA23: )
B24: 0 | C24: 1/16 ф | E24: ( | F24: 1 | G24: - | H24: 0 | I24: ) | K24: 0 | L24: 1/16 ф | N24: ( | O24: 1 | P24: - | Q24: 0 | R24: ) | T24: 0 | U24: 1/2 ф | W24: ( | X24: 1 | Y24: - | Z24: 0 | AA24: )
B25: 0 | C25: 1/16 ф | E25: ( | F25: 1 | G25: - | H25: 0 | I25: ) | K25: 0 | L25: 1/8 ф | N25: ( | O25: 1 | P25: - | Q25: 0 | R25: ) | T25: 0 | U25: 1/2 ф | W25: ( | X25: 1 | Y25: - | Z25: 0 | AA25: )
B26: 0 | C26: 1/16 ф | E26: ( | F26: 1 | G26: - | H26: 0 | I26: ) | K26: 0 | L26: 1/8 ф | N26: ( | O26: 1 | P26: - | Q26: 0 | R26: ) | T26: 0 | U26: 1/2 ф | W26: ( | X26: 1 | Y26: - | Z26: 0 | AA26: )
B27: 0 | C27: 1/16 ф | E27: ( | F27: 1 | G27: - | H27: =F27+D27-1 -> 0 | I27: ) | K27: 0 | L27: 1/8 ф | N27: ( | O27: 1 | P27: - | Q27: =O27+M27-1 -> 0 | R27: ) | T27: 0 | U27: 1/2 ф | W27: ( | X27: 1 | Y27: - | Z27: =X27+V27-1 -> 0 | AA27: )
B28: 0 | C28: 1/16 ф | E28: ( | F28: 1 | G28: - | H28: =F28+D28-1 -> 0 | I28: ) | K28: 0 | L28: 1/8 ф | N28: ( | O28: 1 | P28: - | Q28: =O28+M28-1 -> 0 | R28: ) | T28: 0 | U28: 1/2 ф | W28: ( | X28: 1 | Y28: - | Z28: =X28+V28-1 -> 0 | AA28: )
B29: 0 | C29: 1/16 ф | E29: ( | F29: 1 | G29: - | H29: =F29+D29-1 -> 0 | I29: ) | K29: 0 | L29: 1/8 ф | N29: ( | O29: 1 | P29: - | Q29: =O29+M29-1 -> 0 | R29: ) | T29: 0 | U29: 1/2 ф | W29: ( | X29: 1 | Y29: - | Z29: =X29+V29-1 -> 0 | AA29: )
B30: 0 | C30: 1/16 ф | E30: ( | F30: 1 | G30: - | H30: =F30+D30-1 -> 0 | I30: ) | K30: 0 | L30: 1/4 ф | N30: ( | O30: 1 | P30: - | Q30: =O30+M30-1 -> 0 | R30: ) | T30: 0 | U30: 1/2 ф | W30: ( | X30: 1 | Y30: - | Z30: =X30+V30-1 -> 0 | AA30: )
B31: 0 | C31: 1/8 ф | E31: ( | F31: 1 | G31: - | H31: 0 | I31: ) | K31: 0 | L31: 1/4 ф | N31: ( | O31: 1 | P31: - | Q31: 0 | R31: ) | T31: 0 | U31: утеш 1 | W31: ( | X31: 1 | Y31: - | Z31: 0 | AA31: )
B32: 0 | C32: 1/8 ф | E32: ( | F32: 1 | G32: - | H32: 0 | I32: ) | K32: 0 | L32: 1/4 ф | N32: ( | O32: 1 | P32: - | Q32: 0 | R32: ) | T32: 0 | U32: утеш 1 | W32: ( | X32: 1 | Y32: - | Z32: 0 | AA32: )
B33: 0 | C33: 1/8 ф | E33: ( | F33: 1 | G33: - | H33: 0 | I33: ) | K33: 0 | L33: 1/4 ф | N33: ( | O33: 1 | P33: - | Q33: 0 | R33: ) | T33: 0 | U33: утеш 1 | W33: ( | X33: 1 | Y33: - | Z33: 0 | AA33: )
B34: 0 | C34: 1/8 ф | E34: ( | F34: 1 | G34: - | H34: 0 | I34: ) | K34: 0 | L34: 1/4 ф | N34: ( | O34: 1 | P34: - | Q34: 0 | R34: ) | T34: 0 | U34: утеш 1 | W34: ( | X34: 1 | Y34: - | Z34: 0 | AA34: )
B35: 0 | C35: 1/8 ф | E35: ( | F35: 1 | G35: - | H35: 0 | I35: ) | K35: 0 | L35: 1/2 ф | N35: ( | O35: 1 | P35: - | Q35: 0 | R35: ) | T35: 0 | U35: утеш 1 | W35: ( | X35: 1 | Y35: - | Z35: 0 | AA35: )
B36: 0 | C36: 1/8 ф | E36: ( | F36: 1 | G36: - | H36: 0 | I36: ) | K36: 0 | L36: 1/2 ф | N36: ( | O36: 1 | P36: - | Q36: 0 | R36: ) | T36: 0 | U36: утеш 1 | W36: ( | X36: 1 | Y36: - | Z36: 0 | AA36: )
B37: 0 | C37: 1/8 ф | E37: ( | F37: 1 | G37: - | H37: 0 | I37: ) | K37: 0 | L37: 1/2 ф | N37: ( | O37: 1 | P37: - | Q37: 0 | R37: ) | T37: 0 | U37: утеш 1 | W37: ( | X37: 1 | Y37: - | Z37: 0 | AA37: )
B38: 0 | C38: 1/8 ф | E38: ( | F38: 1 | G38: - | H38: 0 | I38: ) | K38: 0 | L38: 1/2 ф | N38: ( | O38: 1 | P38: - | Q38: 0 | R38: ) | T38: 0 | U38: утеш 1 | W38: ( | X38: 1 | Y38: - | Z38: 0 | AA38: )
B39: 0 | C39: 1/8 ф | E39: ( | F39: 1 | G39: - | H39: 0 | I39: ) | K39: 0 | L39: 1/2 ф | N39: ( | O39: 1 | P39: - | Q39: 0 | R39: ) | T39: 0 | U39: утеш 1 | W39: ( | X39: 1 | Y39: - | Z39: 0 | AA39: )
B40: 0 | C40: ут 1 | E40: ( | F40: 1 | G40: - | H40: 0 | I40: ) | K40: 0 | L40: ут 1 | N40: ( | O40: 1 | P40: - | Q40: 0 | R40: ) | T40: 0 | U40: ут 1 | W40: ( | X40: 1 | Y40: - | Z40: 0 | AA40: )
B41: 0 | C41: ут 1 | E41: ( | F41: 1 | G41: - | H41: 0 | I41: ) | K41: 0 | L41: ут 1 | N41: ( | O41: 1 | P41: - | Q41: 0 | R41: ) | T41: 0 | U41: ут 1 | W41: ( | X41: 1 | Y41: - | Z41: 0 | AA41: )
B42: 0 | C42: ут 1 | E42: ( | F42: 1 | G42: - | H42: 0 | I42: ) | K42: 0 | L42: ут 1 | N42: ( | O42: 1 | P42: - | Q42: 0 | R42: ) | T42: 0 | U42: ут 1 | W42: ( | X42: 1 | Y42: - | Z42: 0 | AA42: )
B43: 0 | C43: ут 1 | E43: ( | F43: 1 | G43: - | H43: 0 | I43: ) | K43: 0 | L43: ут 1 | N43: ( | O43: 1 | P43: - | Q43: 0 | R43: ) | T43: 0 | U43: ут 2 | W43: ( | X43: 1 | Y43: - | Z43: 0 | AA43: )
B44: 0 | C44: ут 1 | E44: ( | F44: 1 | G44: - | H44: 0 | I44: ) | K44: 0 | L44: ут 1 | N44: ( | O44: 1 | P44: - | Q44: 0 | R44: ) | T44: 0 | U44: ут 1 | W44: ( | X44: 1 | Y44: - | Z44: 0 | AA44: )
B45: 0 | C45: ут 2 | E45: ( | F45: 1 | G45: - | H45: 0 | I45: ) | K45: 0 | L45: ут 2 | N45: ( | O45: 1 | P45: - | Q45: 0 | R45: ) | T45: 0 | U45: ут 2 | W45: ( | X45: 1 | Y45: - | Z45: 0 | AA45: )
B46: 0 | C46: ут 2 | E46: ( | F46: 1 | G46: - | H46: 0 | I46: ) | K46: 0 | L46: ут 2 | N46: ( | O46: 1 | P46: - | Q46: 0 | R46: ) | T46: 0 | U46: ут 2 | W46: ( | X46: 1 | Y46: - | Z46: 0 | AA46: )
B47: 0 | C47: ут 2 | E47: ( | F47: 1 | G47: - | H47: 0 | I47: ) | K47: 0 | L47: ут 2 | N47: ( | O47: 1 | P47: - | Q47: 0 | R47: ) | T47: 0 | U47: ут 2 | W47: ( | X47: 1 | Y47: - | Z47: 0 | AA47: )
B48: 0 | C48: ут 2 | E48: ( | F48: 1 | G48: - | H48: 0 | I48: ) | K48: 0 | L48: ут 2 | N48: ( | O48: 1 | P48: - | Q48: 0 | R48: ) | T48: 0 | U48: ут 2 | W48: ( | X48: 1 | Y48: - | Z48: 0 | AA48: )
B49: 0 | C49: ут 2 | E49: ( | F49: 1 | G49: - | H49: 0 | I49: ) | K49: 0 | L49: ут 2 | N49: ( | O49: 1 | P49: - | Q49: 0 | R49: ) | T49: 0 | U49: ут 2 | W49: ( | X49: 1 | Y49: - | Z49: 0 | AA49: )
B50: 0 | C50: ут 3 | E50: ( | F50: 1 | G50: - | H50: 0 | I50: ) | K50: 0 | L50: ут 3 | N50: ( | O50: 1 | P50: - | Q50: 0 | R50: ) | T50: 0 | U50: ут 3 | W50: ( | X50: 1 | Y50: - | Z50: 0 | AA50: )
B51: 0 | C51: ут 3 | E51: ( | F51: 1 | G51: - | H51: 0 | I51: ) | K51: 0 | L51: ут 3 | N51: ( | O51: 1 | P51: - | Q51: 0 | R51: ) | T51: 0 | U51: ут 3 | W51: ( | X51: 1 | Y51: - | Z51: 0 | AA51: )
B52: 0 | C52: ут 3 | E52: ( | F52: 1 | G52: - | H52: 0 | I52: ) | K52: 0 | L52: ут 3 | N52: ( | O52: 1 | P52: - | Q52: 0 | R52: ) | T52: 0 | U52: ут 3 | W52: ( | X52: 1 | Y52: - | Z52: 0 | AA52: )
B53: 0 | C53: ут 3 | E53: ( | F53: 1 | G53: - | H53: 0 | I53: ) | K53: 0 | L53: ут 3 | N53: ( | O53: 1 | P53: - | Q53: 0 | R53: ) | T53: 0 | U53: ут 4 | W53: ( | X53: 1 | Y53: - | Z53: 0 | AA53: )
B54: 0 | C54: ут 3 | E54: ( | F54: 1 | G54: - | H54: 0 | I54: ) | K54: 0 | L54: ут 3 | N54: ( | O54: 1 | P54: - | Q54: 0 | R54: ) | T54: 0 | U54: ут 3 | W54: ( | X54: 1 | Y54: - | Z54: 0 | AA54: )
D56: =SUM(D15:D55) -> 0 | M56: =SUM(M15:M54) -> 0 | V56: =SUM(V15:V54) -> 0
B58: 14.30-16.00 | D58: Перерыв - Break
B59: 17.00-17.30 | D59: Торжественное открытие соревнований - Opening ceremony
B60: 17.30-18.00 | D60: Жеребьевка спортсменов - Drawing of athletes | T60: 22, 33, 44, 55, 66, 77 кг
B61: 18.00-20.00 | D61: Финальные поединки - Final rounds | T61: =T11 -> 44, 55, 66, 77, 88, 99 кг
B63: Mat А | E63: 59, 71, 80, 98, 130 | K63: Mat В | N63: 59, 71, 80, 98, 130 | T63: =T14 -> Mat A | W63: 59, 71, 80, 98, 130
B64: 45 | C64: Fin 3 | E64: ( | F64: =Z54+1 -> 1 | G64: - | H64: =F64+D64-1 -> 0 | I64: ) | K64: 45 | L64: Fin 3 | N64: ( | O64: =H113+1 -> 1 | P64: - | Q64: =O64+M64-1 -> 0 | R64: ) | U64: Fin 3 | W64: ( | X64: =Q113+1 -> 1 | Y64: - | Z64: =X64+V64-1 -> 0 | AA64: )
B65: 45 | C65: Fin 3 | E65: ( | F65: =H64+1 -> 1 | G65: - | H65: =F65+D65-1 -> 0 | I65: ) | K65: 45 | L65: Fin 3 | N65: ( | O65: =Q64+1 -> 1 | P65: - | Q65: =O65+M65-1 -> 0 | R65: ) | U65: Fin 3 | W65: ( | X65: =Z64+1 -> 1 | Y65: - | Z65: =X65+V65-1 -> 0 | AA65: )
B66: 45 | C66: Fin 3 | E66: ( | F66: =H65+1 -> 1 | G66: - | H66: 0 | I66: ) | K66: 45 | L66: Fin 3 | N66: ( | O66: =Q65+1 -> 1 | P66: - | Q66: 0 | R66: ) | U66: Fin 3 | W66: ( | X66: =Z65+1 -> 1 | Y66: - | Z66: 0 | AA66: )
B67: 45 | C67: Fin 3 | E67: ( | F67: 1 | G67: - | H67: 0 | I67: ) | K67: 45 | L67: Fin 3 | N67: ( | O67: 1 | P67: - | Q67: 0 | R67: ) | U67: Fin 3 | W67: ( | X67: 1 | Y67: - | Z67: 0 | AA67: )
B68: 45 | C68: Fin 3 | E68: ( | F68: 1 | G68: - | H68: 0 | I68: ) | K68: 45 | L68: Fin 3 | N68: ( | O68: 1 | P68: - | Q68: 0 | R68: ) | U68: Fin 3 | W68: ( | X68: 1 | Y68: - | Z68: 0 | AA68: )
B69: 45 | C69: Fin 3 | E69: ( | F69: 1 | G69: - | H69: 0 | I69: ) | K69: 45 | L69: Fin 3 | N69: ( | O69: 1 | P69: - | Q69: 0 | R69: ) | U69: Fin 3 | W69: ( | X69: 1 | Y69: - | Z69: 0 | AA69: )
B70: 45 | C70: Fin 3 | E70: ( | F70: 1 | G70: - | H70: 0 | I70: ) | K70: 45 | L70: Fin 3 | N70: ( | O70: 1 | P70: - | Q70: 0 | R70: ) | U70: Fin 3 | W70: ( | X70: 1 | Y70: - | Z70: 0 | AA70: )
B71: 45 | C71: Fin 3 | E71: ( | F71: 1 | G71: - | H71: 0 | I71: ) | K71: 45 | L71: Fin 3 | N71: ( | O71: 1 | P71: - | Q71: 0 | R71: ) | U71: Fin 3 | W71: ( | X71: 1 | Y71: - | Z71: 0 | AA71: )
B72: 45 | C72: Fin 3 | E72: ( | F72: 1 | G72: - | H72: 0 | I72: ) | K72: 45 | L72: Fin 3 | N72: ( | O72: 1 | P72: - | Q72: 0 | R72: ) | U72: Fin 3 | W72: ( | X72: 1 | Y72: - | Z72: 0 | AA72: )
B73: 45 | C73: Fin 1 | E73: ( | F73: 1 | G73: - | H73: 0 | I73: ) | K73: 45 | L73: Fin 1 | N73: ( | O73: 1 | P73: - | Q73: 0 | R73: ) | U73: Fin 1 | W73: ( | X73: 1 | Y73: - | Z73: 0 | AA73: )
B74: 45 | C74: Fin 1 | E74: ( | F74: 1 | G74: - | H74: 0 | I74: ) | K74: 45 | L74: Fin 1 | N74: ( | O74: 1 | P74: - | Q74: 0 | R74: ) | U74: Fin 1 | W74: ( | X74: 1 | Y74: - | Z74: 0 | AA74: )
B75: 45 | C75: Fin 1 | E75: ( | F75: 1 | G75: - | H75: 0 | I75: ) | K75: 45 | L75: Fin 1 | N75: ( | O75: 1 | P75: - | Q75: 0 | R75: ) | U75: Fin 1 | W75: ( | X75: 1 | Y75: - | Z75: 0 | AA75: )
B76: 45 | C76: Fin 1 | E76: ( | F76: 1 | G76: - | H76: 0 | I76: ) | K76: 45 | L76: Fin 1 | N76: ( | O76: 1 | P76: - | Q76: =O76+M76-1 -> 0 | R76: ) | U76: Fin 1 | W76: ( | X76: 1 | Y76: - | Z76: 0 | AA76: )
B77: 45 | C77: Fin 1 | E77: ( | F77: 1 | G77: - | H77: 0 | I77: ) | K77: 45 | L77: Fin 1 | N77: ( | O77: 1 | P77: - | Q77: =O77+M77-1 -> 0 | R77: ) | U77: Fin 1 | W77: ( | X77: 1 | Y77: - | Z77: 0 | AA77: )
B78: 45 | C78: Fin 1 | E78: ( | F78: 1 | G78: - | H78: 0 | I78: ) | K78: 45 | L78: Fin 1 | N78: ( | O78: 1 | P78: - | Q78: 0 | R78: ) | U78: Fin 1 | W78: ( | X78: 1 | Y78: - | Z78: 0 | AA78: )
B79: 45 | C79: Fin 1 | E79: ( | F79: 1 | G79: - | H79: 0 | I79: ) | K79: 45 | L79: Fin 1 | N79: ( | O79: 1 | P79: - | Q79: 0 | R79: ) | U79: Fin 1 | W79: ( | X79: 1 | Y79: - | Z79: 0 | AA79: )
B80: 45 | C80: Fin 1 | E80: ( | F80: 1 | G80: - | H80: 0 | I80: ) | K80: 45 | L80: Fin 1 | N80: ( | O80: 1 | P80: - | Q80: 0 | R80: ) | U80: Fin 1 | W80: ( | X80: 1 | Y80: - | Z80: 0 | AA80: )
B81: 45 | C81: Fin 1 | E81: ( | F81: 1 | G81: - | H81: 0 | I81: ) | K81: 45 | L81: Fin 1 | N81: ( | O81: 1 | P81: - | Q81: 0 | R81: ) | U81: Fin 1 | W81: ( | X81: 1 | Y81: - | Z81: 0 | AA81: )
B82: 45 | C82: Fin 1 | E82: ( | F82: 1 | G82: - | H82: 0 | I82: ) | K82: 45 | L82: Fin 1 | N82: ( | O82: 1 | P82: - | Q82: 0 | R82: ) | U82: Fin 1 | W82: ( | X82: 1 | Y82: - | Z82: 0 | AA82: )
B83: 45 | C83: Fin 1 | E83: ( | F83: 1 | G83: - | H83: 0 | I83: ) | K83: 45 | L83: Fin 1 | N83: ( | O83: 1 | P83: - | Q83: 0 | R83: ) | U83: Fin 1 | W83: ( | X83: 1 | Y83: - | Z83: 0 | AA83: )
B84: 45 | C84: Fin 1 | E84: ( | F84: 1 | G84: - | H84: 0 | I84: ) | K84: 45 | L84: Fin 1 | N84: ( | O84: 1 | P84: - | Q84: 0 | R84: ) | U84: Fin 1 | W84: ( | X84: 1 | Y84: - | Z84: 0 | AA84: )
B85: 45 | C85: Fin 1 | E85: ( | F85: 1 | G85: - | H85: 0 | I85: ) | K85: 45 | L85: Fin 1 | N85: ( | O85: 1 | P85: - | Q85: 0 | R85: ) | U85: Fin 1 | W85: ( | X85: 1 | Y85: - | Z85: 0 | AA85: )
B86: 45 | C86: Fin 1 | E86: ( | F86: 1 | G86: - | H86: 0 | I86: ) | K86: 45 | L86: Fin 1 | N86: ( | O86: 1 | P86: - | Q86: 0 | R86: ) | U86: Fin 1 | W86: ( | X86: 1 | Y86: - | Z86: 0 | AA86: )
B87: 45 | C87: Fin 1 | E87: ( | F87: 1 | G87: - | H87: 0 | I87: ) | K87: 45 | L87: Fin 1 | N87: ( | O87: 1 | P87: - | Q87: 0 | R87: ) | U87: Fin 1 | W87: ( | X87: 1 | Y87: - | Z87: 0 | AA87: )
B88: 45 | C88: Fin 1 | E88: ( | F88: 1 | G88: - | H88: 0 | I88: ) | K88: 45 | L88: Fin 1 | N88: ( | O88: 1 | P88: - | Q88: 0 | R88: ) | U88: Fin 1 | W88: ( | X88: 1 | Y88: - | Z88: 0 | AA88: )
B89: 45 | C89: Fin 3 | E89: ( | F89: 1 | G89: - | H89: 0 | I89: ) | K89: 45 | L89: Fin 1 | N89: ( | O89: 1 | P89: - | Q89: 0 | R89: ) | T89: 45 | U89: Fin 3 | W89: ( | X89: 1 | Y89: - | Z89: 0 | AA89: )
B90: 45 | C90: Fin 1 | E90: ( | F90: 1 | G90: - | H90: 0 | I90: ) | K90: 45 | L90: Fin 1 | N90: ( | O90: 1 | P90: - | Q90: 0 | R90: ) | T90: 45 | U90: Fin 1 | W90: ( | X90: 1 | Y90: - | Z90: 0 | AA90: )
B91: 45 | C91: Fin 3 | E91: ( | F91: 1 | G91: - | H91: 0 | I91: ) | K91: 45 | L91: Fin 1 | N91: ( | O91: 1 | P91: - | Q91: 0 | R91: ) | T91: 45 | U91: Fin 3 | W91: ( | X91: 1 | Y91: - | Z91: 0 | AA91: )
B92: 45 | C92: Fin 1 | E92: ( | F92: 1 | G92: - | H92: 0 | I92: ) | K92: 45 | L92: Fin 1 | N92: ( | O92: 1 | P92: - | Q92: 0 | R92: ) | T92: 45 | U92: Fin 1 | W92: ( | X92: 1 | Y92: - | Z92: 0 | AA92: )
B93: 45 | C93: Fin 3 | E93: ( | F93: 1 | G93: - | H93: 0 | I93: ) | K93: 45 | L93: Fin 1 | N93: ( | O93: 1 | P93: - | Q93: 0 | R93: ) | T93: 45 | U93: Fin 3 | W93: ( | X93: 1 | Y93: - | Z93: 0 | AA93: )
B94: 45 | C94: Fin 1 | E94: ( | F94: 1 | G94: - | H94: 0 | I94: ) | K94: 45 | L94: Fin 1 | N94: ( | O94: 1 | P94: - | Q94: 0 | R94: ) | T94: 45 | U94: Fin 1 | W94: ( | X94: 1 | Y94: - | Z94: 0 | AA94: )
B95: 45 | C95: Fin 3 | E95: ( | F95: 1 | G95: - | H95: 0 | I95: ) | K95: 45 | L95: Fin 1 | N95: ( | O95: 1 | P95: - | Q95: 0 | R95: ) | T95: 45 | U95: Fin 3 | W95: ( | X95: 1 | Y95: - | Z95: 0 | AA95: )
B96: 45 | C96: Fin 1 | E96: ( | F96: 1 | G96: - | H96: 0 | I96: ) | K96: 45 | L96: Fin 1 | N96: ( | O96: 1 | P96: - | Q96: 0 | R96: ) | T96: 45 | U96: Fin 1 | W96: ( | X96: 1 | Y96: - | Z96: 0 | AA96: )
B97: 45 | C97: Fin 3 | E97: ( | F97: 1 | G97: - | H97: 0 | I97: ) | K97: 45 | L97: Fin 1 | N97: ( | O97: 1 | P97: - | Q97: 0 | R97: ) | T97: 45 | U97: Fin 3 | W97: ( | X97: 1 | Y97: - | Z97: 0 | AA97: )
B98: 45 | C98: Fin 1 | E98: ( | F98: 1 | G98: - | H98: 0 | I98: ) | K98: 45 | L98: Fin 1 | N98: ( | O98: 1 | P98: - | Q98: 0 | R98: ) | T98: 45 | U98: Fin 1 | W98: ( | X98: 1 | Y98: - | Z98: 0 | AA98: )
B99: 45 | C99: Fin 3 | E99: ( | F99: 1 | G99: - | H99: 0 | I99: ) | K99: 45 | L99: Fin 1 | N99: ( | O99: 1 | P99: - | Q99: 0 | R99: ) | T99: 45 | U99: Fin 3 | W99: ( | X99: 1 | Y99: - | Z99: 0 | AA99: )
B100: 45 | C100: Fin 1 | E100: ( | F100: 1 | G100: - | H100: 0 | I100: ) | K100: 45 | L100: Fin 1 | N100: ( | O100: 1 | P100: - | Q100: 0 | R100: ) | T100: 45 | U100: Fin 1 | W100: ( | X100: 1 | Y100: - | Z100: 0 | AA100: )
B101: 45 | C101: Fin 3 | E101: ( | F101: 1 | G101: - | H101: 0 | I101: ) | K101: 45 | L101: Fin 1 | N101: ( | O101: 1 | P101: - | Q101: 0 | R101: ) | T101: 45 | U101: Fin 3 | W101: ( | X101: 1 | Y101: - | Z101: 0 | AA101: )
B102: 45 | C102: Fin 1 | E102: ( | F102: 1 | G102: - | H102: 0 | I102: ) | K102: 45 | L102: Fin 1 | N102: ( | O102: 1 | P102: - | Q102: 0 | R102: ) | T102: 45 | U102: Fin 1 | W102: ( | X102: 1 | Y102: - | Z102: 0 | AA102: )
B103: 45 | C103: Fin 3 | E103: ( | F103: 1 | G103: - | H103: 0 | I103: ) | K103: 45 | L103: Fin 1 | N103: ( | O103: 1 | P103: - | Q103: 0 | R103: ) | T103: 45 | U103: Fin 3 | W103: ( | X103: 1 | Y103: - | Z103: 0 | AA103: )
B104: 45 | C104: Fin 1 | E104: ( | F104: 1 | G104: - | H104: 0 | I104: ) | K104: 45 | L104: Fin 1 | N104: ( | O104: 1 | P104: - | Q104: 0 | R104: ) | T104: 45 | U104: Fin 1 | W104: ( | X104: 1 | Y104: - | Z104: 0 | AA104: )
B105: 45 | C105: Fin 3 | E105: ( | F105: 1 | G105: - | H105: 0 | I105: ) | K105: 45 | L105: Fin 1 | N105: ( | O105: 1 | P105: - | Q105: 0 | R105: ) | T105: 45 | U105: Fin 3 | W105: ( | X105: 1 | Y105: - | Z105: 0 | AA105: )
B106: 45 | C106: Fin 1 | E106: ( | F106: 1 | G106: - | H106: 0 | I106: ) | K106: 45 | L106: Fin 1 | N106: ( | O106: 1 | P106: - | Q106: 0 | R106: ) | T106: 45 | U106: Fin 1 | W106: ( | X106: 1 | Y106: - | Z106: 0 | AA106: )
B107: 45 | C107: Fin 3 | E107: ( | F107: 1 | G107: - | H107: 0 | I107: ) | K107: 45 | L107: Fin 1 | N107: ( | O107: 1 | P107: - | Q107: 0 | R107: ) | T107: 45 | U107: Fin 3 | W107: ( | X107: 1 | Y107: - | Z107: 0 | AA107: )
B108: 45 | C108: Fin 1 | E108: ( | F108: 1 | G108: - | H108: 0 | I108: ) | K108: 45 | L108: Fin 1 | N108: ( | O108: 1 | P108: - | Q108: 0 | R108: ) | T108: 45 | U108: Fin 1 | W108: ( | X108: 1 | Y108: - | Z108: 0 | AA108: )
B109: 45 | C109: Fin 3 | E109: ( | F109: 1 | G109: - | H109: 0 | I109: ) | K109: 45 | L109: Fin 1 | N109: ( | O109: 1 | P109: - | Q109: 0 | R109: ) | T109: 45 | U109: Fin 3 | W109: ( | X109: 1 | Y109: - | Z109: 0 | AA109: )
B110: 45 | C110: Fin 1 | E110: ( | F110: 1 | G110: - | H110: 0 | I110: ) | K110: 45 | L110: Fin 1 | N110: ( | O110: 1 | P110: - | Q110: 0 | R110: ) | T110: 45 | U110: Fin 1 | W110: ( | X110: 1 | Y110: - | Z110: 0 | AA110: )
B111: 45 | C111: Fin 1 | E111: ( | F111: 1 | G111: - | H111: 0 | I111: ) | K111: 45 | L111: Fin 1 | N111: ( | O111: 1 | P111: - | Q111: 0 | R111: ) | T111: 45 | U111: Fin 3 | W111: ( | X111: 1 | Y111: - | Z111: 0 | AA111: )
B112: 45 | C112: Fin 1 | E112: ( | F112: 1 | G112: - | H112: 0 | I112: ) | K112: 45 | L112: Fin 1 | N112: ( | O112: 1 | P112: - | Q112: 0 | R112: ) | T112: 45 | U112: Fin 1 | W112: ( | X112: 1 | Y112: - | Z112: 0 | AA112: )
B113: 45 | C113: Fin 1 | E113: ( | F113: 1 | G113: - | H113: 0 | I113: ) | K113: 45 | L113: Fin 1 | N113: ( | O113: 1 | P113: - | Q113: 0 | R113: ) | T113: 45 | U113: Fin 1 | W113: ( | X113: 1 | Y113: - | Z113: 0 | AA113: )
D115: =SUM(D64:D113) -> 0 | M115: =SUM(M64:M113) -> 0 | V115: =SUM(V64:V113) -> 0
B117: 20.00-20.30 | D117: Награждение победителей и призеров - Rewarding of winners and prize-winners | T117: =T61 -> 44, 55, 66, 77, 88, 99 кг
B119: Внимание! В программе могут быть изменения - Attention! Тhe program can be changed!

Sheet AB (hidden)
B2: Распорядок дня - The work schedule
B4: =Inf!B4 -> ХХХI-Всероссийский турнир по греко-римской борьбе,посвященный памяти ректора Ленинградского финансово-экономического института им.Н.А.Вознесенского /ныне Санкт-Петербургского государственного экономического университета,з.д.н.России Лаврикова Юрия Александровича.
B6: 20-22ноября 2023г. | U6: =Inf!F5 -> Санкт-Петербург
B8: 09.00-09.30 | D8: Медицинский контроль и 2 взвешивание борцов - Medical control and II weighing of wrestlers | T8: 44, 55, 66, 77, 88, 99 кг
B9: 08.00-08.30 | D9: Медицинский контроль и 1 взвешивание борцов - Medical control and I weighing of wrestlers | T9: 22, 33, 44, 55, 66, 77 кг
B10: 10.00-10.30 | D10: Торжественное открытие соревнований - Opening ceremony
B11: 11.00-14.30 | D11: Утешительные поединки - Repechage rounds | T11: =T8 -> 44, 55, 66, 77, 88, 99 кг
B12: 10.00-16.45 | D12: Предварительные поединки - Preliminary rounds | T12: =T9 -> 22, 33, 44, 55, 66, 77 кг
B14: Mat А | E14: 82, 77, 67, 87, 60 | K14: Mat В | N14: 59, 71, 80, 98, 130 | T14: Mat B | W14: 72,97, 60, 130, 63
B15: 72 | C15: квалиф | D15: 10 | E15: ( | F15: 1 | G15: - | H15: =F15+D15-1 -> 10 | I15: ) | K15: 0 | L15: квалиф | N15: ( | O15: =H54+1 -> 82 | P15: - | Q15: =O15+M15-1 -> 81 | R15: ) | T15: 77 | U15: квалиф | V15: 3 | W15: ( | X15: =Q54+1 -> 82 | Y15: - | Z15: =X15+V15-1 -> 84 | AA15: )
B16: 82 | C16: квалиф | D16: 3 | E16: ( | F16: =H15+1 -> 11 | G16: - | H16: =F16+D16-1 -> 13 | I16: ) | K16: 0 | L16: квалиф | N16: ( | O16: =Q15+1 -> 82 | P16: - | Q16: =O16+M16-1 -> 81 | R16: ) | T16: 63 | U16: квалиф | V16: 6 | W16: ( | X16: =Z15+1 -> 85 | Y16: - | Z16: =X16+V16-1 -> 90 | AA16: )
B17: 55 | C17: 1круг | D17: 2 | E17: ( | F17: =H16+1 -> 14 | G17: - | H17: =F17+D17-1 -> 15 | I17: ) | K17: 0 | L17: квалиф | N17: ( | O17: =Q16+1 -> 82 | P17: - | Q17: =O17+M17-1 -> 81 | R17: ) | T17: 67 | U17: квалиф | V17: 5 | W17: ( | X17: =Z16+1 -> 91 | Y17: - | Z17: =X17+V17-1 -> 95 | AA17: )
B18: 87 | C18: квалиф | D18: 4 | E18: ( | F18: 16 | G18: - | H18: =F18+D18-1 -> 19 | I18: ) | K18: 0 | L18: квалиф | N18: ( | O18: 82 | P18: - | Q18: =O18+M18-1 -> 81 | R18: ) | T18: 130 | U18: квалиф | V18: 4 | W18: ( | X18: 96 | Y18: - | Z18: =X18+V18-1 -> 99 | AA18: )
B19: 60 | C19: квалиф | D19: 3 | E19: ( | F19: 20 | G19: - | H19: =F19+D19-1 -> 22 | I19: ) | K19: 0 | L19: квалиф | N19: ( | O19: 82 | P19: - | Q19: =O19+M19-1 -> 81 | R19: ) | T19: 97 | U19: квалиф | V19: 3 | W19: ( | X19: 100 | Y19: - | Z19: =X19+V19-1 -> 102 | AA19: )
B20: 0 | C20: 1/16 ф | E20: ( | F20: 23 | G20: - | H20: 22 | I20: ) | K20: 0 | L20: 1/16 ф | N20: ( | O20: 82 | P20: - | Q20: 81 | R20: ) | T20: =T15 -> 77 | U20: 1/16 ф | W20: ( | X20: 103 | Y20: - | Z20: 102 | AA20: )
B21: 0 | C21: 1/16 ф | E21: ( | F21: 23 | G21: - | H21: 22 | I21: ) | K21: 0 | L21: 1/16 ф | N21: ( | O21: 82 | P21: - | Q21: 81 | R21: ) | T21: =T16 -> 63 | U21: 1/16 ф | W21: ( | X21: 103 | Y21: - | Z21: 102 | AA21: )
B22: 0 | C22: 1/16 ф | E22: ( | F22: 23 | G22: - | H22: 22 | I22: ) | K22: 0 | L22: 1/16 ф | N22: ( | O22: 82 | P22: - | Q22: 81 | R22: ) | T22: 67 | U22: 1/16 ф | W22: ( | X22: 103 | Y22: - | Z22: 102 | AA22: )
B23: 0 | C23: 1/16 ф | E23: ( | F23: 23 | G23: - | H23: 22 | I23: ) | K23: 0 | L23: 1/16 ф | N23: ( | O23: 82 | P23: - | Q23: 81 | R23: ) | T23: 130 | U23: 1/16 ф | W23: ( | X23: 103 | Y23: - | Z23: 102 | AA23: )
B24: 0 | C24: 1/16 ф | E24: ( | F24: 23 | G24: - | H24: 22 | I24: ) | K24: 0 | L24: 1/16 ф | N24: ( | O24: 82 | P24: - | Q24: 81 | R24: ) | T24: 97 | U24: 1/16 ф | W24: ( | X24: 103 | Y24: - | Z24: 102 | AA24: )
B25: 72 | C25: 1/8 ф | D25: 8 | E25: ( | F25: 23 | G25: - | H25: 30 | I25: ) | K25: 0 | L25: 1/8 ф | N25: ( | O25: 82 | P25: - | Q25: 81 | R25: ) | T25: 77 | U25: 1/8 ф | V25: 8 | W25: ( | X25: 103 | Y25: - | Z25: 110 | AA25: )
B26: 82 | C26: 1/8 ф | D26: 8 | E26: ( | F26: 31 | G26: - | H26: 38 | I26: ) | K26: 0 | L26: 1/8 ф | N26: ( | O26: 82 | P26: - | Q26: 81 | R26: ) | T26: 63 | U26: 1/8 ф | W26: ( | X26: 111 | Y26: - | Z26: 110 | AA26: )
B27: 0 | C27: 1/8 ф | E27: ( | F27: 39 | G27: - | H27: =F27+D27-1 -> 38 | I27: ) | K27: 0 | L27: 1/8 ф | N27: ( | O27: 82 | P27: - | Q27: =O27+M27-1 -> 81 | R27: ) | T27: 67 | U27: 1/8 ф | W27: ( | X27: 111 | Y27: - | Z27: =X27+V27-1 -> 110 | AA27: )
B28: 0 | C28: 1/8 ф | E28: ( | F28: 39 | G28: - | H28: =F28+D28-1 -> 38 | I28: ) | K28: 0 | L28: 1/8 ф | N28: ( | O28: 82 | P28: - | Q28: =O28+M28-1 -> 81 | R28: ) | T28: 130 | U28: 1/8 ф | W28: ( | X28: 111 | Y28: - | Z28: =X28+V28-1 -> 110 | AA28: )
B29: 0 | C29: 1/8 ф | E29: ( | F29: 39 | G29: - | H29: =F29+D29-1 -> 38 | I29: ) | K29: 0 | L29: 1/8 ф | N29: ( | O29: 82 | P29: - | Q29: =O29+M29-1 -> 81 | R29: ) | T29: 97 | U29: 1/8 ф | W29: ( | X29: 111 | Y29: - | Z29: =X29+V29-1 -> 110 | AA29: )
B30: 72 | C30: 1/4 ф | D30: 4 | E30: ( | F30: 39 | G30: - | H30: =F30+D30-1 -> 42 | I30: ) | K30: 0 | L30: 1/4 ф | N30: ( | O30: 82 | P30: - | Q30: =O30+M30-1 -> 81 | R30: ) | T30: 77 | U30: 1/4 ф | V30: 4 | W30: ( | X30: 111 | Y30: - | Z30: =X30+V30-1 -> 114 | AA30: )
B31: 82 | C31: 1/4 ф | D31: 4 | E31: ( | F31: 43 | G31: - | H31: 46 | I31: ) | K31: 0 | L31: 1/4 ф | N31: ( | O31: 82 | P31: - | Q31: 81 | R31: ) | T31: 63 | U31: 1/4 ф | V31: 4 | W31: ( | X31: 115 | Y31: - | Z31: 118 | AA31: )
B32: 55 | C32: 2круг | D32: 2 | E32: ( | F32: 47 | G32: - | H32: 48 | I32: ) | K32: 0 | L32: 1/4 ф | N32: ( | O32: 82 | P32: - | Q32: 81 | R32: ) | T32: 67 | U32: 1/4 ф | V32: 4 | W32: ( | X32: 119 | Y32: - | Z32: 122 | AA32: )
B33: 87 | C33: 1/4 ф | D33: 4 | E33: ( | F33: 49 | G33: - | H33: 52 | I33: ) | K33: 0 | L33: 1/4 ф | N33: ( | O33: 82 | P33: - | Q33: 81 | R33: ) | T33: 130 | U33: 1/4 ф | V33: 4 | W33: ( | X33: 123 | Y33: - | Z33: 126 | AA33: )
B34: 60 | C34: 1/4 ф | D34: 4 | E34: ( | F34: 53 | G34: - | H34: 56 | I34: ) | K34: 0 | L34: 1/4 ф | N34: ( | O34: 82 | P34: - | Q34: 81 | R34: ) | T34: 97 | U34: 1/4 ф | V34: 4 | W34: ( | X34: 127 | Y34: - | Z34: 130 | AA34: )
B35: 72 | C35: 1/2 ф | D35: 2 | E35: ( | F35: 57 | G35: - | H35: 58 | I35: ) | K35: 0 | L35: 1/2 ф | N35: ( | O35: 82 | P35: - | Q35: 81 | R35: ) | T35: 77 | U35: 1/2 ф | V35: 2 | W35: ( | X35: 131 | Y35: - | Z35: 132 | AA35: )
B36: 82 | C36: 1/2 ф | D36: 2 | E36: ( | F36: 59 | G36: - | H36: 60 | I36: ) | K36: 0 | L36: 1/2 ф | N36: ( | O36: 82 | P36: - | Q36: 81 | R36: ) | T36: 63 | U36: 1/2 ф | V36: 2 | W36: ( | X36: 133 | Y36: - | Z36: 134 | AA36: )
B37: 55 | C37: 3круг | D37: 2 | E37: ( | F37: 61 | G37: - | H37: 62 | I37: ) | K37: 0 | L37: 1/2 ф | N37: ( | O37: 82 | P37: - | Q37: 81 | R37: ) | T37: 67 | U37: 1/2 ф | V37: 2 | W37: ( | X37: 135 | Y37: - | Z37: 136 | AA37: )
B38: 87 | C38: 1/2 ф | D38: 2 | E38: ( | F38: 63 | G38: - | H38: 64 | I38: ) | K38: 0 | L38: 1/2 ф | N38: ( | O38: 82 | P38: - | Q38: 81 | R38: ) | T38: 130 | U38: 1/2 ф | V38: 2 | W38: ( | X38: 137 | Y38: - | Z38: 138 | AA38: )
B39: 60 | C39: 1/2 ф | D39: 2 | E39: ( | F39: 65 | G39: - | H39: 66 | I39: ) | K39: 0 | L39: 1/2 ф | N39: ( | O39: 82 | P39: - | Q39: 81 | R39: ) | T39: 97 | U39: 1/2 ф | V39: 2 | W39: ( | X39: 139 | Y39: - | Z39: 140 | AA39: )
B40: 72 | C40: ут 1 | D40: 2 | E40: ( | F40: 67 | G40: - | H40: 68 | I40: ) | K40: 0 | L40: ут 1 | N40: ( | O40: 82 | P40: - | Q40: 81 | R40: ) | T40: 77 | U40: ут 1 | V40: 2 | W40: ( | X40: 141 | Y40: - | Z40: 142 | AA40: )
B41: 82 | C41: ут 1 | D41: 2 | E41: ( | F41: 69 | G41: - | H41: 70 | I41: ) | K41: 0 | L41: ут 1 | N41: ( | O41: 82 | P41: - | Q41: 81 | R41: ) | T41: 63 | U41: ут 1 | V41: 2 | W41: ( | X41: 143 | Y41: - | Z41: 144 | AA41: )
B42: 55 | C42: 4круг | D42: 2 | E42: ( | F42: 71 | G42: - | H42: 72 | I42: ) | K42: 0 | L42: ут 1 | N42: ( | O42: 82 | P42: - | Q42: 81 | R42: ) | T42: 67 | U42: ут 1 | V42: 2 | W42: ( | X42: 145 | Y42: - | Z42: 146 | AA42: )
B43: 87 | C43: ут 1 | D43: 1 | E43: ( | F43: 73 | G43: - | H43: 73 | I43: ) | K43: 0 | L43: ут 1 | N43: ( | O43: 82 | P43: - | Q43: 81 | R43: ) | T43: 130 | U43: ут 2 | V43: 1 | W43: ( | X43: 147 | Y43: - | Z43: 147 | AA43: )
B44: 60 | C44: ут 1 | D44: 1 | E44: ( | F44: 74 | G44: - | H44: 74 | I44: ) | K44: 0 | L44: ут 1 | N44: ( | O44: 82 | P44: - | Q44: 81 | R44: ) | T44: 97 | U44: ут 1 | V44: 1 | W44: ( | X44: 148 | Y44: - | Z44: 148 | AA44: )
B45: 72 | C45: ут 2 | D45: 2 | E45: ( | F45: 75 | G45: - | H45: 76 | I45: ) | K45: 0 | L45: ут 2 | N45: ( | O45: 82 | P45: - | Q45: 81 | R45: ) | T45: 77 | U45: ут 2 | V45: 1 | W45: ( | X45: 149 | Y45: - | Z45: 149 | AA45: )
B46: 82 | C46: ут 2 | D46: 1 | E46: ( | F46: 77 | G46: - | H46: 77 | I46: ) | K46: 0 | L46: ут 2 | N46: ( | O46: 82 | P46: - | Q46: 81 | R46: ) | T46: 63 | U46: ут 2 | W46: ( | X46: 150 | Y46: - | Z46: 149 | AA46: )
B47: 55 | C47: 5круг | D47: 2 | E47: ( | F47: 78 | G47: - | H47: 79 | I47: ) | K47: 0 | L47: ут 2 | N47: ( | O47: 82 | P47: - | Q47: 81 | R47: ) | T47: 67 | U47: ут 2 | W47: ( | X47: 150 | Y47: - | Z47: 149 | AA47: )
B48: 0 | C48: ут 2 | E48: ( | F48: 80 | G48: - | H48: 79 | I48: ) | K48: 0 | L48: ут 2 | N48: ( | O48: 82 | P48: - | Q48: 81 | R48: ) | T48: 130 | U48: ут 2 | W48: ( | X48: 150 | Y48: - | Z48: 149 | AA48: )
B49: 0 | C49: ут 2 | E49: ( | F49: 80 | G49: - | H49: 79 | I49: ) | K49: 0 | L49: ут 2 | N49: ( | O49: 82 | P49: - | Q49: 81 | R49: ) | T49: 97 | U49: ут 2 | W49: ( | X49: 150 | Y49: - | Z49: 149 | AA49: )
B50: 0 | C50: ут 3 | E50: ( | F50: 80 | G50: - | H50: 79 | I50: ) | K50: 0 | L50: ут 3 | N50: ( | O50: 82 | P50: - | Q50: 81 | R50: ) | T50: 77 | U50: ут 3 | W50: ( | X50: 150 | Y50: - | Z50: 149 | AA50: )
B51: 0 | C51: ут 3 | E51: ( | F51: 80 | G51: - | H51: 79 | I51: ) | K51: 0 | L51: ут 3 | N51: ( | O51: 82 | P51: - | Q51: 81 | R51: ) | T51: 63 | U51: ут 3 | W51: ( | X51: 150 | Y51: - | Z51: 149 | AA51: )
B52: 0 | C52: ут 3 | E52: ( | F52: 80 | G52: - | H52: 79 | I52: ) | K52: 0 | L52: ут 3 | N52: ( | O52: 82 | P52: - | Q52: 81 | R52: ) | T52: 67 | U52: ут 3 | W52: ( | X52: 150 | Y52: - | Z52: 149 | AA52: )
B53: 0 | C53: ут 3 | E53: ( | F53: 80 | G53: - | H53: 79 | I53: ) | K53: 0 | L53: ут 3 | N53: ( | O53: 82 | P53: - | Q53: 81 | R53: ) | T53: 130 | U53: ут 4 | W53: ( | X53: 150 | Y53: - | Z53: 149 | AA53: )
B54: 82 | C54: ут 3 | D54: 2 | E54: ( | F54: 80 | G54: - | H54: 81 | I54: ) | K54: 0 | L54: ут 3 | N54: ( | O54: 82 | P54: - | Q54: 81 | R54: ) | T54: 97 | U54: ут 3 | W54: ( | X54: 150 | Y54: - | Z54: 149 | AA54: )
D56: =SUM(D15:D55) -> 81 | M56: =SUM(M15:M54) -> 0 | V56: =SUM(V15:V54) -> 68
B58: 14.30-16.00 | D58: Перерыв - Break
B59: 17.00-17.30 | D59: Торжественное открытие соревнований - Opening ceremony
B60: 17.30-18.00 | D60: Жеребьевка спортсменов - Drawing of athletes | T60: 22, 33, 44, 55, 66, 77 кг
B61: 18.00-20.00 | D61: Финальные поединки - Final rounds | T61: =T11 -> 44, 55, 66, 77, 88, 99 кг
B63: Mat А | E63: 82, 77, 67, 87, 60 | K63: Mat В | N63: 59, 71, 80, 98, 130 | T63: =T14 -> Mat B | W63: 72,97, 60, 130, 63
B64: 72 | C64: Fin 3 | D64: 2 | E64: ( | F64: =Z54+1 -> 150 | G64: - | H64: =F64+D64-1 -> 151 | I64: ) | K64: 45 | L64: Fin 3 | N64: ( | O64: =H113+1 -> 167 | P64: - | Q64: =O64+M64-1 -> 166 | R64: ) | T64: 77 | U64: Fin 3 | V64: 2 | W64: ( | X64: =Q113+1 -> 167 | Y64: - | Z64: =X64+V64-1 -> 168 | AA64: )
B65: 45 | C65: Fin 3 | E65: ( | F65: =H64+1 -> 152 | G65: - | H65: =F65+D65-1 -> 151 | I65: ) | K65: 45 | L65: Fin 3 | N65: ( | O65: =Q64+1 -> 167 | P65: - | Q65: =O65+M65-1 -> 166 | R65: ) | U65: Fin 3 | W65: ( | X65: =Z64+1 -> 169 | Y65: - | Z65: =X65+V65-1 -> 168 | AA65: )
B66: 45 | C66: Fin 3 | E66: ( | F66: =H65+1 -> 152 | G66: - | H66: 151 | I66: ) | K66: 45 | L66: Fin 3 | N66: ( | O66: =Q65+1 -> 167 | P66: - | Q66: 166 | R66: ) | U66: Fin 3 | W66: ( | X66: =Z65+1 -> 169 | Y66: - | Z66: 168 | AA66: )
B67: 45 | C67: Fin 3 | E67: ( | F67: 152 | G67: - | H67: 151 | I67: ) | K67: 45 | L67: Fin 3 | N67: ( | O67: 167 | P67: - | Q67: 166 | R67: ) | U67: Fin 3 | W67: ( | X67: 169 | Y67: - | Z67: 168 | AA67: )
B68: 45 | C68: Fin 3 | E68: ( | F68: 152 | G68: - | H68: 151 | I68: ) | K68: 45 | L68: Fin 3 | N68: ( | O68: 167 | P68: - | Q68: 166 | R68: ) | U68: Fin 3 | W68: ( | X68: 169 | Y68: - | Z68: 168 | AA68: )
B69: 45 | C69: Fin 3 | E69: ( | F69: 152 | G69: - | H69: 151 | I69: ) | K69: 45 | L69: Fin 3 | N69: ( | O69: 167 | P69: - | Q69: 166 | R69: ) | U69: Fin 3 | W69: ( | X69: 169 | Y69: - | Z69: 168 | AA69: )
B70: 45 | C70: Fin 3 | E70: ( | F70: 152 | G70: - | H70: 151 | I70: ) | K70: 45 | L70: Fin 3 | N70: ( | O70: 167 | P70: - | Q70: 166 | R70: ) | U70: Fin 3 | W70: ( | X70: 169 | Y70: - | Z70: 168 | AA70: )
B71: 45 | C71: Fin 3 | E71: ( | F71: 152 | G71: - | H71: 151 | I71: ) | K71: 45 | L71: Fin 3 | N71: ( | O71: 167 | P71: - | Q71: 166 | R71: ) | U71: Fin 3 | W71: ( | X71: 169 | Y71: - | Z71: 168 | AA71: )
B72: 45 | C72: Fin 3 | E72: ( | F72: 152 | G72: - | H72: 151 | I72: ) | K72: 45 | L72: Fin 3 | N72: ( | O72: 167 | P72: - | Q72: 166 | R72: ) | U72: Fin 3 | W72: ( | X72: 169 | Y72: - | Z72: 168 | AA72: )
B73: 45 | C73: Fin 1 | E73: ( | F73: 152 | G73: - | H73: 151 | I73: ) | K73: 45 | L73: Fin 1 | N73: ( | O73: 167 | P73: - | Q73: 166 | R73: ) | U73: Fin 1 | W73: ( | X73: 169 | Y73: - | Z73: 168 | AA73: )
B74: 45 | C74: Fin 1 | E74: ( | F74: 152 | G74: - | H74: 151 | I74: ) | K74: 45 | L74: Fin 1 | N74: ( | O74: 167 | P74: - | Q74: 166 | R74: ) | U74: Fin 1 | W74: ( | X74: 169 | Y74: - | Z74: 168 | AA74: )
B75: 45 | C75: Fin 1 | E75: ( | F75: 152 | G75: - | H75: 151 | I75: ) | K75: 45 | L75: Fin 1 | N75: ( | O75: 167 | P75: - | Q75: 166 | R75: ) | U75: Fin 1 | W75: ( | X75: 169 | Y75: - | Z75: 168 | AA75: )
B76: 45 | C76: Fin 1 | E76: ( | F76: 152 | G76: - | H76: 151 | I76: ) | K76: 45 | L76: Fin 1 | N76: ( | O76: 167 | P76: - | Q76: =O76+M76-1 -> 166 | R76: ) | U76: Fin 1 | W76: ( | X76: 169 | Y76: - | Z76: 168 | AA76: )
B77: 45 | C77: Fin 1 | E77: ( | F77: 152 | G77: - | H77: 151 | I77: ) | K77: 45 | L77: Fin 1 | N77: ( | O77: 167 | P77: - | Q77: =O77+M77-1 -> 166 | R77: ) | U77: Fin 1 | W77: ( | X77: 169 | Y77: - | Z77: 168 | AA77: )
B78: 45 | C78: Fin 1 | E78: ( | F78: 152 | G78: - | H78: 151 | I78: ) | K78: 45 | L78: Fin 1 | N78: ( | O78: 167 | P78: - | Q78: 166 | R78: ) | U78: Fin 1 | W78: ( | X78: 169 | Y78: - | Z78: 168 | AA78: )
B79: 45 | C79: Fin 1 | E79: ( | F79: 152 | G79: - | H79: 151 | I79: ) | K79: 45 | L79: Fin 1 | N79: ( | O79: 167 | P79: - | Q79: 166 | R79: ) | U79: Fin 1 | W79: ( | X79: 169 | Y79: - | Z79: 168 | AA79: )
B80: 45 | C80: Fin 1 | E80: ( | F80: 152 | G80: - | H80: 151 | I80: ) | K80: 45 | L80: Fin 1 | N80: ( | O80: 167 | P80: - | Q80: 166 | R80: ) | U80: Fin 1 | W80: ( | X80: 169 | Y80: - | Z80: 168 | AA80: )
B81: 45 | C81: Fin 1 | E81: ( | F81: 152 | G81: - | H81: 151 | I81: ) | K81: 45 | L81: Fin 1 | N81: ( | O81: 167 | P81: - | Q81: 166 | R81: ) | U81: Fin 1 | W81: ( | X81: 169 | Y81: - | Z81: 168 | AA81: )
B82: 45 | C82: Fin 1 | E82: ( | F82: 152 | G82: - | H82: 151 | I82: ) | K82: 45 | L82: Fin 1 | N82: ( | O82: 167 | P82: - | Q82: 166 | R82: ) | U82: Fin 1 | W82: ( | X82: 169 | Y82: - | Z82: 168 | AA82: )
B83: 45 | C83: Fin 1 | E83: ( | F83: 152 | G83: - | H83: 151 | I83: ) | K83: 45 | L83: Fin 1 | N83: ( | O83: 167 | P83: - | Q83: 166 | R83: ) | U83: Fin 1 | W83: ( | X83: 169 | Y83: - | Z83: 168 | AA83: )
B84: 45 | C84: Fin 1 | E84: ( | F84: 152 | G84: - | H84: 151 | I84: ) | K84: 45 | L84: Fin 1 | N84: ( | O84: 167 | P84: - | Q84: 166 | R84: ) | U84: Fin 1 | W84: ( | X84: 169 | Y84: - | Z84: 168 | AA84: )
B85: 45 | C85: Fin 1 | E85: ( | F85: 152 | G85: - | H85: 151 | I85: ) | K85: 45 | L85: Fin 1 | N85: ( | O85: 167 | P85: - | Q85: 166 | R85: ) | U85: Fin 1 | W85: ( | X85: 169 | Y85: - | Z85: 168 | AA85: )
B86: 45 | C86: Fin 1 | E86: ( | F86: 152 | G86: - | H86: 151 | I86: ) | K86: 45 | L86: Fin 1 | N86: ( | O86: 167 | P86: - | Q86: 166 | R86: ) | U86: Fin 1 | W86: ( | X86: 169 | Y86: - | Z86: 168 | AA86: )
B87: 45 | C87: Fin 1 | E87: ( | F87: 152 | G87: - | H87: 151 | I87: ) | K87: 45 | L87: Fin 1 | N87: ( | O87: 167 | P87: - | Q87: 166 | R87: ) | U87: Fin 1 | W87: ( | X87: 169 | Y87: - | Z87: 168 | AA87: )
B88: 82 | C88: Fin 3 | D88: 2 | E88: ( | F88: 152 | G88: - | H88: 153 | I88: ) | K88: 45 | L88: Fin 1 | N88: ( | O88: 167 | P88: - | Q88: 166 | R88: ) | T88: 63 | U88: Fin 3 | V88: 2 | W88: ( | X88: 169 | Y88: - | Z88: 170 | AA88: )
B89: 87 | C89: Fin 3 | D89: 2 | E89: ( | F89: 154 | G89: - | H89: 155 | I89: ) | K89: 45 | L89: Fin 1 | N89: ( | O89: 167 | P89: - | Q89: 166 | R89: ) | T89: 67 | U89: Fin 3 | V89: 2 | W89: ( | X89: 171 | Y89: - | Z89: 172 | AA89: )
B90: 60 | C90: Fin 3 | D90: 2 | E90: ( | F90: 156 | G90: - | H90: 157 | I90: ) | K90: 45 | L90: Fin 1 | N90: ( | O90: 167 | P90: - | Q90: 166 | R90: ) | T90: 130 | U90: Fin 3 | V90: 2 | W90: ( | X90: 173 | Y90: - | Z90: 174 | AA90: )
B91: 60 | C91: Fin 1 | D91: 1 | E91: ( | F91: 158 | G91: - | H91: 158 | I91: ) | K91: 45 | L91: Fin 1 | N91: ( | O91: 167 | P91: - | Q91: 166 | R91: ) | T91: 97 | U91: Fin 3 | V91: 2 | W91: ( | X91: 175 | Y91: - | Z91: 176 | AA91: )
B92: 63 | C92: Fin 1 | D92: 1 | E92: ( | F92: 159 | G92: - | H92: 159 | I92: ) | K92: 45 | L92: Fin 1 | N92: ( | O92: 167 | P92: - | Q92: 166 | R92: ) | T92: 45 | U92: Fin 1 | W92: ( | X92: 177 | Y92: - | Z92: 176 | AA92: )
B93: 67 | C93: Fin 1 | D93: 1 | E93: ( | F93: 160 | G93: - | H93: 160 | I93: ) | K93: 45 | L93: Fin 1 | N93: ( | O93: 167 | P93: - | Q93: 166 | R93: ) | T93: 45 | U93: Fin 3 | W93: ( | X93: 177 | Y93: - | Z93: 176 | AA93: )
B94: 72 | C94: Fin 1 | D94: 1 | E94: ( | F94: 161 | G94: - | H94: 161 | I94: ) | K94: 45 | L94: Fin 1 | N94: ( | O94: 167 | P94: - | Q94: 166 | R94: ) | T94: 45 | U94: Fin 1 | W94: ( | X94: 177 | Y94: - | Z94: 176 | AA94: )
B95: 77 | C95: Fin 1 | D95: 1 | E95: ( | F95: 162 | G95: - | H95: 162 | I95: ) | K95: 45 | L95: Fin 1 | N95: ( | O95: 167 | P95: - | Q95: 166 | R95: ) | T95: 45 | U95: Fin 3 | W95: ( | X95: 177 | Y95: - | Z95: 176 | AA95: )
B96: 82 | C96: Fin 1 | D96: 1 | E96: ( | F96: 163 | G96: - | H96: 163 | I96: ) | K96: 45 | L96: Fin 1 | N96: ( | O96: 167 | P96: - | Q96: 166 | R96: ) | T96: 45 | U96: Fin 1 | W96: ( | X96: 177 | Y96: - | Z96: 176 | AA96: )
B97: 87 | C97: Fin 1 | D97: 1 | E97: ( | F97: 164 | G97: - | H97: 164 | I97: ) | K97: 45 | L97: Fin 1 | N97: ( | O97: 167 | P97: - | Q97: 166 | R97: ) | T97: 45 | U97: Fin 3 | W97: ( | X97: 177 | Y97: - | Z97: 176 | AA97: )
B98: 97 | C98: Fin 1 | D98: 1 | E98: ( | F98: 165 | G98: - | H98: 165 | I98: ) | K98: 45 | L98: Fin 1 | N98: ( | O98: 167 | P98: - | Q98: 166 | R98: ) | T98: 45 | U98: Fin 1 | W98: ( | X98: 177 | Y98: - | Z98: 176 | AA98: )
B99: 45 | C99: Fin 3 | E99: ( | F99: 166 | G99: - | H99: 165 | I99: ) | K99: 45 | L99: Fin 1 | N99: ( | O99: 167 | P99: - | Q99: 166 | R99: ) | T99: 45 | U99: Fin 3 | W99: ( | X99: 177 | Y99: - | Z99: 176 | AA99: )
B100: 45 | C100: Fin 1 | E100: ( | F100: 166 | G100: - | H100: 165 | I100: ) | K100: 45 | L100: Fin 1 | N100: ( | O100: 167 | P100: - | Q100: 166 | R100: ) | T100: 45 | U100: Fin 1 | W100: ( | X100: 177 | Y100: - | Z100: 176 | AA100: )
B101: 45 | C101: Fin 3 | E101: ( | F101: 166 | G101: - | H101: 165 | I101: ) | K101: 45 | L101: Fin 1 | N101: ( | O101: 167 | P101: - | Q101: 166 | R101: ) | T101: 45 | U101: Fin 3 | W101: ( | X101: 177 | Y101: - | Z101: 176 | AA101: )
B102: 45 | C102: Fin 1 | E102: ( | F102: 166 | G102: - | H102: 165 | I102: ) | K102: 45 | L102: Fin 1 | N102: ( | O102: 167 | P102: - | Q102: 166 | R102: ) | T102: 45 | U102: Fin 1 | W102: ( | X102: 177 | Y102: - | Z102: 176 | AA102: )
B103: 45 | C103: Fin 3 | E103: ( | F103: 166 | G103: - | H103: 165 | I103: ) | K103: 45 | L103: Fin 1 | N103: ( | O103: 167 | P103: - | Q103: 166 | R103: ) | T103: 45 | U103: Fin 3 | W103: ( | X103: 177 | Y103: - | Z103: 176 | AA103: )
B104: 45 | C104: Fin 1 | E104: ( | F104: 166 | G104: - | H104: 165 | I104: ) | K104: 45 | L104: Fin 1 | N104: ( | O104: 167 | P104: - | Q104: 166 | R104: ) | T104: 45 | U104: Fin 1 | W104: ( | X104: 177 | Y104: - | Z104: 176 | AA104: )
B105: 45 | C105: Fin 3 | E105: ( | F105: 166 | G105: - | H105: 165 | I105: ) | K105: 45 | L105: Fin 1 | N105: ( | O105: 167 | P105: - | Q105: 166 | R105: ) | T105: 45 | U105: Fin 3 | W105: ( | X105: 177 | Y105: - | Z105: 176 | AA105: )
B106: 45 | C106: Fin 1 | E106: ( | F106: 166 | G106: - | H106: 165 | I106: ) | K106: 45 | L106: Fin 1 | N106: ( | O106: 167 | P106: - | Q106: 166 | R106: ) | T106: 45 | U106: Fin 1 | W106: ( | X106: 177 | Y106: - | Z106: 176 | AA106: )
B107: 45 | C107: Fin 3 | E107: ( | F107: 166 | G107: - | H107: 165 | I107: ) | K107: 45 | L107: Fin 1 | N107: ( | O107: 167 | P107: - | Q107: 166 | R107: ) | T107: 45 | U107: Fin 3 | W107: ( | X107: 177 | Y107: - | Z107: 176 | AA107: )
B108: 45 | C108: Fin 1 | E108: ( | F108: 166 | G108: - | H108: 165 | I108: ) | K108: 45 | L108: Fin 1 | N108: ( | O108: 167 | P108: - | Q108: 166 | R108: ) | T108: 45 | U108: Fin 1 | W108: ( | X108: 177 | Y108: - | Z108: 176 | AA108: )
B109: 45 | C109: Fin 3 | E109: ( | F109: 166 | G109: - | H109: 165 | I109: ) | K109: 45 | L109: Fin 1 | N109: ( | O109: 167 | P109: - | Q109: 166 | R109: ) | T109: 45 | U109: Fin 3 | W109: ( | X109: 177 | Y109: - | Z109: 176 | AA109: )
B110: 45 | C110: Fin 1 | E110: ( | F110: 166 | G110: - | H110: 165 | I110: ) | K110: 45 | L110: Fin 1 | N110: ( | O110: 167 | P110: - | Q110: 166 | R110: ) | T110: 45 | U110: Fin 1 | W110: ( | X110: 177 | Y110: - | Z110: 176 | AA110: )
B111: 45 | C111: Fin 1 | E111: ( | F111: 166 | G111: - | H111: 165 | I111: ) | K111: 45 | L111: Fin 1 | N111: ( | O111: 167 | P111: - | Q111: 166 | R111: ) | T111: 45 | U111: Fin 3 | W111: ( | X111: 177 | Y111: - | Z111: 176 | AA111: )
B112: 45 | C112: Fin 1 | E112: ( | F112: 166 | G112: - | H112: 165 | I112: ) | K112: 45 | L112: Fin 1 | N112: ( | O112: 167 | P112: - | Q112: 166 | R112: ) | T112: 45 | U112: Fin 1 | W112: ( | X112: 177 | Y112: - | Z112: 176 | AA112: )
B113: 130 | C113: Fin 1 | D113: 1 | E113: ( | F113: 166 | G113: - | H113: 166 | I113: ) | K113: 45 | L113: Fin 1 | N113: ( | O113: 167 | P113: - | Q113: 166 | R113: ) | T113: 45 | U113: Fin 1 | W113: ( | X113: 177 | Y113: - | Z113: 176 | AA113: )
D115: =SUM(D64:D113) -> 17 | M115: =SUM(M64:M113) -> 0 | V115: =SUM(V64:V113) -> 10
B117: 15.30-16.00 | D117: Награждение победителей и призеров - Rewarding of winners and prize-winners | T117: =T61 -> 44, 55, 66, 77, 88, 99 кг
B119: Внимание! В программе могут быть изменения - Attention! Тhe program can be changed!

Sheet ABC (hidden)
B2: Распорядок дня - The work schedule
B4: =Inf!B4 -> ХХХI-Всероссийский турнир по греко-римской борьбе,посвященный памяти ректора Ленинградского финансово-экономического института им.Н.А.Вознесенского /ныне Санкт-Петербургского государственного экономического университета,з.д.н.России Лаврикова Юрия Александровича.
B6: дата проведения | U6: =Inf!F5 -> Санкт-Петербург
B8: 08.00-08.30 | D8: Медицинский контроль и 2 взвешивание борцов - Medical control and II weighing of wrestlers | T8: 44, 55, 66, 77, 88, 99 кг
B9: 08.00-08.30 | D9: Медицинский контроль и 1 взвешивание борцов - Medical control and I weighing of wrestlers | T9: 22, 33, 44, 55, 66, 77 кг
B10: 10.00-10.30 | D10: Торжественное открытие соревнований - Opening ceremony
B11: 10.00-16.45 | D11: Утешительные поединки - Repechage rounds | T11: =T8 -> 44, 55, 66, 77, 88, 99 кг
B12: 10.00-16.45 | D12: Предварительные поединки - Preliminary rounds | T12: =T9 -> 22, 33, 44, 55, 66, 77 кг
B14: Mat А | E14: 59, 71, 80, 98, 130 | K14: Mat В | N14: 59, 71, 80, 98, 130 | T14: Mat C | W14: 59, 71, 80, 98, 130
B15: 0 | C15: квалиф | E15: ( | F15: 1 | G15: - | H15: =F15+D15-1 -> 0 | I15: ) | K15: 0 | L15: квалиф | N15: ( | O15: =H54+1 -> 1 | P15: - | Q15: =O15+M15-1 -> 0 | R15: ) | T15: 0 | U15: квалиф | W15: ( | X15: =Q54+1 -> 1 | Y15: - | Z15: =X15+V15-1 -> 0 | AA15: )
B16: 0 | C16: квалиф | E16: ( | F16: =H15+1 -> 1 | G16: - | H16: =F16+D16-1 -> 0 | I16: ) | K16: 0 | L16: квалиф | N16: ( | O16: =Q15+1 -> 1 | P16: - | Q16: =O16+M16-1 -> 0 | R16: ) | T16: =X14 -> 0 | U16: квалиф | W16: ( | X16: =Z15+1 -> 1 | Y16: - | Z16: =X16+V16-1 -> 0 | AA16: )
B17: 0 | C17: квалиф | E17: ( | F17: =H16+1 -> 1 | G17: - | H17: =F17+D17-1 -> 0 | I17: ) | K17: 0 | L17: квалиф | N17: ( | O17: =Q16+1 -> 1 | P17: - | Q17: =O17+M17-1 -> 0 | R17: ) | T17: =Y14 -> 0 | U17: квалиф | W17: ( | X17: =Z16+1 -> 1 | Y17: - | Z17: =X17+V17-1 -> 0 | AA17: )
B18: 0 | C18: квалиф | E18: ( | F18: 1 | G18: - | H18: =F18+D18-1 -> 0 | I18: ) | K18: 0 | L18: квалиф | N18: ( | O18: 1 | P18: - | Q18: =O18+M18-1 -> 0 | R18: ) | T18: 0 | U18: квалиф | W18: ( | X18: 1 | Y18: - | Z18: =X18+V18-1 -> 0 | AA18: )
B19: 0 | C19: квалиф | E19: ( | F19: 1 | G19: - | H19: =F19+D19-1 -> 0 | I19: ) | K19: 0 | L19: квалиф | N19: ( | O19: 1 | P19: - | Q19: =O19+M19-1 -> 0 | R19: ) | T19: =AA14 -> 0 | U19: квалиф | W19: ( | X19: 1 | Y19: - | Z19: =X19+V19-1 -> 0 | AA19: )
B20: 0 | C20: 1/16 ф | E20: ( | F20: 1 | G20: - | H20: 0 | I20: ) | K20: 0 | L20: 1/16 ф | N20: ( | O20: 1 | P20: - | Q20: 0 | R20: ) | T20: =T15 -> 0 | U20: 1/16 ф | W20: ( | X20: 1 | Y20: - | Z20: 0 | AA20: )
B21: 0 | C21: 1/16 ф | E21: ( | F21: 1 | G21: - | H21: 0 | I21: ) | K21: 0 | L21: 1/16 ф | N21: ( | O21: 1 | P21: - | Q21: 0 | R21: ) | T21: =T16 -> 0 | U21: 1/16 ф | W21: ( | X21: 1 | Y21: - | Z21: 0 | AA21: )
B22: 0 | C22: 1/16 ф | E22: ( | F22: 1 | G22: - | H22: 0 | I22: ) | K22: 0 | L22: 1/16 ф | N22: ( | O22: 1 | P22: - | Q22: 0 | R22: ) | T22: 0 | U22: 1/16 ф | W22: ( | X22: 1 | Y22: - | Z22: 0 | AA22: )
B23: 0 | C23: 1/16 ф | E23: ( | F23: 1 | G23: - | H23: 0 | I23: ) | K23: 0 | L23: 1/16 ф | N23: ( | O23: 1 | P23: - | Q23: 0 | R23: ) | T23: 0 | U23: 1/16 ф | W23: ( | X23: 1 | Y23: - | Z23: 0 | AA23: )
B24: 0 | C24: 1/16 ф | E24: ( | F24: 1 | G24: - | H24: 0 | I24: ) | K24: 0 | L24: 1/16 ф | N24: ( | O24: 1 | P24: - | Q24: 0 | R24: ) | T24: 0 | U24: 1/16 ф | W24: ( | X24: 1 | Y24: - | Z24: 0 | AA24: )
B25: 0 | C25: 1/8 ф | E25: ( | F25: 1 | G25: - | H25: 0 | I25: ) | K25: 0 | L25: 1/8 ф | N25: ( | O25: 1 | P25: - | Q25: 0 | R25: ) | T25: 0 | U25: 1/8 ф | W25: ( | X25: 1 | Y25: - | Z25: 0 | AA25: )
B26: 0 | C26: 1/8 ф | E26: ( | F26: 1 | G26: - | H26: 0 | I26: ) | K26: 0 | L26: 1/8 ф | N26: ( | O26: 1 | P26: - | Q26: 0 | R26: ) | T26: 0 | U26: 1/8 ф | W26: ( | X26: 1 | Y26: - | Z26: 0 | AA26: )
B27: 0 | C27: 1/8 ф | E27: ( | F27: 1 | G27: - | H27: =F27+D27-1 -> 0 | I27: ) | K27: 0 | L27: 1/8 ф | N27: ( | O27: 1 | P27: - | Q27: =O27+M27-1 -> 0 | R27: ) | T27: 0 | U27: 1/8 ф | W27: ( | X27: 1 | Y27: - | Z27: =X27+V27-1 -> 0 | AA27: )
B28: 0 | C28: 1/8 ф | E28: ( | F28: 1 | G28: - | H28: =F28+D28-1 -> 0 | I28: ) | K28: 0 | L28: 1/8 ф | N28: ( | O28: 1 | P28: - | Q28: =O28+M28-1 -> 0 | R28: ) | T28: 0 | U28: 1/8 ф | W28: ( | X28: 1 | Y28: - | Z28: =X28+V28-1 -> 0 | AA28: )
B29: 0 | C29: 1/8 ф | E29: ( | F29: 1 | G29: - | H29: =F29+D29-1 -> 0 | I29: ) | K29: 0 | L29: 1/8 ф | N29: ( | O29: 1 | P29: - | Q29: =O29+M29-1 -> 0 | R29: ) | T29: 0 | U29: 1/8 ф | W29: ( | X29: 1 | Y29: - | Z29: =X29+V29-1 -> 0 | AA29: )
B30: 0 | C30: 1/4 ф | E30: ( | F30: 1 | G30: - | H30: =F30+D30-1 -> 0 | I30: ) | K30: 0 | L30: 1/4 ф | N30: ( | O30: 1 | P30: - | Q30: =O30+M30-1 -> 0 | R30: ) | T30: 0 | U30: 1/4 ф | W30: ( | X30: 1 | Y30: - | Z30: =X30+V30-1 -> 0 | AA30: )
B31: 0 | C31: 1/4 ф | E31: ( | F31: 1 | G31: - | H31: 0 | I31: ) | K31: 0 | L31: 1/4 ф | N31: ( | O31: 1 | P31: - | Q31: 0 | R31: ) | T31: 0 | U31: 1/4 ф | W31: ( | X31: 1 | Y31: - | Z31: 0 | AA31: )
B32: 0 | C32: 1/4 ф | E32: ( | F32: 1 | G32: - | H32: 0 | I32: ) | K32: 0 | L32: 1/4 ф | N32: ( | O32: 1 | P32: - | Q32: 0 | R32: ) | T32: 0 | U32: 1/4 ф | W32: ( | X32: 1 | Y32: - | Z32: 0 | AA32: )
B33: 0 | C33: 1/4 ф | E33: ( | F33: 1 | G33: - | H33: 0 | I33: ) | K33: 0 | L33: 1/4 ф | N33: ( | O33: 1 | P33: - | Q33: 0 | R33: ) | T33: 0 | U33: 1/4 ф | W33: ( | X33: 1 | Y33: - | Z33: 0 | AA33: )
B34: 0 | C34: 1/4 ф | E34: ( | F34: 1 | G34: - | H34: 0 | I34: ) | K34: 0 | L34: 1/4 ф | N34: ( | O34: 1 | P34: - | Q34: 0 | R34: ) | T34: 0 | U34: 1/4 ф | W34: ( | X34: 1 | Y34: - | Z34: 0 | AA34: )
B35: 0 | C35: 1/2 ф | E35: ( | F35: 1 | G35: - | H35: 0 | I35: ) | K35: 0 | L35: 1/2 ф | N35: ( | O35: 1 | P35: - | Q35: 0 | R35: ) | T35: 0 | U35: 1/2 ф | W35: ( | X35: 1 | Y35: - | Z35: 0 | AA35: )
B36: 0 | C36: 1/2 ф | E36: ( | F36: 1 | G36: - | H36: 0 | I36: ) | K36: 0 | L36: 1/2 ф | N36: ( | O36: 1 | P36: - | Q36: 0 | R36: ) | T36: 0 | U36: 1/2 ф | W36: ( | X36: 1 | Y36: - | Z36: 0 | AA36: )
B37: 0 | C37: 1/2 ф | E37: ( | F37: 1 | G37: - | H37: 0 | I37: ) | K37: 0 | L37: 1/2 ф | N37: ( | O37: 1 | P37: - | Q37: 0 | R37: ) | T37: 0 | U37: 1/2 ф | W37: ( | X37: 1 | Y37: - | Z37: 0 | AA37: )
B38: 0 | C38: 1/2 ф | E38: ( | F38: 1 | G38: - | H38: 0 | I38: ) | K38: 0 | L38: 1/2 ф | N38: ( | O38: 1 | P38: - | Q38: 0 | R38: ) | T38: 0 | U38: 1/2 ф | W38: ( | X38: 1 | Y38: - | Z38: 0 | AA38: )
B39: 0 | C39: 1/2 ф | E39: ( | F39: 1 | G39: - | H39: 0 | I39: ) | K39: 0 | L39: 1/2 ф | N39: ( | O39: 1 | P39: - | Q39: 0 | R39: ) | T39: 0 | U39: 1/2 ф | W39: ( | X39: 1 | Y39: - | Z39: 0 | AA39: )
B40: 0 | C40: ут 1 | E40: ( | F40: 1 | G40: - | H40: 0 | I40: ) | K40: 0 | L40: ут 1 | N40: ( | O40: 1 | P40: - | Q40: 0 | R40: ) | T40: 0 | U40: ут 1 | W40: ( | X40: 1 | Y40: - | Z40: 0 | AA40: )
B41: 0 | C41: ут 1 | E41: ( | F41: 1 | G41: - | H41: 0 | I41: ) | K41: 0 | L41: ут 1 | N41: ( | O41: 1 | P41: - | Q41: 0 | R41: ) | T41: 0 | U41: ут 1 | W41: ( | X41: 1 | Y41: - | Z41: 0 | AA41: )
B42: 0 | C42: ут 1 | E42: ( | F42: 1 | G42: - | H42: 0 | I42: ) | K42: 0 | L42: ут 1 | N42: ( | O42: 1 | P42: - | Q42: 0 | R42: ) | T42: 0 | U42: ут 1 | W42: ( | X42: 1 | Y42: - | Z42: 0 | AA42: )
B43: 0 | C43: ут 1 | E43: ( | F43: 1 | G43: - | H43: 0 | I43: ) | K43: 0 | L43: ут 1 | N43: ( | O43: 1 | P43: - | Q43: 0 | R43: ) | T43: 0 | U43: ут 2 | W43: ( | X43: 1 | Y43: - | Z43: 0 | AA43: )
B44: 0 | C44: ут 1 | E44: ( | F44: 1 | G44: - | H44: 0 | I44: ) | K44: 0 | L44: ут 1 | N44: ( | O44: 1 | P44: - | Q44: 0 | R44: ) | T44: 0 | U44: ут 1 | W44: ( | X44: 1 | Y44: - | Z44: 0 | AA44: )
B45: 0 | C45: ут 2 | E45: ( | F45: 1 | G45: - | H45: 0 | I45: ) | K45: 0 | L45: ут 2 | N45: ( | O45: 1 | P45: - | Q45: 0 | R45: ) | T45: 0 | U45: ут 2 | W45: ( | X45: 1 | Y45: - | Z45: 0 | AA45: )
B46: 0 | C46: ут 2 | E46: ( | F46: 1 | G46: - | H46: 0 | I46: ) | K46: 0 | L46: ут 2 | N46: ( | O46: 1 | P46: - | Q46: 0 | R46: ) | T46: 0 | U46: ут 2 | W46: ( | X46: 1 | Y46: - | Z46: 0 | AA46: )
B47: 0 | C47: ут 2 | E47: ( | F47: 1 | G47: - | H47: 0 | I47: ) | K47: 0 | L47: ут 2 | N47: ( | O47: 1 | P47: - | Q47: 0 | R47: ) | T47: 0 | U47: ут 2 | W47: ( | X47: 1 | Y47: - | Z47: 0 | AA47: )
B48: 0 | C48: ут 2 | E48: ( | F48: 1 | G48: - | H48: 0 | I48: ) | K48: 0 | L48: ут 2 | N48: ( | O48: 1 | P48: - | Q48: 0 | R48: ) | T48: 0 | U48: ут 2 | W48: ( | X48: 1 | Y48: - | Z48: 0 | AA48: )
B49: 0 | C49: ут 2 | E49: ( | F49: 1 | G49: - | H49: 0 | I49: ) | K49: 0 | L49: ут 2 | N49: ( | O49: 1 | P49: - | Q49: 0 | R49: ) | T49: 0 | U49: ут 2 | W49: ( | X49: 1 | Y49: - | Z49: 0 | AA49: )
B50: 0 | C50: ут 3 | E50: ( | F50: 1 | G50: - | H50: 0 | I50: ) | K50: 0 | L50: ут 3 | N50: ( | O50: 1 | P50: - | Q50: 0 | R50: ) | T50: 0 | U50: ут 3 | W50: ( | X50: 1 | Y50: - | Z50: 0 | AA50: )
B51: 0 | C51: ут 3 | E51: ( | F51: 1 | G51: - | H51: 0 | I51: ) | K51: 0 | L51: ут 3 | N51: ( | O51: 1 | P51: - | Q51: 0 | R51: ) | T51: 0 | U51: ут 3 | W51: ( | X51: 1 | Y51: - | Z51: 0 | AA51: )
B52: 0 | C52: ут 3 | E52: ( | F52: 1 | G52: - | H52: 0 | I52: ) | K52: 0 | L52: ут 3 | N52: ( | O52: 1 | P52: - | Q52: 0 | R52: ) | T52: 0 | U52: ут 3 | W52: ( | X52: 1 | Y52: - | Z52: 0 | AA52: )
B53: 0 | C53: ут 3 | E53: ( | F53: 1 | G53: - | H53: 0 | I53: ) | K53: 0 | L53: ут 3 | N53: ( | O53: 1 | P53: - | Q53: 0 | R53: ) | T53: 0 | U53: ут 4 | W53: ( | X53: 1 | Y53: - | Z53: 0 | AA53: )
B54: 0 | C54: ут 3 | E54: ( | F54: 1 | G54: - | H54: 0 | I54: ) | K54: 0 | L54: ут 3 | N54: ( | O54: 1 | P54: - | Q54: 0 | R54: ) | T54: 0 | U54: ут 3 | W54: ( | X54: 1 | Y54: - | Z54: 0 | AA54: )
D56: =SUM(D15:D55) -> 0 | M56: =SUM(M15:M54) -> 0 | V56: =SUM(V15:V54) -> 0
B58: 14.30-16.00 | D58: Перерыв - Break
B59: 17.00-17.30 | D59: Торжественное открытие соревнований - Opening ceremony
B60: 17.30-18.00 | D60: Жеребьевка спортсменов - Drawing of athletes | T60: 22, 33, 44, 55, 66, 77 кг
B61: 18.00-20.00 | D61: Финальные поединки - Final rounds | T61: =T11 -> 44, 55, 66, 77, 88, 99 кг
B63: Mat А | E63: 59, 71, 80, 98, 130 | K63: Mat В | N63: 59, 71, 80, 98, 130 | T63: =T14 -> Mat C | W63: 59, 71, 80, 98, 130
B64: 45 | C64: Fin 3 | E64: ( | F64: =Z54+1 -> 1 | G64: - | H64: =F64+D64-1 -> 0 | I64: ) | K64: 45 | L64: Fin 3 | N64: ( | O64: =H113+1 -> 1 | P64: - | Q64: =O64+M64-1 -> 0 | R64: ) | U64: Fin 3 | W64: ( | X64: =Q113+1 -> 1 | Y64: - | Z64: =X64+V64-1 -> 0 | AA64: )
B65: 45 | C65: Fin 3 | E65: ( | F65: =H64+1 -> 1 | G65: - | H65: =F65+D65-1 -> 0 | I65: ) | K65: 45 | L65: Fin 3 | N65: ( | O65: =Q64+1 -> 1 | P65: - | Q65: =O65+M65-1 -> 0 | R65: ) | U65: Fin 3 | W65: ( | X65: =Z64+1 -> 1 | Y65: - | Z65: =X65+V65-1 -> 0 | AA65: )
B66: 45 | C66: Fin 3 | E66: ( | F66: =H65+1 -> 1 | G66: - | H66: 0 | I66: ) | K66: 45 | L66: Fin 3 | N66: ( | O66: =Q65+1 -> 1 | P66: - | Q66: 0 | R66: ) | U66: Fin 3 | W66: ( | X66: =Z65+1 -> 1 | Y66: - | Z66: 0 | AA66: )
B67: 45 | C67: Fin 3 | E67: ( | F67: 1 | G67: - | H67: 0 | I67: ) | K67: 45 | L67: Fin 3 | N67: ( | O67: 1 | P67: - | Q67: 0 | R67: ) | U67: Fin 3 | W67: ( | X67: 1 | Y67: - | Z67: 0 | AA67: )
B68: 45 | C68: Fin 3 | E68: ( | F68: 1 | G68: - | H68: 0 | I68: ) | K68: 45 | L68: Fin 3 | N68: ( | O68: 1 | P68: - | Q68: 0 | R68: ) | U68: Fin 3 | W68: ( | X68: 1 | Y68: - | Z68: 0 | AA68: )
B69: 45 | C69: Fin 3 | E69: ( | F69: 1 | G69: - | H69: 0 | I69: ) | K69: 45 | L69: Fin 3 | N69: ( | O69: 1 | P69: - | Q69: 0 | R69: ) | U69: Fin 3 | W69: ( | X69: 1 | Y69: - | Z69: 0 | AA69: )
B70: 45 | C70: Fin 3 | E70: ( | F70: 1 | G70: - | H70: 0 | I70: ) | K70: 45 | L70: Fin 3 | N70: ( | O70: 1 | P70: - | Q70: 0 | R70: ) | U70: Fin 3 | W70: ( | X70: 1 | Y70: - | Z70: 0 | AA70: )
B71: 45 | C71: Fin 3 | E71: ( | F71: 1 | G71: - | H71: 0 | I71: ) | K71: 45 | L71: Fin 3 | N71: ( | O71: 1 | P71: - | Q71: 0 | R71: ) | U71: Fin 3 | W71: ( | X71: 1 | Y71: - | Z71: 0 | AA71: )
B72: 45 | C72: Fin 3 | E72: ( | F72: 1 | G72: - | H72: 0 | I72: ) | K72: 45 | L72: Fin 3 | N72: ( | O72: 1 | P72: - | Q72: 0 | R72: ) | U72: Fin 3 | W72: ( | X72: 1 | Y72: - | Z72: 0 | AA72: )
B73: 45 | C73: Fin 1 | E73: ( | F73: 1 | G73: - | H73: 0 | I73: ) | K73: 45 | L73: Fin 1 | N73: ( | O73: 1 | P73: - | Q73: 0 | R73: ) | U73: Fin 1 | W73: ( | X73: 1 | Y73: - | Z73: 0 | AA73: )
B74: 45 | C74: Fin 1 | E74: ( | F74: 1 | G74: - | H74: 0 | I74: ) | K74: 45 | L74: Fin 1 | N74: ( | O74: 1 | P74: - | Q74: 0 | R74: ) | U74: Fin 1 | W74: ( | X74: 1 | Y74: - | Z74: 0 | AA74: )
B75: 45 | C75: Fin 1 | E75: ( | F75: 1 | G75: - | H75: 0 | I75: ) | K75: 45 | L75: Fin 1 | N75: ( | O75: 1 | P75: - | Q75: 0 | R75: ) | U75: Fin 1 | W75: ( | X75: 1 | Y75: - | Z75: 0 | AA75: )
B76: 45 | C76: Fin 1 | E76: ( | F76: 1 | G76: - | H76: 0 | I76: ) | K76: 45 | L76: Fin 1 | N76: ( | O76: 1 | P76: - | Q76: =O76+M76-1 -> 0 | R76: ) | U76: Fin 1 | W76: ( | X76: 1 | Y76: - | Z76: 0 | AA76: )
B77: 45 | C77: Fin 1 | E77: ( | F77: 1 | G77: - | H77: 0 | I77: ) | K77: 45 | L77: Fin 1 | N77: ( | O77: 1 | P77: - | Q77: =O77+M77-1 -> 0 | R77: ) | U77: Fin 1 | W77: ( | X77: 1 | Y77: - | Z77: 0 | AA77: )
B78: 45 | C78: Fin 1 | E78: ( | F78: 1 | G78: - | H78: 0 | I78: ) | K78: 45 | L78: Fin 1 | N78: ( | O78: 1 | P78: - | Q78: 0 | R78: ) | U78: Fin 1 | W78: ( | X78: 1 | Y78: - | Z78: 0 | AA78: )
B79: 45 | C79: Fin 1 | E79: ( | F79: 1 | G79: - | H79: 0 | I79: ) | K79: 45 | L79: Fin 1 | N79: ( | O79: 1 | P79: - | Q79: 0 | R79: ) | U79: Fin 1 | W79: ( | X79: 1 | Y79: - | Z79: 0 | AA79: )
B80: 45 | C80: Fin 1 | E80: ( | F80: 1 | G80: - | H80: 0 | I80: ) | K80: 45 | L80: Fin 1 | N80: ( | O80: 1 | P80: - | Q80: 0 | R80: ) | U80: Fin 1 | W80: ( | X80: 1 | Y80: - | Z80: 0 | AA80: )
B81: 45 | C81: Fin 1 | E81: ( | F81: 1 | G81: - | H81: 0 | I81: ) | K81: 45 | L81: Fin 1 | N81: ( | O81: 1 | P81: - | Q81: 0 | R81: ) | U81: Fin 1 | W81: ( | X81: 1 | Y81: - | Z81: 0 | AA81: )
B82: 45 | C82: Fin 1 | E82: ( | F82: 1 | G82: - | H82: 0 | I82: ) | K82: 45 | L82: Fin 1 | N82: ( | O82: 1 | P82: - | Q82: 0 | R82: ) | U82: Fin 1 | W82: ( | X82: 1 | Y82: - | Z82: 0 | AA82: )
B83: 45 | C83: Fin 1 | E83: ( | F83: 1 | G83: - | H83: 0 | I83: ) | K83: 45 | L83: Fin 1 | N83: ( | O83: 1 | P83: - | Q83: 0 | R83: ) | U83: Fin 1 | W83: ( | X83: 1 | Y83: - | Z83: 0 | AA83: )
B84: 45 | C84: Fin 1 | E84: ( | F84: =H83+1 -> 1 | G84: - | H84: =F84+D84-1 -> 0 | I84: ) | K84: 45 | L84: Fin 1 | N84: ( | O84: =Q83+1 -> 1 | P84: - | Q84: =O84+M84-1 -> 0 | R84: ) | U84: Fin 1 | W84: ( | X84: 1 | Y84: - | Z84: =X84+V84-1 -> 0 | AA84: )
B85: 45 | C85: Fin 1 | E85: ( | F85: 1 | G85: - | H85: 0 | I85: ) | K85: 45 | L85: Fin 1 | N85: ( | O85: 1 | P85: - | Q85: 0 | R85: ) | U85: Fin 1 | W85: ( | X85: 1 | Y85: - | Z85: 0 | AA85: )
B86: 45 | C86: Fin 1 | E86: ( | F86: 1 | G86: - | H86: 0 | I86: ) | K86: 45 | L86: Fin 1 | N86: ( | O86: 1 | P86: - | Q86: 0 | R86: ) | U86: Fin 1 | W86: ( | X86: 1 | Y86: - | Z86: 0 | AA86: )
B87: 45 | C87: Fin 1 | E87: ( | F87: 1 | G87: - | H87: 0 | I87: ) | K87: 45 | L87: Fin 1 | N87: ( | O87: 1 | P87: - | Q87: 0 | R87: ) | U87: Fin 1 | W87: ( | X87: 1 | Y87: - | Z87: 0 | AA87: )
B88: 45 | C88: Fin 1 | E88: ( | F88: 1 | G88: - | H88: 0 | I88: ) | K88: 45 | L88: Fin 1 | N88: ( | O88: =Q87+1 -> 1 | P88: - | Q88: =O88+M88-1 -> 0 | R88: ) | U88: Fin 1 | W88: ( | X88: 1 | Y88: - | Z88: 0 | AA88: )
B89: 45 | C89: Fin 3 | E89: ( | F89: 1 | G89: - | H89: 0 | I89: ) | K89: 45 | L89: Fin 1 | N89: ( | O89: =Q88+1 -> 1 | P89: - | Q89: =O89+M89-1 -> 0 | R89: ) | T89: 45 | U89: Fin 3 | W89: ( | X89: 1 | Y89: - | Z89: 0 | AA89: )
B90: 45 | C90: Fin 1 | E90: ( | F90: 1 | G90: - | H90: 0 | I90: ) | K90: 45 | L90: Fin 1 | N90: ( | O90: 1 | P90: - | Q90: 0 | R90: ) | T90: 45 | U90: Fin 1 | W90: ( | X90: 1 | Y90: - | Z90: 0 | AA90: )
B91: 45 | C91: Fin 3 | E91: ( | F91: 1 | G91: - | H91: 0 | I91: ) | K91: 45 | L91: Fin 1 | N91: ( | O91: 1 | P91: - | Q91: 0 | R91: ) | T91: 45 | U91: Fin 3 | W91: ( | X91: 1 | Y91: - | Z91: 0 | AA91: )
B92: 45 | C92: Fin 1 | E92: ( | F92: 1 | G92: - | H92: 0 | I92: ) | K92: 45 | L92: Fin 1 | N92: ( | O92: 1 | P92: - | Q92: 0 | R92: ) | T92: 45 | U92: Fin 1 | W92: ( | X92: 1 | Y92: - | Z92: 0 | AA92: )
B93: 45 | C93: Fin 3 | E93: ( | F93: 1 | G93: - | H93: 0 | I93: ) | K93: 45 | L93: Fin 1 | N93: ( | O93: 1 | P93: - | Q93: 0 | R93: ) | T93: 45 | U93: Fin 3 | W93: ( | X93: 1 | Y93: - | Z93: 0 | AA93: )
B94: 45 | C94: Fin 1 | E94: ( | F94: 1 | G94: - | H94: 0 | I94: ) | K94: 45 | L94: Fin 1 | N94: ( | O94: 1 | P94: - | Q94: 0 | R94: ) | T94: 45 | U94: Fin 1 | W94: ( | X94: 1 | Y94: - | Z94: 0 | AA94: )
B95: 45 | C95: Fin 3 | E95: ( | F95: 1 | G95: - | H95: 0 | I95: ) | K95: 45 | L95: Fin 1 | N95: ( | O95: 1 | P95: - | Q95: 0 | R95: ) | T95: 45 | U95: Fin 3 | W95: ( | X95: 1 | Y95: - | Z95: 0 | AA95: )
B96: 45 | C96: Fin 1 | E96: ( | F96: 1 | G96: - | H96: 0 | I96: ) | K96: 45 | L96: Fin 1 | N96: ( | O96: 1 | P96: - | Q96: 0 | R96: ) | T96: 45 | U96: Fin 1 | W96: ( | X96: 1 | Y96: - | Z96: 0 | AA96: )
B97: 45 | C97: Fin 3 | E97: ( | F97: 1 | G97: - | H97: 0 | I97: ) | K97: 45 | L97: Fin 1 | N97: ( | O97: 1 | P97: - | Q97: 0 | R97: ) | T97: 45 | U97: Fin 3 | W97: ( | X97: 1 | Y97: - | Z97: 0 | AA97: )
B98: 45 | C98: Fin 1 | E98: ( | F98: 1 | G98: - | H98: 0 | I98: ) | K98: 45 | L98: Fin 1 | N98: ( | O98: 1 | P98: - | Q98: 0 | R98: ) | T98: 45 | U98: Fin 1 | W98: ( | X98: 1 | Y98: - | Z98: 0 | AA98: )
B99: 45 | C99: Fin 3 | E99: ( | F99: 1 | G99: - | H99: 0 | I99: ) | K99: 45 | L99: Fin 1 | N99: ( | O99: 1 | P99: - | Q99: 0 | R99: ) | T99: 45 | U99: Fin 3 | W99: ( | X99: 1 | Y99: - | Z99: 0 | AA99: )
B100: 45 | C100: Fin 1 | E100: ( | F100: 1 | G100: - | H100: 0 | I100: ) | K100: 45 | L100: Fin 1 | N100: ( | O100: 1 | P100: - | Q100: 0 | R100: ) | T100: 45 | U100: Fin 1 | W100: ( | X100: 1 | Y100: - | Z100: 0 | AA100: )
B101: 45 | C101: Fin 3 | E101: ( | F101: 1 | G101: - | H101: 0 | I101: ) | K101: 45 | L101: Fin 1 | N101: ( | O101: 1 | P101: - | Q101: 0 | R101: ) | T101: 45 | U101: Fin 3 | W101: ( | X101: 1 | Y101: - | Z101: 0 | AA101: )
B102: 45 | C102: Fin 1 | E102: ( | F102: 1 | G102: - | H102: 0 | I102: ) | K102: 45 | L102: Fin 1 | N102: ( | O102: 1 | P102: - | Q102: 0 | R102: ) | T102: 45 | U102: Fin 1 | W102: ( | X102: 1 | Y102: - | Z102: 0 | AA102: )
B103: 45 | C103: Fin 3 | E103: ( | F103: 1 | G103: - | H103: 0 | I103: ) | K103: 45 | L103: Fin 1 | N103: ( | O103: 1 | P103: - | Q103: 0 | R103: ) | T103: 45 | U103: Fin 3 | W103: ( | X103: 1 | Y103: - | Z103: 0 | AA103: )
B104: 45 | C104: Fin 1 | E104: ( | F104: 1 | G104: - | H104: 0 | I104: ) | K104: 45 | L104: Fin 1 | N104: ( | O104: 1 | P104: - | Q104: 0 | R104: ) | T104: 45 | U104: Fin 1 | W104: ( | X104: 1 | Y104: - | Z104: 0 | AA104: )
B105: 45 | C105: Fin 3 | E105: ( | F105: 1 | G105: - | H105: 0 | I105: ) | K105: 45 | L105: Fin 1 | N105: ( | O105: 1 | P105: - | Q105: 0 | R105: ) | T105: 45 | U105: Fin 3 | W105: ( | X105: 1 | Y105: - | Z105: 0 | AA105: )
B106: 45 | C106: Fin 1 | E106: ( | F106: 1 | G106: - | H106: 0 | I106: ) | K106: 45 | L106: Fin 1 | N106: ( | O106: 1 | P106: - | Q106: 0 | R106: ) | T106: 45 | U106: Fin 1 | W106: ( | X106: 1 | Y106: - | Z106: 0 | AA106: )
B107: 45 | C107: Fin 3 | E107: ( | F107: 1 | G107: - | H107: 0 | I107: ) | K107: 45 | L107: Fin 1 | N107: ( | O107: 1 | P107: - | Q107: 0 | R107: ) | T107: 45 | U107: Fin 3 | W107: ( | X107: 1 | Y107: - | Z107: 0 | AA107: )
B108: 45 | C108: Fin 1 | E108: ( | F108: 1 | G108: - | H108: 0 | I108: ) | K108: 45 | L108: Fin 1 | N108: ( | O108: 1 | P108: - | Q108: 0 | R108: ) | T108: 45 | U108: Fin 1 | W108: ( | X108: 1 | Y108: - | Z108: 0 | AA108: )
B109: 45 | C109: Fin 3 | E109: ( | F109: 1 | G109: - | H109: 0 | I109: ) | K109: 45 | L109: Fin 1 | N109: ( | O109: 1 | P109: - | Q109: 0 | R109: ) | T109: 45 | U109: Fin 3 | W109: ( | X109: 1 | Y109: - | Z109: 0 | AA109: )
B110: 45 | C110: Fin 1 | E110: ( | F110: 1 | G110: - | H110: 0 | I110: ) | K110: 45 | L110: Fin 1 | N110: ( | O110: 1 | P110: - | Q110: 0 | R110: ) | T110: 45 | U110: Fin 1 | W110: ( | X110: 1 | Y110: - | Z110: 0 | AA110: )
B111: 45 | C111: Fin 1 | E111: ( | F111: 1 | G111: - | H111: 0 | I111: ) | K111: 45 | L111: Fin 1 | N111: ( | O111: 1 | P111: - | Q111: 0 | R111: ) | T111: 45 | U111: Fin 3 | W111: ( | X111: 1 | Y111: - | Z111: 0 | AA111: )
B112: 45 | C112: Fin 1 | E112: ( | F112: 1 | G112: - | H112: 0 | I112: ) | K112: 45 | L112: Fin 1 | N112: ( | O112: 1 | P112: - | Q112: 0 | R112: ) | T112: 45 | U112: Fin 1 | W112: ( | X112: 1 | Y112: - | Z112: 0 | AA112: )
B113: 45 | C113: Fin 1 | E113: ( | F113: 1 | G113: - | H113: 0 | I113: ) | K113: 45 | L113: Fin 1 | N113: ( | O113: 1 | P113: - | Q113: 0 | R113: ) | T113: 45 | U113: Fin 1 | W113: ( | X113: 1 | Y113: - | Z113: 0 | AA113: )
D115: =SUM(D64:D113) -> 0 | M115: =SUM(M64:M113) -> 0 | V115: =SUM(V64:V113) -> 0
B117: 20.00-20.30 | D117: Награждение победителей и призеров - Rewarding of winners and prize-winners | T117: =T61 -> 44, 55, 66, 77, 88, 99 кг
B119: Внимание! В программе могут быть изменения - Attention! Тhe program can be changed!

Sheet 4_mat (hidden)
B2: Распорядок дня - The work schedule
B4: =Inf!B4 -> ХХХI-Всероссийский турнир по греко-римской борьбе,посвященный памяти ректора Ленинградского финансово-экономического института им.Н.А.Вознесенского /ныне Санкт-Петербургского государственного экономического университета,з.д.н.России Лаврикова Юрия Александровича.
B6: дата проведения | AC6: =Inf!F5 -> Санкт-Петербург
B8: 08.00-08.30 | D8: Медицинский контроль и 2 взвешивание борцов - Medical control and II weighing of wrestlers | AC8: 44, 55, 66, 77, 88, 99 кг
B9: 08.00-08.30 | D9: Медицинский контроль и 1 взвешивание борцов - Medical control and I weighing of wrestlers | AC9: 22, 33, 44, 55, 66, 77 кг
B10: 10.00-10.30 | D10: Торжественное открытие соревнований - Opening ceremony
B11: 10.00-16.45 | D11: Утешительные поединки - Repechage rounds | AC11: =AC8 -> 44, 55, 66, 77, 88, 99 кг
B12: 10.00-16.45 | D12: Предварительные поединки - Preliminary rounds | AC12: =AC9 -> 22, 33, 44, 55, 66, 77 кг
B14: Mat А | E14: 59, 71, 80, 98, 130 | K14: Mat В | N14: 59, 71, 80, 98, 130 | T14: Mat C | W14: 59, 71, 80, 98, 130 | AC14: Mat D | AF14: 59, 71, 80, 98, 130
B15: 0 | C15: квалиф | E15: ( | F15: 1 | G15: - | H15: =F15+D15-1 -> 0 | I15: ) | K15: 0 | L15: квалиф | N15: ( | O15: =H54+1 -> 1 | P15: - | Q15: =O15+M15-1 -> 0 | R15: ) | T15: 0 | U15: квалиф | W15: ( | X15: =Q54+1 -> 1 | Y15: - | Z15: =X15+V15-1 -> 0 | AA15: ) | AC15: 0 | AD15: квалиф | AF15: ( | AG15: =Z54+1 -> 1 | AH15: - | AI15: =AG15+AE15-1 -> 0 | AJ15: )
B16: 0 | C16: квалиф | E16: ( | F16: =H15+1 -> 1 | G16: - | H16: =F16+D16-1 -> 0 | I16: ) | K16: 0 | L16: квалиф | N16: ( | O16: =Q15+1 -> 1 | P16: - | Q16: =O16+M16-1 -> 0 | R16: ) | T16: =X14 -> 0 | U16: квалиф | W16: ( | X16: =Z15+1 -> 1 | Y16: - | Z16: =X16+V16-1 -> 0 | AA16: ) | AC16: =AG14 -> 0 | AD16: квалиф | AF16: ( | AG16: =AI15+1 -> 1 | AH16: - | AI16: =AG16+AE16-1 -> 0 | AJ16: )
B17: 0 | C17: квалиф | E17: ( | F17: =H16+1 -> 1 | G17: - | H17: =F17+D17-1 -> 0 | I17: ) | K17: 0 | L17: квалиф | N17: ( | O17: =Q16+1 -> 1 | P17: - | Q17: =O17+M17-1 -> 0 | R17: ) | T17: =Y14 -> 0 | U17: квалиф | W17: ( | X17: =Z16+1 -> 1 | Y17: - | Z17: =X17+V17-1 -> 0 | AA17: ) | AC17: =AH14 -> 0 | AD17: квалиф | AF17: ( | AG17: =AI16+1 -> 1 | AH17: - | AI17: =AG17+AE17-1 -> 0 | AJ17: )
B18: 0 | C18: квалиф | E18: ( | F18: 1 | G18: - | H18: =F18+D18-1 -> 0 | I18: ) | K18: 0 | L18: квалиф | N18: ( | O18: 1 | P18: - | Q18: =O18+M18-1 -> 0 | R18: ) | T18: 0 | U18: квалиф | W18: ( | X18: 1 | Y18: - | Z18: =X18+V18-1 -> 0 | AA18: ) | AC18: 0 | AD18: квалиф | AF18: ( | AG18: 1 | AH18: - | AI18: =AG18+AE18-1 -> 0 | AJ18: )
B19: 0 | C19: квалиф | E19: ( | F19: 1 | G19: - | H19: =F19+D19-1 -> 0 | I19: ) | K19: 0 | L19: квалиф | N19: ( | O19: 1 | P19: - | Q19: =O19+M19-1 -> 0 | R19: ) | T19: =AA14 -> 0 | U19: квалиф | W19: ( | X19: 1 | Y19: - | Z19: =X19+V19-1 -> 0 | AA19: ) | AC19: =AJ14 -> 0 | AD19: квалиф | AF19: ( | AG19: 1 | AH19: - | AI19: =AG19+AE19-1 -> 0 | AJ19: )
B20: 0 | C20: 1/16 ф | E20: ( | F20: 1 | G20: - | H20: 0 | I20: ) | K20: 0 | L20: 1/16 ф | N20: ( | O20: 1 | P20: - | Q20: 0 | R20: ) | T20: =T15 -> 0 | U20: 1/16 ф | W20: ( | X20: 1 | Y20: - | Z20: 0 | AA20: ) | AC20: =AC15 -> 0 | AD20: 1/16 ф | AF20: ( | AG20: 1 | AH20: - | AI20: 0 | AJ20: )
B21: 0 | C21: 1/16 ф | E21: ( | F21: 1 | G21: - | H21: 0 | I21: ) | K21: 0 | L21: 1/16 ф | N21: ( | O21: 1 | P21: - | Q21: 0 | R21: ) | T21: =T16 -> 0 | U21: 1/16 ф | W21: ( | X21: 1 | Y21: - | Z21: 0 | AA21: ) | AC21: =AC16 -> 0 | AD21: 1/16 ф | AF21: ( | AG21: 1 | AH21: - | AI21: 0 | AJ21: )
B22: 0 | C22: 1/16 ф | E22: ( | F22: 1 | G22: - | H22: 0 | I22: ) | K22: 0 | L22: 1/16 ф | N22: ( | O22: 1 | P22: - | Q22: 0 | R22: ) | T22: 0 | U22: 1/16 ф | W22: ( | X22: 1 | Y22: - | Z22: 0 | AA22: ) | AC22: 0 | AD22: 1/16 ф | AF22: ( | AG22: 1 | AH22: - | AI22: 0 | AJ22: )
B23: 0 | C23: 1/16 ф | E23: ( | F23: 1 | G23: - | H23: 0 | I23: ) | K23: 0 | L23: 1/16 ф | N23: ( | O23: 1 | P23: - | Q23: 0 | R23: ) | T23: 0 | U23: 1/16 ф | W23: ( | X23: 1 | Y23: - | Z23: 0 | AA23: ) | AC23: 0 | AD23: 1/16 ф | AF23: ( | AG23: 1 | AH23: - | AI23: 0 | AJ23: )
B24: 0 | C24: 1/16 ф | E24: ( | F24: 1 | G24: - | H24: 0 | I24: ) | K24: 0 | L24: 1/16 ф | N24: ( | O24: 1 | P24: - | Q24: 0 | R24: ) | T24: 0 | U24: 1/16 ф | W24: ( | X24: 1 | Y24: - | Z24: 0 | AA24: ) | AC24: 0 | AD24: 1/16 ф | AF24: ( | AG24: 1 | AH24: - | AI24: 0 | AJ24: )
B25: 0 | C25: 1/8 ф | E25: ( | F25: 1 | G25: - | H25: 0 | I25: ) | K25: 0 | L25: 1/8 ф | N25: ( | O25: 1 | P25: - | Q25: 0 | R25: ) | T25: 0 | U25: 1/8 ф | W25: ( | X25: 1 | Y25: - | Z25: 0 | AA25: ) | AC25: 0 | AD25: 1/8 ф | AF25: ( | AG25: 1 | AH25: - | AI25: 0 | AJ25: )
B26: 0 | C26: 1/8 ф | E26: ( | F26: 1 | G26: - | H26: 0 | I26: ) | K26: 0 | L26: 1/8 ф | N26: ( | O26: 1 | P26: - | Q26: 0 | R26: ) | T26: 0 | U26: 1/8 ф | W26: ( | X26: 1 | Y26: - | Z26: 0 | AA26: ) | AC26: 0 | AD26: 1/8 ф | AF26: ( | AG26: 1 | AH26: - | AI26: 0 | AJ26: )
B27: 0 | C27: 1/8 ф | E27: ( | F27: 1 | G27: - | H27: =F27+D27-1 -> 0 | I27: ) | K27: 0 | L27: 1/8 ф | N27: ( | O27: 1 | P27: - | Q27: =O27+M27-1 -> 0 | R27: ) | T27: 0 | U27: 1/8 ф | W27: ( | X27: 1 | Y27: - | Z27: =X27+V27-1 -> 0 | AA27: ) | AC27: 0 | AD27: 1/8 ф | AF27: ( | AG27: 1 | AH27: - | AI27: =AG27+AE27-1 -> 0 | AJ27: )
B28: 0 | C28: 1/8 ф | E28: ( | F28: 1 | G28: - | H28: =F28+D28-1 -> 0 | I28: ) | K28: 0 | L28: 1/8 ф | N28: ( | O28: 1 | P28: - | Q28: =O28+M28-1 -> 0 | R28: ) | T28: 0 | U28: 1/8 ф | W28: ( | X28: 1 | Y28: - | Z28: =X28+V28-1 -> 0 | AA28: ) | AC28: 0 | AD28: 1/8 ф | AF28: ( | AG28: 1 | AH28: - | AI28: =AG28+AE28-1 -> 0 | AJ28: )
B29: 0 | C29: 1/8 ф | E29: ( | F29: 1 | G29: - | H29: =F29+D29-1 -> 0 | I29: ) | K29: 0 | L29: 1/8 ф | N29: ( | O29: 1 | P29: - | Q29: =O29+M29-1 -> 0 | R29: ) | T29: 0 | U29: 1/8 ф | W29: ( | X29: 1 | Y29: - | Z29: =X29+V29-1 -> 0 | AA29: ) | AC29: 0 | AD29: 1/8 ф | AF29: ( | AG29: 1 | AH29: - | AI29: =AG29+AE29-1 -> 0 | AJ29: )
B30: 0 | C30: 1/4 ф | E30: ( | F30: 1 | G30: - | H30: =F30+D30-1 -> 0 | I30: ) | K30: 0 | L30: 1/4 ф | N30: ( | O30: 1 | P30: - | Q30: =O30+M30-1 -> 0 | R30: ) | T30: 0 | U30: 1/4 ф | W30: ( | X30: 1 | Y30: - | Z30: =X30+V30-1 -> 0 | AA30: ) | AC30: 0 | AD30: 1/4 ф | AF30: ( | AG30: 1 | AH30: - | AI30: =AG30+AE30-1 -> 0 | AJ30: )
B31: 0 | C31: 1/4 ф | E31: ( | F31: 1 | G31: - | H31: 0 | I31: ) | K31: 0 | L31: 1/4 ф | N31: ( | O31: 1 | P31: - | Q31: 0 | R31: ) | T31: 0 | U31: 1/4 ф | W31: ( | X31: 1 | Y31: - | Z31: 0 | AA31: ) | AC31: 0 | AD31: 1/4 ф | AF31: ( | AG31: 1 | AH31: - | AI31: 0 | AJ31: )
B32: 0 | C32: 1/4 ф | E32: ( | F32: 1 | G32: - | H32: 0 | I32: ) | K32: 0 | L32: 1/4 ф | N32: ( | O32: 1 | P32: - | Q32: 0 | R32: ) | T32: 0 | U32: 1/4 ф | W32: ( | X32: 1 | Y32: - | Z32: 0 | AA32: ) | AC32: 0 | AD32: 1/4 ф | AF32: ( | AG32: 1 | AH32: - | AI32: 0 | AJ32: )
B33: 0 | C33: 1/4 ф | E33: ( | F33: 1 | G33: - | H33: 0 | I33: ) | K33: 0 | L33: 1/4 ф | N33: ( | O33: 1 | P33: - | Q33: 0 | R33: ) | T33: 0 | U33: 1/4 ф | W33: ( | X33: 1 | Y33: - | Z33: 0 | AA33: ) | AC33: 0 | AD33: 1/4 ф | AF33: ( | AG33: 1 | AH33: - | AI33: 0 | AJ33: )
B34: 0 | C34: 1/4 ф | E34: ( | F34: 1 | G34: - | H34: 0 | I34: ) | K34: 0 | L34: 1/4 ф | N34: ( | O34: 1 | P34: - | Q34: 0 | R34: ) | T34: 0 | U34: 1/4 ф | W34: ( | X34: 1 | Y34: - | Z34: 0 | AA34: ) | AC34: 0 | AD34: 1/4 ф | AF34: ( | AG34: 1 | AH34: - | AI34: 0 | AJ34: )
B35: 0 | C35: 1/2 ф | E35: ( | F35: 1 | G35: - | H35: 0 | I35: ) | K35: 0 | L35: 1/2 ф | N35: ( | O35: 1 | P35: - | Q35: 0 | R35: ) | T35: 0 | U35: 1/2 ф | W35: ( | X35: 1 | Y35: - | Z35: 0 | AA35: ) | AC35: 0 | AD35: 1/2 ф | AF35: ( | AG35: 1 | AH35: - | AI35: 0 | AJ35: )
B36: 0 | C36: 1/2 ф | E36: ( | F36: 1 | G36: - | H36: 0 | I36: ) | K36: 0 | L36: 1/2 ф | N36: ( | O36: 1 | P36: - | Q36: 0 | R36: ) | T36: 0 | U36: 1/2 ф | W36: ( | X36: 1 | Y36: - | Z36: 0 | AA36: ) | AC36: 0 | AD36: 1/2 ф | AF36: ( | AG36: 1 | AH36: - | AI36: 0 | AJ36: )
B37: 0 | C37: 1/2 ф | E37: ( | F37: 1 | G37: - | H37: 0 | I37: ) | K37: 0 | L37: 1/2 ф | N37: ( | O37: 1 | P37: - | Q37: 0 | R37: ) | T37: 0 | U37: 1/2 ф | W37: ( | X37: 1 | Y37: - | Z37: 0 | AA37: ) | AC37: 0 | AD37: 1/2 ф | AF37: ( | AG37: 1 | AH37: - | AI37: 0 | AJ37: )
B38: 0 | C38: 1/2 ф | E38: ( | F38: 1 | G38: - | H38: 0 | I38: ) | K38: 0 | L38: 1/2 ф | N38: ( | O38: 1 | P38: - | Q38: 0 | R38: ) | T38: 0 | U38: 1/2 ф | W38: ( | X38: 1 | Y38: - | Z38: 0 | AA38: ) | AC38: 0 | AD38: 1/2 ф | AF38: ( | AG38: 1 | AH38: - | AI38: 0 | AJ38: )
B39: 0 | C39: 1/2 ф | E39: ( | F39: 1 | G39: - | H39: 0 | I39: ) | K39: 0 | L39: 1/2 ф | N39: ( | O39: 1 | P39: - | Q39: 0 | R39: ) | T39: 0 | U39: 1/2 ф | W39: ( | X39: 1 | Y39: - | Z39: 0 | AA39: ) | AC39: 0 | AD39: 1/2 ф | AF39: ( | AG39: 1 | AH39: - | AI39: 0 | AJ39: )
B40: 0 | C40: ут 1 | E40: ( | F40: 1 | G40: - | H40: 0 | I40: ) | K40: 0 | L40: ут 1 | N40: ( | O40: 1 | P40: - | Q40: 0 | R40: ) | T40: 0 | U40: ут 1 | W40: ( | X40: 1 | Y40: - | Z40: 0 | AA40: ) | AC40: 0 | AD40: ут 1 | AF40: ( | AG40: 1 | AH40: - | AI40: 0 | AJ40: )
B41: 0 | C41: ут 1 | E41: ( | F41: 1 | G41: - | H41: 0 | I41: ) | K41: 0 | L41: ут 1 | N41: ( | O41: 1 | P41: - | Q41: 0 | R41: ) | T41: 0 | U41: ут 1 | W41: ( | X41: 1 | Y41: - | Z41: 0 | AA41: ) | AC41: 0 | AD41: ут 1 | AF41: ( | AG41: 1 | AH41: - | AI41: 0 | AJ41: )
B42: 0 | C42: ут 1 | E42: ( | F42: 1 | G42: - | H42: 0 | I42: ) | K42: 0 | L42: ут 1 | N42: ( | O42: 1 | P42: - | Q42: 0 | R42: ) | T42: 0 | U42: ут 1 | W42: ( | X42: 1 | Y42: - | Z42: 0 | AA42: ) | AC42: 0 | AD42: ут 1 | AF42: ( | AG42: 1 | AH42: - | AI42: 0 | AJ42: )
B43: 0 | C43: ут 1 | E43: ( | F43: 1 | G43: - | H43: 0 | I43: ) | K43: 0 | L43: ут 1 | N43: ( | O43: 1 | P43: - | Q43: 0 | R43: ) | T43: 0 | U43: ут 2 | W43: ( | X43: 1 | Y43: - | Z43: 0 | AA43: ) | AC43: 0 | AD43: ут 2 | AF43: ( | AG43: 1 | AH43: - | AI43: 0 | AJ43: )
B44: 0 | C44: ут 1 | E44: ( | F44: 1 | G44: - | H44: 0 | I44: ) | K44: 0 | L44: ут 1 | N44: ( | O44: 1 | P44: - | Q44: 0 | R44: ) | T44: 0 | U44: ут 1 | W44: ( | X44: 1 | Y44: - | Z44: 0 | AA44: ) | AC44: 0 | AD44: ут 1 | AF44: ( | AG44: 1 | AH44: - | AI44: 0 | AJ44: )
B45: 0 | C45: ут 2 | E45: ( | F45: 1 | G45: - | H45: 0 | I45: ) | K45: 0 | L45: ут 2 | N45: ( | O45: 1 | P45: - | Q45: 0 | R45: ) | T45: 0 | U45: ут 2 | W45: ( | X45: 1 | Y45: - | Z45: 0 | AA45: ) | AC45: 0 | AD45: ут 2 | AF45: ( | AG45: 1 | AH45: - | AI45: 0 | AJ45: )
B46: 0 | C46: ут 2 | E46: ( | F46: 1 | G46: - | H46: 0 | I46: ) | K46: 0 | L46: ут 2 | N46: ( | O46: 1 | P46: - | Q46: 0 | R46: ) | T46: 0 | U46: ут 2 | W46: ( | X46: 1 | Y46: - | Z46: 0 | AA46: ) | AC46: 0 | AD46: ут 2 | AF46: ( | AG46: 1 | AH46: - | AI46: 0 | AJ46: )
B47: 0 | C47: ут 2 | E47: ( | F47: 1 | G47: - | H47: 0 | I47: ) | K47: 0 | L47: ут 2 | N47: ( | O47: 1 | P47: - | Q47: 0 | R47: ) | T47: 0 | U47: ут 2 | W47: ( | X47: 1 | Y47: - | Z47: 0 | AA47: ) | AC47: 0 | AD47: ут 2 | AF47: ( | AG47: 1 | AH47: - | AI47: 0 | AJ47: )
B48: 0 | C48: ут 2 | E48: ( | F48: 1 | G48: - | H48: 0 | I48: ) | K48: 0 | L48: ут 2 | N48: ( | O48: 1 | P48: - | Q48: 0 | R48: ) | T48: 0 | U48: ут 2 | W48: ( | X48: 1 | Y48: - | Z48: 0 | AA48: ) | AC48: 0 | AD48: ут 2 | AF48: ( | AG48: 1 | AH48: - | AI48: 0 | AJ48: )
B49: 0 | C49: ут 2 | E49: ( | F49: 1 | G49: - | H49: 0 | I49: ) | K49: 0 | L49: ут 2 | N49: ( | O49: 1 | P49: - | Q49: 0 | R49: ) | T49: 0 | U49: ут 2 | W49: ( | X49: 1 | Y49: - | Z49: 0 | AA49: ) | AC49: 0 | AD49: ут 2 | AF49: ( | AG49: 1 | AH49: - | AI49: 0 | AJ49: )
B50: 0 | C50: ут 3 | E50: ( | F50: 1 | G50: - | H50: 0 | I50: ) | K50: 0 | L50: ут 3 | N50: ( | O50: 1 | P50: - | Q50: 0 | R50: ) | T50: 0 | U50: ут 3 | W50: ( | X50: 1 | Y50: - | Z50: 0 | AA50: ) | AC50: 0 | AD50: ут 3 | AF50: ( | AG50: 1 | AH50: - | AI50: 0 | AJ50: )
B51: 0 | C51: ут 3 | E51: ( | F51: 1 | G51: - | H51: 0 | I51: ) | K51: 0 | L51: ут 3 | N51: ( | O51: 1 | P51: - | Q51: 0 | R51: ) | T51: 0 | U51: ут 3 | W51: ( | X51: 1 | Y51: - | Z51: 0 | AA51: ) | AC51: 0 | AD51: ут 3 | AF51: ( | AG51: 1 | AH51: - | AI51: 0 | AJ51: )
B52: 0 | C52: ут 3 | E52: ( | F52: 1 | G52: - | H52: 0 | I52: ) | K52: 0 | L52: ут 3 | N52: ( | O52: 1 | P52: - | Q52: 0 | R52: ) | T52: 0 | U52: ут 3 | W52: ( | X52: 1 | Y52: - | Z52: 0 | AA52: ) | AC52: 0 | AD52: ут 3 | AF52: ( | AG52: 1 | AH52: - | AI52: 0 | AJ52: )
B53: 0 | C53: ут 3 | E53: ( | F53: 1 | G53: - | H53: 0 | I53: ) | K53: 0 | L53: ут 3 | N53: ( | O53: 1 | P53: - | Q53: 0 | R53: ) | T53: 0 | U53: ут 3 | W53: ( | X53: 1 | Y53: - | Z53: 0 | AA53: ) | AC53: 0 | AD53: ут 3 | AF53: ( | AG53: 1 | AH53: - | AI53: 0 | AJ53: )
B54: 0 | C54: ут 3 | E54: ( | F54: 1 | G54: - | H54: 0 | I54: ) | K54: 0 | L54: ут 3 | N54: ( | O54: 1 | P54: - | Q54: 0 | R54: ) | T54: 0 | U54: ут 3 | W54: ( | X54: 1 | Y54: - | Z54: 0 | AA54: ) | AC54: 0 | AD54: ут 3 | AF54: ( | AG54: 1 | AH54: - | AI54: 0 | AJ54: )
D56: =SUM(D15:D55) -> 0 | M56: =SUM(M15:M54) -> 0 | V56: =SUM(V15:V54) -> 0 | AE56: =SUM(AE15:AE54) -> 0
B58: 14.30-16.00 | D58: Перерыв - Break
B59: 17.00-17.30 | D59: Торжественное открытие соревнований - Opening ceremony
B60: 17.30-18.00 | D60: Жеребьевка спортсменов - Drawing of athletes | AC60: 22, 33, 44, 55, 66, 77 кг
B61: 18.00-20.00 | D61: Финальные поединки - Final rounds | AC61: =AC11 -> 44, 55, 66, 77, 88, 99 кг
B63: Mat А | E63: 59, 71, 80, 98, 130 | K63: Mat В | N63: 59, 71, 80, 98, 130 | T63: =T14 -> Mat C | W63: 59, 71, 80, 98, 130 | AC63: =AC14 -> Mat D | AF63: =AF14 -> 59, 71, 80, 98, 130
B64: 45 | C64: Fin 3 | E64: ( | F64: =AI54+1 -> 1 | G64: - | H64: =F64+D64-1 -> 0 | I64: ) | K64: 45 | L64: Fin 3 | N64: ( | O64: =H113+1 -> 1 | P64: - | Q64: =O64+M64-1 -> 0 | R64: ) | U64: Fin 3 | W64: ( | X64: =Q113+1 -> 1 | Y64: - | Z64: =X64+V64-1 -> 0 | AA64: ) | AD64: Fin 3 | AF64: ( | AG64: =Z113+1 -> 1 | AH64: - | AI64: =AG64+AE64-1 -> 0 | AJ64: )
B65: 45 | C65: Fin 3 | E65: ( | F65: =H64+1 -> 1 | G65: - | H65: =F65+D65-1 -> 0 | I65: ) | K65: 45 | L65: Fin 3 | N65: ( | O65: =Q64+1 -> 1 | P65: - | Q65: =O65+M65-1 -> 0 | R65: ) | U65: Fin 3 | W65: ( | X65: =Z64+1 -> 1 | Y65: - | Z65: =X65+V65-1 -> 0 | AA65: ) | AD65: Fin 3 | AF65: ( | AG65: =AI64+1 -> 1 | AH65: - | AI65: =AG65+AE65-1 -> 0 | AJ65: )
B66: 45 | C66: Fin 3 | E66: ( | F66: =H65+1 -> 1 | G66: - | H66: 0 | I66: ) | K66: 45 | L66: Fin 3 | N66: ( | O66: =Q65+1 -> 1 | P66: - | Q66: 0 | R66: ) | U66: Fin 3 | W66: ( | X66: =Z65+1 -> 1 | Y66: - | Z66: 0 | AA66: ) | AD66: Fin 3 | AF66: ( | AG66: =AI65+1 -> 1 | AH66: - | AI66: 0 | AJ66: )
B67: 45 | C67: Fin 3 | E67: ( | F67: 1 | G67: - | H67: 0 | I67: ) | K67: 45 | L67: Fin 3 | N67: ( | O67: 1 | P67: - | Q67: 0 | R67: ) | U67: Fin 3 | W67: ( | X67: 1 | Y67: - | Z67: 0 | AA67: ) | AD67: Fin 3 | AF67: ( | AG67: 1 | AH67: - | AI67: 0 | AJ67: )
B68: 45 | C68: Fin 3 | E68: ( | F68: 1 | G68: - | H68: 0 | I68: ) | K68: 45 | L68: Fin 3 | N68: ( | O68: 1 | P68: - | Q68: 0 | R68: ) | U68: Fin 3 | W68: ( | X68: 1 | Y68: - | Z68: 0 | AA68: ) | AD68: Fin 3 | AF68: ( | AG68: 1 | AH68: - | AI68: 0 | AJ68: )
B69: 45 | C69: Fin 3 | E69: ( | F69: 1 | G69: - | H69: 0 | I69: ) | K69: 45 | L69: Fin 3 | N69: ( | O69: 1 | P69: - | Q69: 0 | R69: ) | U69: Fin 3 | W69: ( | X69: 1 | Y69: - | Z69: 0 | AA69: ) | AD69: Fin 3 | AF69: ( | AG69: 1 | AH69: - | AI69: 0 | AJ69: )
B70: 45 | C70: Fin 3 | E70: ( | F70: 1 | G70: - | H70: 0 | I70: ) | K70: 45 | L70: Fin 3 | N70: ( | O70: 1 | P70: - | Q70: 0 | R70: ) | U70: Fin 3 | W70: ( | X70: 1 | Y70: - | Z70: 0 | AA70: ) | AD70: Fin 3 | AF70: ( | AG70: 1 | AH70: - | AI70: 0 | AJ70: )
B71: 45 | C71: Fin 3 | E71: ( | F71: 1 | G71: - | H71: 0 | I71: ) | K71: 45 | L71: Fin 3 | N71: ( | O71: 1 | P71: - | Q71: 0 | R71: ) | U71: Fin 3 | W71: ( | X71: 1 | Y71: - | Z71: 0 | AA71: ) | AD71: Fin 3 | AF71: ( | AG71: 1 | AH71: - | AI71: 0 | AJ71: )
B72: 45 | C72: Fin 3 | E72: ( | F72: 1 | G72: - | H72: 0 | I72: ) | K72: 45 | L72: Fin 3 | N72: ( | O72: 1 | P72: - | Q72: 0 | R72: ) | U72: Fin 3 | W72: ( | X72: 1 | Y72: - | Z72: 0 | AA72: ) | AD72: Fin 3 | AF72: ( | AG72: 1 | AH72: - | AI72: 0 | AJ72: )
B73: 45 | C73: Fin 1 | E73: ( | F73: 1 | G73: - | H73: 0 | I73: ) | K73: 45 | L73: Fin 1 | N73: ( | O73: 1 | P73: - | Q73: 0 | R73: ) | U73: Fin 1 | W73: ( | X73: 1 | Y73: - | Z73: 0 | AA73: ) | AD73: Fin 1 | AF73: ( | AG73: 1 | AH73: - | AI73: 0 | AJ73: )
B74: 45 | C74: Fin 1 | E74: ( | F74: 1 | G74: - | H74: 0 | I74: ) | K74: 45 | L74: Fin 1 | N74: ( | O74: 1 | P74: - | Q74: 0 | R74: ) | U74: Fin 1 | W74: ( | X74: 1 | Y74: - | Z74: 0 | AA74: ) | AD74: Fin 1 | AF74: ( | AG74: 1 | AH74: - | AI74: 0 | AJ74: )
B75: 45 | C75: Fin 1 | E75: ( | F75: 1 | G75: - | H75: 0 | I75: ) | K75: 45 | L75: Fin 1 | N75: ( | O75: 1 | P75: - | Q75: 0 | R75: ) | U75: Fin 1 | W75: ( | X75: 1 | Y75: - | Z75: 0 | AA75: ) | AD75: Fin 1 | AF75: ( | AG75: 1 | AH75: - | AI75: 0 | AJ75: )
B76: 45 | C76: Fin 1 | E76: ( | F76: 1 | G76: - | H76: 0 | I76: ) | K76: 45 | L76: Fin 1 | N76: ( | O76: 1 | P76: - | Q76: =O76+M76-1 -> 0 | R76: ) | U76: Fin 1 | W76: ( | X76: 1 | Y76: - | Z76: 0 | AA76: ) | AD76: Fin 1 | AF76: ( | AG76: 1 | AH76: - | AI76: 0 | AJ76: )
B77: 45 | C77: Fin 1 | E77: ( | F77: 1 | G77: - | H77: 0 | I77: ) | K77: 45 | L77: Fin 1 | N77: ( | O77: 1 | P77: - | Q77: =O77+M77-1 -> 0 | R77: ) | U77: Fin 1 | W77: ( | X77: 1 | Y77: - | Z77: 0 | AA77: ) | AD77: Fin 1 | AF77: ( | AG77: 1 | AH77: - | AI77: 0 | AJ77: )
B78: 45 | C78: Fin 1 | E78: ( | F78: 1 | G78: - | H78: 0 | I78: ) | K78: 45 | L78: Fin 1 | N78: ( | O78: 1 | P78: - | Q78: 0 | R78: ) | U78: Fin 1 | W78: ( | X78: 1 | Y78: - | Z78: 0 | AA78: ) | AD78: Fin 1 | AF78: ( | AG78: 1 | AH78: - | AI78: 0 | AJ78: )
B79: 45 | C79: Fin 1 | E79: ( | F79: 1 | G79: - | H79: 0 | I79: ) | K79: 45 | L79: Fin 1 | N79: ( | O79: 1 | P79: - | Q79: 0 | R79: ) | U79: Fin 1 | W79: ( | X79: 1 | Y79: - | Z79: 0 | AA79: ) | AD79: Fin 1 | AF79: ( | AG79: 1 | AH79: - | AI79: 0 | AJ79: )
B80: 45 | C80: Fin 1 | E80: ( | F80: 1 | G80: - | H80: 0 | I80: ) | K80: 45 | L80: Fin 1 | N80: ( | O80: 1 | P80: - | Q80: 0 | R80: ) | U80: Fin 1 | W80: ( | X80: 1 | Y80: - | Z80: 0 | AA80: ) | AD80: Fin 1 | AF80: ( | AG80: 1 | AH80: - | AI80: 0 | AJ80: )
B81: 45 | C81: Fin 1 | E81: ( | F81: 1 | G81: - | H81: 0 | I81: ) | K81: 45 | L81: Fin 1 | N81: ( | O81: 1 | P81: - | Q81: 0 | R81: ) | U81: Fin 1 | W81: ( | X81: 1 | Y81: - | Z81: 0 | AA81: ) | AD81: Fin 1 | AF81: ( | AG81: 1 | AH81: - | AI81: 0 | AJ81: )
B82: 45 | C82: Fin 1 | E82: ( | F82: 1 | G82: - | H82: 0 | I82: ) | K82: 45 | L82: Fin 1 | N82: ( | O82: 1 | P82: - | Q82: 0 | R82: ) | U82: Fin 1 | W82: ( | X82: 1 | Y82: - | Z82: 0 | AA82: ) | AD82: Fin 1 | AF82: ( | AG82: 1 | AH82: - | AI82: 0 | AJ82: )
B83: 45 | C83: Fin 1 | E83: ( | F83: 1 | G83: - | H83: 0 | I83: ) | K83: 45 | L83: Fin 1 | N83: ( | O83: 1 | P83: - | Q83: 0 | R83: ) | U83: Fin 1 | W83: ( | X83: 1 | Y83: - | Z83: 0 | AA83: ) | AD83: Fin 1 | AF83: ( | AG83: 1 | AH83: - | AI83: 0 | AJ83: )
B84: 45 | C84: Fin 1 | E84: ( | F84: 1 | G84: - | H84: 0 | I84: ) | K84: 45 | L84: Fin 1 | N84: ( | O84: 1 | P84: - | Q84: 0 | R84: ) | U84: Fin 1 | W84: ( | X84: 1 | Y84: - | Z84: 0 | AA84: ) | AD84: Fin 1 | AF84: ( | AG84: 1 | AH84: - | AI84: 0 | AJ84: )
B85: 45 | C85: Fin 1 | E85: ( | F85: 1 | G85: - | H85: 0 | I85: ) | K85: 45 | L85: Fin 1 | N85: ( | O85: 1 | P85: - | Q85: 0 | R85: ) | U85: Fin 1 | W85: ( | X85: 1 | Y85: - | Z85: 0 | AA85: ) | AD85: Fin 1 | AF85: ( | AG85: 1 | AH85: - | AI85: 0 | AJ85: )
B86: 45 | C86: Fin 1 | E86: ( | F86: 1 | G86: - | H86: 0 | I86: ) | K86: 45 | L86: Fin 1 | N86: ( | O86: 1 | P86: - | Q86: 0 | R86: ) | U86: Fin 1 | W86: ( | X86: 1 | Y86: - | Z86: 0 | AA86: ) | AD86: Fin 1 | AF86: ( | AG86: 1 | AH86: - | AI86: 0 | AJ86: )
B87: 45 | C87: Fin 1 | E87: ( | F87: 1 | G87: - | H87: 0 | I87: ) | K87: 45 | L87: Fin 1 | N87: ( | O87: 1 | P87: - | Q87: 0 | R87: ) | U87: Fin 1 | W87: ( | X87: 1 | Y87: - | Z87: 0 | AA87: ) | AD87: Fin 1 | AF87: ( | AG87: 1 | AH87: - | AI87: 0 | AJ87: )
B88: 45 | C88: Fin 1 | E88: ( | F88: 1 | G88: - | H88: 0 | I88: ) | K88: 45 | L88: Fin 1 | N88: ( | O88: 1 | P88: - | Q88: 0 | R88: ) | U88: Fin 1 | W88: ( | X88: 1 | Y88: - | Z88: 0 | AA88: ) | AD88: Fin 1 | AF88: ( | AG88: 1 | AH88: - | AI88: 0 | AJ88: )
B89: 45 | C89: Fin 3 | E89: ( | F89: 1 | G89: - | H89: 0 | I89: ) | K89: 45 | L89: Fin 1 | N89: ( | O89: 1 | P89: - | Q89: 0 | R89: ) | T89: 45 | U89: Fin 3 | W89: ( | X89: 1 | Y89: - | Z89: 0 | AA89: ) | AC89: 45 | AD89: Fin 3 | AF89: ( | AG89: 1 | AH89: - | AI89: 0 | AJ89: )
B90: 45 | C90: Fin 1 | E90: ( | F90: 1 | G90: - | H90: 0 | I90: ) | K90: 45 | L90: Fin 1 | N90: ( | O90: 1 | P90: - | Q90: 0 | R90: ) | T90: 45 | U90: Fin 1 | W90: ( | X90: 1 | Y90: - | Z90: 0 | AA90: ) | AC90: 45 | AD90: Fin 1 | AF90: ( | AG90: 1 | AH90: - | AI90: 0 | AJ90: )
B91: 45 | C91: Fin 3 | E91: ( | F91: 1 | G91: - | H91: 0 | I91: ) | K91: 45 | L91: Fin 1 | N91: ( | O91: 1 | P91: - | Q91: 0 | R91: ) | T91: 45 | U91: Fin 3 | W91: ( | X91: 1 | Y91: - | Z91: 0 | AA91: ) | AC91: 45 | AD91: Fin 3 | AF91: ( | AG91: 1 | AH91: - | AI91: 0 | AJ91: )
B92: 45 | C92: Fin 1 | E92: ( | F92: 1 | G92: - | H92: 0 | I92: ) | K92: 45 | L92: Fin 1 | N92: ( | O92: 1 | P92: - | Q92: 0 | R92: ) | T92: 45 | U92: Fin 1 | W92: ( | X92: 1 | Y92: - | Z92: 0 | AA92: ) | AC92: 45 | AD92: Fin 1 | AF92: ( | AG92: 1 | AH92: - | AI92: 0 | AJ92: )
B93: 45 | C93: Fin 3 | E93: ( | F93: 1 | G93: - | H93: 0 | I93: ) | K93: 45 | L93: Fin 1 | N93: ( | O93: 1 | P93: - | Q93: 0 | R93: ) | T93: 45 | U93: Fin 3 | W93: ( | X93: 1 | Y93: - | Z93: 0 | AA93: ) | AC93: 45 | AD93: Fin 3 | AF93: ( | AG93: 1 | AH93: - | AI93: 0 | AJ93: )
B94: 45 | C94: Fin 1 | E94: ( | F94: 1 | G94: - | H94: 0 | I94: ) | K94: 45 | L94: Fin 1 | N94: ( | O94: 1 | P94: - | Q94: 0 | R94: ) | T94: 45 | U94: Fin 1 | W94: ( | X94: 1 | Y94: - | Z94: 0 | AA94: ) | AC94: 45 | AD94: Fin 1 | AF94: ( | AG94: 1 | AH94: - | AI94: 0 | AJ94: )
B95: 45 | C95: Fin 3 | E95: ( | F95: 1 | G95: - | H95: 0 | I95: ) | K95: 45 | L95: Fin 1 | N95: ( | O95: 1 | P95: - | Q95: 0 | R95: ) | T95: 45 | U95: Fin 3 | W95: ( | X95: 1 | Y95: - | Z95: 0 | AA95: ) | AC95: 45 | AD95: Fin 3 | AF95: ( | AG95: 1 | AH95: - | AI95: 0 | AJ95: )
B96: 45 | C96: Fin 1 | E96: ( | F96: 1 | G96: - | H96: 0 | I96: ) | K96: 45 | L96: Fin 1 | N96: ( | O96: 1 | P96: - | Q96: 0 | R96: ) | T96: 45 | U96: Fin 1 | W96: ( | X96: 1 | Y96: - | Z96: 0 | AA96: ) | AC96: 45 | AD96: Fin 1 | AF96: ( | AG96: 1 | AH96: - | AI96: 0 | AJ96: )
B97: 45 | C97: Fin 3 | E97: ( | F97: 1 | G97: - | H97: 0 | I97: ) | K97: 45 | L97: Fin 1 | N97: ( | O97: 1 | P97: - | Q97: 0 | R97: ) | T97: 45 | U97: Fin 3 | W97: ( | X97: 1 | Y97: - | Z97: 0 | AA97: ) | AC97: 45 | AD97: Fin 3 | AF97: ( | AG97: 1 | AH97: - | AI97: 0 | AJ97: )
B98: 45 | C98: Fin 1 | E98: ( | F98: 1 | G98: - | H98: 0 | I98: ) | K98: 45 | L98: Fin 1 | N98: ( | O98: 1 | P98: - | Q98: 0 | R98: ) | T98: 45 | U98: Fin 1 | W98: ( | X98: 1 | Y98: - | Z98: 0 | AA98: ) | AC98: 45 | AD98: Fin 1 | AF98: ( | AG98: 1 | AH98: - | AI98: 0 | AJ98: )
B99: 45 | C99: Fin 3 | E99: ( | F99: 1 | G99: - | H99: 0 | I99: ) | K99: 45 | L99: Fin 1 | N99: ( | O99: 1 | P99: - | Q99: 0 | R99: ) | T99: 45 | U99: Fin 3 | W99: ( | X99: 1 | Y99: - | Z99: 0 | AA99: ) | AC99: 45 | AD99: Fin 3 | AF99: ( | AG99: 1 | AH99: - | AI99: 0 | AJ99: )
B100: 45 | C100: Fin 1 | E100: ( | F100: 1 | G100: - | H100: 0 | I100: ) | K100: 45 | L100: Fin 1 | N100: ( | O100: 1 | P100: - | Q100: 0 | R100: ) | T100: 45 | U100: Fin 1 | W100: ( | X100: 1 | Y100: - | Z100: 0 | AA100: ) | AC100: 45 | AD100: Fin 1 | AF100: ( | AG100: 1 | AH100: - | AI100: 0 | AJ100: )
B101: 45 | C101: Fin 3 | E101: ( | F101: 1 | G101: - | H101: 0 | I101: ) | K101: 45 | L101: Fin 1 | N101: ( | O101: 1 | P101: - | Q101: 0 | R101: ) | T101: 45 | U101: Fin 3 | W101: ( | X101: 1 | Y101: - | Z101: 0 | AA101: ) | AC101: 45 | AD101: Fin 3 | AF101: ( | AG101: 1 | AH101: - | AI101: 0 | AJ101: )
B102: 45 | C102: Fin 1 | E102: ( | F102: 1 | G102: - | H102: 0 | I102: ) | K102: 45 | L102: Fin 1 | N102: ( | O102: 1 | P102: - | Q102: 0 | R102: ) | T102: 45 | U102: Fin 1 | W102: ( | X102: 1 | Y102: - | Z102: 0 | AA102: ) | AC102: 45 | AD102: Fin 1 | AF102: ( | AG102: 1 | AH102: - | AI102: 0 | AJ102: )
B103: 45 | C103: Fin 3 | E103: ( | F103: 1 | G103: - | H103: 0 | I103: ) | K103: 45 | L103: Fin 1 | N103: ( | O103: 1 | P103: - | Q103: 0 | R103: ) | T103: 45 | U103: Fin 3 | W103: ( | X103: 1 | Y103: - | Z103: 0 | AA103: ) | AC103: 45 | AD103: Fin 3 | AF103: ( | AG103: 1 | AH103: - | AI103: 0 | AJ103: )
B104: 45 | C104: Fin 1 | E104: ( | F104: 1 | G104: - | H104: 0 | I104: ) | K104: 45 | L104: Fin 1 | N104: ( | O104: 1 | P104: - | Q104: 0 | R104: ) | T104: 45 | U104: Fin 1 | W104: ( | X104: 1 | Y104: - | Z104: 0 | AA104: ) | AC104: 45 | AD104: Fin 1 | AF104: ( | AG104: 1 | AH104: - | AI104: 0 | AJ104: )
B105: 45 | C105: Fin 3 | E105: ( | F105: 1 | G105: - | H105: 0 | I105: ) | K105: 45 | L105: Fin 1 | N105: ( | O105: 1 | P105: - | Q105: 0 | R105: ) | T105: 45 | U105: Fin 3 | W105: ( | X105: 1 | Y105: - | Z105: 0 | AA105: ) | AC105: 45 | AD105: Fin 3 | AF105: ( | AG105: 1 | AH105: - | AI105: 0 | AJ105: )
B106: 45 | C106: Fin 1 | E106: ( | F106: 1 | G106: - | H106: 0 | I106: ) | K106: 45 | L106: Fin 1 | N106: ( | O106: 1 | P106: - | Q106: 0 | R106: ) | T106: 45 | U106: Fin 1 | W106: ( | X106: 1 | Y106: - | Z106: 0 | AA106: ) | AC106: 45 | AD106: Fin 1 | AF106: ( | AG106: 1 | AH106: - | AI106: 0 | AJ106: )
B107: 45 | C107: Fin 3 | E107: ( | F107: 1 | G107: - | H107: 0 | I107: ) | K107: 45 | L107: Fin 1 | N107: ( | O107: 1 | P107: - | Q107: 0 | R107: ) | T107: 45 | U107: Fin 3 | W107: ( | X107: 1 | Y107: - | Z107: 0 | AA107: ) | AC107: 45 | AD107: Fin 3 | AF107: ( | AG107: 1 | AH107: - | AI107: 0 | AJ107: )
B108: 45 | C108: Fin 1 | E108: ( | F108: 1 | G108: - | H108: 0 | I108: ) | K108: 45 | L108: Fin 1 | N108: ( | O108: 1 | P108: - | Q108: 0 | R108: ) | T108: 45 | U108: Fin 1 | W108: ( | X108: 1 | Y108: - | Z108: 0 | AA108: ) | AC108: 45 | AD108: Fin 1 | AF108: ( | AG108: 1 | AH108: - | AI108: 0 | AJ108: )
B109: 45 | C109: Fin 3 | E109: ( | F109: 1 | G109: - | H109: 0 | I109: ) | K109: 45 | L109: Fin 1 | N109: ( | O109: 1 | P109: - | Q109: 0 | R109: ) | T109: 45 | U109: Fin 3 | W109: ( | X109: 1 | Y109: - | Z109: 0 | AA109: ) | AC109: 45 | AD109: Fin 3 | AF109: ( | AG109: 1 | AH109: - | AI109: 0 | AJ109: )
B110: 45 | C110: Fin 1 | E110: ( | F110: 1 | G110: - | H110: 0 | I110: ) | K110: 45 | L110: Fin 1 | N110: ( | O110: 1 | P110: - | Q110: 0 | R110: ) | T110: 45 | U110: Fin 1 | W110: ( | X110: 1 | Y110: - | Z110: 0 | AA110: ) | AC110: 45 | AD110: Fin 1 | AF110: ( | AG110: 1 | AH110: - | AI110: 0 | AJ110: )
B111: 45 | C111: Fin 1 | E111: ( | F111: 1 | G111: - | H111: 0 | I111: ) | K111: 45 | L111: Fin 1 | N111: ( | O111: 1 | P111: - | Q111: 0 | R111: ) | T111: 45 | U111: Fin 3 | W111: ( | X111: 1 | Y111: - | Z111: 0 | AA111: ) | AC111: 45 | AD111: Fin 3 | AF111: ( | AG111: 1 | AH111: - | AI111: 0 | AJ111: )
B112: 45 | C112: Fin 1 | E112: ( | F112: 1 | G112: - | H112: 0 | I112: ) | K112: 45 | L112: Fin 1 | N112: ( | O112: 1 | P112: - | Q112: 0 | R112: ) | T112: 45 | U112: Fin 1 | W112: ( | X112: 1 | Y112: - | Z112: 0 | AA112: ) | AC112: 45 | AD112: Fin 1 | AF112: ( | AG112: 1 | AH112: - | AI112: 0 | AJ112: )
B113: 45 | C113: Fin 1 | E113: ( | F113: 1 | G113: - | H113: 0 | I113: ) | K113: 45 | L113: Fin 1 | N113: ( | O113: 1 | P113: - | Q113: 0 | R113: ) | T113: 45 | U113: Fin 1 | W113: ( | X113: 1 | Y113: - | Z113: 0 | AA113: ) | AC113: 45 | AD113: Fin 1 | AF113: ( | AG113: 1 | AH113: - | AI113: 0 | AJ113: )
D115: =SUM(D64:D113) -> 0 | M115: =SUM(M64:M113) -> 0 | V115: =SUM(V64:V113) -> 0 | AE115: =SUM(AE64:AE113) -> 0
B117: 20.00-20.30 | D117: Награждение победителей и призеров - Rewarding of winners and prize-winners | AC117: =AC61 -> 44, 55, 66, 77, 88, 99 кг
B119: Внимание! В программе могут быть изменения - Attention! Тhe program can be changed!

Sheet 5_mat (hidden)
B2: Распорядок дня - The work schedule
B4: =Inf!B4 -> ХХХI-Всероссийский турнир по греко-римской борьбе,посвященный памяти ректора Ленинградского финансово-экономического института им.Н.А.Вознесенского /ныне Санкт-Петербургского государственного экономического университета,з.д.н.России Лаврикова Юрия Александровича.
B6: дата проведения | AC6: =Inf!F5 -> Санкт-Петербург
B8: 08.00-08.30 | D8: Медицинский контроль и 2 взвешивание борцов - Medical control and II weighing of wrestlers | AC8: 44, 55, 66, 77, 88, 99 кг
B9: 08.00-08.30 | D9: Медицинский контроль и 1 взвешивание борцов - Medical control and I weighing of wrestlers | AC9: 22, 33, 44, 55, 66, 77 кг
B10: 10.00-10.30 | D10: Торжественное открытие соревнований - Opening ceremony
B11: 10.00-16.45 | D11: Утешительные поединки - Repechage rounds | AC11: =AC8 -> 44, 55, 66, 77, 88, 99 кг
B12: 10.00-16.45 | D12: Предварительные поединки - Preliminary rounds | AC12: =AC9 -> 22, 33, 44, 55, 66, 77 кг
B14: Mat А | E14: 59, 71, 80, 98, 130 | K14: Mat В | N14: 59, 71, 80, 98, 130 | T14: Mat C | W14: 59, 71, 80, 98, 130 | AC14: Mat D | AF14: 59, 71, 80, 98, 130 | AL14: Mat E | AO14: 59, 71, 80, 98, 130
B15: 0 | C15: квалиф | E15: ( | F15: 1 | G15: - | H15: =F15+D15-1 -> 0 | I15: ) | K15: 0 | L15: квалиф | N15: ( | O15: =H54+1 -> 1 | P15: - | Q15: =O15+M15-1 -> 0 | R15: ) | T15: 0 | U15: квалиф | W15: ( | X15: =Q54+1 -> 1 | Y15: - | Z15: =X15+V15-1 -> 0 | AA15: ) | AC15: 0 | AD15: квалиф | AF15: ( | AG15: =Z54+1 -> 1 | AH15: - | AI15: =AG15+AE15-1 -> 0 | AJ15: ) | AL15: 0 | AM15: квалиф | AO15: ( | AP15: =AI54+1 -> 1 | AQ15: - | AR15: =AP15+AN15-1 -> 0 | AS15: )
B16: 0 | C16: квалиф | E16: ( | F16: =H15+1 -> 1 | G16: - | H16: =F16+D16-1 -> 0 | I16: ) | K16: 0 | L16: квалиф | N16: ( | O16: =Q15+1 -> 1 | P16: - | Q16: =O16+M16-1 -> 0 | R16: ) | T16: =X14 -> 0 | U16: квалиф | W16: ( | X16: =Z15+1 -> 1 | Y16: - | Z16: =X16+V16-1 -> 0 | AA16: ) | AC16: =AG14 -> 0 | AD16: квалиф | AF16: ( | AG16: =AI15+1 -> 1 | AH16: - | AI16: =AG16+AE16-1 -> 0 | AJ16: ) | AL16: =AP14 -> 0 | AM16: квалиф | AO16: ( | AP16: =AR15+1 -> 1 | AQ16: - | AR16: =AP16+AN16-1 -> 0 | AS16: )
B17: 0 | C17: квалиф | E17: ( | F17: =H16+1 -> 1 | G17: - | H17: =F17+D17-1 -> 0 | I17: ) | K17: 0 | L17: квалиф | N17: ( | O17: =Q16+1 -> 1 | P17: - | Q17: =O17+M17-1 -> 0 | R17: ) | T17: =Y14 -> 0 | U17: квалиф | W17: ( | X17: =Z16+1 -> 1 | Y17: - | Z17: =X17+V17-1 -> 0 | AA17: ) | AC17: =AH14 -> 0 | AD17: квалиф | AF17: ( | AG17: =AI16+1 -> 1 | AH17: - | AI17: =AG17+AE17-1 -> 0 | AJ17: ) | AL17: =AQ14 -> 0 | AM17: квалиф | AO17: ( | AP17: =AR16+1 -> 1 | AQ17: - | AR17: =AP17+AN17-1 -> 0 | AS17: )
B18: 0 | C18: квалиф | E18: ( | F18: 1 | G18: - | H18: =F18+D18-1 -> 0 | I18: ) | K18: 0 | L18: квалиф | N18: ( | O18: 1 | P18: - | Q18: =O18+M18-1 -> 0 | R18: ) | T18: 0 | U18: квалиф | W18: ( | X18: 1 | Y18: - | Z18: =X18+V18-1 -> 0 | AA18: ) | AC18: 0 | AD18: квалиф | AF18: ( | AG18: 1 | AH18: - | AI18: =AG18+AE18-1 -> 0 | AJ18: ) | AL18: 0 | AM18: квалиф | AO18: ( | AP18: 1 | AQ18: - | AR18: =AP18+AN18-1 -> 0 | AS18: )
B19: 0 | C19: квалиф | E19: ( | F19: 1 | G19: - | H19: =F19+D19-1 -> 0 | I19: ) | K19: 0 | L19: квалиф | N19: ( | O19: 1 | P19: - | Q19: =O19+M19-1 -> 0 | R19: ) | T19: =AA14 -> 0 | U19: квалиф | W19: ( | X19: 1 | Y19: - | Z19: =X19+V19-1 -> 0 | AA19: ) | AC19: =AJ14 -> 0 | AD19: квалиф | AF19: ( | AG19: 1 | AH19: - | AI19: =AG19+AE19-1 -> 0 | AJ19: ) | AL19: =AS14 -> 0 | AM19: квалиф | AO19: ( | AP19: 1 | AQ19: - | AR19: =AP19+AN19-1 -> 0 | AS19: )
B20: 0 | C20: 1/16 ф | E20: ( | F20: 1 | G20: - | H20: 0 | I20: ) | K20: 0 | L20: 1/16 ф | N20: ( | O20: 1 | P20: - | Q20: 0 | R20: ) | T20: =T15 -> 0 | U20: 1/16 ф | W20: ( | X20: 1 | Y20: - | Z20: 0 | AA20: ) | AC20: =AC15 -> 0 | AD20: 1/16 ф | AF20: ( | AG20: 1 | AH20: - | AI20: 0 | AJ20: ) | AL20: =AL15 -> 0 | AM20: 1/16 ф | AO20: ( | AP20: 1 | AQ20: - | AR20: 0 | AS20: )
B21: 0 | C21: 1/16 ф | E21: ( | F21: 1 | G21: - | H21: 0 | I21: ) | K21: 0 | L21: 1/16 ф | N21: ( | O21: 1 | P21: - | Q21: 0 | R21: ) | T21: =T16 -> 0 | U21: 1/16 ф | W21: ( | X21: 1 | Y21: - | Z21: 0 | AA21: ) | AC21: =AC16 -> 0 | AD21: 1/16 ф | AF21: ( | AG21: 1 | AH21: - | AI21: 0 | AJ21: ) | AL21: =AL16 -> 0 | AM21: 1/16 ф | AO21: ( | AP21: 1 | AQ21: - | AR21: 0 | AS21: )
B22: 0 | C22: 1/16 ф | E22: ( | F22: 1 | G22: - | H22: 0 | I22: ) | K22: 0 | L22: 1/16 ф | N22: ( | O22: 1 | P22: - | Q22: 0 | R22: ) | T22: 0 | U22: 1/16 ф | W22: ( | X22: 1 | Y22: - | Z22: 0 | AA22: ) | AC22: 0 | AD22: 1/16 ф | AF22: ( | AG22: 1 | AH22: - | AI22: 0 | AJ22: ) | AL22: 0 | AM22: 1/16 ф | AO22: ( | AP22: 1 | AQ22: - | AR22: 0 | AS22: )
B23: 0 | C23: 1/16 ф | E23: ( | F23: 1 | G23: - | H23: 0 | I23: ) | K23: 0 | L23: 1/16 ф | N23: ( | O23: 1 | P23: - | Q23: 0 | R23: ) | T23: 0 | U23: 1/16 ф | W23: ( | X23: 1 | Y23: - | Z23: 0 | AA23: ) | AC23: 0 | AD23: 1/16 ф | AF23: ( | AG23: 1 | AH23: - | AI23: 0 | AJ23: ) | AL23: 0 | AM23: 1/16 ф | AO23: ( | AP23: 1 | AQ23: - | AR23: 0 | AS23: )
B24: 0 | C24: 1/16 ф | E24: ( | F24: 1 | G24: - | H24: 0 | I24: ) | K24: 0 | L24: 1/16 ф | N24: ( | O24: 1 | P24: - | Q24: 0 | R24: ) | T24: 0 | U24: 1/16 ф | W24: ( | X24: 1 | Y24: - | Z24: 0 | AA24: ) | AC24: 0 | AD24: 1/16 ф | AF24: ( | AG24: 1 | AH24: - | AI24: 0 | AJ24: ) | AL24: 0 | AM24: 1/16 ф | AO24: ( | AP24: 1 | AQ24: - | AR24: 0 | AS24: )
B25: 0 | C25: 1/8 ф | E25: ( | F25: 1 | G25: - | H25: 0 | I25: ) | K25: 0 | L25: 1/8 ф | N25: ( | O25: 1 | P25: - | Q25: 0 | R25: ) | T25: 0 | U25: 1/8 ф | W25: ( | X25: 1 | Y25: - | Z25: 0 | AA25: ) | AC25: 0 | AD25: 1/8 ф | AF25: ( | AG25: 1 | AH25: - | AI25: 0 | AJ25: ) | AL25: 0 | AM25: 1/8 ф | AO25: ( | AP25: 1 | AQ25: - | AR25: 0 | AS25: )
B26: 0 | C26: 1/8 ф | E26: ( | F26: 1 | G26: - | H26: 0 | I26: ) | K26: 0 | L26: 1/8 ф | N26: ( | O26: 1 | P26: - | Q26: 0 | R26: ) | T26: 0 | U26: 1/8 ф | W26: ( | X26: 1 | Y26: - | Z26: 0 | AA26: ) | AC26: 0 | AD26: 1/8 ф | AF26: ( | AG26: 1 | AH26: - | AI26: 0 | AJ26: ) | AL26: 0 | AM26: 1/8 ф | AO26: ( | AP26: 1 | AQ26: - | AR26: 0 | AS26: )
B27: 0 | C27: 1/8 ф | E27: ( | F27: 1 | G27: - | H27: =F27+D27-1 -> 0 | I27: ) | K27: 0 | L27: 1/8 ф | N27: ( | O27: 1 | P27: - | Q27: =O27+M27-1 -> 0 | R27: ) | T27: 0 | U27: 1/8 ф | W27: ( | X27: 1 | Y27: - | Z27: =X27+V27-1 -> 0 | AA27: ) | AC27: 0 | AD27: 1/8 ф | AF27: ( | AG27: 1 | AH27: - | AI27: =AG27+AE27-1 -> 0 | AJ27: ) | AL27: 0 | AM27: 1/8 ф | AO27: ( | AP27: 1 | AQ27: - | AR27: =AP27+AN27-1 -> 0 | AS27: )
B28: 0 | C28: 1/8 ф | E28: ( | F28: 1 | G28: - | H28: =F28+D28-1 -> 0 | I28: ) | K28: 0 | L28: 1/8 ф | N28: ( | O28: 1 | P28: - | Q28: =O28+M28-1 -> 0 | R28: ) | T28: 0 | U28: 1/8 ф | W28: ( | X28: 1 | Y28: - | Z28: =X28+V28-1 -> 0 | AA28: ) | AC28: 0 | AD28: 1/8 ф | AF28: ( | AG28: 1 | AH28: - | AI28: =AG28+AE28-1 -> 0 | AJ28: ) | AL28: 0 | AM28: 1/8 ф | AO28: ( | AP28: 1 | AQ28: - | AR28: =AP28+AN28-1 -> 0 | AS28: )
B29: 0 | C29: 1/8 ф | E29: ( | F29: 1 | G29: - | H29: =F29+D29-1 -> 0 | I29: ) | K29: 0 | L29: 1/8 ф | N29: ( | O29: 1 | P29: - | Q29: =O29+M29-1 -> 0 | R29: ) | T29: 0 | U29: 1/8 ф | W29: ( | X29: 1 | Y29: - | Z29: =X29+V29-1 -> 0 | AA29: ) | AC29: 0 | AD29: 1/8 ф | AF29: ( | AG29: 1 | AH29: - | AI29: =AG29+AE29-1 -> 0 | AJ29: ) | AL29: 0 | AM29: 1/8 ф | AO29: ( | AP29: 1 | AQ29: - | AR29: =AP29+AN29-1 -> 0 | AS29: )
B30: 0 | C30: 1/4 ф | E30: ( | F30: 1 | G30: - | H30: =F30+D30-1 -> 0 | I30: ) | K30: 0 | L30: 1/4 ф | N30: ( | O30: 1 | P30: - | Q30: =O30+M30-1 -> 0 | R30: ) | T30: 0 | U30: 1/4 ф | W30: ( | X30: 1 | Y30: - | Z30: =X30+V30-1 -> 0 | AA30: ) | AC30: 0 | AD30: 1/4 ф | AF30: ( | AG30: 1 | AH30: - | AI30: =AG30+AE30-1 -> 0 | AJ30: ) | AL30: 0 | AM30: 1/4 ф | AO30: ( | AP30: 1 | AQ30: - | AR30: =AP30+AN30-1 -> 0 | AS30: )
B31: 0 | C31: 1/4 ф | E31: ( | F31: 1 | G31: - | H31: 0 | I31: ) | K31: 0 | L31: 1/4 ф | N31: ( | O31: 1 | P31: - | Q31: 0 | R31: ) | T31: 0 | U31: 1/4 ф | W31: ( | X31: 1 | Y31: - | Z31: 0 | AA31: ) | AC31: 0 | AD31: 1/4 ф | AF31: ( | AG31: 1 | AH31: - | AI31: 0 | AJ31: ) | AL31: 0 | AM31: 1/4 ф | AO31: ( | AP31: 1 | AQ31: - | AR31: 0 | AS31: )
B32: 0 | C32: 1/4 ф | E32: ( | F32: 1 | G32: - | H32: 0 | I32: ) | K32: 0 | L32: 1/4 ф | N32: ( | O32: 1 | P32: - | Q32: 0 | R32: ) | T32: 0 | U32: 1/4 ф | W32: ( | X32: 1 | Y32: - | Z32: 0 | AA32: ) | AC32: 0 | AD32: 1/4 ф | AF32: ( | AG32: 1 | AH32: - | AI32: 0 | AJ32: ) | AL32: 0 | AM32: 1/4 ф | AO32: ( | AP32: 1 | AQ32: - | AR32: 0 | AS32: )
B33: 0 | C33: 1/4 ф | E33: ( | F33: 1 | G33: - | H33: 0 | I33: ) | K33: 0 | L33: 1/4 ф | N33: ( | O33: 1 | P33: - | Q33: 0 | R33: ) | T33: 0 | U33: 1/4 ф | W33: ( | X33: 1 | Y33: - | Z33: 0 | AA33: ) | AC33: 0 | AD33: 1/4 ф | AF33: ( | AG33: 1 | AH33: - | AI33: 0 | AJ33: ) | AL33: 0 | AM33: 1/4 ф | AO33: ( | AP33: 1 | AQ33: - | AR33: 0 | AS33: )
B34: 0 | C34: 1/4 ф | E34: ( | F34: 1 | G34: - | H34: 0 | I34: ) | K34: 0 | L34: 1/4 ф | N34: ( | O34: 1 | P34: - | Q34: 0 | R34: ) | T34: 0 | U34: 1/4 ф | W34: ( | X34: 1 | Y34: - | Z34: 0 | AA34: ) | AC34: 0 | AD34: 1/4 ф | AF34: ( | AG34: 1 | AH34: - | AI34: 0 | AJ34: ) | AL34: 0 | AM34: 1/4 ф | AO34: ( | AP34: 1 | AQ34: - | AR34: 0 | AS34: )
B35: 0 | C35: 1/2 ф | E35: ( | F35: 1 | G35: - | H35: 0 | I35: ) | K35: 0 | L35: 1/2 ф | N35: ( | O35: 1 | P35: - | Q35: 0 | R35: ) | T35: 0 | U35: 1/2 ф | W35: ( | X35: 1 | Y35: - | Z35: 0 | AA35: ) | AC35: 0 | AD35: 1/2 ф | AF35: ( | AG35: 1 | AH35: - | AI35: 0 | AJ35: ) | AL35: 0 | AM35: 1/2 ф | AO35: ( | AP35: 1 | AQ35: - | AR35: 0 | AS35: )
B36: 0 | C36: 1/2 ф | E36: ( | F36: 1 | G36: - | H36: 0 | I36: ) | K36: 0 | L36: 1/2 ф | N36: ( | O36: 1 | P36: - | Q36: 0 | R36: ) | T36: 0 | U36: 1/2 ф | W36: ( | X36: 1 | Y36: - | Z36: 0 | AA36: ) | AC36: 0 | AD36: 1/2 ф | AF36: ( | AG36: 1 | AH36: - | AI36: 0 | AJ36: ) | AL36: 0 | AM36: 1/2 ф | AO36: ( | AP36: 1 | AQ36: - | AR36: 0 | AS36: )
B37: 0 | C37: 1/2 ф | E37: ( | F37: 1 | G37: - | H37: 0 | I37: ) | K37: 0 | L37: 1/2 ф | N37: ( | O37: 1 | P37: - | Q37: 0 | R37: ) | T37: 0 | U37: 1/2 ф | W37: ( | X37: 1 | Y37: - | Z37: 0 | AA37: ) | AC37: 0 | AD37: 1/2 ф | AF37: ( | AG37: 1 | AH37: - | AI37: 0 | AJ37: ) | AL37: 0 | AM37: 1/2 ф | AO37: ( | AP37: 1 | AQ37: - | AR37: 0 | AS37: )
B38: 0 | C38: 1/2 ф | E38: ( | F38: 1 | G38: - | H38: 0 | I38: ) | K38: 0 | L38: 1/2 ф | N38: ( | O38: 1 | P38: - | Q38: 0 | R38: ) | T38: 0 | U38: 1/2 ф | W38: ( | X38: 1 | Y38: - | Z38: 0 | AA38: ) | AC38: 0 | AD38: 1/2 ф | AF38: ( | AG38: 1 | AH38: - | AI38: 0 | AJ38: ) | AL38: 0 | AM38: 1/2 ф | AO38: ( | AP38: 1 | AQ38: - | AR38: 0 | AS38: )
B39: 0 | C39: 1/2 ф | E39: ( | F39: 1 | G39: - | H39: 0 | I39: ) | K39: 0 | L39: 1/2 ф | N39: ( | O39: 1 | P39: - | Q39: 0 | R39: ) | T39: 0 | U39: 1/2 ф | W39: ( | X39: 1 | Y39: - | Z39: 0 | AA39: ) | AC39: 0 | AD39: 1/2 ф | AF39: ( | AG39: 1 | AH39: - | AI39: 0 | AJ39: ) | AL39: 0 | AM39: 1/2 ф | AO39: ( | AP39: 1 | AQ39: - | AR39: 0 | AS39: )
B40: 0 | C40: ут 1 | E40: ( | F40: 1 | G40: - | H40: 0 | I40: ) | K40: 0 | L40: ут 1 | N40: ( | O40: 1 | P40: - | Q40: 0 | R40: ) | T40: 0 | U40: ут 1 | W40: ( | X40: 1 | Y40: - | Z40: 0 | AA40: ) | AC40: 0 | AD40: ут 1 | AF40: ( | AG40: 1 | AH40: - | AI40: 0 | AJ40: ) | AL40: 0 | AM40: ут 1 | AO40: ( | AP40: 1 | AQ40: - | AR40: 0 | AS40: )
B41: 0 | C41: ут 1 | E41: ( | F41: 1 | G41: - | H41: 0 | I41: ) | K41: 0 | L41: ут 1 | N41: ( | O41: 1 | P41: - | Q41: 0 | R41: ) | T41: 0 | U41: ут 1 | W41: ( | X41: 1 | Y41: - | Z41: 0 | AA41: ) | AC41: 0 | AD41: ут 1 | AF41: ( | AG41: 1 | AH41: - | AI41: 0 | AJ41: ) | AL41: 0 | AM41: ут 1 | AO41: ( | AP41: 1 | AQ41: - | AR41: 0 | AS41: )
B42: 0 | C42: ут 1 | E42: ( | F42: 1 | G42: - | H42: 0 | I42: ) | K42: 0 | L42: ут 1 | N42: ( | O42: 1 | P42: - | Q42: 0 | R42: ) | T42: 0 | U42: ут 1 | W42: ( | X42: 1 | Y42: - | Z42: 0 | AA42: ) | AC42: 0 | AD42: ут 1 | AF42: ( | AG42: 1 | AH42: - | AI42: 0 | AJ42: ) | AL42: 0 | AM42: ут 1 | AO42: ( | AP42: 1 | AQ42: - | AR42: 0 | AS42: )
B43: 0 | C43: ут 1 | E43: ( | F43: 1 | G43: - | H43: 0 | I43: ) | K43: 0 | L43: ут 1 | N43: ( | O43: 1 | P43: - | Q43: 0 | R43: ) | T43: 0 | U43: ут 2 | W43: ( | X43: 1 | Y43: - | Z43: 0 | AA43: ) | AC43: 0 | AD43: ут 2 | AF43: ( | AG43: 1 | AH43: - | AI43: 0 | AJ43: ) | AL43: 0 | AM43: ут 2 | AO43: ( | AP43: 1 | AQ43: - | AR43: 0 | AS43: )
B44: 0 | C44: ут 1 | E44: ( | F44: 1 | G44: - | H44: 0 | I44: ) | K44: 0 | L44: ут 1 | N44: ( | O44: 1 | P44: - | Q44: 0 | R44: ) | T44: 0 | U44: ут 1 | W44: ( | X44: 1 | Y44: - | Z44: 0 | AA44: ) | AC44: 0 | AD44: ут 1 | AF44: ( | AG44: 1 | AH44: - | AI44: 0 | AJ44: ) | AL44: 0 | AM44: ут 1 | AO44: ( | AP44: 1 | AQ44: - | AR44: 0 | AS44: )
B45: 0 | C45: ут 2 | E45: ( | F45: 1 | G45: - | H45: 0 | I45: ) | K45: 0 | L45: ут 2 | N45: ( | O45: 1 | P45: - | Q45: 0 | R45: ) | T45: 0 | U45: ут 2 | W45: ( | X45: 1 | Y45: - | Z45: 0 | AA45: ) | AC45: 0 | AD45: ут 2 | AF45: ( | AG45: 1 | AH45: - | AI45: 0 | AJ45: ) | AL45: 0 | AM45: ут 2 | AO45: ( | AP45: 1 | AQ45: - | AR45: 0 | AS45: )
B46: 0 | C46: ут 2 | E46: ( | F46: 1 | G46: - | H46: 0 | I46: ) | K46: 0 | L46: ут 2 | N46: ( | O46: 1 | P46: - | Q46: 0 | R46: ) | T46: 0 | U46: ут 2 | W46: ( | X46: 1 | Y46: - | Z46: 0 | AA46: ) | AC46: 0 | AD46: ут 2 | AF46: ( | AG46: 1 | AH46: - | AI46: 0 | AJ46: ) | AL46: 0 | AM46: ут 2 | AO46: ( | AP46: 1 | AQ46: - | AR46: 0 | AS46: )
B47: 0 | C47: ут 2 | E47: ( | F47: 1 | G47: - | H47: 0 | I47: ) | K47: 0 | L47: ут 2 | N47: ( | O47: 1 | P47: - | Q47: 0 | R47: ) | T47: 0 | U47: ут 2 | W47: ( | X47: 1 | Y47: - | Z47: 0 | AA47: ) | AC47: 0 | AD47: ут 2 | AF47: ( | AG47: 1 | AH47: - | AI47: 0 | AJ47: ) | AL47: 0 | AM47: ут 2 | AO47: ( | AP47: 1 | AQ47: - | AR47: 0 | AS47: )
B48: 0 | C48: ут 2 | E48: ( | F48: 1 | G48: - | H48: 0 | I48: ) | K48: 0 | L48: ут 2 | N48: ( | O48: 1 | P48: - | Q48: 0 | R48: ) | T48: 0 | U48: ут 2 | W48: ( | X48: 1 | Y48: - | Z48: 0 | AA48: ) | AC48: 0 | AD48: ут 2 | AF48: ( | AG48: 1 | AH48: - | AI48: 0 | AJ48: ) | AL48: 0 | AM48: ут 2 | AO48: ( | AP48: 1 | AQ48: - | AR48: 0 | AS48: )
B49: 0 | C49: ут 2 | E49: ( | F49: 1 | G49: - | H49: 0 | I49: ) | K49: 0 | L49: ут 2 | N49: ( | O49: 1 | P49: - | Q49: 0 | R49: ) | T49: 0 | U49: ут 2 | W49: ( | X49: 1 | Y49: - | Z49: 0 | AA49: ) | AC49: 0 | AD49: ут 2 | AF49: ( | AG49: 1 | AH49: - | AI49: 0 | AJ49: ) | AL49: 0 | AM49: ут 2 | AO49: ( | AP49: 1 | AQ49: - | AR49: 0 | AS49: )
B50: 0 | C50: ут 3 | E50: ( | F50: 1 | G50: - | H50: 0 | I50: ) | K50: 0 | L50: ут 3 | N50: ( | O50: 1 | P50: - | Q50: 0 | R50: ) | T50: 0 | U50: ут 3 | W50: ( | X50: 1 | Y50: - | Z50: 0 | AA50: ) | AC50: 0 | AD50: ут 3 | AF50: ( | AG50: 1 | AH50: - | AI50: 0 | AJ50: ) | AL50: 0 | AM50: ут 3 | AO50: ( | AP50: 1 | AQ50: - | AR50: 0 | AS50: )
B51: 0 | C51: ут 3 | E51: ( | F51: 1 | G51: - | H51: 0 | I51: ) | K51: 0 | L51: ут 3 | N51: ( | O51: 1 | P51: - | Q51: 0 | R51: ) | T51: 0 | U51: ут 3 | W51: ( | X51: 1 | Y51: - | Z51: 0 | AA51: ) | AC51: 0 | AD51: ут 3 | AF51: ( | AG51: 1 | AH51: - | AI51: 0 | AJ51: ) | AL51: 0 | AM51: ут 3 | AO51: ( | AP51: 1 | AQ51: - | AR51: 0 | AS51: )
B52: 0 | C52: ут 3 | E52: ( | F52: 1 | G52: - | H52: 0 | I52: ) | K52: 0 | L52: ут 3 | N52: ( | O52: 1 | P52: - | Q52: 0 | R52: ) | T52: 0 | U52: ут 3 | W52: ( | X52: 1 | Y52: - | Z52: 0 | AA52: ) | AC52: 0 | AD52: ут 3 | AF52: ( | AG52: 1 | AH52: - | AI52: 0 | AJ52: ) | AL52: 0 | AM52: ут 3 | AO52: ( | AP52: 1 | AQ52: - | AR52: 0 | AS52: )
B53: 0 | C53: ут 3 | E53: ( | F53: 1 | G53: - | H53: 0 | I53: ) | K53: 0 | L53: ут 3 | N53: ( | O53: 1 | P53: - | Q53: 0 | R53: ) | T53: 0 | U53: ут 3 | W53: ( | X53: 1 | Y53: - | Z53: 0 | AA53: ) | AC53: 0 | AD53: ут 3 | AF53: ( | AG53: 1 | AH53: - | AI53: 0 | AJ53: ) | AL53: 0 | AM53: ут 3 | AO53: ( | AP53: 1 | AQ53: - | AR53: 0 | AS53: )
B54: 0 | C54: ут 3 | E54: ( | F54: 1 | G54: - | H54: 0 | I54: ) | K54: 0 | L54: ут 3 | N54: ( | O54: 1 | P54: - | Q54: 0 | R54: ) | T54: 0 | U54: ут 3 | W54: ( | X54: 1 | Y54: - | Z54: 0 | AA54: ) | AC54: 0 | AD54: ут 3 | AF54: ( | AG54: 1 | AH54: - | AI54: 0 | AJ54: ) | AL54: 0 | AM54: ут 3 | AO54: ( | AP54: 1 | AQ54: - | AR54: 0 | AS54: )
D56: =SUM(D15:D55) -> 0 | M56: =SUM(M15:M54) -> 0 | V56: =SUM(V15:V54) -> 0 | AE56: =SUM(AE15:AE54) -> 0 | AN56: =SUM(AN15:AN54) -> 0
B58: 14.30-16.00 | D58: Перерыв - Break
B59: 17.00-17.30 | D59: Торжественное открытие соревнований - Opening ceremony
B60: 17.30-18.00 | D60: Жеребьевка спортсменов - Drawing of athletes | AC60: 22, 33, 44, 55, 66, 77 кг
B61: 18.00-20.00 | D61: Финальные поединки - Final rounds | AC61: =AC11 -> 44, 55, 66, 77, 88, 99 кг
B63: Mat А | E63: 59, 71, 80, 98, 130 | K63: Mat В | N63: 59, 71, 80, 98, 130 | T63: =T14 -> Mat C | W63: 59, 71, 80, 98, 130 | AC63: =AC14 -> Mat D | AF63: =AF14 -> 59, 71, 80, 98, 130 | AL63: =AL14 -> Mat E | AO63: 59, 71, 80, 98, 130
B64: 45 | C64: Fin 3 | E64: ( | F64: =AR54+1 -> 1 | G64: - | H64: =F64+D64-1 -> 0 | I64: ) | K64: 45 | L64: Fin 3 | N64: ( | O64: =H113+1 -> 1 | P64: - | Q64: =O64+M64-1 -> 0 | R64: ) | U64: Fin 3 | W64: ( | X64: =Q113+1 -> 1 | Y64: - | Z64: =X64+V64-1 -> 0 | AA64: ) | AD64: Fin 3 | AF64: ( | AG64: =Z113+1 -> 1 | AH64: - | AI64: =AG64+AE64-1 -> 0 | AJ64: ) | AM64: Fin 3 | AO64: ( | AP64: =AI113+1 -> 1 | AQ64: - | AR64: =AP64+AN64-1 -> 0 | AS64: )
B65: 45 | C65: Fin 3 | E65: ( | F65: =H64+1 -> 1 | G65: - | H65: =F65+D65-1 -> 0 | I65: ) | K65: 45 | L65: Fin 3 | N65: ( | O65: =Q64+1 -> 1 | P65: - | Q65: =O65+M65-1 -> 0 | R65: ) | U65: Fin 3 | W65: ( | X65: =Z64+1 -> 1 | Y65: - | Z65: =X65+V65-1 -> 0 | AA65: ) | AD65: Fin 3 | AF65: ( | AG65: =AI64+1 -> 1 | AH65: - | AI65: =AG65+AE65-1 -> 0 | AJ65: ) | AM65: Fin 3 | AO65: ( | AP65: =AR64+1 -> 1 | AQ65: - | AR65: =AP65+AN65-1 -> 0 | AS65: )
B66: 45 | C66: Fin 3 | E66: ( | F66: =H65+1 -> 1 | G66: - | H66: 0 | I66: ) | K66: 45 | L66: Fin 3 | N66: ( | O66: =Q65+1 -> 1 | P66: - | Q66: 0 | R66: ) | U66: Fin 3 | W66: ( | X66: =Z65+1 -> 1 | Y66: - | Z66: 0 | AA66: ) | AD66: Fin 3 | AF66: ( | AG66: =AI65+1 -> 1 | AH66: - | AI66: 0 | AJ66: ) | AM66: Fin 3 | AO66: ( | AP66: =AR65+1 -> 1 | AQ66: - | AR66: 0 | AS66: )
B67: 45 | C67: Fin 3 | E67: ( | F67: 1 | G67: - | H67: 0 | I67: ) | K67: 45 | L67: Fin 3 | N67: ( | O67: 1 | P67: - | Q67: 0 | R67: ) | U67: Fin 3 | W67: ( | X67: 1 | Y67: - | Z67: 0 | AA67: ) | AD67: Fin 3 | AF67: ( | AG67: 1 | AH67: - | AI67: 0 | AJ67: ) | AM67: Fin 3 | AO67: ( | AP67: 1 | AQ67: - | AR67: 0 | AS67: )
B68: 45 | C68: Fin 3 | E68: ( | F68: 1 | G68: - | H68: 0 | I68: ) | K68: 45 | L68: Fin 3 | N68: ( | O68: 1 | P68: - | Q68: 0 | R68: ) | U68: Fin 3 | W68: ( | X68: 1 | Y68: - | Z68: 0 | AA68: ) | AD68: Fin 3 | AF68: ( | AG68: 1 | AH68: - | AI68: 0 | AJ68: ) | AM68: Fin 3 | AO68: ( | AP68: 1 | AQ68: - | AR68: 0 | AS68: )
B69: 45 | C69: Fin 3 | E69: ( | F69: 1 | G69: - | H69: 0 | I69: ) | K69: 45 | L69: Fin 3 | N69: ( | O69: 1 | P69: - | Q69: 0 | R69: ) | U69: Fin 3 | W69: ( | X69: 1 | Y69: - | Z69: 0 | AA69: ) | AD69: Fin 3 | AF69: ( | AG69: 1 | AH69: - | AI69: 0 | AJ69: ) | AM69: Fin 3 | AO69: ( | AP69: 1 | AQ69: - | AR69: 0 | AS69: )
B70: 45 | C70: Fin 3 | E70: ( | F70: 1 | G70: - | H70: 0 | I70: ) | K70: 45 | L70: Fin 3 | N70: ( | O70: 1 | P70: - | Q70: 0 | R70: ) | U70: Fin 3 | W70: ( | X70: 1 | Y70: - | Z70: 0 | AA70: ) | AD70: Fin 3 | AF70: ( | AG70: 1 | AH70: - | AI70: 0 | AJ70: ) | AM70: Fin 3 | AO70: ( | AP70: 1 | AQ70: - | AR70: 0 | AS70: )
B71: 45 | C71: Fin 3 | E71: ( | F71: 1 | G71: - | H71: 0 | I71: ) | K71: 45 | L71: Fin 3 | N71: ( | O71: 1 | P71: - | Q71: 0 | R71: ) | U71: Fin 3 | W71: ( | X71: 1 | Y71: - | Z71: 0 | AA71: ) | AD71: Fin 3 | AF71: ( | AG71: 1 | AH71: - | AI71: 0 | AJ71: ) | AM71: Fin 3 | AO71: ( | AP71: 1 | AQ71: - | AR71: 0 | AS71: )
B72: 45 | C72: Fin 3 | E72: ( | F72: 1 | G72: - | H72: 0 | I72: ) | K72: 45 | L72: Fin 3 | N72: ( | O72: 1 | P72: - | Q72: 0 | R72: ) | U72: Fin 3 | W72: ( | X72: 1 | Y72: - | Z72: 0 | AA72: ) | AD72: Fin 3 | AF72: ( | AG72: 1 | AH72: - | AI72: 0 | AJ72: ) | AM72: Fin 3 | AO72: ( | AP72: 1 | AQ72: - | AR72: 0 | AS72: )
B73: 45 | C73: Fin 1 | E73: ( | F73: 1 | G73: - | H73: 0 | I73: ) | K73: 45 | L73: Fin 1 | N73: ( | O73: 1 | P73: - | Q73: 0 | R73: ) | U73: Fin 1 | W73: ( | X73: 1 | Y73: - | Z73: 0 | AA73: ) | AD73: Fin 1 | AF73: ( | AG73: 1 | AH73: - | AI73: 0 | AJ73: ) | AM73: Fin 1 | AO73: ( | AP73: 1 | AQ73: - | AR73: 0 | AS73: )
B74: 45 | C74: Fin 1 | E74: ( | F74: 1 | G74: - | H74: 0 | I74: ) | K74: 45 | L74: Fin 1 | N74: ( | O74: 1 | P74: - | Q74: 0 | R74: ) | U74: Fin 1 | W74: ( | X74: 1 | Y74: - | Z74: 0 | AA74: ) | AD74: Fin 1 | AF74: ( | AG74: 1 | AH74: - | AI74: 0 | AJ74: ) | AM74: Fin 1 | AO74: ( | AP74: 1 | AQ74: - | AR74: 0 | AS74: )
B75: 45 | C75: Fin 1 | E75: ( | F75: 1 | G75: - | H75: 0 | I75: ) | K75: 45 | L75: Fin 1 | N75: ( | O75: 1 | P75: - | Q75: 0 | R75: ) | U75: Fin 1 | W75: ( | X75: 1 | Y75: - | Z75: 0 | AA75: ) | AD75: Fin 1 | AF75: ( | AG75: 1 | AH75: - | AI75: 0 | AJ75: ) | AM75: Fin 1 | AO75: ( | AP75: 1 | AQ75: - | AR75: 0 | AS75: )
B76: 45 | C76: Fin 1 | E76: ( | F76: 1 | G76: - | H76: 0 | I76: ) | K76: 45 | L76: Fin 1 | N76: ( | O76: 1 | P76: - | Q76: =O76+M76-1 -> 0 | R76: ) | U76: Fin 1 | W76: ( | X76: 1 | Y76: - | Z76: 0 | AA76: ) | AD76: Fin 1 | AF76: ( | AG76: 1 | AH76: - | AI76: 0 | AJ76: ) | AM76: Fin 1 | AO76: ( | AP76: 1 | AQ76: - | AR76: 0 | AS76: )
B77: 45 | C77: Fin 1 | E77: ( | F77: 1 | G77: - | H77: 0 | I77: ) | K77: 45 | L77: Fin 1 | N77: ( | O77: 1 | P77: - | Q77: =O77+M77-1 -> 0 | R77: ) | U77: Fin 1 | W77: ( | X77: 1 | Y77: - | Z77: 0 | AA77: ) | AD77: Fin 1 | AF77: ( | AG77: 1 | AH77: - | AI77: 0 | AJ77: ) | AM77: Fin 1 | AO77: ( | AP77: 1 | AQ77: - | AR77: 0 | AS77: )
B78: 45 | C78: Fin 1 | E78: ( | F78: 1 | G78: - | H78: 0 | I78: ) | K78: 45 | L78: Fin 1 | N78: ( | O78: 1 | P78: - | Q78: 0 | R78: ) | U78: Fin 1 | W78: ( | X78: 1 | Y78: - | Z78: 0 | AA78: ) | AD78: Fin 1 | AF78: ( | AG78: 1 | AH78: - | AI78: 0 | AJ78: ) | AM78: Fin 1 | AO78: ( | AP78: 1 | AQ78: - | AR78: 0 | AS78: )
B79: 45 | C79: Fin 1 | E79: ( | F79: 1 | G79: - | H79: 0 | I79: ) | K79: 45 | L79: Fin 1 | N79: ( | O79: 1 | P79: - | Q79: 0 | R79: ) | U79: Fin 1 | W79: ( | X79: 1 | Y79: - | Z79: 0 | AA79: ) | AD79: Fin 1 | AF79: ( | AG79: 1 | AH79: - | AI79: 0 | AJ79: ) | AM79: Fin 1 | AO79: ( | AP79: 1 | AQ79: - | AR79: 0 | AS79: )
B80: 45 | C80: Fin 1 | E80: ( | F80: 1 | G80: - | H80: 0 | I80: ) | K80: 45 | L80: Fin 1 | N80: ( | O80: 1 | P80: - | Q80: 0 | R80: ) | U80: Fin 1 | W80: ( | X80: 1 | Y80: - | Z80: 0 | AA80: ) | AD80: Fin 1 | AF80: ( | AG80: 1 | AH80: - | AI80: 0 | AJ80: ) | AM80: Fin 1 | AO80: ( | AP80: 1 | AQ80: - | AR80: 0 | AS80: )
B81: 45 | C81: Fin 1 | E81: ( | F81: 1 | G81: - | H81: 0 | I81: ) | K81: 45 | L81: Fin 1 | N81: ( | O81: 1 | P81: - | Q81: 0 | R81: ) | U81: Fin 1 | W81: ( | X81: 1 | Y81: - | Z81: 0 | AA81: ) | AD81: Fin 1 | AF81: ( | AG81: 1 | AH81: - | AI81: 0 | AJ81: ) | AM81: Fin 1 | AO81: ( | AP81: 1 | AQ81: - | AR81: 0 | AS81: )
B82: 45 | C82: Fin 1 | E82: ( | F82: 1 | G82: - | H82: 0 | I82: ) | K82: 45 | L82: Fin 1 | N82: ( | O82: 1 | P82: - | Q82: 0 | R82: ) | U82: Fin 1 | W82: ( | X82: 1 | Y82: - | Z82: 0 | AA82: ) | AD82: Fin 1 | AF82: ( | AG82: 1 | AH82: - | AI82: 0 | AJ82: ) | AM82: Fin 1 | AO82: ( | AP82: 1 | AQ82: - | AR82: 0 | AS82: )
B83: 45 | C83: Fin 1 | E83: ( | F83: 1 | G83: - | H83: 0 | I83: ) | K83: 45 | L83: Fin 1 | N83: ( | O83: 1 | P83: - | Q83: 0 | R83: ) | U83: Fin 1 | W83: ( | X83: 1 | Y83: - | Z83: 0 | AA83: ) | AD83: Fin 1 | AF83: ( | AG83: 1 | AH83: - | AI83: 0 | AJ83: ) | AM83: Fin 1 | AO83: ( | AP83: 1 | AQ83: - | AR83: 0 | AS83: )
B84: 45 | C84: Fin 1 | E84: ( | F84: 1 | G84: - | H84: 0 | I84: ) | K84: 45 | L84: Fin 1 | N84: ( | O84: 1 | P84: - | Q84: 0 | R84: ) | U84: Fin 1 | W84: ( | X84: 1 | Y84: - | Z84: 0 | AA84: ) | AD84: Fin 1 | AF84: ( | AG84: 1 | AH84: - | AI84: 0 | AJ84: ) | AM84: Fin 1 | AO84: ( | AP84: 1 | AQ84: - | AR84: 0 | AS84: )
B85: 45 | C85: Fin 1 | E85: ( | F85: 1 | G85: - | H85: 0 | I85: ) | K85: 45 | L85: Fin 1 | N85: ( | O85: 1 | P85: - | Q85: 0 | R85: ) | U85: Fin 1 | W85: ( | X85: 1 | Y85: - | Z85: 0 | AA85: ) | AD85: Fin 1 | AF85: ( | AG85: 1 | AH85: - | AI85: 0 | AJ85: ) | AM85: Fin 1 | AO85: ( | AP85: 1 | AQ85: - | AR85: 0 | AS85: )
B86: 45 | C86: Fin 1 | E86: ( | F86: 1 | G86: - | H86: 0 | I86: ) | K86: 45 | L86: Fin 1 | N86: ( | O86: 1 | P86: - | Q86: 0 | R86: ) | U86: Fin 1 | W86: ( | X86: 1 | Y86: - | Z86: 0 | AA86: ) | AD86: Fin 1 | AF86: ( | AG86: 1 | AH86: - | AI86: 0 | AJ86: ) | AM86: Fin 1 | AO86: ( | AP86: 1 | AQ86: - | AR86: 0 | AS86: )
B87: 45 | C87: Fin 1 | E87: ( | F87: 1 | G87: - | H87: 0 | I87: ) | K87: 45 | L87: Fin 1 | N87: ( | O87: 1 | P87: - | Q87: 0 | R87: ) | U87: Fin 1 | W87: ( | X87: 1 | Y87: - | Z87: 0 | AA87: ) | AD87: Fin 1 | AF87: ( | AG87: 1 | AH87: - | AI87: 0 | AJ87: ) | AM87: Fin 1 | AO87: ( | AP87: 1 | AQ87: - | AR87: 0 | AS87: )
B88: 45 | C88: Fin 1 | E88: ( | F88: 1 | G88: - | H88: 0 | I88: ) | K88: 45 | L88: Fin 1 | N88: ( | O88: 1 | P88: - | Q88: 0 | R88: ) | U88: Fin 1 | W88: ( | X88: 1 | Y88: - | Z88: 0 | AA88: ) | AD88: Fin 1 | AF88: ( | AG88: 1 | AH88: - | AI88: 0 | AJ88: ) | AM88: Fin 1 | AO88: ( | AP88: 1 | AQ88: - | AR88: 0 | AS88: )
B89: 45 | C89: Fin 3 | E89: ( | F89: 1 | G89: - | H89: 0 | I89: ) | K89: 45 | L89: Fin 1 | N89: ( | O89: 1 | P89: - | Q89: 0 | R89: ) | T89: 45 | U89: Fin 3 | W89: ( | X89: 1 | Y89: - | Z89: 0 | AA89: ) | AC89: 45 | AD89: Fin 3 | AF89: ( | AG89: 1 | AH89: - | AI89: 0 | AJ89: ) | AL89: 45 | AM89: Fin 3 | AO89: ( | AP89: 1 | AQ89: - | AR89: 0 | AS89: )
B90: 45 | C90: Fin 1 | E90: ( | F90: 1 | G90: - | H90: 0 | I90: ) | K90: 45 | L90: Fin 1 | N90: ( | O90: 1 | P90: - | Q90: 0 | R90: ) | T90: 45 | U90: Fin 1 | W90: ( | X90: 1 | Y90: - | Z90: 0 | AA90: ) | AC90: 45 | AD90: Fin 1 | AF90: ( | AG90: 1 | AH90: - | AI90: 0 | AJ90: ) | AL90: 45 | AM90: Fin 1 | AO90: ( | AP90: 1 | AQ90: - | AR90: 0 | AS90: )
B91: 45 | C91: Fin 3 | E91: ( | F91: 1 | G91: - | H91: 0 | I91: ) | K91: 45 | L91: Fin 1 | N91: ( | O91: 1 | P91: - | Q91: 0 | R91: ) | T91: 45 | U91: Fin 3 | W91: ( | X91: 1 | Y91: - | Z91: 0 | AA91: ) | AC91: 45 | AD91: Fin 3 | AF91: ( | AG91: 1 | AH91: - | AI91: 0 | AJ91: ) | AL91: 45 | AM91: Fin 3 | AO91: ( | AP91: 1 | AQ91: - | AR91: 0 | AS91: )
B92: 45 | C92: Fin 1 | E92: ( | F92: 1 | G92: - | H92: 0 | I92: ) | K92: 45 | L92: Fin 1 | N92: ( | O92: 1 | P92: - | Q92: 0 | R92: ) | T92: 45 | U92: Fin 1 | W92: ( | X92: 1 | Y92: - | Z92: 0 | AA92: ) | AC92: 45 | AD92: Fin 1 | AF92: ( | AG92: 1 | AH92: - | AI92: 0 | AJ92: ) | AL92: 45 | AM92: Fin 1 | AO92: ( | AP92: 1 | AQ92: - | AR92: 0 | AS92: )
B93: 45 | C93: Fin 3 | E93: ( | F93: 1 | G93: - | H93: 0 | I93: ) | K93: 45 | L93: Fin 1 | N93: ( | O93: 1 | P93: - | Q93: 0 | R93: ) | T93: 45 | U93: Fin 3 | W93: ( | X93: 1 | Y93: - | Z93: 0 | AA93: ) | AC93: 45 | AD93: Fin 3 | AF93: ( | AG93: 1 | AH93: - | AI93: 0 | AJ93: ) | AL93: 45 | AM93: Fin 3 | AO93: ( | AP93: 1 | AQ93: - | AR93: 0 | AS93: )
B94: 45 | C94: Fin 1 | E94: ( | F94: 1 | G94: - | H94: 0 | I94: ) | K94: 45 | L94: Fin 1 | N94: ( | O94: 1 | P94: - | Q94: 0 | R94: ) | T94: 45 | U94: Fin 1 | W94: ( | X94: 1 | Y94: - | Z94: 0 | AA94: ) | AC94: 45 | AD94: Fin 1 | AF94: ( | AG94: 1 | AH94: - | AI94: 0 | AJ94: ) | AL94: 45 | AM94: Fin 1 | AO94: ( | AP94: 1 | AQ94: - | AR94: 0 | AS94: )
B95: 45 | C95: Fin 3 | E95: ( | F95: 1 | G95: - | H95: 0 | I95: ) | K95: 45 | L95: Fin 1 | N95: ( | O95: 1 | P95: - | Q95: 0 | R95: ) | T95: 45 | U95: Fin 3 | W95: ( | X95: 1 | Y95: - | Z95: 0 | AA95: ) | AC95: 45 | AD95: Fin 3 | AF95: ( | AG95: 1 | AH95: - | AI95: 0 | AJ95: ) | AL95: 45 | AM95: Fin 3 | AO95: ( | AP95: 1 | AQ95: - | AR95: 0 | AS95: )
B96: 45 | C96: Fin 1 | E96: ( | F96: 1 | G96: - | H96: 0 | I96: ) | K96: 45 | L96: Fin 1 | N96: ( | O96: 1 | P96: - | Q96: 0 | R96: ) | T96: 45 | U96: Fin 1 | W96: ( | X96: 1 | Y96: - | Z96: 0 | AA96: ) | AC96: 45 | AD96: Fin 1 | AF96: ( | AG96: 1 | AH96: - | AI96: 0 | AJ96: ) | AL96: 45 | AM96: Fin 1 | AO96: ( | AP96: 1 | AQ96: - | AR96: 0 | AS96: )
B97: 45 | C97: Fin 3 | E97: ( | F97: 1 | G97: - | H97: 0 | I97: ) | K97: 45 | L97: Fin 1 | N97: ( | O97: 1 | P97: - | Q97: 0 | R97: ) | T97: 45 | U97: Fin 3 | W97: ( | X97: 1 | Y97: - | Z97: 0 | AA97: ) | AC97: 45 | AD97: Fin 3 | AF97: ( | AG97: 1 | AH97: - | AI97: 0 | AJ97: ) | AL97: 45 | AM97: Fin 3 | AO97: ( | AP97: 1 | AQ97: - | AR97: 0 | AS97: )
B98: 45 | C98: Fin 1 | E98: ( | F98: 1 | G98: - | H98: 0 | I98: ) | K98: 45 | L98: Fin 1 | N98: ( | O98: 1 | P98: - | Q98: 0 | R98: ) | T98: 45 | U98: Fin 1 | W98: ( | X98: 1 | Y98: - | Z98: 0 | AA98: ) | AC98: 45 | AD98: Fin 1 | AF98: ( | AG98: 1 | AH98: - | AI98: 0 | AJ98: )
B99: 45 | C99: Fin 3 | E99: ( | F99: 1 | G99: - | H99: 0 | I99: ) | K99: 45 | L99: Fin 1 | N99: ( | O99: 1 | P99: - | Q99: 0 | R99: ) | T99: 45 | U99: Fin 3 | W99: ( | X99: 1 | Y99: - | Z99: 0 | AA99: ) | AC99: 45 | AD99: Fin 3 | AF99: ( | AG99: 1 | AH99: - | AI99: 0 | AJ99: )
B100: 45 | C100: Fin 1 | E100: ( | F100: 1 | G100: - | H100: 0 | I100: ) | K100: 45 | L100: Fin 1 | N100: ( | O100: 1 | P100: - | Q100: 0 | R100: ) | T100: 45 | U100: Fin 1 | W100: ( | X100: 1 | Y100: - | Z100: 0 | AA100: ) | AC100: 45 | AD100: Fin 1 | AF100: ( | AG100: 1 | AH100: - | AI100: 0 | AJ100: )
B101: 45 | C101: Fin 3 | E101: ( | F101: 1 | G101: - | H101: 0 | I101: ) | K101: 45 | L101: Fin 1 | N101: ( | O101: 1 | P101: - | Q101: 0 | R101: ) | T101: 45 | U101: Fin 3 | W101: ( | X101: 1 | Y101: - | Z101: 0 | AA101: ) | AC101: 45 | AD101: Fin 3 | AF101: ( | AG101: 1 | AH101: - | AI101: 0 | AJ101: )
B102: 45 | C102: Fin 1 | E102: ( | F102: 1 | G102: - | H102: 0 | I102: ) | K102: 45 | L102: Fin 1 | N102: ( | O102: 1 | P102: - | Q102: 0 | R102: ) | T102: 45 | U102: Fin 1 | W102: ( | X102: 1 | Y102: - | Z102: 0 | AA102: ) | AC102: 45 | AD102: Fin 1 | AF102: ( | AG102: 1 | AH102: - | AI102: 0 | AJ102: )
B103: 45 | C103: Fin 3 | E103: ( | F103: 1 | G103: - | H103: 0 | I103: ) | K103: 45 | L103: Fin 1 | N103: ( | O103: 1 | P103: - | Q103: 0 | R103: ) | T103: 45 | U103: Fin 3 | W103: ( | X103: 1 | Y103: - | Z103: 0 | AA103: ) | AC103: 45 | AD103: Fin 3 | AF103: ( | AG103: 1 | AH103: - | AI103: 0 | AJ103: )
B104: 45 | C104: Fin 1 | E104: ( | F104: 1 | G104: - | H104: 0 | I104: ) | K104: 45 | L104: Fin 1 | N104: ( | O104: 1 | P104: - | Q104: 0 | R104: ) | T104: 45 | U104: Fin 1 | W104: ( | X104: 1 | Y104: - | Z104: 0 | AA104: ) | AC104: 45 | AD104: Fin 1 | AF104: ( | AG104: 1 | AH104: - | AI104: 0 | AJ104: )
B105: 45 | C105: Fin 3 | E105: ( | F105: 1 | G105: - | H105: 0 | I105: ) | K105: 45 | L105: Fin 1 | N105: ( | O105: 1 | P105: - | Q105: 0 | R105: ) | T105: 45 | U105: Fin 3 | W105: ( | X105: 1 | Y105: - | Z105: 0 | AA105: ) | AC105: 45 | AD105: Fin 3 | AF105: ( | AG105: 1 | AH105: - | AI105: 0 | AJ105: )
B106: 45 | C106: Fin 1 | E106: ( | F106: 1 | G106: - | H106: 0 | I106: ) | K106: 45 | L106: Fin 1 | N106: ( | O106: 1 | P106: - | Q106: 0 | R106: ) | T106: 45 | U106: Fin 1 | W106: ( | X106: 1 | Y106: - | Z106: 0 | AA106: ) | AC106: 45 | AD106: Fin 1 | AF106: ( | AG106: 1 | AH106: - | AI106: 0 | AJ106: )
B107: 45 | C107: Fin 3 | E107: ( | F107: 1 | G107: - | H107: 0 | I107: ) | K107: 45 | L107: Fin 1 | N107: ( | O107: 1 | P107: - | Q107: 0 | R107: ) | T107: 45 | U107: Fin 3 | W107: ( | X107: 1 | Y107: - | Z107: 0 | AA107: ) | AC107: 45 | AD107: Fin 3 | AF107: ( | AG107: 1 | AH107: - | AI107: 0 | AJ107: )
B108: 45 | C108: Fin 1 | E108: ( | F108: 1 | G108: - | H108: 0 | I108: ) | K108: 45 | L108: Fin 1 | N108: ( | O108: 1 | P108: - | Q108: 0 | R108: ) | T108: 45 | U108: Fin 1 | W108: ( | X108: 1 | Y108: - | Z108: 0 | AA108: ) | AC108: 45 | AD108: Fin 1 | AF108: ( | AG108: 1 | AH108: - | AI108: 0 | AJ108: )
B109: 45 | C109: Fin 3 | E109: ( | F109: 1 | G109: - | H109: 0 | I109: ) | K109: 45 | L109: Fin 1 | N109: ( | O109: 1 | P109: - | Q109: 0 | R109: ) | T109: 45 | U109: Fin 3 | W109: ( | X109: 1 | Y109: - | Z109: 0 | AA109: ) | AC109: 45 | AD109: Fin 3 | AF109: ( | AG109: 1 | AH109: - | AI109: 0 | AJ109: )
B110: 45 | C110: Fin 1 | E110: ( | F110: 1 | G110: - | H110: 0 | I110: ) | K110: 45 | L110: Fin 1 | N110: ( | O110: 1 | P110: - | Q110: 0 | R110: ) | T110: 45 | U110: Fin 1 | W110: ( | X110: 1 | Y110: - | Z110: 0 | AA110: ) | AC110: 45 | AD110: Fin 1 | AF110: ( | AG110: 1 | AH110: - | AI110: 0 | AJ110: )
B111: 45 | C111: Fin 1 | E111: ( | F111: 1 | G111: - | H111: 0 | I111: ) | K111: 45 | L111: Fin 1 | N111: ( | O111: 1 | P111: - | Q111: 0 | R111: ) | T111: 45 | U111: Fin 3 | W111: ( | X111: 1 | Y111: - | Z111: 0 | AA111: ) | AC111: 45 | AD111: Fin 3 | AF111: ( | AG111: 1 | AH111: - | AI111: 0 | AJ111: )
B112: 45 | C112: Fin 1 | E112: ( | F112: 1 | G112: - | H112: 0 | I112: ) | K112: 45 | L112: Fin 1 | N112: ( | O112: 1 | P112: - | Q112: 0 | R112: ) | T112: 45 | U112: Fin 1 | W112: ( | X112: 1 | Y112: - | Z112: 0 | AA112: ) | AC112: 45 | AD112: Fin 1 | AF112: ( | AG112: 1 | AH112: - | AI112: 0 | AJ112: )
B113: 45 | C113: Fin 1 | E113: ( | F113: 1 | G113: - | H113: 0 | I113: ) | K113: 45 | L113: Fin 1 | N113: ( | O113: 1 | P113: - | Q113: 0 | R113: ) | T113: 45 | U113: Fin 1 | W113: ( | X113: 1 | Y113: - | Z113: 0 | AA113: ) | AC113: 45 | AD113: Fin 1 | AF113: ( | AG113: 1 | AH113: - | AI113: 0 | AJ113: )
D115: =SUM(D64:D113) -> 0 | M115: =SUM(M64:M113) -> 0 | V115: =SUM(V64:V113) -> 0 | AE115: =SUM(AE64:AE113) -> 0 | AN115: =SUM(AN64:AN113) -> 0
B117: 20.00-20.30 | D117: Награждение победителей и призеров - Rewarding of winners and prize-winners | AC117: =AC61 -> 44, 55, 66, 77, 88, 99 кг
B119: Внимание! В программе могут быть изменения - Attention! Тhe program can be changed!

Sheet A-B (hidden)
B1: Распределение по пулам участников весовой категории в зависимости от количества участников
B2: ВЕС
B3: Кол-во
B4: А1 | C4: =IF(C3=0,"",INDEX(Лист4!$B$1:$J$58,MATCH(C3,Лист4!$B$1:$B$58,0),2)) ->  | D4: =IF(D3=0,"",INDEX(Лист4!$B$1:$J$58,MATCH(D3,Лист4!$B$1:$B$58,0),2)) ->  | E4: =IF(E3=0,"",INDEX(Лист4!$B$1:$J$58,MATCH(E3,Лист4!$B$1:$B$58,0),2)) ->  | F4: =IF(F3=0,"",INDEX(Лист4!$B$1:$J$58,MATCH(F3,Лист4!$B$1:$B$58,0),2)) ->  | G4: =IF(G3=0,"",INDEX(Лист4!$B$1:$J$58,MATCH(G3,Лист4!$B$1:$B$58,0),2)) ->  | H4: =IF(H3=0,"",INDEX(Лист4!$B$1:$J$58,MATCH(H3,Лист4!$B$1:$B$58,0),2)) ->  | I4: =IF(I3=0,"",INDEX(Лист4!$B$1:$J$58,MATCH(I3,Лист4!$B$1:$B$58,0),2)) ->  | J4: =IF(J3=0,"",INDEX(Лист4!$B$1:$J$58,MATCH(J3,Лист4!$B$1:$B$58,0),2)) ->  | K4: =IF(K3=0,"",INDEX(Лист4!$B$1:$J$58,MATCH(K3,Лист4!$B$1:$B$58,0),2)) ->  | L4: =IF(L3=0,"",INDEX(Лист4!$B$1:$J$58,MATCH(L3,Лист4!$B$1:$B$58,0),2)) ->  | M4: =IF(M3=0,"",INDEX(Лист4!$B$1:$J$58,MATCH(M3,Лист4!$B$1:$B$58,0),2)) ->  | N4: =IF(N3=0,"",INDEX(Лист4!$B$1:$J$58,MATCH(N3,Лист4!$B$1:$B$58,0),2)) -> 
B5: А2 | C5: =IF(C3=0,"",INDEX(Лист4!$B$1:$J$58,MATCH(C3,Лист4!$B$1:$B$58,0),3)) ->  | D5: =IF(D3=0,"",INDEX(Лист4!$B$1:$J$58,MATCH(D3,Лист4!$B$1:$B$58,0),3)) ->  | E5: =IF(E3=0,"",INDEX(Лист4!$B$1:$J$58,MATCH(E3,Лист4!$B$1:$B$58,0),3)) ->  | F5: =IF(F3=0,"",INDEX(Лист4!$B$1:$J$58,MATCH(F3,Лист4!$B$1:$B$58,0),3)) ->  | G5: =IF(G3=0,"",INDEX(Лист4!$B$1:$J$58,MATCH(G3,Лист4!$B$1:$B$58,0),3)) ->  | H5: =IF(H3=0,"",INDEX(Лист4!$B$1:$J$58,MATCH(H3,Лист4!$B$1:$B$58,0),3)) ->  | I5: =IF(I3=0,"",INDEX(Лист4!$B$1:$J$58,MATCH(I3,Лист4!$B$1:$B$58,0),3)) ->  | J5: =IF(J3=0,"",INDEX(Лист4!$B$1:$J$58,MATCH(J3,Лист4!$B$1:$B$58,0),3)) ->  | K5: =IF(K3=0,"",INDEX(Лист4!$B$1:$J$58,MATCH(K3,Лист4!$B$1:$B$58,0),3)) ->  | L5: =IF(L3=0,"",INDEX(Лист4!$B$1:$J$58,MATCH(L3,Лист4!$B$1:$B$58,0),3)) ->  | M5: =IF(M3=0,"",INDEX(Лист4!$B$1:$J$58,MATCH(M3,Лист4!$B$1:$B$58,0),3)) ->  | N5: =IF(N3=0,"",INDEX(Лист4!$B$1:$J$58,MATCH(N3,Лист4!$B$1:$B$58,0),3)) -> 
B6: А3 | C6: =IF(C3=0,"",INDEX(Лист4!$B$1:$J$58,MATCH(C3,Лист4!$B$1:$B$58,0),4)) ->  | D6: =IF(D3=0,"",INDEX(Лист4!$B$1:$J$58,MATCH(D3,Лист4!$B$1:$B$58,0),4)) ->  | E6: =IF(E3=0,"",INDEX(Лист4!$B$1:$J$58,MATCH(E3,Лист4!$B$1:$B$58,0),4)) ->  | F6: =IF(F3=0,"",INDEX(Лист4!$B$1:$J$58,MATCH(F3,Лист4!$B$1:$B$58,0),4)) ->  | G6: =IF(G3=0,"",INDEX(Лист4!$B$1:$J$58,MATCH(G3,Лист4!$B$1:$B$58,0),4)) ->  | H6: =IF(H3=0,"",INDEX(Лист4!$B$1:$J$58,MATCH(H3,Лист4!$B$1:$B$58,0),4)) ->  | I6: =IF(I3=0,"",INDEX(Лист4!$B$1:$J$58,MATCH(I3,Лист4!$B$1:$B$58,0),4)) ->  | J6: =IF(J3=0,"",INDEX(Лист4!$B$1:$J$58,MATCH(J3,Лист4!$B$1:$B$58,0),4)) ->  | K6: =IF(K3=0,"",INDEX(Лист4!$B$1:$J$58,MATCH(K3,Лист4!$B$1:$B$58,0),4)) ->  | L6: =IF(L3=0,"",INDEX(Лист4!$B$1:$J$58,MATCH(L3,Лист4!$B$1:$B$58,0),4)) ->  | M6: =IF(M3=0,"",INDEX(Лист4!$B$1:$J$58,MATCH(M3,Лист4!$B$1:$B$58,0),4)) ->  | N6: =IF(N3=0,"",INDEX(Лист4!$B$1:$J$58,MATCH(N3,Лист4!$B$1:$B$58,0),4)) -> 
B7: А4 | C7: =IF(C3=0,"",INDEX(Лист4!$B$1:$J$58,MATCH(C3,Лист4!$B$1:$B$58,0),5)) ->  | D7: =IF(D3=0,"",INDEX(Лист4!$B$1:$J$58,MATCH(D3,Лист4!$B$1:$B$58,0),5)) ->  | E7: =IF(E3=0,"",INDEX(Лист4!$B$1:$J$58,MATCH(E3,Лист4!$B$1:$B$58,0),5)) ->  | F7: =IF(F3=0,"",INDEX(Лист4!$B$1:$J$58,MATCH(F3,Лист4!$B$1:$B$58,0),5)) ->  | G7: =IF(G3=0,"",INDEX(Лист4!$B$1:$J$58,MATCH(G3,Лист4!$B$1:$B$58,0),5)) ->  | H7: =IF(H3=0,"",INDEX(Лист4!$B$1:$J$58,MATCH(H3,Лист4!$B$1:$B$58,0),5)) ->  | I7: =IF(I3=0,"",INDEX(Лист4!$B$1:$J$58,MATCH(I3,Лист4!$B$1:$B$58,0),5)) ->  | J7: =IF(J3=0,"",INDEX(Лист4!$B$1:$J$58,MATCH(J3,Лист4!$B$1:$B$58,0),5)) ->  | K7: =IF(K3=0,"",INDEX(Лист4!$B$1:$J$58,MATCH(K3,Лист4!$B$1:$B$58,0),5)) ->  | L7: =IF(L3=0,"",INDEX(Лист4!$B$1:$J$58,MATCH(L3,Лист4!$B$1:$B$58,0),5)) ->  | M7: =IF(M3=0,"",INDEX(Лист4!$B$1:$J$58,MATCH(M3,Лист4!$B$1:$B$58,0),5)) ->  | N7: =IF(N3=0,"",INDEX(Лист4!$B$1:$J$58,MATCH(N3,Лист4!$B$1:$B$58,0),5)) -> 
B8: В1 | C8: =IF(C3=0,"",INDEX(Лист4!$B$1:$J$58,MATCH(C3,Лист4!$B$1:$B$58,0),6)) ->  | D8: =IF(D3=0,"",INDEX(Лист4!$B$1:$J$58,MATCH(D3,Лист4!$B$1:$B$58,0),6)) ->  | E8: =IF(E3=0,"",INDEX(Лист4!$B$1:$J$58,MATCH(E3,Лист4!$B$1:$B$58,0),6)) ->  | F8: =IF(F3=0,"",INDEX(Лист4!$B$1:$J$58,MATCH(F3,Лист4!$B$1:$B$58,0),6)) ->  | G8: =IF(G3=0,"",INDEX(Лист4!$B$1:$J$58,MATCH(G3,Лист4!$B$1:$B$58,0),6)) ->  | H8: =IF(H3=0,"",INDEX(Лист4!$B$1:$J$58,MATCH(H3,Лист4!$B$1:$B$58,0),6)) ->  | I8: =IF(I3=0,"",INDEX(Лист4!$B$1:$J$58,MATCH(I3,Лист4!$B$1:$B$58,0),6)) ->  | J8: =IF(J3=0,"",INDEX(Лист4!$B$1:$J$58,MATCH(J3,Лист4!$B$1:$B$58,0),6)) ->  | K8: =IF(K3=0,"",INDEX(Лист4!$B$1:$J$58,MATCH(K3,Лист4!$B$1:$B$58,0),6)) ->  | L8: =IF(L3=0,"",INDEX(Лист4!$B$1:$J$58,MATCH(L3,Лист4!$B$1:$B$58,0),6)) ->  | M8: =IF(M3=0,"",INDEX(Лист4!$B$1:$J$58,MATCH(M3,Лист4!$B$1:$B$58,0),6)) ->  | N8: =IF(N3=0,"",INDEX(Лист4!$B$1:$J$58,MATCH(N3,Лист4!$B$1:$B$58,0),6)) -> 
B9: В2 | C9: =IF(C3=0,"",INDEX(Лист4!$B$1:$J$58,MATCH(C3,Лист4!$B$1:$B$58,0),7)) ->  | D9: =IF(D3=0,"",INDEX(Лист4!$B$1:$J$58,MATCH(D3,Лист4!$B$1:$B$58,0),7)) ->  | E9: =IF(E3=0,"",INDEX(Лист4!$B$1:$J$58,MATCH(E3,Лист4!$B$1:$B$58,0),7)) ->  | F9: =IF(F3=0,"",INDEX(Лист4!$B$1:$J$58,MATCH(F3,Лист4!$B$1:$B$58,0),7)) ->  | G9: =IF(G3=0,"",INDEX(Лист4!$B$1:$J$58,MATCH(G3,Лист4!$B$1:$B$58,0),7)) ->  | H9: =IF(H3=0,"",INDEX(Лист4!$B$1:$J$58,MATCH(H3,Лист4!$B$1:$B$58,0),7)) ->  | I9: =IF(I3=0,"",INDEX(Лист4!$B$1:$J$58,MATCH(I3,Лист4!$B$1:$B$58,0),7)) ->  | J9: =IF(J3=0,"",INDEX(Лист4!$B$1:$J$58,MATCH(J3,Лист4!$B$1:$B$58,0),7)) ->  | K9: =IF(K3=0,"",INDEX(Лист4!$B$1:$J$58,MATCH(K3,Лист4!$B$1:$B$58,0),7)) ->  | L9: =IF(L3=0,"",INDEX(Лист4!$B$1:$J$58,MATCH(L3,Лист4!$B$1:$B$58,0),7)) ->  | M9: =IF(M3=0,"",INDEX(Лист4!$B$1:$J$58,MATCH(M3,Лист4!$B$1:$B$58,0),7)) ->  | N9: =IF(N3=0,"",INDEX(Лист4!$B$1:$J$58,MATCH(N3,Лист4!$B$1:$B$58,0),7)) -> 
B10: В3 | C10: =IF(C3=0,"",INDEX(Лист4!$B$1:$J$58,MATCH(C3,Лист4!$B$1:$B$58,0),8)) ->  | D10: =IF(D3=0,"",INDEX(Лист4!$B$1:$J$58,MATCH(D3,Лист4!$B$1:$B$58,0),8)) ->  | E10: =IF(E3=0,"",INDEX(Лист4!$B$1:$J$58,MATCH(E3,Лист4!$B$1:$B$58,0),8)) ->  | F10: =IF(F3=0,"",INDEX(Лист4!$B$1:$J$58,MATCH(F3,Лист4!$B$1:$B$58,0),8)) ->  | G10: =IF(G3=0,"",INDEX(Лист4!$B$1:$J$58,MATCH(G3,Лист4!$B$1:$B$58,0),8)) ->  | H10: =IF(H3=0,"",INDEX(Лист4!$B$1:$J$58,MATCH(H3,Лист4!$B$1:$B$58,0),8)) ->  | I10: =IF(I3=0,"",INDEX(Лист4!$B$1:$J$58,MATCH(I3,Лист4!$B$1:$B$58,0),8)) ->  | J10: =IF(J3=0,"",INDEX(Лист4!$B$1:$J$58,MATCH(J3,Лист4!$B$1:$B$58,0),8)) ->  | K10: =IF(K3=0,"",INDEX(Лист4!$B$1:$J$58,MATCH(K3,Лист4!$B$1:$B$58,0),8)) ->  | L10: =IF(L3=0,"",INDEX(Лист4!$B$1:$J$58,MATCH(L3,Лист4!$B$1:$B$58,0),8)) ->  | M10: =IF(M3=0,"",INDEX(Лист4!$B$1:$J$58,MATCH(M3,Лист4!$B$1:$B$58,0),8)) ->  | N10: =IF(N3=0,"",INDEX(Лист4!$B$1:$J$58,MATCH(N3,Лист4!$B$1:$B$58,0),8)) -> 
B11: В4 | C11: =IF(C3=0,"",INDEX(Лист4!$B$1:$J$58,MATCH(C3,Лист4!$B$1:$B$58,0),9)) ->  | D11: =IF(D3=0,"",INDEX(Лист4!$B$1:$J$58,MATCH(D3,Лист4!$B$1:$B$58,0),9)) ->  | E11: =IF(E3=0,"",INDEX(Лист4!$B$1:$J$58,MATCH(E3,Лист4!$B$1:$B$58,0),9)) ->  | F11: =IF(F3=0,"",INDEX(Лист4!$B$1:$J$58,MATCH(F3,Лист4!$B$1:$B$58,0),9)) ->  | G11: =IF(G3=0,"",INDEX(Лист4!$B$1:$J$58,MATCH(G3,Лист4!$B$1:$B$58,0),9)) ->  | H11: =IF(H3=0,"",INDEX(Лист4!$B$1:$J$58,MATCH(H3,Лист4!$B$1:$B$58,0),9)) ->  | I11: =IF(I3=0,"",INDEX(Лист4!$B$1:$J$58,MATCH(I3,Лист4!$B$1:$B$58,0),9)) ->  | J11: =IF(J3=0,"",INDEX(Лист4!$B$1:$J$58,MATCH(J3,Лист4!$B$1:$B$58,0),9)) ->  | K11: =IF(K3=0,"",INDEX(Лист4!$B$1:$J$58,MATCH(K3,Лист4!$B$1:$B$58,0),9)) ->  | L11: =IF(L3=0,"",INDEX(Лист4!$B$1:$J$58,MATCH(L3,Лист4!$B$1:$B$58,0),9)) ->  | M11: =IF(M3=0,"",INDEX(Лист4!$B$1:$J$58,MATCH(M3,Лист4!$B$1:$B$58,0),9)) ->  | N11: =IF(N3=0,"",INDEX(Лист4!$B$1:$J$58,MATCH(N3,Лист4!$B$1:$B$58,0),9)) -> 

Sheet Ra (hidden)
B1: Количество пар от числа участников соревнований в каждой весовой категории
B2: Весовая категория | D2: =Inf!I5 -> 55 | E2: =Inf!I6 -> 60 | F2: =Inf!I7 -> 63 | G2: =Inf!I8 -> 67 | H2: =Inf!I9 -> 72 | I2: =Inf!I10 -> 77 | J2: =Inf!I11 -> 82 | K2: =Inf!I12 -> 87 | L2: =Inf!K5 -> 97 | M2: =Inf!K6 -> 130 | N2: =Inf!K7 -> 0 | O2: =Inf!K8 -> 0 | P2: =Inf!K9 -> 0 | Q2: =Inf!K10 -> 0 | R2: =Inf!K11 -> 0 | S2: =Inf!K12 -> 0 | U2: Всего | X2: 1 ковер | Z2: 2 ковра | AB2: 3 ковра
B4: Кол-во участников | D4: ='M-I'!F29 -> 6 | E4: ='M-I'!G29 -> 7 | F4: ='M-I'!H29 -> 9 | G4: ='M-I'!I29 -> 9 | H4: ='M-I'!J29 -> 17 | I4: ='M-I'!K29 -> 11 | J4: ='M-I'!L29 -> 17 | K4: ='M-I'!M29 -> 11 | L4: ='M-I'!N29 -> 12 | M4: ='M-I'!O29 -> 10 | N4: ='M-I'!P29 -> 0 | O4: ='M-I'!Q29 -> 0 | P4: ='M-I'!R29 -> 0 | Q4: ='M-I'!S29 -> 0 | R4: ='M-I'!T29 -> 0 | S4: ='M-I'!U29 -> 0 | U4: =SUM(D4:S4) -> 109 | X4: 6 | Z4: 1 пара Начало | AB4: 11:00:00
B6: квалификация | D6: =IF(D4=" "," ",IF(D4=0," ",IF(Лист2!D6>0,Лист2!D6," "))) ->  | E6: =IF(E4=" "," ",IF(E4=0," ",IF(Лист2!E6>0,Лист2!E6," "))) ->  | F6: =IF(F4=" "," ",IF(F4=0," ",IF(Лист2!F6>0,Лист2!F6," "))) ->  | G6: =IF(G4=" "," ",IF(G4=0," ",IF(Лист2!G6>0,Лист2!G6," "))) ->  | H6: =IF(H4=" "," ",IF(H4=0," ",IF(Лист2!H6>0,Лист2!H6," "))) ->  | I6: =IF(I4=" "," ",IF(I4=0," ",IF(Лист2!I6>0,Лист2!I6," "))) ->  | J6: =IF(J4=" "," ",IF(J4=0," ",IF(Лист2!J6>0,Лист2!J6," "))) ->  | K6: =IF(K4=" "," ",IF(K4=0," ",IF(Лист2!K6>0,Лист2!K6," "))) ->  | L6: =IF(L4=" "," ",IF(L4=0," ",IF(Лист2!L6>0,Лист2!L6," "))) ->  | M6: =IF(M4=" "," ",IF(M4=0," ",IF(Лист2!M6>0,Лист2!M6," "))) ->  | N6: =IF(N4=" "," ",IF(N4=0," ",IF(Лист2!N6>0,Лист2!N6," "))) ->  | O6: =IF(O4=" "," ",IF(O4=0," ",IF(Лист2!O6>0,Лист2!O6," "))) ->  | P6: =IF(P4=" "," ",IF(P4=0," ",IF(Лист2!P6>0,Лист2!P6," "))) ->  | Q6: =IF(Q4=" "," ",IF(Q4=0," ",IF(Лист2!Q6>0,Лист2!Q6," "))) ->  | R6: =IF(R4=" "," ",IF(R4=0," ",IF(Лист2!R6>0,Лист2!R6," "))) ->  | S6: =IF(S4=" "," ",IF(S4=0," ",IF(Лист2!S6>0,Лист2!S6," "))) ->  | U6: =SUM(D6:S6) -> 0 | X6: =AB4+(X4/1440)*U6 -> 11:00:00 | Z6: =AB4+(X4/1440)*U6/2 -> 11:00:00 | AB6: =AB4+(X4/1440)*U6/3 -> 11:00:00
B7: 1\32 (1 круг) | D7: =IF(D4=" "," ",IF(D4=0," ",IF(Лист2!D7>0,Лист2!D7," "))) -> 2 | E7: =IF(E4=" "," ",IF(E4=0," ",IF(Лист2!E7>0,Лист2!E7," "))) -> 3 | F7: =IF(F4=" "," ",IF(F4=0," ",IF(Лист2!F7>0,Лист2!F7," "))) -> 1 | G7: =IF(G4=" "," ",IF(G4=0," ",IF(Лист2!G7>0,Лист2!G7," "))) -> 1 | H7: =IF(H4=" "," ",IF(H4=0," ",IF(Лист2!H7>0,Лист2!H7," "))) -> 1 | I7: =IF(I4=" "," ",IF(I4=0," ",IF(Лист2!I7>0,Лист2!I7," "))) -> 3 | J7: =IF(J4=" "," ",IF(J4=0," ",IF(Лист2!J7>0,Лист2!J7," "))) -> 1 | K7: =IF(K4=" "," ",IF(K4=0," ",IF(Лист2!K7>0,Лист2!K7," "))) -> 3 | L7: =IF(L4=" "," ",IF(L4=0," ",IF(Лист2!L7>0,Лист2!L7," "))) -> 4 | M7: =IF(M4=" "," ",IF(M4=0," ",IF(Лист2!M7>0,Лист2!M7," "))) -> 2 | N7: =IF(N4=" "," ",IF(N4=0," ",IF(Лист2!N7>0,Лист2!N7," "))) ->  | O7: =IF(O4=" "," ",IF(O4=0," ",IF(Лист2!O7>0,Лист2!O7," "))) ->  | P7: =IF(P4=" "," ",IF(P4=0," ",IF(Лист2!P7>0,Лист2!P7," "))) ->  | Q7: =IF(Q4=" "," ",IF(Q4=0," ",IF(Лист2!Q7>0,Лист2!Q7," "))) ->  | R7: =IF(R4=" "," ",IF(R4=0," ",IF(Лист2!R7>0,Лист2!R7," "))) ->  | S7: =IF(S4=" "," ",IF(S4=0," ",IF(Лист2!S7>0,Лист2!S7," "))) ->  | U7: =SUM(D7:S7) -> 21 | X7: =(X4/1440)*U7+X6 -> 13:06:00 | Z7: =(X4/1440)*U7/2+Z6 -> 12:03:00 | AB7: =(X4/1440)*U7/3+AB6 -> 11:42:00
B8: 1\16 (2 круг) | D8: =IF(D4=" "," ",IF(D4=0," ",IF(Лист2!D8>0,Лист2!D8," "))) -> 2 | E8: =IF(E4=" "," ",IF(E4=0," ",IF(Лист2!E8>0,Лист2!E8," "))) -> 3 | F8: =IF(F4=" "," ",IF(F4=0," ",IF(Лист2!F8>0,Лист2!F8," "))) ->  | G8: =IF(G4=" "," ",IF(G4=0," ",IF(Лист2!G8>0,Лист2!G8," "))) ->  | H8: =IF(H4=" "," ",IF(H4=0," ",IF(Лист2!H8>0,Лист2!H8," "))) ->  | I8: =IF(I4=" "," ",IF(I4=0," ",IF(Лист2!I8>0,Лист2!I8," "))) ->  | J8: =IF(J4=" "," ",IF(J4=0," ",IF(Лист2!J8>0,Лист2!J8," "))) ->  | K8: =IF(K4=" "," ",IF(K4=0," ",IF(Лист2!K8>0,Лист2!K8," "))) ->  | L8: =IF(L4=" "," ",IF(L4=0," ",IF(Лист2!L8>0,Лист2!L8," "))) ->  | M8: =IF(M4=" "," ",IF(M4=0," ",IF(Лист2!M8>0,Лист2!M8," "))) ->  | N8: =IF(N4=" "," ",IF(N4=0," ",IF(Лист2!N8>0,Лист2!N8," "))) ->  | O8: =IF(O4=" "," ",IF(O4=0," ",IF(Лист2!O8>0,Лист2!O8," "))) ->  | P8: =IF(P4=" "," ",IF(P4=0," ",IF(Лист2!P8>0,Лист2!P8," "))) ->  | Q8: =IF(Q4=" "," ",IF(Q4=0," ",IF(Лист2!Q8>0,Лист2!Q8," "))) ->  | R8: =IF(R4=" "," ",IF(R4=0," ",IF(Лист2!R8>0,Лист2!R8," "))) ->  | S8: =IF(S4=" "," ",IF(S4=0," ",IF(Лист2!S8>0,Лист2!S8," "))) ->  | U8: =SUM(D8:S8) -> 5 | X8: =(X4/1440)*U8+X7 -> 13:36:00 | Z8: =(X4/1440)*U8/2+Z7 -> 12:18:00 | AB8: =(X4/1440)*U8/3+AB7 -> 11:52:00
B9: 1\8 (3 круг) | D9: =IF(D4=" "," ",IF(D4=0," ",IF(Лист2!D9>0,Лист2!D9," "))) -> 2 | E9: =IF(E4=" "," ",IF(E4=0," ",IF(Лист2!E9>0,Лист2!E9," "))) -> 3 | F9: =IF(F4=" "," ",IF(F4=0," ",IF(Лист2!F9>0,Лист2!F9," "))) ->  | G9: =IF(G4=" "," ",IF(G4=0," ",IF(Лист2!G9>0,Лист2!G9," "))) ->  | H9: =IF(H4=" "," ",IF(H4=0," ",IF(Лист2!H9>0,Лист2!H9," "))) -> 8 | I9: =IF(I4=" "," ",IF(I4=0," ",IF(Лист2!I9>0,Лист2!I9," "))) ->  | J9: =IF(J4=" "," ",IF(J4=0," ",IF(Лист2!J9>0,Лист2!J9," "))) -> 8 | K9: =IF(K4=" "," ",IF(K4=0," ",IF(Лист2!K9>0,Лист2!K9," "))) ->  | L9: =IF(L4=" "," ",IF(L4=0," ",IF(Лист2!L9>0,Лист2!L9," "))) ->  | M9: =IF(M4=" "," ",IF(M4=0," ",IF(Лист2!M9>0,Лист2!M9," "))) ->  | N9: =IF(N4=" "," ",IF(N4=0," ",IF(Лист2!N9>0,Лист2!N9," "))) ->  | O9: =IF(O4=" "," ",IF(O4=0," ",IF(Лист2!O9>0,Лист2!O9," "))) ->  | P9: =IF(P4=" "," ",IF(P4=0," ",IF(Лист2!P9>0,Лист2!P9," "))) ->  | Q9: =IF(Q4=" "," ",IF(Q4=0," ",IF(Лист2!Q9>0,Лист2!Q9," "))) ->  | R9: =IF(R4=" "," ",IF(R4=0," ",IF(Лист2!R9>0,Лист2!R9," "))) ->  | S9: =IF(S4=" "," ",IF(S4=0," ",IF(Лист2!S9>0,Лист2!S9," "))) ->  | U9: 21 | X9: =(X4/1440)*U9+X8 -> 15:42:00 | Z9: =(X4/1440)*U9/2+Z8 -> 13:21:00 | AB9: =(X4/1440)*U9/3+AB8 -> 12:34:00
B10: 1\4 финала | D10: =IF(D4=" "," ",IF(D4=0," ",IF(Лист2!D10>0,Лист2!D10," "))) ->  | E10: =IF(E4=" "," ",IF(E4=0," ",IF(Лист2!E10>0,Лист2!E10," "))) ->  | F10: =IF(F4=" "," ",IF(F4=0," ",IF(Лист2!F10>0,Лист2!F10," "))) -> 4 | G10: =IF(G4=" "," ",IF(G4=0," ",IF(Лист2!G10>0,Лист2!G10," "))) -> 4 | H10: =IF(H4=" "," ",IF(H4=0," ",IF(Лист2!H10>0,Лист2!H10," "))) -> 4 | I10: =IF(I4=" "," ",IF(I4=0," ",IF(Лист2!I10>0,Лист2!I10," "))) -> 4 | J10: =IF(J4=" "," ",IF(J4=0," ",IF(Лист2!J10>0,Лист2!J10," "))) -> 4 | K10: =IF(K4=" "," ",IF(K4=0," ",IF(Лист2!K10>0,Лист2!K10," "))) -> 4 | L10: =IF(L4=" "," ",IF(L4=0," ",IF(Лист2!L10>0,Лист2!L10," "))) -> 4 | M10: =IF(M4=" "," ",IF(M4=0," ",IF(Лист2!M10>0,Лист2!M10," "))) -> 4 | N10: =IF(N4=" "," ",IF(N4=0," ",IF(Лист2!N10>0,Лист2!N10," "))) ->  | O10: =IF(O4=" "," ",IF(O4=0," ",IF(Лист2!O10>0,Лист2!O10," "))) ->  | P10: =IF(P4=" "," ",IF(P4=0," ",IF(Лист2!P10>0,Лист2!P10," "))) ->  | Q10: =IF(Q4=" "," ",IF(Q4=0," ",IF(Лист2!Q10>0,Лист2!Q10," "))) ->  | R10: =IF(R4=" "," ",IF(R4=0," ",IF(Лист2!R10>0,Лист2!R10," "))) ->  | S10: =IF(S4=" "," ",IF(S4=0," ",IF(Лист2!S10>0,Лист2!S10," "))) ->  | U10: 32 | X10: =(X4/1440)*U10+X9 -> 18:54:00 | Z10: =(X4/1440)*U10/2+Z9 -> 14:57:00 | AB10: =(X4/1440)*U10/3+AB9 -> 13:38:00
B11: 1\2 (4 круг) | D11: =IF(D4=" "," ",IF(D4=0," ",IF(Лист2!D11>0,Лист2!D11," "))) -> 2 | E11: =IF(E4=" "," ",IF(E4=0," ",IF(Лист2!E11>0,Лист2!E11," "))) -> 2 | F11: =IF(F4=" "," ",IF(F4=0," ",IF(Лист2!F11>0,Лист2!F11," "))) -> 2 | G11: =IF(G4=" "," ",IF(G4=0," ",IF(Лист2!G11>0,Лист2!G11," "))) -> 2 | H11: =IF(H4=" "," ",IF(H4=0," ",IF(Лист2!H11>0,Лист2!H11," "))) -> 2 | I11: =IF(I4=" "," ",IF(I4=0," ",IF(Лист2!I11>0,Лист2!I11," "))) -> 2 | J11: =IF(J4=" "," ",IF(J4=0," ",IF(Лист2!J11>0,Лист2!J11," "))) -> 2 | K11: =IF(K4=" "," ",IF(K4=0," ",IF(Лист2!K11>0,Лист2!K11," "))) -> 2 | L11: =IF(L4=" "," ",IF(L4=0," ",IF(Лист2!L11>0,Лист2!L11," "))) -> 2 | M11: =IF(M4=" "," ",IF(M4=0," ",IF(Лист2!M11>0,Лист2!M11," "))) -> 2 | N11: =IF(N4=" "," ",IF(N4=0," ",IF(Лист2!N11>0,Лист2!N11," "))) ->  | O11: =IF(O4=" "," ",IF(O4=0," ",IF(Лист2!O11>0,Лист2!O11," "))) ->  | P11: =IF(P4=" "," ",IF(P4=0," ",IF(Лист2!P11>0,Лист2!P11," "))) ->  | Q11: =IF(Q4=" "," ",IF(Q4=0," ",IF(Лист2!Q11>0,Лист2!Q11," "))) ->  | R11: =IF(R4=" "," ",IF(R4=0," ",IF(Лист2!R11>0,Лист2!R11," "))) ->  | S11: =IF(S4=" "," ",IF(S4=0," ",IF(Лист2!S11>0,Лист2!S11," "))) ->  | U11: 20 | X11: =(X4/1440)*U11+X10 -> 20:54:00 | Z11: =(X4/1440)*U11/2+Z10 -> 15:57:00 | AB11: =(X4/1440)*U11/3+AB10 -> 14:18:00
B13: 1 день борьбы | C13: 1 | D13: =IF(D4=0," ",SUM(D6:D11)) -> 8 | E13: =IF(E4=0," ",SUM(E6:E11)) -> 11 | F13: 7 | G13: 7 | H13: 15 | I13: 9 | J13: 15 | K13: 9 | L13: 10 | M13: 8 | U13: 99
B15: утеш 1 | D15: =IF(D4=" "," ",IF(D4=0," ",IF(Лист2!D13>0,Лист2!D13," "))) ->  | E15: =IF(E4=" "," ",IF(E4=0," ",IF(Лист2!E13>0,Лист2!E13," "))) ->  | F15: =IF(F4=" "," ",IF(F4=0," ",IF(Лист2!F13>0,Лист2!F13," "))) -> 1 | G15: =IF(G4=" "," ",IF(G4=0," ",IF(Лист2!G13>0,Лист2!G13," "))) -> 1 | H15: =IF(H4=" "," ",IF(H4=0," ",IF(Лист2!H13>0,Лист2!H13," "))) -> 2 | I15: =IF(I4=" "," ",IF(I4=0," ",IF(Лист2!I13>0,Лист2!I13," "))) -> 1 | J15: =IF(J4=" "," ",IF(J4=0," ",IF(Лист2!J13>0,Лист2!J13," "))) -> 2 | K15: =IF(K4=" "," ",IF(K4=0," ",IF(Лист2!K13>0,Лист2!K13," "))) -> 1 | L15: =IF(L4=" "," ",IF(L4=0," ",IF(Лист2!L13>0,Лист2!L13," "))) -> 1 | M15: =IF(M4=" "," ",IF(M4=0," ",IF(Лист2!M13>0,Лист2!M13," "))) -> 1 | N15: =IF(N4=" "," ",IF(N4=0," ",IF(Лист2!N13>0,Лист2!N13," "))) ->  | O15: =IF(O4=" "," ",IF(O4=0," ",IF(Лист2!O13>0,Лист2!O13," "))) ->  | P15: =IF(P4=" "," ",IF(P4=0," ",IF(Лист2!P13>0,Лист2!P13," "))) ->  | Q15: =IF(Q4=" "," ",IF(Q4=0," ",IF(Лист2!Q13>0,Лист2!Q13," "))) ->  | R15: =IF(R4=" "," ",IF(R4=0," ",IF(Лист2!R13>0,Лист2!R13," "))) ->  | S15: =IF(S4=" "," ",IF(S4=0," ",IF(Лист2!S13>0,Лист2!S13," "))) ->  | U15: 10 | X15: =(X4/1440)*U15+X11 -> 21:54:00 | Z15: =(X4/1440)*U15/2+Z11 -> 16:27:00 | AB15: =(X4/1440)*U15/3+AB11 -> 14:38:00
B16: утеш 2 | D16: =IF(D4=" "," ",IF(D4=0," ",IF(Лист2!D14>0,Лист2!D14," "))) ->  | E16: =IF(E4=" "," ",IF(E4=0," ",IF(Лист2!E14>0,Лист2!E14," "))) ->  | F16: =IF(F4=" "," ",IF(F4=0," ",IF(Лист2!F14>0,Лист2!F14," "))) ->  | G16: =IF(G4=" "," ",IF(G4=0," ",IF(Лист2!G14>0,Лист2!G14," "))) ->  | H16: =IF(H4=" "," ",IF(H4=0," ",IF(Лист2!H14>0,Лист2!H14," "))) -> 1 | I16: =IF(I4=" "," ",IF(I4=0," ",IF(Лист2!I14>0,Лист2!I14," "))) ->  | J16: =IF(J4=" "," ",IF(J4=0," ",IF(Лист2!J14>0,Лист2!J14," "))) -> 1 | K16: =IF(K4=" "," ",IF(K4=0," ",IF(Лист2!K14>0,Лист2!K14," "))) ->  | L16: =IF(L4=" "," ",IF(L4=0," ",IF(Лист2!L14>0,Лист2!L14," "))) ->  | M16: =IF(M4=" "," ",IF(M4=0," ",IF(Лист2!M14>0,Лист2!M14," "))) ->  | N16: =IF(N4=" "," ",IF(N4=0," ",IF(Лист2!N14>0,Лист2!N14," "))) ->  | O16: =IF(O4=" "," ",IF(O4=0," ",IF(Лист2!O14>0,Лист2!O14," "))) ->  | P16: =IF(P4=" "," ",IF(P4=0," ",IF(Лист2!P14>0,Лист2!P14," "))) ->  | Q16: =IF(Q4=" "," ",IF(Q4=0," ",IF(Лист2!Q14>0,Лист2!Q14," "))) ->  | R16: =IF(R4=" "," ",IF(R4=0," ",IF(Лист2!R14>0,Лист2!R14," "))) ->  | S16: =IF(S4=" "," ",IF(S4=0," ",IF(Лист2!S14>0,Лист2!S14," "))) ->  | U16: =SUM(D16:S16) -> 2 | X16: =(X4/1440)*U16+X15 -> 22:06:00 | Z16: =(X4/1440)*U16/2+Z15 -> 16:33:00 | AB16: =(X4/1440)*U16/3+AB15 -> 14:42:00
B17: утеш 3 | D17: =IF(D4=" "," ",IF(D4=0," ",IF(Лист2!D15>0,Лист2!D15," "))) ->  | E17: =IF(E4=" "," ",IF(E4=0," ",IF(Лист2!E15>0,Лист2!E15," "))) ->  | F17: =IF(F4=" "," ",IF(F4=0," ",IF(Лист2!F15>0,Лист2!F15," "))) ->  | G17: =IF(G4=" "," ",IF(G4=0," ",IF(Лист2!G15>0,Лист2!G15," "))) ->  | H17: =IF(H4=" "," ",IF(H4=0," ",IF(Лист2!H15>0,Лист2!H15," "))) ->  | I17: =IF(I4=" "," ",IF(I4=0," ",IF(Лист2!I15>0,Лист2!I15," "))) ->  | J17: =IF(J4=" "," ",IF(J4=0," ",IF(Лист2!J15>0,Лист2!J15," "))) ->  | K17: =IF(K4=" "," ",IF(K4=0," ",IF(Лист2!K15>0,Лист2!K15," "))) ->  | L17: =IF(L4=" "," ",IF(L4=0," ",IF(Лист2!L15>0,Лист2!L15," "))) ->  | M17: =IF(M4=" "," ",IF(M4=0," ",IF(Лист2!M15>0,Лист2!M15," "))) ->  | N17: =IF(N4=" "," ",IF(N4=0," ",IF(Лист2!N15>0,Лист2!N15," "))) ->  | O17: =IF(O4=" "," ",IF(O4=0," ",IF(Лист2!O15>0,Лист2!O15," "))) ->  | P17: =IF(P4=" "," ",IF(P4=0," ",IF(Лист2!P15>0,Лист2!P15," "))) ->  | Q17: =IF(Q4=" "," ",IF(Q4=0," ",IF(Лист2!Q15>0,Лист2!Q15," "))) ->  | R17: =IF(R4=" "," ",IF(R4=0," ",IF(Лист2!R15>0,Лист2!R15," "))) ->  | S17: =IF(S4=" "," ",IF(S4=0," ",IF(Лист2!S15>0,Лист2!S15," "))) ->  | U17: 0 | X17: =(X4/1440)*U17+X16 -> 22:06:00 | Z17: =(X4/1440)*U17/2+Z16 -> 16:33:00 | AB17: =(X4/1440)*U17/3+AB16 -> 14:42:00
B18: утеш 4 | D18: =IF(D4=" "," ",IF(D4=0," ",IF(Лист2!D16>0,Лист2!D16," "))) ->  | E18: =IF(E4=" "," ",IF(E4=0," ",IF(Лист2!E16>0,Лист2!E16," "))) ->  | F18: =IF(F4=" "," ",IF(F4=0," ",IF(Лист2!F16>0,Лист2!F16," "))) ->  | G18: =IF(G4=" "," ",IF(G4=0," ",IF(Лист2!G16>0,Лист2!G16," "))) ->  | H18: =IF(H4=" "," ",IF(H4=0," ",IF(Лист2!H16>0,Лист2!H16," "))) ->  | I18: =IF(I4=" "," ",IF(I4=0," ",IF(Лист2!I16>0,Лист2!I16," "))) ->  | J18: =IF(J4=" "," ",IF(J4=0," ",IF(Лист2!J16>0,Лист2!J16," "))) ->  | K18: =IF(K4=" "," ",IF(K4=0," ",IF(Лист2!K16>0,Лист2!K16," "))) ->  | L18: =IF(L4=" "," ",IF(L4=0," ",IF(Лист2!L16>0,Лист2!L16," "))) ->  | M18: =IF(M4=" "," ",IF(M4=0," ",IF(Лист2!M16>0,Лист2!M16," "))) ->  | N18: =IF(N4=" "," ",IF(N4=0," ",IF(Лист2!N16>0,Лист2!N16," "))) ->  | O18: =IF(O4=" "," ",IF(O4=0," ",IF(Лист2!O16>0,Лист2!O16," "))) ->  | P18: =IF(P4=" "," ",IF(P4=0," ",IF(Лист2!P16>0,Лист2!P16," "))) ->  | Q18: =IF(Q4=" "," ",IF(Q4=0," ",IF(Лист2!Q16>0,Лист2!Q16," "))) ->  | R18: =IF(R4=" "," ",IF(R4=0," ",IF(Лист2!R16>0,Лист2!R16," "))) ->  | S18: =IF(S4=" "," ",IF(S4=0," ",IF(Лист2!S16>0,Лист2!S16," "))) ->  | U18: 0 | X18: =(X4/1440)*U18+X17 -> 22:06:00 | Z18: =(X4/1440)*U18/2+Z17 -> 16:33:00 | AB18: =(X4/1440)*U18/3+AB17 -> 14:42:00
B20: финал 3-5 | D20: =IF(D4=" "," ",IF(D4=0," ",IF(Лист2!D18>0,Лист2!D18," "))) -> 1 | E20: =IF(E4=" "," ",IF(E4=0," ",IF(Лист2!E18>0,Лист2!E18," "))) -> 1 | F20: =IF(F4=" "," ",IF(F4=0," ",IF(Лист2!F18>0,Лист2!F18," "))) -> 2 | G20: =IF(G4=" "," ",IF(G4=0," ",IF(Лист2!G18>0,Лист2!G18," "))) -> 2 | H20: =IF(H4=" "," ",IF(H4=0," ",IF(Лист2!H18>0,Лист2!H18," "))) -> 2 | I20: =IF(I4=" "," ",IF(I4=0," ",IF(Лист2!I18>0,Лист2!I18," "))) -> 2 | J20: =IF(J4=" "," ",IF(J4=0," ",IF(Лист2!J18>0,Лист2!J18," "))) -> 2 | K20: =IF(K4=" "," ",IF(K4=0," ",IF(Лист2!K18>0,Лист2!K18," "))) -> 2 | L20: =IF(L4=" "," ",IF(L4=0," ",IF(Лист2!L18>0,Лист2!L18," "))) -> 2 | M20: =IF(M4=" "," ",IF(M4=0," ",IF(Лист2!M18>0,Лист2!M18," "))) -> 2 | N20: =IF(N4=" "," ",IF(N4=0," ",IF(Лист2!N18>0,Лист2!N18," "))) ->  | O20: =IF(O4=" "," ",IF(O4=0," ",IF(Лист2!O18>0,Лист2!O18," "))) ->  | P20: =IF(P4=" "," ",IF(P4=0," ",IF(Лист2!P18>0,Лист2!P18," "))) ->  | Q20: =IF(Q4=" "," ",IF(Q4=0," ",IF(Лист2!Q18>0,Лист2!Q18," "))) ->  | R20: =IF(R4=" "," ",IF(R4=0," ",IF(Лист2!R18>0,Лист2!R18," "))) ->  | S20: =IF(S4=" "," ",IF(S4=0," ",IF(Лист2!S18>0,Лист2!S18," "))) ->  | U20: 18 | X20: =(X4/1440)*U20+X18 -> 23:54:00 | Z20: =(X4/1440)*U20/2+Z18 -> 17:27:00 | AB20: =(X4/1440)*U20/3+AB18 -> 15:18:00
B21: финал 1-2 (5 кр) | D21: =IF(D4=" "," ",IF(D4=0," ",IF(Лист2!D19>0,Лист2!D19," "))) -> 1 | E21: =IF(E4=" "," ",IF(E4=0," ",IF(Лист2!E19>0,Лист2!E19," "))) -> 1 | F21: =IF(F4=" "," ",IF(F4=0," ",IF(Лист2!F19>0,Лист2!F19," "))) -> 1 | G21: =IF(G4=" "," ",IF(G4=0," ",IF(Лист2!G19>0,Лист2!G19," "))) -> 1 | H21: =IF(H4=" "," ",IF(H4=0," ",IF(Лист2!H19>0,Лист2!H19," "))) -> 1 | I21: =IF(I4=" "," ",IF(I4=0," ",IF(Лист2!I19>0,Лист2!I19," "))) -> 1 | J21: =IF(J4=" "," ",IF(J4=0," ",IF(Лист2!J19>0,Лист2!J19," "))) -> 1 | K21: =IF(K4=" "," ",IF(K4=0," ",IF(Лист2!K19>0,Лист2!K19," "))) -> 1 | L21: =IF(L4=" "," ",IF(L4=0," ",IF(Лист2!L19>0,Лист2!L19," "))) -> 1 | M21: =IF(M4=" "," ",IF(M4=0," ",IF(Лист2!M19>0,Лист2!M19," "))) -> 1 | N21: =IF(N4=" "," ",IF(N4=0," ",IF(Лист2!N19>0,Лист2!N19," "))) ->  | O21: =IF(O4=" "," ",IF(O4=0," ",IF(Лист2!O19>0,Лист2!O19," "))) ->  | P21: =IF(P4=" "," ",IF(P4=0," ",IF(Лист2!P19>0,Лист2!P19," "))) ->  | Q21: =IF(Q4=" "," ",IF(Q4=0," ",IF(Лист2!Q19>0,Лист2!Q19," "))) ->  | R21: =IF(R4=" "," ",IF(R4=0," ",IF(Лист2!R19>0,Лист2!R19," "))) ->  | S21: =IF(S4=" "," ",IF(S4=0," ",IF(Лист2!S19>0,Лист2!S19," "))) ->  | U21: 10 | X21: =(X4/1440)*U21+X20 -> 1.0375 | Z21: =(X4/1440)*U21/2+Z20 -> 17:57:00 | AB21: =(X4/1440)*U21/3+AB20 -> 15:38:00
B23: Без финалов | D23: =IF(D4=0," ",SUM(D6:D11)+SUM(D15:D18)) -> 8 | E23: 11 | F23: 8 | G23: 8 | H23: 18 | I23: 10 | J23: 18 | K23: 10 | L23: 11 | M23: 9 | U23: 111 | X23: =(X4/1440)*U23 -> 11:06:00 | Z23: =X23/2 -> 05:33:00 | AB23: =X23/3 -> 03:42:00
B25: С финалами | D25: =IF(D4=0," ",SUM(D6:D11)+SUM(D15:D21)) -> 10 | E25: 13 | F25: 11 | G25: 11 | H25: 21 | I25: 13 | J25: 21 | K25: 13 | L25: 14 | M25: 12 | U25: 139 | X25: =(X4/1440)*U25 -> 13:54:00 | Z25: =X25/2 -> 06:57:00 | AB25: =X25/3 -> 04:38:00

Sheet Win
C2: La liste des Vainqueurs / List of Winners
E4: =Inf!B4 -> ХХХI-Всероссийский турнир по греко-римской борьбе,посвященный памяти ректора Ленинградского финансово-экономического института им.Н.А.Вознесенского /ныне Санкт-Петербургского государственного экономического университета,з.д.н.России Лаврикова Юрия Александровича.
F7: =Inf!C5 -> GR | O7: =Inf!B5 -> 20-22 ноября 2023г
O8: =Inf!F5 -> Санкт-Петербург
C9: Количество субъектов Российской Федерации - | O9: ='M-II'!F7 -> 70
D10: Общее количество участников соревнований - | O10: ='M-II'!V88 -> 0
B12: Place | C12: № по жребию | D12: Фамилия, имя участника | E12: Регион | F12: Разряд | G12: Дата рождения | H12: Ф.И.О. тренера | M12: Place | N12: № по жребию | O12: Фамилия, имя участника | P12: Регион | Q12: Разряд | R12: Дата рождения | S12: Ф.И.О. тренера
B13: ='Atl1'!D2 -> 55 | D13: Количество участников - | G13: ='Atl1'!G2 -> 3 | M13: =Inf!I6 -> 60 | O13: Количество участников - | R13: ='Atl1'!Q2 -> 3
B14: 1м | C14: 3 | D14: =IF(C14>0,INDEX([1]Atl1!$D$6:$D$165,C14+(C14-1),1)," ") -> ВАСИЛЬЕВ ИВАН | E14: =IF(C14>0,INDEX([1]Atl1!$E$6:$E$165,C14+(C14-1),1)," ") -> УОР-2 | F14: =IF(C14>0,INDEX([1]Atl1!$G$6:$G$165,C14+(C14-1),1)," ") -> МС | G14: =IF(C14>0,INDEX([1]Atl1!$H$6:$H$165,C14+(C14-1),1)," ") -> 2004-02-02 | H14: =IF(C14>0,INDEX([1]Atl1!$I$6:$I$165,C14+(C14-1),1)," ") -> КОМААРОВ,КАЗАКОВ,ВАСИЛЬЕВ | M14: 1м | N14: 1 | O14: =IF(N14>0,INDEX([1]Atl1!$N$6:$N$165,N14+(N14-1),1)," ") -> КРИНИЦЫН НИКИТА | P14: =IF(N14>0,INDEX([1]Atl1!$O$6:$O$165,N14+(N14-1),1)," ") -> СПб-ВИФК | Q14: =IF(N14>0,INDEX([1]Atl1!$Q$6:$Q$165,N14+(N14-1),1)," ") -> мс | R14: =IF(N14>0,INDEX([1]Atl1!$R$6:$R$165,N14+(N14-1),1)," ") -> 2002-06-27 | S14: =IF(N14>0,INDEX([1]Atl1!$S$6:$S$165,N14+(N14-1),1)," ") -> МАКАРОВ,ДАВИДЯН
B16: 2м | C16: 1 | D16: =IF(C16>0,INDEX([1]Atl1!$D$6:$D$165,C16+(C16-1),1)," ") -> КАЧАРЯН ЭРИК | E16: =IF(C16>0,INDEX([1]Atl1!$E$6:$E$165,C16+(C16-1),1)," ") -> СПб-КШВСМ | F16: =IF(C16>0,INDEX([1]Atl1!$G$6:$G$165,C16+(C16-1),1)," ") -> КМС | G16: =IF(C16>0,INDEX([1]Atl1!$H$6:$H$165,C16+(C16-1),1)," ") -> 2004-08-24 | H16: =IF(C16>0,INDEX([1]Atl1!$I$6:$I$165,C16+(C16-1),1)," ") -> КОМАРОВ АП,КОМАРОВ,ГАБИДУЛИН | M16: 2м | N16: 2 | O16: =IF(N16>0,INDEX([1]Atl1!$N$6:$N$165,N16+(N16-1),1)," ") -> ГЕРАСИМОВ СТАС | P16: =IF(N16>0,INDEX([1]Atl1!$O$6:$O$165,N16+(N16-1),1)," ") -> СПб-КШВСМ | Q16: =IF(N16>0,INDEX([1]Atl1!$Q$6:$Q$165,N16+(N16-1),1)," ") -> КМС | R16: =IF(N16>0,INDEX([1]Atl1!$R$6:$R$165,N16+(N16-1),1)," ") -> 2002-10-02 | S16: =IF(N16>0,INDEX([1]Atl1!$S$6:$S$165,N16+(N16-1),1)," ") -> КОМАРОВ АП.ЦЕЛОУСОВ
B18: 3м | C18: 2 | D18: =IF(C18>0,INDEX([1]Atl1!$D$6:$D$165,C18+(C18-1),1)," ") -> ШАРИПОВ ИГОРЬ | E18: =IF(C18>0,INDEX([1]Atl1!$E$6:$E$165,C18+(C18-1),1)," ") -> СПб-КШВСМ | F18: =IF(C18>0,INDEX([1]Atl1!$G$6:$G$165,C18+(C18-1),1)," ") -> КМС | G18: =IF(C18>0,INDEX([1]Atl1!$H$6:$H$165,C18+(C18-1),1)," ") -> 058.03.03 | H18: =IF(C18>0,INDEX([1]Atl1!$I$6:$I$165,C18+(C18-1),1)," ") -> КОМАРОВ АП,КОМАРОВ,ГАБИДУЛИН | M18: 3м | N18: 3 | O18: ГРИЦ СЕМЕН | P18: СПб-КШВСМ | Q18: КМС | R18: 2005-07-07 | S18: КАЗАВАТОВ,СКАРГИН
B20: 3м | C20: 0 | D20: =IF(C20>0,INDEX([1]Atl1!$D$6:$D$165,C20+(C20-1),1)," ") ->  | E20: =IF(C20>0,INDEX([1]Atl1!$E$6:$E$165,C20+(C20-1),1)," ") ->  | F20: =IF(C20>0,INDEX([1]Atl1!$G$6:$G$165,C20+(C20-1),1)," ") ->  | G20: =IF(C20>0,INDEX([1]Atl1!$H$6:$H$165,C20+(C20-1),1)," ") ->  | H20: =IF(C20>0,INDEX([1]Atl1!$I$6:$I$165,C20+(C20-1),1)," ") ->  | M20: 3м | O20: =IF(N20>0,INDEX([1]Atl1!$N$6:$N$165,N20+(N20-1),1)," ") ->  | P20: =IF(N20>0,INDEX([1]Atl1!$O$6:$O$165,N20+(N20-1),1)," ") ->  | Q20: =IF(N20>0,INDEX([1]Atl1!$Q$6:$Q$165,N20+(N20-1),1)," ") ->  | R20: =IF(N20>0,INDEX([1]Atl1!$R$6:$R$165,N20+(N20-1),1)," ") ->  | S20: =IF(N20>0,INDEX([1]Atl1!$S$6:$S$165,N20+(N20-1),1)," ") -> 
B22: 5м | D22: =IF(C22>0,INDEX([1]Atl1!$D$6:$D$165,C22+(C22-1),1)," ") ->  | E22: =IF(C22>0,INDEX([1]Atl1!$E$6:$E$165,C22+(C22-1),1)," ") ->  | F22: =IF(C22>0,INDEX([1]Atl1!$G$6:$G$165,C22+(C22-1),1)," ") ->  | G22: =IF(C22>0,INDEX([1]Atl1!$H$6:$H$165,C22+(C22-1),1)," ") ->  | H22: =IF(C22>0,INDEX([1]Atl1!$I$6:$I$165,C22+(C22-1),1)," ") ->  | M22: 5м | O22: =IF(N22>0,INDEX([1]Atl1!$N$6:$N$165,N22+(N22-1),1)," ") ->  | P22: =IF(N22>0,INDEX([1]Atl1!$O$6:$O$165,N22+(N22-1),1)," ") ->  | Q22: =IF(N22>0,INDEX([1]Atl1!$Q$6:$Q$165,N22+(N22-1),1)," ") ->  | R22: =IF(N22>0,INDEX([1]Atl1!$R$6:$R$165,N22+(N22-1),1)," ") ->  | S22: =IF(N22>0,INDEX([1]Atl1!$S$6:$S$165,N22+(N22-1),1)," ") -> 
B24: 5м | D24: =IF(C24>0,INDEX([1]Atl1!$D$6:$D$165,C24+(C24-1),1)," ") ->  | E24: =IF(C24>0,INDEX([1]Atl1!$E$6:$E$165,C24+(C24-1),1)," ") ->  | F24: =IF(C24>0,INDEX([1]Atl1!$G$6:$G$165,C24+(C24-1),1)," ") ->  | G24: =IF(C24>0,INDEX([1]Atl1!$H$6:$H$165,C24+(C24-1),1)," ") ->  | H24: =IF(C24>0,INDEX([1]Atl1!$I$6:$I$165,C24+(C24-1),1)," ") ->  | M24: 5м | O24: =IF(N24>0,INDEX([1]Atl1!$N$6:$N$165,N24+(N24-1),1)," ") ->  | P24: =IF(N24>0,INDEX([1]Atl1!$O$6:$O$165,N24+(N24-1),1)," ") ->  | Q24: =IF(N24>0,INDEX([1]Atl1!$Q$6:$Q$165,N24+(N24-1),1)," ") ->  | R24: =IF(N24>0,INDEX([1]Atl1!$R$6:$R$165,N24+(N24-1),1)," ") ->  | S24: =IF(N24>0,INDEX([1]Atl1!$S$6:$S$165,N24+(N24-1),1)," ") -> 
B26: =Inf!I7 -> 63 | D26: Количество участников - | G26: 5 | M26: =[1]Inf!I8 -> 67 | O26: Количество участников - | R26: 3
B27: 1м | C27: 1 | D27: =IF(C27>0,INDEX([1]Atl1!$X$6:$X$165,C27+(C27-1),1)," ") -> КУРАЕВ МИХАИЛ | E27: =IF(C27>0,INDEX([1]Atl1!$Y$6:$Y$165,C27+(C27-1),1)," ") -> СПб-ВИФК | F27: =IF(C27>0,INDEX([1]Atl1!$AA$6:$AA$165,C27+(C27-1),1)," ") -> КМС | G27: =IF(C27>0,INDEX([1]Atl1!$AB$6:$AB$165,C27+(C27-1),1)," ") -> 2004-08-20 | H27: =IF(C27>0,INDEX([1]Atl1!$AC$6:$AC$165,C27+(C27-1),1)," ") -> МАКАРОВ,ДАВИДЯН | M27: 1м | N27: 2 | O27: =IF(N27>0,INDEX([1]Atl1!$AH$6:$AH$165,N27+(N27-1),1)," ") -> РУСТАМОВ АКШИН | P27: =IF(N27>0,INDEX([1]Atl1!$AI$6:$AI$165,N27+(N27-1),1)," ") -> УОР-2 | Q27: =IF(N27>0,INDEX([1]Atl1!$AK$6:$AK$165,N27+(N27-1),1)," ") -> МС | R27: =IF(N27>0,INDEX([1]Atl1!$AL$6:$AL$165,N27+(N27-1),1)," ") -> 2003-02-03 | S27: =IF(N27>0,INDEX([1]Atl1!$AM$6:$AM$165,N27+(N27-1),1)," ") -> КАЗАКОВ,КОМАРОВ,ШАРАПОВ
B29: 2м | C29: 2 | D29: =IF(C29>0,INDEX([1]Atl1!$X$6:$X$165,C29+(C29-1),1)," ") -> БОГДАНОВ СЕРАФИМ | E29: =IF(C29>0,INDEX([1]Atl1!$Y$6:$Y$165,C29+(C29-1),1)," ") -> ИЖОРЦ | F29: =IF(C29>0,INDEX([1]Atl1!$AA$6:$AA$165,C29+(C29-1),1)," ") -> КМС | G29: =IF(C29>0,INDEX([1]Atl1!$AB$6:$AB$165,C29+(C29-1),1)," ") -> 2005Г | H29: =IF(C29>0,INDEX([1]Atl1!$AC$6:$AC$165,C29+(C29-1),1)," ") -> МАХОРТОВ,МЕШКУНОВ | M29: 2м | N29: 1 | O29: =IF(N29>0,INDEX([1]Atl1!$AH$6:$AH$165,N29+(N29-1),1)," ") -> КАУТЕР ГЛЕБ | P29: =IF(N29>0,INDEX([1]Atl1!$AI$6:$AI$165,N29+(N29-1),1)," ") -> СПб-КШВСМ | Q29: =IF(N29>0,INDEX([1]Atl1!$AK$6:$AK$165,N29+(N29-1),1)," ") -> КМС | R29: =IF(N29>0,INDEX([1]Atl1!$AL$6:$AL$165,N29+(N29-1),1)," ") -> 2003-06-30 | S29: =IF(N29>0,INDEX([1]Atl1!$AM$6:$AM$165,N29+(N29-1),1)," ") -> СКАРГИН,НЕРОБЕЕВ Н.
B31: 3м | C31: 3 | D31: АСЛАЯН АРСЕН | E31: МОСКВА | F31: КМС | G31: 2005-08-22 | H31: КАППУШЕВ | M31: 3м | N31: 3 | O31: ПОЛЯКОВ МАКСИМ | P31: МОСКВА | Q31: мс | R31: 2001-12-20 | S31: КАППУШЕВ
B33: 4м | C33: 5 | D33: СИНГУР АРТЕМ | E33: СПб-НГУ | F33: МС | G33: 2001-05-22 | H33: ДАВИДЯН Г,А,ДАВИДЯН И,Г | M33: 3м | O33: =IF(N33>0,INDEX([1]Atl1!$AH$6:$AH$165,N33+(N33-1),1)," ") ->  | P33: =IF(N33>0,INDEX([1]Atl1!$AI$6:$AI$165,N33+(N33-1),1)," ") ->  | Q33: =IF(N33>0,INDEX([1]Atl1!$AK$6:$AK$165,N33+(N33-1),1)," ") ->  | R33: =IF(N33>0,INDEX([1]Atl1!$AL$6:$AL$165,N33+(N33-1),1)," ") ->  | S33: =IF(N33>0,INDEX([1]Atl1!$AM$6:$AM$165,N33+(N33-1),1)," ") -> 
B35: 5м | D35: =IF(C35>0,INDEX([1]Atl1!$X$6:$X$165,C35+(C35-1),1)," ") ->  | E35: =IF(C35>0,INDEX([1]Atl1!$Y$6:$Y$165,C35+(C35-1),1)," ") ->  | F35: =IF(C35>0,INDEX([1]Atl1!$AA$6:$AA$165,C35+(C35-1),1)," ") ->  | G35: =IF(C35>0,INDEX([1]Atl1!$AB$6:$AB$165,C35+(C35-1),1)," ") ->  | H35: =IF(C35>0,INDEX([1]Atl1!$AC$6:$AC$165,C35+(C35-1),1)," ") ->  | M35: 5м | O35: =IF(N35>0,INDEX([1]Atl1!$AH$6:$AH$165,N35+(N35-1),1)," ") ->  | P35: =IF(N35>0,INDEX([1]Atl1!$AI$6:$AI$165,N35+(N35-1),1)," ") ->  | Q35: =IF(N35>0,INDEX([1]Atl1!$AK$6:$AK$165,N35+(N35-1),1)," ") ->  | R35: =IF(N35>0,INDEX([1]Atl1!$AL$6:$AL$165,N35+(N35-1),1)," ") ->  | S35: =IF(N35>0,INDEX([1]Atl1!$AM$6:$AM$165,N35+(N35-1),1)," ") -> 
B37: 5м | D37: =IF(C37>0,INDEX([1]Atl1!$X$6:$X$165,C37+(C37-1),1)," ") ->  | E37: =IF(C37>0,INDEX([1]Atl1!$Y$6:$Y$165,C37+(C37-1),1)," ") ->  | F37: =IF(C37>0,INDEX([1]Atl1!$AA$6:$AA$165,C37+(C37-1),1)," ") ->  | G37: =IF(C37>0,INDEX([1]Atl1!$AB$6:$AB$165,C37+(C37-1),1)," ") ->  | H37: =IF(C37>0,INDEX([1]Atl1!$AC$6:$AC$165,C37+(C37-1),1)," ") ->  | M37: 5м | O37: =IF(N37>0,INDEX([1]Atl1!$AH$6:$AH$165,N37+(N37-1),1)," ") ->  | P37: =IF(N37>0,INDEX([1]Atl1!$AI$6:$AI$165,N37+(N37-1),1)," ") ->  | Q37: =IF(N37>0,INDEX([1]Atl1!$AK$6:$AK$165,N37+(N37-1),1)," ") ->  | R37: =IF(N37>0,INDEX([1]Atl1!$AL$6:$AL$165,N37+(N37-1),1)," ") ->  | S37: =IF(N37>0,INDEX([1]Atl1!$AM$6:$AM$165,N37+(N37-1),1)," ") -> 
B39: =Inf!I9 -> 72 | D39: Количество участников - | G39: =[1]Atl2!G2 -> 12 | M39: =[1]Inf!I10 -> 77 | O39: Количество участников - | R39: =[1]Atl2!Q2 -> 5
B40: 1м | C40: 1 | D40: =IF(C40>0,INDEX([1]Atl2!$D$6:$D$165,C40+(C40-1),1)," ") -> ИМАДАЕВ МУСЛИМ | E40: =IF(C40>0,INDEX([1]Atl2!$E$6:$E$165,C40+(C40-1),1)," ") -> ТВЕРС.ОБЛ. | F40: =IF(C40>0,INDEX([1]Atl2!$G$6:$G$165,C40+(C40-1),1)," ") -> МС | G40: =IF(C40>0,INDEX([1]Atl2!$H$6:$H$165,C40+(C40-1),1)," ") -> 2001-05-22 | H40: =IF(C40>0,INDEX([1]Atl2!$I$6:$I$165,C40+(C40-1),1)," ") -> ЗАКИРОВ,КУЗИХИН | M40: 1м | N40: 2 | O40: =IF(N40>0,INDEX([1]Atl2!$N$6:$N$165,N40+(N40-1),1)," ") -> БЕКОШВИЛИ ДАВИД | P40: =IF(N40>0,INDEX([1]Atl2!$O$6:$O$165,N40+(N40-1),1)," ") -> МОСКВА | Q40: =IF(N40>0,INDEX([1]Atl2!$Q$6:$Q$165,N40+(N40-1),1)," ") -> МС | R40: =IF(N40>0,INDEX([1]Atl2!$R$6:$R$165,N40+(N40-1),1)," ") -> 1997-11-01 | S40: =IF(N40>0,INDEX([1]Atl2!$S$6:$S$165,N40+(N40-1),1)," ") -> КАППУШЕВ
B42: 2м | C42: 12 | D42: =IF(C42>0,INDEX([1]Atl2!$D$6:$D$165,C42+(C42-1),1)," ") -> ФЕДОРОВ СЕРГЕЙ | E42: =IF(C42>0,INDEX([1]Atl2!$E$6:$E$165,C42+(C42-1),1)," ") -> УОР-2 | F42: =IF(C42>0,INDEX([1]Atl2!$G$6:$G$165,C42+(C42-1),1)," ") -> МС | G42: =IF(C42>0,INDEX([1]Atl2!$H$6:$H$165,C42+(C42-1),1)," ") -> 2003-02-21 | H42: =IF(C42>0,INDEX([1]Atl2!$I$6:$I$165,C42+(C42-1),1)," ") -> КОМАОВ,КАЗАКОВ,БАХТАНОВ | M42: 2м | N42: 3 | O42: =IF(N42>0,INDEX([1]Atl2!$N$6:$N$165,N42+(N42-1),1)," ") -> КНИЖНИКОВ КИРИЛЛ | P42: =IF(N42>0,INDEX([1]Atl2!$O$6:$O$165,N42+(N42-1),1)," ") -> ГЭУ | Q42: =IF(N42>0,INDEX([1]Atl2!$Q$6:$Q$165,N42+(N42-1),1)," ") -> 1 | R42: =IF(N42>0,INDEX([1]Atl2!$R$6:$R$165,N42+(N42-1),1)," ") -> 2005-07-13 | S42: =IF(N42>0,INDEX([1]Atl2!$S$6:$S$165,N42+(N42-1),1)," ") -> ДАВИДЯН Г.А,ДАВИДЯН И.Г
B44: 3м | C44: 4 | D44: =IF(C44>0,INDEX([1]Atl2!$D$6:$D$165,C44+(C44-1),1)," ") -> ФАИЗОВ ЭДУАРД | E44: =IF(C44>0,INDEX([1]Atl2!$E$6:$E$165,C44+(C44-1),1)," ") -> СПб-ВИФК | F44: =IF(C44>0,INDEX([1]Atl2!$G$6:$G$165,C44+(C44-1),1)," ") -> КМС | G44: =IF(C44>0,INDEX([1]Atl2!$H$6:$H$165,C44+(C44-1),1)," ") -> 2001-01-25 | H44: =IF(C44>0,INDEX([1]Atl2!$I$6:$I$165,C44+(C44-1),1)," ") -> МАКАРОВ,ДАВИДЯН | M44: 3м | N44: 1 | O44: =IF(N44>0,INDEX([1]Atl2!$N$6:$N$165,N44+(N44-1),1)," ") -> СОФЬИН ДАНИЛ | P44: =IF(N44>0,INDEX([1]Atl2!$O$6:$O$165,N44+(N44-1),1)," ") -> СПб-ВИФК | Q44: =IF(N44>0,INDEX([1]Atl2!$Q$6:$Q$165,N44+(N44-1),1)," ") -> КМС | R44: =IF(N44>0,INDEX([1]Atl2!$R$6:$R$165,N44+(N44-1),1)," ") -> 2001-01-23 | S44: =IF(N44>0,INDEX([1]Atl2!$S$6:$S$165,N44+(N44-1),1)," ") -> МАКАРОВ,ДАВИДЯН
B46: 3м | C46: 7 | D46: =IF(C46>0,INDEX([1]Atl2!$D$6:$D$165,C46+(C46-1),1)," ") -> ГАБИБОВ АДАМ | E46: =IF(C46>0,INDEX([1]Atl2!$E$6:$E$165,C46+(C46-1),1)," ") -> ГЭУ | F46: =IF(C46>0,INDEX([1]Atl2!$G$6:$G$165,C46+(C46-1),1)," ") -> 1 | G46: =IF(C46>0,INDEX([1]Atl2!$H$6:$H$165,C46+(C46-1),1)," ") -> 2001-12-04 | H46: =IF(C46>0,INDEX([1]Atl2!$I$6:$I$165,C46+(C46-1),1)," ") -> ДАВИДЯН Г.А.,ДАВИДЯН И.Г | M46: 4м | N46: 4 | O46: =IF(N46>0,INDEX([1]Atl2!$N$6:$N$165,N46+(N46-1),1)," ") -> НОСУЛЬ ВЛАДИМИР | P46: =IF(N46>0,INDEX([1]Atl2!$O$6:$O$165,N46+(N46-1),1)," ") -> СПб-КШВСМ | Q46: =IF(N46>0,INDEX([1]Atl2!$Q$6:$Q$165,N46+(N46-1),1)," ") -> КМС | R46: =IF(N46>0,INDEX([1]Atl2!$R$6:$R$165,N46+(N46-1),1)," ") -> 1998-12-19 | S46: =IF(N46>0,INDEX([1]Atl2!$S$6:$S$165,N46+(N46-1),1)," ") -> КАЗАВАТОВ,НЕРОБЕЕВ Ю.
B48: 5м | C48: 3 | D48: =IF(C48>0,INDEX([1]Atl2!$D$6:$D$165,C48+(C48-1),1)," ") -> ГАДАБОРШЕВ ЭЛЬБЕРТ | E48: =IF(C48>0,INDEX([1]Atl2!$E$6:$E$165,C48+(C48-1),1)," ") -> ИЖОРЦ | F48: =IF(C48>0,INDEX([1]Atl2!$G$6:$G$165,C48+(C48-1),1)," ") -> КМС | G48: =IF(C48>0,INDEX([1]Atl2!$H$6:$H$165,C48+(C48-1),1)," ") -> 2005Г | H48: =IF(C48>0,INDEX([1]Atl2!$I$6:$I$165,C48+(C48-1),1)," ") -> МАХОРТОВ,МЕШКУНОВ | M48: 5м | N48: 5 | O48: =IF(N48>0,INDEX([1]Atl2!$N$6:$N$165,N48+(N48-1),1)," ") -> МЯЧИН ГРИГОРИЙ | P48: =IF(N48>0,INDEX([1]Atl2!$O$6:$O$165,N48+(N48-1),1)," ") -> СПб-КШВСМ | Q48: =IF(N48>0,INDEX([1]Atl2!$Q$6:$Q$165,N48+(N48-1),1)," ") -> КМС | R48: =IF(N48>0,INDEX([1]Atl2!$R$6:$R$165,N48+(N48-1),1)," ") -> 2004-09-06 | S48: =IF(N48>0,INDEX([1]Atl2!$S$6:$S$165,N48+(N48-1),1)," ") -> ИСАКОВ,КИРАКОСЯН
B50: 5м | C50: 10 | D50: =IF(C50>0,INDEX([1]Atl2!$D$6:$D$165,C50+(C50-1),1)," ") -> ДЖУМАЛИЕВ АДАМ | E50: =IF(C50>0,INDEX([1]Atl2!$E$6:$E$165,C50+(C50-1),1)," ") -> ГЭУ | F50: =IF(C50>0,INDEX([1]Atl2!$G$6:$G$165,C50+(C50-1),1)," ") -> 1 | G50: =IF(C50>0,INDEX([1]Atl2!$H$6:$H$165,C50+(C50-1),1)," ") -> 2000-07-28 | H50: =IF(C50>0,INDEX([1]Atl2!$I$6:$I$165,C50+(C50-1),1)," ") -> ДАВИДЯН Г.А,ДАВИДЯН И.Г | M50: 5м | O50: =IF(N50>0,INDEX([1]Atl2!$N$6:$N$165,N50+(N50-1),1)," ") ->  | P50: =IF(N50>0,INDEX([1]Atl2!$O$6:$O$165,N50+(N50-1),1)," ") ->  | Q50: =IF(N50>0,INDEX([1]Atl2!$Q$6:$Q$165,N50+(N50-1),1)," ") ->  | R50: =IF(N50>0,INDEX([1]Atl2!$R$6:$R$165,N50+(N50-1),1)," ") ->  | S50: =IF(N50>0,INDEX([1]Atl2!$S$6:$S$165,N50+(N50-1),1)," ") -> 
B52: =Inf!I11 -> 82 | D52: Количество участников - | G52: =[1]Atl2!AA2 -> 8 | M52: =[1]Inf!I12 -> 87 | O52: Количество участников - | R52: =[1]Atl2!AK2 -> 5
B53: 1м | C53: 1 | D53: =IF(C53>0,INDEX([1]Atl2!$X$6:$X$165,C53+(C53-1),1)," ") -> ДИБИРОВ ЗУБАИР | E53: =IF(C53>0,INDEX([1]Atl2!$Y$6:$Y$165,C53+(C53-1),1)," ") -> СПб-КШВСМ | F53: =IF(C53>0,INDEX([1]Atl2!$AA$6:$AA$165,C53+(C53-1),1)," ") -> мс | G53: =IF(C53>0,INDEX([1]Atl2!$AB$6:$AB$165,C53+(C53-1),1)," ") -> 1996-01-03 | H53: =IF(C53>0,INDEX([1]Atl2!$AC$6:$AC$165,C53+(C53-1),1)," ") -> ГАБИДУЛИН,КОМАРОВ АП,КОМАРОВ | M53: 1м | N53: 1 | O53: =IF(N53>0,INDEX([1]Atl2!$AH$6:$AH$165,N53+(N53-1),1)," ") -> ЧЕРНЫШЕВ ТИМУР | P53: =IF(N53>0,INDEX([1]Atl2!$AI$6:$AI$165,N53+(N53-1),1)," ") -> УОР-2 | Q53: =IF(N53>0,INDEX([1]Atl2!$AK$6:$AK$165,N53+(N53-1),1)," ") -> МС | R53: =IF(N53>0,INDEX([1]Atl2!$AL$6:$AL$165,N53+(N53-1),1)," ") -> 2004-12-06 | S53: =IF(N53>0,INDEX([1]Atl2!$AM$6:$AM$165,N53+(N53-1),1)," ") -> КОМАРОВ,КАЗАКОВ,СВЕКОЛКИН
B55: 2м | C55: 6 | D55: =IF(C55>0,INDEX([1]Atl2!$X$6:$X$165,C55+(C55-1),1)," ") -> КОВАЛЕНКО АЛЕК-ДР | E55: =IF(C55>0,INDEX([1]Atl2!$Y$6:$Y$165,C55+(C55-1),1)," ") -> СПб-КШВСМ | F55: =IF(C55>0,INDEX([1]Atl2!$AA$6:$AA$165,C55+(C55-1),1)," ") -> КМС | G55: =IF(C55>0,INDEX([1]Atl2!$AB$6:$AB$165,C55+(C55-1),1)," ") -> 2004-09-23 | H55: =IF(C55>0,INDEX([1]Atl2!$AC$6:$AC$165,C55+(C55-1),1)," ") -> ИСАКО,ДАВИДЯН,КОВАЛЕНКО | M55: 2м | N55: 3 | O55: =IF(N55>0,INDEX([1]Atl2!$AH$6:$AH$165,N55+(N55-1),1)," ") -> ГЕРАСИМЕНКО АРТЕМ | P55: =IF(N55>0,INDEX([1]Atl2!$AI$6:$AI$165,N55+(N55-1),1)," ") -> СПб-КШВСМ | Q55: =IF(N55>0,INDEX([1]Atl2!$AK$6:$AK$165,N55+(N55-1),1)," ") -> мс | R55: =IF(N55>0,INDEX([1]Atl2!$AL$6:$AL$165,N55+(N55-1),1)," ") -> 2000-08-31 | S55: =IF(N55>0,INDEX([1]Atl2!$AM$6:$AM$165,N55+(N55-1),1)," ") -> 36769
B57: 3м | C57: 4 | D57: =IF(C57>0,INDEX([1]Atl2!$X$6:$X$165,C57+(C57-1),1)," ") -> ФЕДОРОВ ГРИГОРИЙ | E57: =IF(C57>0,INDEX([1]Atl2!$Y$6:$Y$165,C57+(C57-1),1)," ") -> СПб-КШВСМ | F57: =IF(C57>0,INDEX([1]Atl2!$AA$6:$AA$165,C57+(C57-1),1)," ") -> мс | G57: =IF(C57>0,INDEX([1]Atl2!$AB$6:$AB$165,C57+(C57-1),1)," ") -> 1999-07-14 | H57: =IF(C57>0,INDEX([1]Atl2!$AC$6:$AC$165,C57+(C57-1),1)," ") -> САФАРЯН,НЕРОБЕЕВ Н. | M57: 3м | N57: 2 | O57: =IF(N57>0,INDEX([1]Atl2!$AH$6:$AH$165,N57+(N57-1),1)," ") -> ЕФИМОВ АЛЕК-ДР | P57: =IF(N57>0,INDEX([1]Atl2!$AI$6:$AI$165,N57+(N57-1),1)," ") -> СПб-ВИФК | Q57: =IF(N57>0,INDEX([1]Atl2!$AK$6:$AK$165,N57+(N57-1),1)," ") -> КМС | R57: =IF(N57>0,INDEX([1]Atl2!$AL$6:$AL$165,N57+(N57-1),1)," ") -> 2001-07-07 | S57: =IF(N57>0,INDEX([1]Atl2!$AM$6:$AM$165,N57+(N57-1),1)," ") -> МАКАРОВ,ДАВИДЯН
B59: 3м | C59: 8 | D59: =IF(C59>0,INDEX([1]Atl2!$X$6:$X$165,C59+(C59-1),1)," ") -> ИЛЬЕНКО ИЛЛАРИОН | E59: =IF(C59>0,INDEX([1]Atl2!$Y$6:$Y$165,C59+(C59-1),1)," ") -> СПб-ВИФК | F59: =IF(C59>0,INDEX([1]Atl2!$AA$6:$AA$165,C59+(C59-1),1)," ") -> КМС | G59: =IF(C59>0,INDEX([1]Atl2!$AB$6:$AB$165,C59+(C59-1),1)," ") -> 2004-05-18 | H59: =IF(C59>0,INDEX([1]Atl2!$AC$6:$AC$165,C59+(C59-1),1)," ") -> МАКАРОВ,ДАВИДЯН | M59: 4м | N59: 5 | O59: =IF(N59>0,INDEX([1]Atl2!$AH$6:$AH$165,N59+(N59-1),1)," ") -> ЛИТВИНЕНКО МАТВЕЦ | P59: =IF(N59>0,INDEX([1]Atl2!$AI$6:$AI$165,N59+(N59-1),1)," ") -> СПб-КШВСМ | Q59: =IF(N59>0,INDEX([1]Atl2!$AK$6:$AK$165,N59+(N59-1),1)," ") -> мс | R59: =IF(N59>0,INDEX([1]Atl2!$AL$6:$AL$165,N59+(N59-1),1)," ") -> 1999-11-11 | S59: =IF(N59>0,INDEX([1]Atl2!$AM$6:$AM$165,N59+(N59-1),1)," ") -> ИСАКОВ,ДАВИДЯН,КОВАЛЕНКО
B61: 5м | C61: 2 | D61: =IF(C61>0,INDEX([1]Atl2!$X$6:$X$165,C61+(C61-1),1)," ") -> ГВИЛИЯ ВАХТАНГ | E61: =IF(C61>0,INDEX([1]Atl2!$Y$6:$Y$165,C61+(C61-1),1)," ") -> СПб-КШВСМ | F61: =IF(C61>0,INDEX([1]Atl2!$AA$6:$AA$165,C61+(C61-1),1)," ") -> КМС | G61: =IF(C61>0,INDEX([1]Atl2!$AB$6:$AB$165,C61+(C61-1),1)," ") -> 2002-04-25 | H61: =IF(C61>0,INDEX([1]Atl2!$AC$6:$AC$165,C61+(C61-1),1)," ") -> ИСАКОВ,ДАВИДЯН | M61: 5м | N61: 4 | O61: =IF(N61>0,INDEX([1]Atl2!$AH$6:$AH$165,N61+(N61-1),1)," ") -> ГУЩИН ДАНИЛА | P61: =IF(N61>0,INDEX([1]Atl2!$AI$6:$AI$165,N61+(N61-1),1)," ") -> СПб-КШВСМ | Q61: =IF(N61>0,INDEX([1]Atl2!$AK$6:$AK$165,N61+(N61-1),1)," ") -> КМС | R61: =IF(N61>0,INDEX([1]Atl2!$AL$6:$AL$165,N61+(N61-1),1)," ") -> 2000-03-07 | S61: =IF(N61>0,INDEX([1]Atl2!$AM$6:$AM$165,N61+(N61-1),1)," ") -> НЕРОБЕЕВ Н,ГУЩИН О
B63: 5м | C63: 5 | D63: =IF(C63>0,INDEX([1]Atl2!$X$6:$X$165,C63+(C63-1),1)," ") -> КОМАРОВ АРТЕМ | E63: =IF(C63>0,INDEX([1]Atl2!$Y$6:$Y$165,C63+(C63-1),1)," ") -> СПб-КШВСМ | F63: =IF(C63>0,INDEX([1]Atl2!$AA$6:$AA$165,C63+(C63-1),1)," ") -> мс | G63: =IF(C63>0,INDEX([1]Atl2!$AB$6:$AB$165,C63+(C63-1),1)," ") -> 2005-07-17 | H63: =IF(C63>0,INDEX([1]Atl2!$AC$6:$AC$165,C63+(C63-1),1)," ") -> ГАБИДУЛИН,КОМАРОВ АП,КОМАРОВ | M63: 5м | O63: =IF(N63>0,INDEX([1]Atl2!$AH$6:$AH$165,N63+(N63-1),1)," ") ->  | P63: =IF(N63>0,INDEX([1]Atl2!$AI$6:$AI$165,N63+(N63-1),1)," ") ->  | Q63: =IF(N63>0,INDEX([1]Atl2!$AK$6:$AK$165,N63+(N63-1),1)," ") ->  | R63: =IF(N63>0,INDEX([1]Atl2!$AL$6:$AL$165,N63+(N63-1),1)," ") ->  | S63: =IF(N63>0,INDEX([1]Atl2!$AM$6:$AM$165,N63+(N63-1),1)," ") -> 
B67: =Inf!K5 -> 97 | D67: Количество участников - | G67: =[1]Atl3!G2 -> 5 | M67: =[1]Inf!K6 -> 130 | O67: Количество участников - | R67: =[1]Atl3!Q2 -> 4
B68: 1м | C68: 2 | D68: =IF(C68>0,INDEX([1]Atl3!$D$6:$D$165,C68+(C68-1),1)," ") -> СЕИТОВ АЗАМАТ | E68: =IF(C68>0,INDEX([1]Atl3!$E$6:$E$165,C68+(C68-1),1)," ") -> СЕВАСТОПОЛЬ | F68: =IF(C68>0,INDEX([1]Atl3!$G$6:$G$165,C68+(C68-1),1)," ") -> МС | G68: =IF(C68>0,INDEX([1]Atl3!$H$6:$H$165,C68+(C68-1),1)," ") -> 1998-05-10 | H68: =IF(C68>0,INDEX([1]Atl3!$I$6:$I$165,C68+(C68-1),1)," ") -> ЛЕВАДНЫЙ,АБДУЛАЕВ | M68: 1м | N68: 1 | O68: =IF(N68>0,INDEX([1]Atl3!$N$6:$N$165,N68+(N68-1),1)," ") -> КАРДАНОВ АМИРАН | P68: =IF(N68>0,INDEX([1]Atl3!$O$6:$O$165,N68+(N68-1),1)," ") -> УОР-2 | Q68: =IF(N68>0,INDEX([1]Atl3!$Q$6:$Q$165,N68+(N68-1),1)," ") -> КМС | R68: =IF(N68>0,INDEX([1]Atl3!$R$6:$R$165,N68+(N68-1),1)," ") -> 2005-01-03 | S68: =IF(N68>0,INDEX([1]Atl3!$S$6:$S$165,N68+(N68-1),1)," ") -> ЧУРАЕВ
B70: 2м | C70: 3 | D70: =IF(C70>0,INDEX([1]Atl3!$D$6:$D$165,C70+(C70-1),1)," ") -> СПАСКИН ДМИТРИЙ | E70: =IF(C70>0,INDEX([1]Atl3!$E$6:$E$165,C70+(C70-1),1)," ") -> СПб-ВИФК | F70: =IF(C70>0,INDEX([1]Atl3!$G$6:$G$165,C70+(C70-1),1)," ") -> КМС | G70: =IF(C70>0,INDEX([1]Atl3!$H$6:$H$165,C70+(C70-1),1)," ") -> 2002-05-07 | H70: =IF(C70>0,INDEX([1]Atl3!$I$6:$I$165,C70+(C70-1),1)," ") -> МАКАРОВ,ДАВИДЯН | M70: 2м | N70: 2 | O70: =IF(N70>0,INDEX([1]Atl3!$N$6:$N$165,N70+(N70-1),1)," ") -> СКОРНЯКОВ АНТОН | P70: =IF(N70>0,INDEX([1]Atl3!$O$6:$O$165,N70+(N70-1),1)," ") -> СПб-ЛОК | Q70: =IF(N70>0,INDEX([1]Atl3!$Q$6:$Q$165,N70+(N70-1),1)," ") -> МС | R70: =IF(N70>0,INDEX([1]Atl3!$R$6:$R$165,N70+(N70-1),1)," ") -> 1999-07-21 | S70: =IF(N70>0,INDEX([1]Atl3!$S$6:$S$165,N70+(N70-1),1)," ") -> ДАВИДЯН Г.А,ДАВИДЯН И.Г,КИРОКАСЯН
B72: 3м | C72: 1 | D72: =IF(C72>0,INDEX([1]Atl3!$D$6:$D$165,C72+(C72-1),1)," ") -> БАТЫРБЕКОВ БАЙ-АСМАН | E72: =IF(C72>0,INDEX([1]Atl3!$E$6:$E$165,C72+(C72-1),1)," ") -> СПб-КШВСМ | F72: =IF(C72>0,INDEX([1]Atl3!$G$6:$G$165,C72+(C72-1),1)," ") -> КМС | G72: =IF(C72>0,INDEX([1]Atl3!$H$6:$H$165,C72+(C72-1),1)," ") -> 2004-07-24 | H72: =IF(C72>0,INDEX([1]Atl3!$I$6:$I$165,C72+(C72-1),1)," ") -> КОМАРОВ АП,КОМАРОВ,ГАБИДУЛИН | M72: 3м | N72: 4 | O72: =IF(N72>0,INDEX([1]Atl3!$N$6:$N$165,N72+(N72-1),1)," ") -> БРЯЗГИН АНАТОЛИЙ | P72: =IF(N72>0,INDEX([1]Atl3!$O$6:$O$165,N72+(N72-1),1)," ") -> СПб-КШВСМ | Q72: =IF(N72>0,INDEX([1]Atl3!$Q$6:$Q$165,N72+(N72-1),1)," ") -> мс | R72: =IF(N72>0,INDEX([1]Atl3!$R$6:$R$165,N72+(N72-1),1)," ") -> 1999-07-28 | S72: =IF(N72>0,INDEX([1]Atl3!$S$6:$S$165,N72+(N72-1),1)," ") -> КЗАВАТОВ,НЕРОБЕЕВ НЮ,СКАРГИН
B74: 4м | C74: 5 | D74: =IF(C74>0,INDEX([1]Atl3!$D$6:$D$165,C74+(C74-1),1)," ") -> ЧУРКИН БОГДАН | E74: =IF(C74>0,INDEX([1]Atl3!$E$6:$E$165,C74+(C74-1),1)," ") -> СПб-КШВСМ | F74: =IF(C74>0,INDEX([1]Atl3!$G$6:$G$165,C74+(C74-1),1)," ") -> мс | G74: =IF(C74>0,INDEX([1]Atl3!$H$6:$H$165,C74+(C74-1),1)," ") -> 1996-02-24 | H74: =IF(C74>0,INDEX([1]Atl3!$I$6:$I$165,C74+(C74-1),1)," ") -> КОВАЛЕНКО,ДАВИДЯНШТАБЕНКО | M74: 4М | N74: 3 | O74: =IF(N74>0,INDEX([1]Atl3!$N$6:$N$165,N74+(N74-1),1)," ") -> СЕИТОВ АЗАЗ | P74: =IF(N74>0,INDEX([1]Atl3!$O$6:$O$165,N74+(N74-1),1)," ") -> СЕВАСТОПОЛЬ | Q74: =IF(N74>0,INDEX([1]Atl3!$Q$6:$Q$165,N74+(N74-1),1)," ") -> МС | R74: =IF(N74>0,INDEX([1]Atl3!$R$6:$R$165,N74+(N74-1),1)," ") -> 1996-05-24 | S74: =IF(N74>0,INDEX([1]Atl3!$S$6:$S$165,N74+(N74-1),1)," ") -> ЛЕВАДНЫЙ,АБДУЛАЕВ
B76: 5м | C76: 4 | D76: =IF(C76>0,INDEX([1]Atl3!$D$6:$D$165,C76+(C76-1),1)," ") -> КУНЯШЕВ АЛЕКСЕЙ | E76: =IF(C76>0,INDEX([1]Atl3!$E$6:$E$165,C76+(C76-1),1)," ") -> СПб-КШВСМ | F76: =IF(C76>0,INDEX([1]Atl3!$G$6:$G$165,C76+(C76-1),1)," ") -> мс | G76: =IF(C76>0,INDEX([1]Atl3!$H$6:$H$165,C76+(C76-1),1)," ") -> 1997-11-16 | H76: =IF(C76>0,INDEX([1]Atl3!$I$6:$I$165,C76+(C76-1),1)," ") -> ДАВИДЯН,КОВАЛЕНКО,ИСАКОВ | M76: 5м | O76: =IF(N76>0,INDEX([1]Atl3!$N$6:$N$165,N76+(N76-1),1)," ") ->  | P76: =IF(N76>0,INDEX([1]Atl3!$O$6:$O$165,N76+(N76-1),1)," ") ->  | Q76: =IF(N76>0,INDEX([1]Atl3!$Q$6:$Q$165,N76+(N76-1),1)," ") ->  | R76: =IF(N76>0,INDEX([1]Atl3!$R$6:$R$165,N76+(N76-1),1)," ") ->  | S76: =IF(N76>0,INDEX([1]Atl3!$S$6:$S$165,N76+(N76-1),1)," ") -> 
B78: 5м | D78: =IF(C78>0,INDEX('Atl3'!$D$6:$D$165,C78+(C78-1),1)," ") ->  | E78: =IF(C78>0,INDEX('Atl3'!$E$6:$E$165,C78+(C78-1),1)," ") ->  | F78: =IF(C78>0,INDEX('Atl3'!$G$6:$G$165,C78+(C78-1),1)," ") ->  | G78: =IF(C78>0,INDEX('Atl3'!$H$6:$H$165,C78+(C78-1),1)," ") ->  | H78: =IF(C78>0,INDEX('Atl3'!$I$6:$I$165,C78+(C78-1),1)," ") ->  | M78: 5м | O78: =IF(N78>0,INDEX('Atl3'!$N$6:$N$165,N78+(N78-1),1)," ") ->  | P78: =IF(N78>0,INDEX('Atl3'!$O$6:$O$165,N78+(N78-1),1)," ") ->  | Q78: =IF(N78>0,INDEX('Atl3'!$Q$6:$Q$165,N78+(N78-1),1)," ") ->  | R78: =IF(N78>0,INDEX('Atl3'!$R$6:$R$165,N78+(N78-1),1)," ") ->  | S78: =IF(N78>0,INDEX('Atl3'!$S$6:$S$165,N78+(N78-1),1)," ") -> 
B80: =Inf!K7 -> 0 | D80: Количество участников - | G80: ='Atl3'!AA2 -> 0 | M80: =Inf!K8 -> 0 | O80: Количество участников - | R80: ='Atl3'!AK2 -> 0
B81: 1м | D81: =IF(C81>0,INDEX('Atl3'!$X$6:$X$165,C81+(C81-1),1)," ") ->  | E81: =IF(C81>0,INDEX('Atl3'!$Y$6:$Y$165,C81+(C81-1),1)," ") ->  | F81: =IF(C81>0,INDEX('Atl3'!$AA$6:$AA$165,C81+(C81-1),1)," ") ->  | G81: =IF(C81>0,INDEX('Atl3'!$AB$6:$AB$165,C81+(C81-1),1)," ") ->  | H81: =IF(C81>0,INDEX('Atl3'!$AC$6:$AC$165,C81+(C81-1),1)," ") ->  | M81: 1м | O81: =IF(N81>0,INDEX('Atl3'!$AH$6:$AH$165,N81+(N81-1),1)," ") ->  | P81: =IF(N81>0,INDEX('Atl3'!$AI$6:$AI$165,N81+(N81-1),1)," ") ->  | Q81: =IF(N81>0,INDEX('Atl3'!$AK$6:$AK$165,N81+(N81-1),1)," ") ->  | R81: =IF(N81>0,INDEX('Atl3'!$AL$6:$AL$165,N81+(N81-1),1)," ") ->  | S81: =IF(N81>0,INDEX('Atl3'!$AM$6:$AM$165,N81+(N81-1),1)," ") -> 
B83: 2м | D83: =IF(C83>0,INDEX('Atl3'!$X$6:$X$165,C83+(C83-1),1)," ") ->  | E83: =IF(C83>0,INDEX('Atl3'!$Y$6:$Y$165,C83+(C83-1),1)," ") ->  | F83: =IF(C83>0,INDEX('Atl3'!$AA$6:$AA$165,C83+(C83-1),1)," ") ->  | G83: =IF(C83>0,INDEX('Atl3'!$AB$6:$AB$165,C83+(C83-1),1)," ") ->  | H83: =IF(C83>0,INDEX('Atl3'!$AC$6:$AC$165,C83+(C83-1),1)," ") ->  | M83: 2м | O83: =IF(N83>0,INDEX('Atl3'!$AH$6:$AH$165,N83+(N83-1),1)," ") ->  | P83: =IF(N83>0,INDEX('Atl3'!$AI$6:$AI$165,N83+(N83-1),1)," ") ->  | Q83: =IF(N83>0,INDEX('Atl3'!$AK$6:$AK$165,N83+(N83-1),1)," ") ->  | R83: =IF(N83>0,INDEX('Atl3'!$AL$6:$AL$165,N83+(N83-1),1)," ") ->  | S83: =IF(N83>0,INDEX('Atl3'!$AM$6:$AM$165,N83+(N83-1),1)," ") -> 
B85: 3м | D85: =IF(C85>0,INDEX('Atl3'!$X$6:$X$165,C85+(C85-1),1)," ") ->  | E85: =IF(C85>0,INDEX('Atl3'!$Y$6:$Y$165,C85+(C85-1),1)," ") ->  | F85: =IF(C85>0,INDEX('Atl3'!$AA$6:$AA$165,C85+(C85-1),1)," ") ->  | G85: =IF(C85>0,INDEX('Atl3'!$AB$6:$AB$165,C85+(C85-1),1)," ") ->  | H85: =IF(C85>0,INDEX('Atl3'!$AC$6:$AC$165,C85+(C85-1),1)," ") ->  | M85: 3м | O85: =IF(N85>0,INDEX('Atl3'!$AH$6:$AH$165,N85+(N85-1),1)," ") ->  | P85: =IF(N85>0,INDEX('Atl3'!$AI$6:$AI$165,N85+(N85-1),1)," ") ->  | Q85: =IF(N85>0,INDEX('Atl3'!$AK$6:$AK$165,N85+(N85-1),1)," ") ->  | R85: =IF(N85>0,INDEX('Atl3'!$AL$6:$AL$165,N85+(N85-1),1)," ") ->  | S85: =IF(N85>0,INDEX('Atl3'!$AM$6:$AM$165,N85+(N85-1),1)," ") -> 
B87: 3м | D87: =IF(C87>0,INDEX('Atl3'!$X$6:$X$165,C87+(C87-1),1)," ") ->  | E87: =IF(C87>0,INDEX('Atl3'!$Y$6:$Y$165,C87+(C87-1),1)," ") ->  | F87: =IF(C87>0,INDEX('Atl3'!$AA$6:$AA$165,C87+(C87-1),1)," ") ->  | G87: =IF(C87>0,INDEX('Atl3'!$AB$6:$AB$165,C87+(C87-1),1)," ") ->  | H87: =IF(C87>0,INDEX('Atl3'!$AC$6:$AC$165,C87+(C87-1),1)," ") ->  | M87: 3м | O87: =IF(N87>0,INDEX('Atl3'!$AH$6:$AH$165,N87+(N87-1),1)," ") ->  | P87: =IF(N87>0,INDEX('Atl3'!$AI$6:$AI$165,N87+(N87-1),1)," ") ->  | Q87: =IF(N87>0,INDEX('Atl3'!$AK$6:$AK$165,N87+(N87-1),1)," ") ->  | R87: =IF(N87>0,INDEX('Atl3'!$AL$6:$AL$165,N87+(N87-1),1)," ") ->  | S87: =IF(N87>0,INDEX('Atl3'!$AM$6:$AM$165,N87+(N87-1),1)," ") -> 
B89: 5м | D89: =IF(C89>0,INDEX('Atl3'!$X$6:$X$165,C89+(C89-1),1)," ") ->  | E89: =IF(C89>0,INDEX('Atl3'!$Y$6:$Y$165,C89+(C89-1),1)," ") ->  | F89: =IF(C89>0,INDEX('Atl3'!$AA$6:$AA$165,C89+(C89-1),1)," ") ->  | G89: =IF(C89>0,INDEX('Atl3'!$AB$6:$AB$165,C89+(C89-1),1)," ") ->  | H89: =IF(C89>0,INDEX('Atl3'!$AC$6:$AC$165,C89+(C89-1),1)," ") ->  | M89: 5м | O89: =IF(N89>0,INDEX('Atl3'!$AH$6:$AH$165,N89+(N89-1),1)," ") ->  | P89: =IF(N89>0,INDEX('Atl3'!$AI$6:$AI$165,N89+(N89-1),1)," ") ->  | Q89: =IF(N89>0,INDEX('Atl3'!$AK$6:$AK$165,N89+(N89-1),1)," ") ->  | R89: =IF(N89>0,INDEX('Atl3'!$AL$6:$AL$165,N89+(N89-1),1)," ") ->  | S89: =IF(N89>0,INDEX('Atl3'!$AM$6:$AM$165,N89+(N89-1),1)," ") -> 
B91: 5м | D91: =IF(C91>0,INDEX('Atl3'!$X$6:$X$165,C91+(C91-1),1)," ") ->  | E91: =IF(C91>0,INDEX('Atl3'!$Y$6:$Y$165,C91+(C91-1),1)," ") ->  | F91: =IF(C91>0,INDEX('Atl3'!$AA$6:$AA$165,C91+(C91-1),1)," ") ->  | G91: =IF(C91>0,INDEX('Atl3'!$AB$6:$AB$165,C91+(C91-1),1)," ") ->  | H91: =IF(C91>0,INDEX('Atl3'!$AC$6:$AC$165,C91+(C91-1),1)," ") ->  | M91: 5м | O91: =IF(N91>0,INDEX('Atl3'!$AH$6:$AH$165,N91+(N91-1),1)," ") ->  | P91: =IF(N91>0,INDEX('Atl3'!$AI$6:$AI$165,N91+(N91-1),1)," ") ->  | Q91: =IF(N91>0,INDEX('Atl3'!$AK$6:$AK$165,N91+(N91-1),1)," ") ->  | R91: =IF(N91>0,INDEX('Atl3'!$AL$6:$AL$165,N91+(N91-1),1)," ") ->  | S91: =IF(N91>0,INDEX('Atl3'!$AM$6:$AM$165,N91+(N91-1),1)," ") -> 
B93: =Inf!K9 -> 0 | D93: Количество участников - | G93: ='Atl4'!G2 -> 0 | M93: =Inf!K10 -> 0 | O93: Количество участников - | R93: ='Atl4'!Q2 -> 0
B94: 1м | D94: =IF(C94>0,INDEX('Atl4'!$D$6:$D$165,C94+(C94-1),1)," ") ->  | E94: =IF(C94>0,INDEX('Atl4'!$E$6:$E$165,C94+(C94-1),1)," ") ->  | F94: =IF(C94>0,INDEX('Atl4'!$G$6:$G$165,C94+(C94-1),1)," ") ->  | G94: =IF(C94>0,INDEX('Atl4'!$H$6:$H$165,C94+(C94-1),1)," ") ->  | H94: =IF(C94>0,INDEX('Atl4'!$I$6:$I$165,C94+(C94-1),1)," ") ->  | M94: 1м | O94: =IF(N94>0,INDEX('Atl4'!$N$6:$N$165,N94+(N94-1),1)," ") ->  | P94: =IF(N94>0,INDEX('Atl4'!$O$6:$O$165,N94+(N94-1),1)," ") ->  | Q94: =IF(N94>0,INDEX('Atl4'!$Q$6:$Q$165,N94+(N94-1),1)," ") ->  | R94: =IF(N94>0,INDEX('Atl4'!$R$6:$R$165,N94+(N94-1),1)," ") ->  | S94: =IF(N94>0,INDEX('Atl4'!$S$6:$S$165,N94+(N94-1),1)," ") -> 
B96: 2м | D96: =IF(C96>0,INDEX('Atl4'!$D$6:$D$165,C96+(C96-1),1)," ") ->  | E96: =IF(C96>0,INDEX('Atl4'!$E$6:$E$165,C96+(C96-1),1)," ") ->  | F96: =IF(C96>0,INDEX('Atl4'!$G$6:$G$165,C96+(C96-1),1)," ") ->  | G96: =IF(C96>0,INDEX('Atl4'!$H$6:$H$165,C96+(C96-1),1)," ") ->  | H96: =IF(C96>0,INDEX('Atl4'!$I$6:$I$165,C96+(C96-1),1)," ") ->  | M96: 2м | O96: =IF(N96>0,INDEX('Atl4'!$N$6:$N$165,N96+(N96-1),1)," ") ->  | P96: =IF(N96>0,INDEX('Atl4'!$O$6:$O$165,N96+(N96-1),1)," ") ->  | Q96: =IF(N96>0,INDEX('Atl4'!$Q$6:$Q$165,N96+(N96-1),1)," ") ->  | R96: =IF(N96>0,INDEX('Atl4'!$R$6:$R$165,N96+(N96-1),1)," ") ->  | S96: =IF(N96>0,INDEX('Atl4'!$S$6:$S$165,N96+(N96-1),1)," ") -> 
B98: 3м | D98: =IF(C98>0,INDEX('Atl4'!$D$6:$D$165,C98+(C98-1),1)," ") ->  | E98: =IF(C98>0,INDEX('Atl4'!$E$6:$E$165,C98+(C98-1),1)," ") ->  | F98: =IF(C98>0,INDEX('Atl4'!$G$6:$G$165,C98+(C98-1),1)," ") ->  | G98: =IF(C98>0,INDEX('Atl4'!$H$6:$H$165,C98+(C98-1),1)," ") ->  | H98: =IF(C98>0,INDEX('Atl4'!$I$6:$I$165,C98+(C98-1),1)," ") ->  | M98: 3м | O98: =IF(N98>0,INDEX('Atl4'!$N$6:$N$165,N98+(N98-1),1)," ") ->  | P98: =IF(N98>0,INDEX('Atl4'!$O$6:$O$165,N98+(N98-1),1)," ") ->  | Q98: =IF(N98>0,INDEX('Atl4'!$Q$6:$Q$165,N98+(N98-1),1)," ") ->  | R98: =IF(N98>0,INDEX('Atl4'!$R$6:$R$165,N98+(N98-1),1)," ") ->  | S98: =IF(N98>0,INDEX('Atl4'!$S$6:$S$165,N98+(N98-1),1)," ") -> 
B100: 3м | D100: =IF(C100>0,INDEX('Atl4'!$D$6:$D$165,C100+(C100-1),1)," ") ->  | E100: =IF(C100>0,INDEX('Atl4'!$E$6:$E$165,C100+(C100-1),1)," ") ->  | F100: =IF(C100>0,INDEX('Atl4'!$G$6:$G$165,C100+(C100-1),1)," ") ->  | G100: =IF(C100>0,INDEX('Atl4'!$H$6:$H$165,C100+(C100-1),1)," ") ->  | H100: =IF(C100>0,INDEX('Atl4'!$I$6:$I$165,C100+(C100-1),1)," ") ->  | M100: 3м | O100: =IF(N100>0,INDEX('Atl4'!$N$6:$N$165,N100+(N100-1),1)," ") ->  | P100: =IF(N100>0,INDEX('Atl4'!$O$6:$O$165,N100+(N100-1),1)," ") ->  | Q100: =IF(N100>0,INDEX('Atl4'!$Q$6:$Q$165,N100+(N100-1),1)," ") ->  | R100: =IF(N100>0,INDEX('Atl4'!$R$6:$R$165,N100+(N100-1),1)," ") ->  | S100: =IF(N100>0,INDEX('Atl4'!$S$6:$S$165,N100+(N100-1),1)," ") -> 
B102: 5м | D102: =IF(C102>0,INDEX('Atl4'!$D$6:$D$165,C102+(C102-1),1)," ") ->  | E102: =IF(C102>0,INDEX('Atl4'!$E$6:$E$165,C102+(C102-1),1)," ") ->  | F102: =IF(C102>0,INDEX('Atl4'!$G$6:$G$165,C102+(C102-1),1)," ") ->  | G102: =IF(C102>0,INDEX('Atl4'!$H$6:$H$165,C102+(C102-1),1)," ") ->  | H102: =IF(C102>0,INDEX('Atl4'!$I$6:$I$165,C102+(C102-1),1)," ") ->  | M102: 5м | O102: =IF(N102>0,INDEX('Atl4'!$N$6:$N$165,N102+(N102-1),1)," ") ->  | P102: =IF(N102>0,INDEX('Atl4'!$O$6:$O$165,N102+(N102-1),1)," ") ->  | Q102: =IF(N102>0,INDEX('Atl4'!$Q$6:$Q$165,N102+(N102-1),1)," ") ->  | R102: =IF(N102>0,INDEX('Atl4'!$R$6:$R$165,N102+(N102-1),1)," ") ->  | S102: =IF(N102>0,INDEX('Atl4'!$S$6:$S$165,N102+(N102-1),1)," ") -> 
B104: 5м | D104: =IF(C104>0,INDEX('Atl4'!$D$6:$D$165,C104+(C104-1),1)," ") ->  | E104: =IF(C104>0,INDEX('Atl4'!$E$6:$E$165,C104+(C104-1),1)," ") ->  | F104: =IF(C104>0,INDEX('Atl4'!$G$6:$G$165,C104+(C104-1),1)," ") ->  | G104: =IF(C104>0,INDEX('Atl4'!$H$6:$H$165,C104+(C104-1),1)," ") ->  | H104: =IF(C104>0,INDEX('Atl4'!$I$6:$I$165,C104+(C104-1),1)," ") ->  | M104: 5м | O104: =IF(N104>0,INDEX('Atl4'!$N$6:$N$165,N104+(N104-1),1)," ") ->  | P104: =IF(N104>0,INDEX('Atl4'!$O$6:$O$165,N104+(N104-1),1)," ") ->  | Q104: =IF(N104>0,INDEX('Atl4'!$Q$6:$Q$165,N104+(N104-1),1)," ") ->  | R104: =IF(N104>0,INDEX('Atl4'!$R$6:$R$165,N104+(N104-1),1)," ") ->  | S104: =IF(N104>0,INDEX('Atl4'!$S$6:$S$165,N104+(N104-1),1)," ") -> 
B106: =Inf!K11 -> 0 | D106: Количество участников - | G106: ='Atl4'!AA2 -> 0 | M106: =Inf!K12 -> 0 | O106: Количество участников - | R106: ='Atl4'!AK2 -> 0
B107: 1м | D107: =IF(C107>0,INDEX('Atl4'!$X$6:$X$165,C107+(C107-1),1)," ") ->  | E107: =IF(C107>0,INDEX('Atl4'!$Y$6:$Y$165,C107+(C107-1),1)," ") ->  | F107: =IF(C107>0,INDEX('Atl4'!$AA$6:$AA$165,C107+(C107-1),1)," ") ->  | G107: =IF(C107>0,INDEX('Atl4'!$AB$6:$AB$165,C107+(C107-1),1)," ") ->  | H107: =IF(C107>0,INDEX('Atl4'!$AC$6:$AC$165,C107+(C107-1),1)," ") ->  | M107: 1м | O107: =IF(N107>0,INDEX('Atl4'!$AH$6:$AH$165,N107+(N107-1),1)," ") ->  | P107: =IF(N107>0,INDEX('Atl4'!$AI$6:$AI$165,N107+(N107-1),1)," ") ->  | Q107: =IF(N107>0,INDEX('Atl4'!$AK$6:$AK$165,N107+(N107-1),1)," ") ->  | R107: =IF(N107>0,INDEX('Atl4'!$AL$6:$AL$165,N107+(N107-1),1)," ") ->  | S107: =IF(N107>0,INDEX('Atl4'!$AM$6:$AM$165,N107+(N107-1),1)," ") -> 
B109: 2м | D109: =IF(C109>0,INDEX('Atl4'!$X$6:$X$165,C109+(C109-1),1)," ") ->  | E109: =IF(C109>0,INDEX('Atl4'!$Y$6:$Y$165,C109+(C109-1),1)," ") ->  | F109: =IF(C109>0,INDEX('Atl4'!$AA$6:$AA$165,C109+(C109-1),1)," ") ->  | G109: =IF(C109>0,INDEX('Atl4'!$AB$6:$AB$165,C109+(C109-1),1)," ") ->  | H109: =IF(C109>0,INDEX('Atl4'!$AC$6:$AC$165,C109+(C109-1),1)," ") ->  | M109: 2м | O109: =IF(N109>0,INDEX('Atl4'!$AH$6:$AH$165,N109+(N109-1),1)," ") ->  | P109: =IF(N109>0,INDEX('Atl4'!$AI$6:$AI$165,N109+(N109-1),1)," ") ->  | Q109: =IF(N109>0,INDEX('Atl4'!$AK$6:$AK$165,N109+(N109-1),1)," ") ->  | R109: =IF(N109>0,INDEX('Atl4'!$AL$6:$AL$165,N109+(N109-1),1)," ") ->  | S109: =IF(N109>0,INDEX('Atl4'!$AM$6:$AM$165,N109+(N109-1),1)," ") -> 
B111: 3м | D111: =IF(C111>0,INDEX('Atl4'!$X$6:$X$165,C111+(C111-1),1)," ") ->  | E111: =IF(C111>0,INDEX('Atl4'!$Y$6:$Y$165,C111+(C111-1),1)," ") ->  | F111: =IF(C111>0,INDEX('Atl4'!$AA$6:$AA$165,C111+(C111-1),1)," ") ->  | G111: =IF(C111>0,INDEX('Atl4'!$AB$6:$AB$165,C111+(C111-1),1)," ") ->  | H111: =IF(C111>0,INDEX('Atl4'!$AC$6:$AC$165,C111+(C111-1),1)," ") ->  | M111: 3м | O111: =IF(N111>0,INDEX('Atl4'!$AH$6:$AH$165,N111+(N111-1),1)," ") ->  | P111: =IF(N111>0,INDEX('Atl4'!$AI$6:$AI$165,N111+(N111-1),1)," ") ->  | Q111: =IF(N111>0,INDEX('Atl4'!$AK$6:$AK$165,N111+(N111-1),1)," ") ->  | R111: =IF(N111>0,INDEX('Atl4'!$AL$6:$AL$165,N111+(N111-1),1)," ") ->  | S111: =IF(N111>0,INDEX('Atl4'!$AM$6:$AM$165,N111+(N111-1),1)," ") -> 
B113: 3м | D113: =IF(C113>0,INDEX('Atl4'!$X$6:$X$165,C113+(C113-1),1)," ") ->  | E113: =IF(C113>0,INDEX('Atl4'!$Y$6:$Y$165,C113+(C113-1),1)," ") ->  | F113: =IF(C113>0,INDEX('Atl4'!$AA$6:$AA$165,C113+(C113-1),1)," ") ->  | G113: =IF(C113>0,INDEX('Atl4'!$AB$6:$AB$165,C113+(C113-1),1)," ") ->  | H113: =IF(C113>0,INDEX('Atl4'!$AC$6:$AC$165,C113+(C113-1),1)," ") ->  | M113: 3м | O113: =IF(N113>0,INDEX('Atl4'!$AH$6:$AH$165,N113+(N113-1),1)," ") ->  | P113: =IF(N113>0,INDEX('Atl4'!$AI$6:$AI$165,N113+(N113-1),1)," ") ->  | Q113: =IF(N113>0,INDEX('Atl4'!$AK$6:$AK$165,N113+(N113-1),1)," ") ->  | R113: =IF(N113>0,INDEX('Atl4'!$AL$6:$AL$165,N113+(N113-1),1)," ") ->  | S113: =IF(N113>0,INDEX('Atl4'!$AM$6:$AM$165,N113+(N113-1),1)," ") -> 
B115: 5м | D115: =IF(C115>0,INDEX('Atl4'!$X$6:$X$165,C115+(C115-1),1)," ") ->  | E115: =IF(C115>0,INDEX('Atl4'!$Y$6:$Y$165,C115+(C115-1),1)," ") ->  | F115: =IF(C115>0,INDEX('Atl4'!$AA$6:$AA$165,C115+(C115-1),1)," ") ->  | G115: =IF(C115>0,INDEX('Atl4'!$AB$6:$AB$165,C115+(C115-1),1)," ") ->  | H115: =IF(C115>0,INDEX('Atl4'!$AC$6:$AC$165,C115+(C115-1),1)," ") ->  | M115: 5м | O115: =IF(N115>0,INDEX('Atl4'!$AH$6:$AH$165,N115+(N115-1),1)," ") ->  | P115: =IF(N115>0,INDEX('Atl4'!$AI$6:$AI$165,N115+(N115-1),1)," ") ->  | Q115: =IF(N115>0,INDEX('Atl4'!$AK$6:$AK$165,N115+(N115-1),1)," ") ->  | R115: =IF(N115>0,INDEX('Atl4'!$AL$6:$AL$165,N115+(N115-1),1)," ") ->  | S115: =IF(N115>0,INDEX('Atl4'!$AM$6:$AM$165,N115+(N115-1),1)," ") -> 
B117: 5м | D117: =IF(C117>0,INDEX('Atl4'!$X$6:$X$165,C117+(C117-1),1)," ") ->  | E117: =IF(C117>0,INDEX('Atl4'!$Y$6:$Y$165,C117+(C117-1),1)," ") ->  | F117: =IF(C117>0,INDEX('Atl4'!$AA$6:$AA$165,C117+(C117-1),1)," ") ->  | G117: =IF(C117>0,INDEX('Atl4'!$AB$6:$AB$165,C117+(C117-1),1)," ") ->  | H117: =IF(C117>0,INDEX('Atl4'!$AC$6:$AC$165,C117+(C117-1),1)," ") ->  | M117: 5м | O117: =IF(N117>0,INDEX('Atl4'!$AH$6:$AH$165,N117+(N117-1),1)," ") ->  | P117: =IF(N117>0,INDEX('Atl4'!$AI$6:$AI$165,N117+(N117-1),1)," ") ->  | Q117: =IF(N117>0,INDEX('Atl4'!$AK$6:$AK$165,N117+(N117-1),1)," ") ->  | R117: =IF(N117>0,INDEX('Atl4'!$AL$6:$AL$165,N117+(N117-1),1)," ") ->  | S117: =IF(N117>0,INDEX('Atl4'!$AM$6:$AM$165,N117+(N117-1),1)," ") -> 
D120: Главный судья соревнований | P120: =Inf!F7 -> АПОЙКО Р.Н.
F121: =Inf!B8 -> ССВК-МК | P121: =Inf!F8 -> Санкт-Петербург
D122: Главный секретарь соревнований | P122: =Inf!F10 -> СОКОЛОВ А.В.
F123: =Inf!B11 -> ССВК-МК | P123: =Inf!F11 -> Санкт-Петербург

Sheet Atl1 (hidden)
D2: =Inf!I5 -> 55 | E2: Количество участников | G2: =COUNTA(D6:D165) -> 3 | N2: =Inf!I6 -> 60 | O2: Количество участников | Q2: =COUNTA(N6:N165) -> 3 | X2: =Inf!I7 -> 63 | Y2: Количество участников | AA2: =COUNTA(X6:X165) -> 6 | AH2: =Inf!I8 -> 67 | AI2: Количество участников | AK2: =COUNTA(AH6:AH165) -> 0
B5: № п/п | C5: по жребию | D5: Фамилия, имя участника | E5: Регион | F5: ФСО | G5: Разряд, звание | H5: Дата рождения | I5: Ф.И.О. тренера | L5: № п/п | M5: по жребию | N5: Фамилия, имя участника | O5: Регион | P5: ФСО | Q5: Разряд, звание | R5: Дата рождения | S5: Ф.И.О. тренера | V5: № п/п | W5: по жребию | X5: Фамилия, имя участника | Y5: Регион | Z5: ФСО | AA5: Разряд, звание | AB5: Дата рождения | AC5: Ф.И.О. тренера | AF5: № п/п | AG5: по жребию | AH5: Фамилия, имя участника | AI5: Регион | AJ5: ФСО | AK5: Разряд, звание | AL5: Дата рождения | AM5: Ф.И.О. тренера
B6: 1 | C6: 1 | L6: 1 | M6: 1 | V6: 1 | W6: 1 | X6: УЦПВ | AF6: 1 | AG6: 1
B8: =B6+1 -> 2 | C8: 2 | L8: =L6+1 -> 2 | M8: 2 | V8: =V6+1 -> 2 | W8: 2 | X8: ЧВВАРЯР | AF8: =AF6+1 -> 2 | AG8: 2
B10: =B8+1 -> 3 | C10: 3 | D10: АПЛЛ | L10: =L8+1 -> 3 | M10: 3 | N10: ГРИЦ СЕМЕН | O10: СПб-КШВСМ | P10: СПб-КШВСМ | Q10: КМС | R10: 2005-07-07 | S10: КАЗАВАТОВ,СКАРГИН | V10: =V8+1 -> 3 | W10: 3 | X10: АСЛАНЯН АРСЕН | AF10: =AF8+1 -> 3 | AG10: 3
B12: =B10+1 -> 4 | C12: 4 | D12: СИЧ | L12: =L10+1 -> 4 | M12: 4 | N12: АВПА | V12: =V10+1 -> 4 | W12: 4 | X12: ВАЧЧА | AF12: =AF10+1 -> 4 | AG12: 4
B14: =B12+1 -> 5 | C14: 5 | D14: ПАПЛ | L14: =L12+1 -> 5 | M14: 5 | N14: ПАВП | V14: =V12+1 -> 5 | W14: 5 | X14: ЧИСАЧЧА | AF14: =AF12+1 -> 5 | AG14: 5
B16: =B14+1 -> 6 | C16: 6 | L16: =L14+1 -> 6 | M16: 6 | V16: =V14+1 -> 6 | W16: 6 | X16: ЧИСАЧЧА | AF16: =AF14+1 -> 6 | AG16: 6
B18: =B16+1 -> 7 | C18: 7 | L18: =L16+1 -> 7 | M18: 7 | V18: =V16+1 -> 7 | W18: 7 | AF18: =AF16+1 -> 7 | AG18: 7
B20: =B18+1 -> 8 | C20: 8 | L20: =L18+1 -> 8 | M20: 8 | V20: =V18+1 -> 8 | W20: 8 | AF20: =AF18+1 -> 8 | AG20: 8
B22: =B20+1 -> 9 | C22: 9 | L22: =L20+1 -> 9 | M22: 9 | V22: =V20+1 -> 9 | W22: 9 | AF22: =AF20+1 -> 9 | AG22: 9
B24: =B22+1 -> 10 | C24: 10 | L24: =L22+1 -> 10 | M24: 10 | V24: =V22+1 -> 10 | W24: 10 | AF24: =AF22+1 -> 10 | AG24: 10
B26: =B24+1 -> 11 | C26: 11 | L26: =L24+1 -> 11 | M26: 11 | V26: =V24+1 -> 11 | W26: 11 | AF26: =AF24+1 -> 11 | AG26: 11
B28: =B26+1 -> 12 | C28: 12 | L28: =L26+1 -> 12 | M28: 12 | V28: =V26+1 -> 12 | W28: 12 | AF28: =AF26+1 -> 12 | AG28: 12
B30: =B28+1 -> 13 | C30: 13 | L30: =L28+1 -> 13 | M30: 13 | V30: =V28+1 -> 13 | W30: 13 | AF30: =AF28+1 -> 13 | AG30: 13
B32: =B30+1 -> 14 | C32: 14 | L32: =L30+1 -> 14 | M32: 14 | V32: =V30+1 -> 14 | W32: 14 | AF32: =AF30+1 -> 14 | AG32: 14
B34: =B32+1 -> 15 | C34: 15 | L34: =L32+1 -> 15 | M34: 15 | V34: =V32+1 -> 15 | W34: 15 | AF34: =AF32+1 -> 15 | AG34: 15
B36: =B34+1 -> 16 | C36: 16 | L36: =L34+1 -> 16 | M36: 16 | V36: =V34+1 -> 16 | W36: 16 | AF36: =AF34+1 -> 16 | AG36: 16
B38: =B36+1 -> 17 | C38: 17 | L38: =L36+1 -> 17 | M38: 17 | V38: =V36+1 -> 17 | W38: 17 | AF38: =AF36+1 -> 17 | AG38: 17
B40: =B38+1 -> 18 | C40: 18 | L40: =L38+1 -> 18 | M40: 18 | V40: =V38+1 -> 18 | W40: 18 | AF40: =AF38+1 -> 18 | AG40: 18
B42: =B40+1 -> 19 | C42: 19 | L42: =L40+1 -> 19 | M42: 19 | V42: =V40+1 -> 19 | W42: 19 | AF42: =AF40+1 -> 19 | AG42: 19
B44: =B42+1 -> 20 | C44: 20 | L44: =L42+1 -> 20 | M44: 20 | V44: =V42+1 -> 20 | W44: 20 | AF44: =AF42+1 -> 20 | AG44: 20
B46: =B44+1 -> 21 | C46: 21 | L46: =L44+1 -> 21 | M46: 21 | V46: =V44+1 -> 21 | W46: 21 | AF46: =AF44+1 -> 21 | AG46: 21
B48: =B46+1 -> 22 | C48: 22 | L48: =L46+1 -> 22 | M48: 22 | V48: =V46+1 -> 22 | W48: 22 | AF48: =AF46+1 -> 22 | AG48: 22
B50: =B48+1 -> 23 | C50: 23 | L50: =L48+1 -> 23 | M50: 23 | V50: =V48+1 -> 23 | W50: 23 | AF50: =AF48+1 -> 23 | AG50: 23
B52: =B50+1 -> 24 | C52: 24 | L52: =L50+1 -> 24 | M52: 24 | V52: =V50+1 -> 24 | W52: 24 | AF52: =AF50+1 -> 24 | AG52: 24
B54: =B52+1 -> 25 | C54: 25 | L54: =L52+1 -> 25 | M54: 25 | V54: =V52+1 -> 25 | W54: 25 | AF54: =AF52+1 -> 25 | AG54: 25
B56: =B54+1 -> 26 | C56: 26 | L56: =L54+1 -> 26 | M56: 26 | V56: =V54+1 -> 26 | W56: 26 | AF56: =AF54+1 -> 26 | AG56: 26
B58: =B56+1 -> 27 | C58: 27 | L58: =L56+1 -> 27 | M58: 27 | V58: =V56+1 -> 27 | W58: 27 | AF58: =AF56+1 -> 27 | AG58: 27
B60: =B58+1 -> 28 | C60: 28 | L60: =L58+1 -> 28 | M60: 28 | V60: =V58+1 -> 28 | W60: 28 | AF60: =AF58+1 -> 28 | AG60: 28
B62: =B60+1 -> 29 | C62: 29 | L62: =L60+1 -> 29 | M62: 29 | V62: =V60+1 -> 29 | W62: 29 | AF62: =AF60+1 -> 29 | AG62: 29
B64: =B62+1 -> 30 | C64: 30 | L64: =L62+1 -> 30 | M64: 30 | V64: =V62+1 -> 30 | W64: 30 | AF64: =AF62+1 -> 30 | AG64: 30
B66: =B64+1 -> 31 | C66: 31 | L66: =L64+1 -> 31 | M66: 31 | V66: =V64+1 -> 31 | W66: 31 | AF66: =AF64+1 -> 31 | AG66: 31
B68: =B66+1 -> 32 | C68: 32 | L68: =L66+1 -> 32 | M68: 32 | V68: =V66+1 -> 32 | W68: 32 | AF68: =AF66+1 -> 32 | AG68: 32
B70: =B68+1 -> 33 | C70: 33 | L70: =L68+1 -> 33 | M70: 33 | V70: =V68+1 -> 33 | W70: 33 | AF70: =AF68+1 -> 33 | AG70: 33
B72: =B70+1 -> 34 | C72: 34 | L72: =L70+1 -> 34 | M72: 34 | V72: =V70+1 -> 34 | W72: 34 | AF72: =AF70+1 -> 34 | AG72: 34
B74: =B72+1 -> 35 | C74: 35 | L74: =L72+1 -> 35 | M74: 35 | V74: =V72+1 -> 35 | W74: 35 | AF74: =AF72+1 -> 35 | AG74: 35
B76: =B74+1 -> 36 | C76: 36 | L76: =L74+1 -> 36 | M76: 36 | V76: =V74+1 -> 36 | W76: 36 | AF76: =AF74+1 -> 36 | AG76: 36
B78: =B76+1 -> 37 | C78: 37 | L78: =L76+1 -> 37 | M78: 37 | V78: =V76+1 -> 37 | W78: 37 | AF78: =AF76+1 -> 37 | AG78: 37
B80: =B78+1 -> 38 | C80: 38 | L80: =L78+1 -> 38 | M80: 38 | V80: =V78+1 -> 38 | W80: 38 | AF80: =AF78+1 -> 38 | AG80: 38
B82: =B80+1 -> 39 | C82: 39 | L82: =L80+1 -> 39 | M82: 39 | V82: =V80+1 -> 39 | W82: 39 | AF82: =AF80+1 -> 39 | AG82: 39
B84: =B82+1 -> 40 | C84: 40 | L84: =L82+1 -> 40 | M84: 40 | V84: =V82+1 -> 40 | W84: 40 | AF84: =AF82+1 -> 40 | AG84: 40
B86: =B84+1 -> 41 | C86: 41 | L86: =L84+1 -> 41 | M86: 41 | V86: =V84+1 -> 41 | W86: 41 | AF86: =AF84+1 -> 41 | AG86: 41
B88: =B86+1 -> 42 | C88: 42 | L88: =L86+1 -> 42 | M88: 42 | V88: =V86+1 -> 42 | W88: 42 | AF88: =AF86+1 -> 42 | AG88: 42
B90: =B88+1 -> 43 | C90: 43 | L90: =L88+1 -> 43 | M90: 43 | V90: =V88+1 -> 43 | W90: 43 | AF90: =AF88+1 -> 43 | AG90: 43
B92: =B90+1 -> 44 | C92: 44 | L92: =L90+1 -> 44 | M92: 44 | V92: =V90+1 -> 44 | W92: 44 | AF92: =AF90+1 -> 44 | AG92: 44
B94: =B92+1 -> 45 | C94: 45 | L94: =L92+1 -> 45 | M94: 45 | V94: =V92+1 -> 45 | W94: 45 | AF94: =AF92+1 -> 45 | AG94: 45
B96: =B94+1 -> 46 | C96: 46 | L96: =L94+1 -> 46 | M96: 46 | V96: =V94+1 -> 46 | W96: 46 | AF96: =AF94+1 -> 46 | AG96: 46
B98: =B96+1 -> 47 | C98: 47 | L98: =L96+1 -> 47 | M98: 47 | V98: =V96+1 -> 47 | W98: 47 | AF98: =AF96+1 -> 47 | AG98: 47
B100: =B98+1 -> 48 | C100: 48 | L100: =L98+1 -> 48 | M100: 48 | V100: =V98+1 -> 48 | W100: 48 | AF100: =AF98+1 -> 48 | AG100: 48
B102: =B100+1 -> 49 | C102: 49 | L102: =L100+1 -> 49 | M102: 49 | V102: =V100+1 -> 49 | W102: 49 | AF102: =AF100+1 -> 49 | AG102: 49
B104: =B102+1 -> 50 | C104: 50 | L104: =L102+1 -> 50 | M104: 50 | V104: =V102+1 -> 50 | W104: 50 | AF104: =AF102+1 -> 50 | AG104: 50
B106: =B104+1 -> 51 | C106: 51 | L106: =L104+1 -> 51 | M106: 51 | V106: =V104+1 -> 51 | W106: 51 | AF106: =AF104+1 -> 51 | AG106: 51
B108: =B106+1 -> 52 | C108: 52 | L108: =L106+1 -> 52 | M108: 52 | V108: =V106+1 -> 52 | W108: 52 | AF108: =AF106+1 -> 52 | AG108: 52
B110: =B108+1 -> 53 | C110: 53 | L110: =L108+1 -> 53 | M110: 53 | V110: =V108+1 -> 53 | W110: 53 | AF110: =AF108+1 -> 53 | AG110: 53
B112: =B110+1 -> 54 | C112: 54 | L112: =L110+1 -> 54 | M112: 54 | V112: =V110+1 -> 54 | W112: 54 | AF112: =AF110+1 -> 54 | AG112: 54
B114: =B112+1 -> 55 | C114: 55 | L114: =L112+1 -> 55 | M114: 55 | V114: =V112+1 -> 55 | W114: 55 | AF114: =AF112+1 -> 55 | AG114: 55
B116: =B114+1 -> 56 | C116: 56 | L116: =L114+1 -> 56 | M116: 56 | V116: =V114+1 -> 56 | W116: 56 | AF116: =AF114+1 -> 56 | AG116: 56
B118: =B116+1 -> 57 | C118: 57 | L118: =L116+1 -> 57 | M118: 57 | V118: =V116+1 -> 57 | W118: 57 | AF118: =AF116+1 -> 57 | AG118: 57
B120: =B118+1 -> 58 | C120: 58 | L120: =L118+1 -> 58 | M120: 58 | V120: =V118+1 -> 58 | W120: 58 | AF120: =AF118+1 -> 58 | AG120: 58
B122: =B120+1 -> 59 | C122: 59 | L122: =L120+1 -> 59 | M122: 59 | V122: =V120+1 -> 59 | W122: 59 | AF122: =AF120+1 -> 59 | AG122: 59
B124: =B122+1 -> 60 | C124: 60 | L124: =L122+1 -> 60 | M124: 60 | V124: =V122+1 -> 60 | W124: 60 | AF124: =AF122+1 -> 60 | AG124: 60
B126: =B124+1 -> 61 | C126: 61 | L126: =L124+1 -> 61 | M126: 61 | V126: =V124+1 -> 61 | W126: 61 | AF126: =AF124+1 -> 61 | AG126: 61
B128: =B126+1 -> 62 | C128: 62 | L128: =L126+1 -> 62 | M128: 62 | V128: =V126+1 -> 62 | W128: 62 | AF128: =AF126+1 -> 62 | AG128: 62
B130: =B128+1 -> 63 | C130: 63 | L130: =L128+1 -> 63 | M130: 63 | V130: =V128+1 -> 63 | W130: 63 | AF130: =AF128+1 -> 63 | AG130: 63
B132: =B130+1 -> 64 | C132: 64 | L132: =L130+1 -> 64 | M132: 64 | V132: =V130+1 -> 64 | W132: 64 | AF132: =AF130+1 -> 64 | AG132: 64
B134: =B132+1 -> 65 | C134: 65 | L134: =L132+1 -> 65 | M134: 65 | V134: =V132+1 -> 65 | W134: 65 | AF134: =AF132+1 -> 65 | AG134: 65
B136: =B134+1 -> 66 | C136: 66 | L136: =L134+1 -> 66 | M136: 66 | V136: =V134+1 -> 66 | W136: 66 | AF136: =AF134+1 -> 66 | AG136: 66
B138: =B136+1 -> 67 | C138: 67 | L138: =L136+1 -> 67 | M138: 67 | V138: =V136+1 -> 67 | W138: 67 | AF138: =AF136+1 -> 67 | AG138: 67
B140: =B138+1 -> 68 | C140: 68 | L140: =L138+1 -> 68 | M140: 68 | V140: =V138+1 -> 68 | W140: 68 | AF140: =AF138+1 -> 68 | AG140: 68
B142: =B140+1 -> 69 | C142: 69 | L142: =L140+1 -> 69 | M142: 69 | V142: =V140+1 -> 69 | W142: 69 | AF142: =AF140+1 -> 69 | AG142: 69
B144: =B142+1 -> 70 | C144: 70 | L144: =L142+1 -> 70 | M144: 70 | V144: =V142+1 -> 70 | W144: 70 | AF144: =AF142+1 -> 70 | AG144: 70
B146: =B144+1 -> 71 | C146: 71 | L146: =L144+1 -> 71 | M146: 71 | V146: =V144+1 -> 71 | W146: 71 | AF146: =AF144+1 -> 71 | AG146: 71
B148: =B146+1 -> 72 | C148: 72 | L148: =L146+1 -> 72 | M148: 72 | V148: =V146+1 -> 72 | W148: 72 | AF148: =AF146+1 -> 72 | AG148: 72
B150: =B148+1 -> 73 | C150: 73 | L150: =L148+1 -> 73 | M150: 73 | V150: =V148+1 -> 73 | W150: 73 | AF150: =AF148+1 -> 73 | AG150: 73
B152: =B150+1 -> 74 | C152: 74 | L152: =L150+1 -> 74 | M152: 74 | V152: =V150+1 -> 74 | W152: 74 | AF152: =AF150+1 -> 74 | AG152: 74
B154: =B152+1 -> 75 | C154: 75 | L154: =L152+1 -> 75 | M154: 75 | V154: =V152+1 -> 75 | W154: 75 | AF154: =AF152+1 -> 75 | AG154: 75
B156: =B154+1 -> 76 | C156: 76 | L156: =L154+1 -> 76 | M156: 76 | V156: =V154+1 -> 76 | W156: 76 | AF156: =AF154+1 -> 76 | AG156: 76
B158: =B156+1 -> 77 | C158: 77 | L158: =L156+1 -> 77 | M158: 77 | V158: =V156+1 -> 77 | W158: 77 | AF158: =AF156+1 -> 77 | AG158: 77
B160: =B158+1 -> 78 | C160: 78 | L160: =L158+1 -> 78 | M160: 78 | V160: =V158+1 -> 78 | W160: 78 | AF160: =AF158+1 -> 78 | AG160: 78
B162: =B160+1 -> 79 | C162: 79 | L162: =L160+1 -> 79 | M162: 79 | V162: =V160+1 -> 79 | W162: 79 | AF162: =AF160+1 -> 79 | AG162: 79
B164: 80 | C164: 80 | L164: 80 | M164: 80 | V164: 80 | W164: 80 | AF164: 80 | AG164: 80

Sheet Atl2 (hidden)
D2: =Inf!I9 -> 72 | E2: Количество участников | G2: =COUNTA(D6:D165) -> 0 | N2: =Inf!I10 -> 77 | O2: Количество участников | Q2: =COUNTA(N6:N165) -> 0 | X2: =Inf!I11 -> 82 | Y2: Количество участников | AA2: =COUNTA(X6:X165) -> 0 | AH2: =Inf!I12 -> 87 | AI2: Количество участников | AK2: =COUNTA(AH6:AH165) -> 0
B5: № п/п | C5: по жребию | D5: Фамилия, имя участника | E5: Регион | F5: ФСО | G5: Разряд, звание | H5: Дата рождения | I5: Ф.И.О. тренера | L5: № п/п | M5: по жребию | N5: Фамилия, имя участника | O5: Регион | P5: ФСО | Q5: Разряд, звание | R5: Дата рождения | S5: Ф.И.О. тренера | V5: № п/п | W5: по жребию | X5: Фамилия, имя участника | Y5: Регион | Z5: ФСО | AA5: Разряд, звание | AB5: Дата рождения | AC5: Ф.И.О. тренера | AF5: № п/п | AG5: по жребию | AH5: Фамилия, имя участника | AI5: Регион | AJ5: ФСО | AK5: Разряд, звание | AL5: Дата рождения | AM5: Ф.И.О. тренера
B6: 1 | C6: 1 | L6: 1 | M6: 1 | V6: 1 | W6: 1 | AF6: 1 | AG6: 1
B8: =B6+1 -> 2 | C8: 2 | L8: =L6+1 -> 2 | M8: 2 | V8: =V6+1 -> 2 | W8: 2 | AF8: =AF6+1 -> 2 | AG8: 2
B10: =B8+1 -> 3 | C10: 3 | L10: =L8+1 -> 3 | M10: 3 | V10: =V8+1 -> 3 | W10: 3 | AF10: =AF8+1 -> 3 | AG10: 3
B12: =B10+1 -> 4 | C12: 4 | L12: =L10+1 -> 4 | M12: 4 | V12: =V10+1 -> 4 | W12: 4 | AF12: =AF10+1 -> 4 | AG12: 4
B14: =B12+1 -> 5 | C14: 5 | L14: =L12+1 -> 5 | M14: 5 | V14: =V12+1 -> 5 | W14: 5 | AF14: =AF12+1 -> 5 | AG14: 5
B16: =B14+1 -> 6 | C16: 6 | L16: =L14+1 -> 6 | M16: 6 | V16: =V14+1 -> 6 | W16: 6 | AF16: =AF14+1 -> 6 | AG16: 6
B18: =B16+1 -> 7 | C18: 7 | L18: =L16+1 -> 7 | M18: 7 | V18: =V16+1 -> 7 | W18: 7 | AF18: =AF16+1 -> 7 | AG18: 7
B20: =B18+1 -> 8 | C20: 8 | L20: =L18+1 -> 8 | M20: 8 | V20: =V18+1 -> 8 | W20: 8 | AF20: =AF18+1 -> 8 | AG20: 8
B22: =B20+1 -> 9 | C22: 9 | L22: =L20+1 -> 9 | M22: 9 | V22: =V20+1 -> 9 | W22: 9 | AF22: =AF20+1 -> 9 | AG22: 9
B24: =B22+1 -> 10 | C24: 10 | L24: =L22+1 -> 10 | M24: 10 | V24: =V22+1 -> 10 | W24: 10 | AF24: =AF22+1 -> 10 | AG24: 10
B26: =B24+1 -> 11 | C26: 11 | L26: =L24+1 -> 11 | M26: 11 | V26: =V24+1 -> 11 | W26: 11 | AF26: =AF24+1 -> 11 | AG26: 11
B28: =B26+1 -> 12 | C28: 12 | L28: =L26+1 -> 12 | M28: 12 | V28: =V26+1 -> 12 | W28: 12 | AF28: =AF26+1 -> 12 | AG28: 12
B30: =B28+1 -> 13 | C30: 13 | L30: =L28+1 -> 13 | M30: 13 | V30: =V28+1 -> 13 | W30: 13 | AF30: =AF28+1 -> 13 | AG30: 13
B32: =B30+1 -> 14 | C32: 14 | L32: =L30+1 -> 14 | M32: 14 | V32: =V30+1 -> 14 | W32: 14 | AF32: =AF30+1 -> 14 | AG32: 14
B34: =B32+1 -> 15 | C34: 15 | L34: =L32+1 -> 15 | M34: 15 | V34: =V32+1 -> 15 | W34: 15 | AF34: =AF32+1 -> 15 | AG34: 15
B36: =B34+1 -> 16 | C36: 16 | L36: =L34+1 -> 16 | M36: 16 | V36: =V34+1 -> 16 | W36: 16 | AF36: =AF34+1 -> 16 | AG36: 16
B38: =B36+1 -> 17 | C38: 17 | L38: =L36+1 -> 17 | M38: 17 | V38: =V36+1 -> 17 | W38: 17 | AF38: =AF36+1 -> 17 | AG38: 17
B40: =B38+1 -> 18 | C40: 18 | L40: =L38+1 -> 18 | M40: 18 | V40: =V38+1 -> 18 | W40: 18 | AF40: =AF38+1 -> 18 | AG40: 18
B42: =B40+1 -> 19 | C42: 19 | L42: =L40+1 -> 19 | M42: 19 | V42: =V40+1 -> 19 | W42: 19 | AF42: =AF40+1 -> 19 | AG42: 19
B44: =B42+1 -> 20 | C44: 20 | L44: =L42+1 -> 20 | M44: 20 | V44: =V42+1 -> 20 | W44: 20 | AF44: =AF42+1 -> 20 | AG44: 20
B46: =B44+1 -> 21 | C46: 21 | L46: =L44+1 -> 21 | M46: 21 | V46: =V44+1 -> 21 | W46: 21 | AF46: =AF44+1 -> 21 | AG46: 21
B48: =B46+1 -> 22 | C48: 22 | L48: =L46+1 -> 22 | M48: 22 | V48: =V46+1 -> 22 | W48: 22 | AF48: =AF46+1 -> 22 | AG48: 22
B50: =B48+1 -> 23 | C50: 23 | L50: =L48+1 -> 23 | M50: 23 | V50: =V48+1 -> 23 | W50: 23 | AF50: =AF48+1 -> 23 | AG50: 23
B52: =B50+1 -> 24 | C52: 24 | L52: =L50+1 -> 24 | M52: 24 | V52: =V50+1 -> 24 | W52: 24 | AF52: =AF50+1 -> 24 | AG52: 24
B54: =B52+1 -> 25 | C54: 25 | L54: =L52+1 -> 25 | M54: 25 | V54: =V52+1 -> 25 | W54: 25 | AF54: =AF52+1 -> 25 | AG54: 25
B56: =B54+1 -> 26 | C56: 26 | L56: =L54+1 -> 26 | M56: 26 | V56: =V54+1 -> 26 | W56: 26 | AF56: =AF54+1 -> 26 | AG56: 26
B58: =B56+1 -> 27 | C58: 27 | L58: =L56+1 -> 27 | M58: 27 | V58: =V56+1 -> 27 | W58: 27 | AF58: =AF56+1 -> 27 | AG58: 27
B60: =B58+1 -> 28 | C60: 28 | L60: =L58+1 -> 28 | M60: 28 | V60: =V58+1 -> 28 | W60: 28 | AF60: =AF58+1 -> 28 | AG60: 28
B62: =B60+1 -> 29 | C62: 29 | L62: =L60+1 -> 29 | M62: 29 | V62: =V60+1 -> 29 | W62: 29 | AF62: =AF60+1 -> 29 | AG62: 29
B64: =B62+1 -> 30 | C64: 30 | L64: =L62+1 -> 30 | M64: 30 | V64: =V62+1 -> 30 | W64: 30 | AF64: =AF62+1 -> 30 | AG64: 30
B66: =B64+1 -> 31 | C66: 31 | L66: =L64+1 -> 31 | M66: 31 | V66: =V64+1 -> 31 | W66: 31 | AF66: =AF64+1 -> 31 | AG66: 31
B68: =B66+1 -> 32 | C68: 32 | L68: =L66+1 -> 32 | M68: 32 | V68: =V66+1 -> 32 | W68: 32 | AF68: =AF66+1 -> 32 | AG68: 32
B70: =B68+1 -> 33 | C70: 33 | L70: =L68+1 -> 33 | M70: 33 | V70: =V68+1 -> 33 | W70: 33 | AF70: =AF68+1 -> 33 | AG70: 33
B72: =B70+1 -> 34 | C72: 34 | L72: =L70+1 -> 34 | M72: 34 | V72: =V70+1 -> 34 | W72: 34 | AF72: =AF70+1 -> 34 | AG72: 34
B74: =B72+1 -> 35 | C74: 35 | L74: =L72+1 -> 35 | M74: 35 | V74: =V72+1 -> 35 | W74: 35 | AF74: =AF72+1 -> 35 | AG74: 35
B76: =B74+1 -> 36 | C76: 36 | L76: =L74+1 -> 36 | M76: 36 | V76: =V74+1 -> 36 | W76: 36 | AF76: =AF74+1 -> 36 | AG76: 36
B78: =B76+1 -> 37 | C78: 37 | L78: =L76+1 -> 37 | M78: 37 | V78: =V76+1 -> 37 | W78: 37 | AF78: =AF76+1 -> 37 | AG78: 37
B80: =B78+1 -> 38 | C80: 38 | L80: =L78+1 -> 38 | M80: 38 | V80: =V78+1 -> 38 | W80: 38 | AF80: =AF78+1 -> 38 | AG80: 38
B82: =B80+1 -> 39 | C82: 39 | L82: =L80+1 -> 39 | M82: 39 | V82: =V80+1 -> 39 | W82: 39 | AF82: =AF80+1 -> 39 | AG82: 39
B84: =B82+1 -> 40 | C84: 40 | L84: =L82+1 -> 40 | M84: 40 | V84: =V82+1 -> 40 | W84: 40 | AF84: =AF82+1 -> 40 | AG84: 40
B86: =B84+1 -> 41 | C86: 41 | L86: =L84+1 -> 41 | M86: 41 | V86: =V84+1 -> 41 | W86: 41 | AF86: =AF84+1 -> 41 | AG86: 41
B88: =B86+1 -> 42 | C88: 42 | L88: =L86+1 -> 42 | M88: 42 | V88: =V86+1 -> 42 | W88: 42 | AF88: =AF86+1 -> 42 | AG88: 42
B90: =B88+1 -> 43 | C90: 43 | L90: =L88+1 -> 43 | M90: 43 | V90: =V88+1 -> 43 | W90: 43 | AF90: =AF88+1 -> 43 | AG90: 43
B92: =B90+1 -> 44 | C92: 44 | L92: =L90+1 -> 44 | M92: 44 | V92: =V90+1 -> 44 | W92: 44 | AF92: =AF90+1 -> 44 | AG92: 44
B94: =B92+1 -> 45 | C94: 45 | L94: =L92+1 -> 45 | M94: 45 | V94: =V92+1 -> 45 | W94: 45 | AF94: =AF92+1 -> 45 | AG94: 45
B96: =B94+1 -> 46 | C96: 46 | L96: =L94+1 -> 46 | M96: 46 | V96: =V94+1 -> 46 | W96: 46 | AF96: =AF94+1 -> 46 | AG96: 46
B98: =B96+1 -> 47 | C98: 47 | L98: =L96+1 -> 47 | M98: 47 | V98: =V96+1 -> 47 | W98: 47 | AF98: =AF96+1 -> 47 | AG98: 47
B100: =B98+1 -> 48 | C100: 48 | L100: =L98+1 -> 48 | M100: 48 | V100: =V98+1 -> 48 | W100: 48 | AF100: =AF98+1 -> 48 | AG100: 48
B102: =B100+1 -> 49 | C102: 49 | L102: =L100+1 -> 49 | M102: 49 | V102: =V100+1 -> 49 | W102: 49 | AF102: =AF100+1 -> 49 | AG102: 49
B104: =B102+1 -> 50 | C104: 50 | L104: =L102+1 -> 50 | M104: 50 | V104: =V102+1 -> 50 | W104: 50 | AF104: =AF102+1 -> 50 | AG104: 50
B106: =B104+1 -> 51 | C106: 51 | L106: =L104+1 -> 51 | M106: 51 | V106: =V104+1 -> 51 | W106: 51 | AF106: =AF104+1 -> 51 | AG106: 51
B108: =B106+1 -> 52 | C108: 52 | L108: =L106+1 -> 52 | M108: 52 | V108: =V106+1 -> 52 | W108: 52 | AF108: =AF106+1 -> 52 | AG108: 52
B110: =B108+1 -> 53 | C110: 53 | L110: =L108+1 -> 53 | M110: 53 | V110: =V108+1 -> 53 | W110: 53 | AF110: =AF108+1 -> 53 | AG110: 53
B112: =B110+1 -> 54 | C112: 54 | L112: =L110+1 -> 54 | M112: 54 | V112: =V110+1 -> 54 | W112: 54 | AF112: =AF110+1 -> 54 | AG112: 54
B114: =B112+1 -> 55 | C114: 55 | L114: =L112+1 -> 55 | M114: 55 | V114: =V112+1 -> 55 | W114: 55 | AF114: =AF112+1 -> 55 | AG114: 55
B116: =B114+1 -> 56 | C116: 56 | L116: =L114+1 -> 56 | M116: 56 | V116: =V114+1 -> 56 | W116: 56 | AF116: =AF114+1 -> 56 | AG116: 56
B118: =B116+1 -> 57 | C118: 57 | L118: =L116+1 -> 57 | M118: 57 | V118: =V116+1 -> 57 | W118: 57 | AF118: =AF116+1 -> 57 | AG118: 57
B120: =B118+1 -> 58 | C120: 58 | L120: =L118+1 -> 58 | M120: 58 | V120: =V118+1 -> 58 | W120: 58 | AF120: =AF118+1 -> 58 | AG120: 58
B122: =B120+1 -> 59 | C122: 59 | L122: =L120+1 -> 59 | M122: 59 | V122: =V120+1 -> 59 | W122: 59 | AF122: =AF120+1 -> 59 | AG122: 59
B124: =B122+1 -> 60 | C124: 60 | L124: =L122+1 -> 60 | M124: 60 | V124: =V122+1 -> 60 | W124: 60 | AF124: =AF122+1 -> 60 | AG124: 60
B126: =B124+1 -> 61 | C126: 61 | L126: =L124+1 -> 61 | M126: 61 | V126: =V124+1 -> 61 | W126: 61 | AF126: =AF124+1 -> 61 | AG126: 61
B128: =B126+1 -> 62 | C128: 62 | L128: =L126+1 -> 62 | M128: 62 | V128: =V126+1 -> 62 | W128: 62 | AF128: =AF126+1 -> 62 | AG128: 62
B130: =B128+1 -> 63 | C130: 63 | L130: =L128+1 -> 63 | M130: 63 | V130: =V128+1 -> 63 | W130: 63 | AF130: =AF128+1 -> 63 | AG130: 63
B132: =B130+1 -> 64 | C132: 64 | L132: =L130+1 -> 64 | M132: 64 | V132: =V130+1 -> 64 | W132: 64 | AF132: =AF130+1 -> 64 | AG132: 64
B134: =B132+1 -> 65 | C134: 65 | L134: =L132+1 -> 65 | M134: 65 | V134: =V132+1 -> 65 | W134: 65 | AF134: =AF132+1 -> 65 | AG134: 65
B136: =B134+1 -> 66 | C136: 66 | L136: =L134+1 -> 66 | M136: 66 | V136: =V134+1 -> 66 | W136: 66 | AF136: =AF134+1 -> 66 | AG136: 66
B138: =B136+1 -> 67 | C138: 67 | L138: =L136+1 -> 67 | M138: 67 | V138: =V136+1 -> 67 | W138: 67 | AF138: =AF136+1 -> 67 | AG138: 67
B140: =B138+1 -> 68 | C140: 68 | L140: =L138+1 -> 68 | M140: 68 | V140: =V138+1 -> 68 | W140: 68 | AF140: =AF138+1 -> 68 | AG140: 68
B142: =B140+1 -> 69 | C142: 69 | L142: =L140+1 -> 69 | M142: 69 | V142: =V140+1 -> 69 | W142: 69 | AF142: =AF140+1 -> 69 | AG142: 69
B144: =B142+1 -> 70 | C144: 70 | L144: =L142+1 -> 70 | M144: 70 | V144: =V142+1 -> 70 | W144: 70 | AF144: =AF142+1 -> 70 | AG144: 70
B146: =B144+1 -> 71 | C146: 71 | L146: =L144+1 -> 71 | M146: 71 | V146: =V144+1 -> 71 | W146: 71 | AF146: =AF144+1 -> 71 | AG146: 71
B148: =B146+1 -> 72 | C148: 72 | L148: =L146+1 -> 72 | M148: 72 | V148: =V146+1 -> 72 | W148: 72 | AF148: =AF146+1 -> 72 | AG148: 72
B150: =B148+1 -> 73 | C150: 73 | L150: =L148+1 -> 73 | M150: 73 | V150: =V148+1 -> 73 | W150: 73 | AF150: =AF148+1 -> 73 | AG150: 73
B152: =B150+1 -> 74 | C152: 74 | L152: =L150+1 -> 74 | M152: 74 | V152: =V150+1 -> 74 | W152: 74 | AF152: =AF150+1 -> 74 | AG152: 74
B154: =B152+1 -> 75 | C154: 75 | L154: =L152+1 -> 75 | M154: 75 | V154: =V152+1 -> 75 | W154: 75 | AF154: =AF152+1 -> 75 | AG154: 75
B156: =B154+1 -> 76 | C156: 76 | L156: =L154+1 -> 76 | M156: 76 | V156: =V154+1 -> 76 | W156: 76 | AF156: =AF154+1 -> 76 | AG156: 76
B158: =B156+1 -> 77 | C158: 77 | L158: =L156+1 -> 77 | M158: 77 | V158: =V156+1 -> 77 | W158: 77 | AF158: =AF156+1 -> 77 | AG158: 77
B160: =B158+1 -> 78 | C160: 78 | L160: =L158+1 -> 78 | M160: 78 | V160: =V158+1 -> 78 | W160: 78 | AF160: =AF158+1 -> 78 | AG160: 78
B162: =B160+1 -> 79 | C162: 79 | L162: =L160+1 -> 79 | M162: 79 | V162: =V160+1 -> 79 | W162: 79 | AF162: =AF160+1 -> 79 | AG162: 79
B164: 80 | C164: 80 | L164: 80 | M164: 80 | V164: 80 | W164: 80 | AF164: 80 | AG164: 80

Sheet Atl3 (hidden)
D2: =Inf!K5 -> 97 | E2: Количество участников | G2: =COUNTA(D6:D165) -> 0 | N2: =Inf!K6 -> 130 | O2: Количество участников | Q2: =COUNTA(N6:N165) -> 0 | X2: =Inf!K7 -> 0 | Y2: Количество участников | AA2: =COUNTA(X6:X165) -> 0 | AH2: =Inf!K8 -> 0 | AI2: Количество участников | AK2: =COUNTA(AH6:AH165) -> 0
B5: № п/п | C5: по жребию | D5: Фамилия, имя участника | E5: Регион | F5: ФСО | G5: Разряд, звание | H5: Дата рождения | I5: Ф.И.О. тренера | L5: № п/п | M5: по жребию | N5: Фамилия, имя участника | O5: Регион | P5: ФСО | Q5: Разряд, звание | R5: Дата рождения | S5: Ф.И.О. тренера | V5: № п/п | W5: по жребию | X5: Фамилия, имя участника | Y5: Регион | Z5: ФСО | AA5: Разряд, звание | AB5: Дата рождения | AC5: Ф.И.О. тренера | AF5: № п/п | AG5: по жребию | AH5: Фамилия, имя участника | AI5: Регион | AJ5: ФСО | AK5: Разряд, звание | AL5: Дата рождения | AM5: Ф.И.О. тренера
B6: 1 | C6: 1 | L6: 1 | M6: 1 | V6: 1 | W6: 1 | AF6: 1 | AG6: 1
B8: =B6+1 -> 2 | C8: 2 | L8: =L6+1 -> 2 | M8: 2 | V8: =V6+1 -> 2 | W8: 2 | AF8: =AF6+1 -> 2 | AG8: 2
B10: =B8+1 -> 3 | C10: 3 | L10: =L8+1 -> 3 | M10: 3 | V10: =V8+1 -> 3 | W10: 3 | AF10: =AF8+1 -> 3 | AG10: 3
B12: =B10+1 -> 4 | C12: 4 | L12: =L10+1 -> 4 | M12: 4 | V12: =V10+1 -> 4 | W12: 4 | AF12: =AF10+1 -> 4 | AG12: 4
B14: =B12+1 -> 5 | C14: 5 | L14: =L12+1 -> 5 | M14: 5 | V14: =V12+1 -> 5 | W14: 5 | AF14: =AF12+1 -> 5 | AG14: 5
B16: =B14+1 -> 6 | C16: 6 | L16: =L14+1 -> 6 | M16: 6 | V16: =V14+1 -> 6 | W16: 6 | AF16: =AF14+1 -> 6 | AG16: 6
B18: =B16+1 -> 7 | C18: 7 | L18: =L16+1 -> 7 | M18: 7 | V18: =V16+1 -> 7 | W18: 7 | AF18: =AF16+1 -> 7 | AG18: 7
B20: =B18+1 -> 8 | C20: 8 | L20: =L18+1 -> 8 | M20: 8 | V20: =V18+1 -> 8 | W20: 8 | AF20: =AF18+1 -> 8 | AG20: 8
B22: =B20+1 -> 9 | C22: 9 | L22: =L20+1 -> 9 | M22: 9 | V22: =V20+1 -> 9 | W22: 9 | AF22: =AF20+1 -> 9 | AG22: 9
B24: =B22+1 -> 10 | C24: 10 | L24: =L22+1 -> 10 | M24: 10 | V24: =V22+1 -> 10 | W24: 10 | AF24: =AF22+1 -> 10 | AG24: 10
B26: =B24+1 -> 11 | C26: 11 | L26: =L24+1 -> 11 | M26: 11 | V26: =V24+1 -> 11 | W26: 11 | AF26: =AF24+1 -> 11 | AG26: 11
B28: =B26+1 -> 12 | C28: 12 | L28: =L26+1 -> 12 | M28: 12 | V28: =V26+1 -> 12 | W28: 12 | AF28: =AF26+1 -> 12 | AG28: 12
B30: =B28+1 -> 13 | C30: 13 | L30: =L28+1 -> 13 | M30: 13 | V30: =V28+1 -> 13 | W30: 13 | AF30: =AF28+1 -> 13 | AG30: 13
B32: =B30+1 -> 14 | C32: 14 | L32: =L30+1 -> 14 | M32: 14 | V32: =V30+1 -> 14 | W32: 14 | AF32: =AF30+1 -> 14 | AG32: 14
B34: =B32+1 -> 15 | C34: 15 | L34: =L32+1 -> 15 | M34: 15 | V34: =V32+1 -> 15 | W34: 15 | AF34: =AF32+1 -> 15 | AG34: 15
B36: =B34+1 -> 16 | C36: 16 | L36: =L34+1 -> 16 | M36: 16 | V36: =V34+1 -> 16 | W36: 16 | AF36: =AF34+1 -> 16 | AG36: 16
B38: =B36+1 -> 17 | C38: 17 | L38: =L36+1 -> 17 | M38: 17 | V38: =V36+1 -> 17 | W38: 17 | AF38: =AF36+1 -> 17 | AG38: 17
B40: =B38+1 -> 18 | C40: 18 | L40: =L38+1 -> 18 | M40: 18 | V40: =V38+1 -> 18 | W40: 18 | AF40: =AF38+1 -> 18 | AG40: 18
B42: =B40+1 -> 19 | C42: 19 | L42: =L40+1 -> 19 | M42: 19 | V42: =V40+1 -> 19 | W42: 19 | AF42: =AF40+1 -> 19 | AG42: 19
B44: =B42+1 -> 20 | C44: 20 | L44: =L42+1 -> 20 | M44: 20 | V44: =V42+1 -> 20 | W44: 20 | AF44: =AF42+1 -> 20 | AG44: 20
B46: =B44+1 -> 21 | C46: 21 | L46: =L44+1 -> 21 | M46: 21 | V46: =V44+1 -> 21 | W46: 21 | AF46: =AF44+1 -> 21 | AG46: 21
B48: =B46+1 -> 22 | C48: 22 | L48: =L46+1 -> 22 | M48: 22 | V48: =V46+1 -> 22 | W48: 22 | AF48: =AF46+1 -> 22 | AG48: 22
B50: =B48+1 -> 23 | C50: 23 | L50: =L48+1 -> 23 | M50: 23 | V50: =V48+1 -> 23 | W50: 23 | AF50: =AF48+1 -> 23 | AG50: 23
B52: =B50+1 -> 24 | C52: 24 | L52: =L50+1 -> 24 | M52: 24 | V52: =V50+1 -> 24 | W52: 24 | AF52: =AF50+1 -> 24 | AG52: 24
B54: =B52+1 -> 25 | C54: 25 | L54: =L52+1 -> 25 | M54: 25 | V54: =V52+1 -> 25 | W54: 25 | AF54: =AF52+1 -> 25 | AG54: 25
B56: =B54+1 -> 26 | C56: 26 | L56: =L54+1 -> 26 | M56: 26 | V56: =V54+1 -> 26 | W56: 26 | AF56: =AF54+1 -> 26 | AG56: 26
B58: =B56+1 -> 27 | C58: 27 | L58: =L56+1 -> 27 | M58: 27 | V58: =V56+1 -> 27 | W58: 27 | AF58: =AF56+1 -> 27 | AG58: 27
B60: =B58+1 -> 28 | C60: 28 | L60: =L58+1 -> 28 | M60: 28 | V60: =V58+1 -> 28 | W60: 28 | AF60: =AF58+1 -> 28 | AG60: 28
B62: =B60+1 -> 29 | C62: 29 | L62: =L60+1 -> 29 | M62: 29 | V62: =V60+1 -> 29 | W62: 29 | AF62: =AF60+1 -> 29 | AG62: 29
B64: =B62+1 -> 30 | C64: 30 | L64: =L62+1 -> 30 | M64: 30 | V64: =V62+1 -> 30 | W64: 30 | AF64: =AF62+1 -> 30 | AG64: 30
B66: =B64+1 -> 31 | C66: 31 | L66: =L64+1 -> 31 | M66: 31 | V66: =V64+1 -> 31 | W66: 31 | AF66: =AF64+1 -> 31 | AG66: 31
B68: =B66+1 -> 32 | C68: 32 | L68: =L66+1 -> 32 | M68: 32 | V68: =V66+1 -> 32 | W68: 32 | AF68: =AF66+1 -> 32 | AG68: 32
B70: =B68+1 -> 33 | C70: 33 | L70: =L68+1 -> 33 | M70: 33 | V70: =V68+1 -> 33 | W70: 33 | AF70: =AF68+1 -> 33 | AG70: 33
B72: =B70+1 -> 34 | C72: 34 | L72: =L70+1 -> 34 | M72: 34 | V72: =V70+1 -> 34 | W72: 34 | AF72: =AF70+1 -> 34 | AG72: 34
B74: =B72+1 -> 35 | C74: 35 | L74: =L72+1 -> 35 | M74: 35 | V74: =V72+1 -> 35 | W74: 35 | AF74: =AF72+1 -> 35 | AG74: 35
B76: =B74+1 -> 36 | C76: 36 | L76: =L74+1 -> 36 | M76: 36 | V76: =V74+1 -> 36 | W76: 36 | AF76: =AF74+1 -> 36 | AG76: 36
B78: =B76+1 -> 37 | C78: 37 | L78: =L76+1 -> 37 | M78: 37 | V78: =V76+1 -> 37 | W78: 37 | AF78: =AF76+1 -> 37 | AG78: 37
B80: =B78+1 -> 38 | C80: 38 | L80: =L78+1 -> 38 | M80: 38 | V80: =V78+1 -> 38 | W80: 38 | AF80: =AF78+1 -> 38 | AG80: 38
B82: =B80+1 -> 39 | C82: 39 | L82: =L80+1 -> 39 | M82: 39 | V82: =V80+1 -> 39 | W82: 39 | AF82: =AF80+1 -> 39 | AG82: 39
B84: =B82+1 -> 40 | C84: 40 | L84: =L82+1 -> 40 | M84: 40 | V84: =V82+1 -> 40 | W84: 40 | AF84: =AF82+1 -> 40 | AG84: 40
B86: =B84+1 -> 41 | C86: 41 | L86: =L84+1 -> 41 | M86: 41 | V86: =V84+1 -> 41 | W86: 41 | AF86: =AF84+1 -> 41 | AG86: 41
B88: =B86+1 -> 42 | C88: 42 | L88: =L86+1 -> 42 | M88: 42 | V88: =V86+1 -> 42 | W88: 42 | AF88: =AF86+1 -> 42 | AG88: 42
B90: =B88+1 -> 43 | C90: 43 | L90: =L88+1 -> 43 | M90: 43 | V90: =V88+1 -> 43 | W90: 43 | AF90: =AF88+1 -> 43 | AG90: 43
B92: =B90+1 -> 44 | C92: 44 | L92: =L90+1 -> 44 | M92: 44 | V92: =V90+1 -> 44 | W92: 44 | AF92: =AF90+1 -> 44 | AG92: 44
B94: =B92+1 -> 45 | C94: 45 | L94: =L92+1 -> 45 | M94: 45 | V94: =V92+1 -> 45 | W94: 45 | AF94: =AF92+1 -> 45 | AG94: 45
B96: =B94+1 -> 46 | C96: 46 | L96: =L94+1 -> 46 | M96: 46 | V96: =V94+1 -> 46 | W96: 46 | AF96: =AF94+1 -> 46 | AG96: 46
B98: =B96+1 -> 47 | C98: 47 | L98: =L96+1 -> 47 | M98: 47 | V98: =V96+1 -> 47 | W98: 47 | AF98: =AF96+1 -> 47 | AG98: 47
B100: =B98+1 -> 48 | C100: 48 | L100: =L98+1 -> 48 | M100: 48 | V100: =V98+1 -> 48 | W100: 48 | AF100: =AF98+1 -> 48 | AG100: 48
B102: =B100+1 -> 49 | C102: 49 | L102: =L100+1 -> 49 | M102: 49 | V102: =V100+1 -> 49 | W102: 49 | AF102: =AF100+1 -> 49 | AG102: 49
B104: =B102+1 -> 50 | C104: 50 | L104: =L102+1 -> 50 | M104: 50 | V104: =V102+1 -> 50 | W104: 50 | AF104: =AF102+1 -> 50 | AG104: 50
B106: =B104+1 -> 51 | C106: 51 | L106: =L104+1 -> 51 | M106: 51 | V106: =V104+1 -> 51 | W106: 51 | AF106: =AF104+1 -> 51 | AG106: 51
B108: =B106+1 -> 52 | C108: 52 | L108: =L106+1 -> 52 | M108: 52 | V108: =V106+1 -> 52 | W108: 52 | AF108: =AF106+1 -> 52 | AG108: 52
B110: =B108+1 -> 53 | C110: 53 | L110: =L108+1 -> 53 | M110: 53 | V110: =V108+1 -> 53 | W110: 53 | AF110: =AF108+1 -> 53 | AG110: 53
B112: =B110+1 -> 54 | C112: 54 | L112: =L110+1 -> 54 | M112: 54 | V112: =V110+1 -> 54 | W112: 54 | AF112: =AF110+1 -> 54 | AG112: 54
B114: =B112+1 -> 55 | C114: 55 | L114: =L112+1 -> 55 | M114: 55 | V114: =V112+1 -> 55 | W114: 55 | AF114: =AF112+1 -> 55 | AG114: 55
B116: =B114+1 -> 56 | C116: 56 | L116: =L114+1 -> 56 | M116: 56 | V116: =V114+1 -> 56 | W116: 56 | AF116: =AF114+1 -> 56 | AG116: 56
B118: =B116+1 -> 57 | C118: 57 | L118: =L116+1 -> 57 | M118: 57 | V118: =V116+1 -> 57 | W118: 57 | AF118: =AF116+1 -> 57 | AG118: 57
B120: =B118+1 -> 58 | C120: 58 | L120: =L118+1 -> 58 | M120: 58 | V120: =V118+1 -> 58 | W120: 58 | AF120: =AF118+1 -> 58 | AG120: 58
B122: =B120+1 -> 59 | C122: 59 | L122: =L120+1 -> 59 | M122: 59 | V122: =V120+1 -> 59 | W122: 59 | AF122: =AF120+1 -> 59 | AG122: 59
B124: =B122+1 -> 60 | C124: 60 | L124: =L122+1 -> 60 | M124: 60 | V124: =V122+1 -> 60 | W124: 60 | AF124: =AF122+1 -> 60 | AG124: 60
B126: =B124+1 -> 61 | C126: 61 | L126: =L124+1 -> 61 | M126: 61 | V126: =V124+1 -> 61 | W126: 61 | AF126: =AF124+1 -> 61 | AG126: 61
B128: =B126+1 -> 62 | C128: 62 | L128: =L126+1 -> 62 | M128: 62 | V128: =V126+1 -> 62 | W128: 62 | AF128: =AF126+1 -> 62 | AG128: 62
B130: =B128+1 -> 63 | C130: 63 | L130: =L128+1 -> 63 | M130: 63 | V130: =V128+1 -> 63 | W130: 63 | AF130: =AF128+1 -> 63 | AG130: 63
B132: =B130+1 -> 64 | C132: 64 | L132: =L130+1 -> 64 | M132: 64 | V132: =V130+1 -> 64 | W132: 64 | AF132: =AF130+1 -> 64 | AG132: 64
B134: =B132+1 -> 65 | C134: 65 | L134: =L132+1 -> 65 | M134: 65 | V134: =V132+1 -> 65 | W134: 65 | AF134: =AF132+1 -> 65 | AG134: 65
B136: =B134+1 -> 66 | C136: 66 | L136: =L134+1 -> 66 | M136: 66 | V136: =V134+1 -> 66 | W136: 66 | AF136: =AF134+1 -> 66 | AG136: 66
B138: =B136+1 -> 67 | C138: 67 | L138: =L136+1 -> 67 | M138: 67 | V138: =V136+1 -> 67 | W138: 67 | AF138: =AF136+1 -> 67 | AG138: 67
B140: =B138+1 -> 68 | C140: 68 | L140: =L138+1 -> 68 | M140: 68 | V140: =V138+1 -> 68 | W140: 68 | AF140: =AF138+1 -> 68 | AG140: 68
B142: =B140+1 -> 69 | C142: 69 | L142: =L140+1 -> 69 | M142: 69 | V142: =V140+1 -> 69 | W142: 69 | AF142: =AF140+1 -> 69 | AG142: 69
B144: =B142+1 -> 70 | C144: 70 | L144: =L142+1 -> 70 | M144: 70 | V144: =V142+1 -> 70 | W144: 70 | AF144: =AF142+1 -> 70 | AG144: 70
B146: =B144+1 -> 71 | C146: 71 | L146: =L144+1 -> 71 | M146: 71 | V146: =V144+1 -> 71 | W146: 71 | AF146: =AF144+1 -> 71 | AG146: 71
B148: =B146+1 -> 72 | C148: 72 | L148: =L146+1 -> 72 | M148: 72 | V148: =V146+1 -> 72 | W148: 72 | AF148: =AF146+1 -> 72 | AG148: 72
B150: =B148+1 -> 73 | C150: 73 | L150: =L148+1 -> 73 | M150: 73 | V150: =V148+1 -> 73 | W150: 73 | AF150: =AF148+1 -> 73 | AG150: 73
B152: =B150+1 -> 74 | C152: 74 | L152: =L150+1 -> 74 | M152: 74 | V152: =V150+1 -> 74 | W152: 74 | AF152: =AF150+1 -> 74 | AG152: 74
B154: =B152+1 -> 75 | C154: 75 | L154: =L152+1 -> 75 | M154: 75 | V154: =V152+1 -> 75 | W154: 75 | AF154: =AF152+1 -> 75 | AG154: 75
B156: =B154+1 -> 76 | C156: 76 | L156: =L154+1 -> 76 | M156: 76 | V156: =V154+1 -> 76 | W156: 76 | AF156: =AF154+1 -> 76 | AG156: 76
B158: =B156+1 -> 77 | C158: 77 | L158: =L156+1 -> 77 | M158: 77 | V158: =V156+1 -> 77 | W158: 77 | AF158: =AF156+1 -> 77 | AG158: 77
B160: =B158+1 -> 78 | C160: 78 | L160: =L158+1 -> 78 | M160: 78 | V160: =V158+1 -> 78 | W160: 78 | AF160: =AF158+1 -> 78 | AG160: 78
B162: =B160+1 -> 79 | C162: 79 | L162: =L160+1 -> 79 | M162: 79 | V162: =V160+1 -> 79 | W162: 79 | AF162: =AF160+1 -> 79 | AG162: 79
B164: 80 | C164: 80 | L164: 80 | M164: 80 | V164: 80 | W164: 80 | AF164: 80 | AG164: 80

Sheet Atl4 (hidden)
D2: =Inf!K9 -> 0 | E2: Количество участников | G2: =COUNTA(D6:D165) -> 0 | N2: =Inf!K10 -> 0 | O2: Количество участников | Q2: =COUNTA(N6:N165) -> 0 | X2: =Inf!K11 -> 0 | Y2: Количество участников | AA2: =COUNTA(X6:X165) -> 0 | AH2: =Inf!K12 -> 0 | AI2: Количество участников | AK2: =COUNTA(AH6:AH165) -> 0
